Workbook

Sheet READ ME
D11: Read Me Sheet
D16: SAFEGUARD WATER – Water Requirement Tool
D18: Introduction
D19: This tool serves to calculate the water requirement for crops and livestock according to geographic position and rainfall patterns at the SPIS location. Complimentary tools are available under:
D22: http://www.fao.org/nr/water/aquastat/climateinfotool/index.stm
D23: http://www.fao.org/land-water/databases-and-software/cropwat/en
D25: Tips & Tricks
D34: Overview
D35: This tool comprises the following sheets:
D37: 1. Geographic Data | G37: for adding basic site information and entering rainfall and temperature data
D39: 2. Crop Water Requirement | G39: for selecting a crop and planting period; for automatic calculation of water requirement for a single crop
D42: 3. Livestock Water Requirement | G42: for adding the type and number of livestock; for automatic calculation of the water requirement for all livestock
D45: 4. Summary Sheet | G45: for the summary of crop and livestock water need
D47: 5. How this tool works | G47: for understanding the way this tool works and on which data it is based on
D49: Crop Information | G49: for adjusting and adding crops and their respective water requirement
D53: This tool is based on the FAO Training Manual no. 3: Irrigation Water Management: Irrigation Water Needs, available at:
D55: http://www.fao.org/docrep/s2022e/s2022e07.htm
D57: About
D58: Published by: | F58: GIZ & FAO
D59: Responsible: | F59: GIZ project Sustainable Energy for Food - Powering Agriculture
D61: Contact: | F61: Powering.Agriculture@giz.de
D62: Download link: | F62: https://energypedia.info/wiki/Toolbox_on_SPIS
D63: About: | F63: Powering Agriculture: An Energy Grand Challenge for Development. Available at:
F65: https://poweringag.org
D66: Version: | F66: 1.3 (September 2018)
D68: The Toolbox on Solar Powered Irrigation Systems is made possible through the global initiative Powering Agriculture: An Energy Grand Challenge for Development (PAEGC). In 2012, the United States Agency for International Development (USAID), the Swedish International Development Cooperation Agency (Sida), the German Federal Ministry for Economic Cooperation and Development (BMZ), Duke Energy, and the Overseas Private Investment Cooperation (OPIC) combined resources to create the PAEGC initiative. The objective of PAEGC is to support new and sustainable approaches to accelerate the development and deployment of clean energy solutions for increasing agriculture productivity and/or value for farmers and agribusinesses in developing countries and emerging regions that lack access to reliable, affordable clean energy.
D81: The designations employed and the presentation of material in this information product do not imply the expression of any opinion whatsoever on the part of Deutsche Gesellschaft für Internationale Zusammenarbeit (GIZ) GmbH, Food and Agriculture Organization of the United Nations (FAO) or any of the PAEGC Founding Partners concerning the legal or development status of any country, territory, city or area or of its authorities, or concerning the delimitation of its frontiers or boundaries. The mention of specific companies or products of manufacturers, whether or not these have been patented, does not imply that these have been endorsed or recommended by GIZ, FAO, or any of the PAEGC Founding Partners in preference to others of a similar nature that are not mentioned. The views expressed in this information product are those of the author and do not necessarily reflect the views or policies of GIZ, FAO, or any of the PAEGC Founding Partners.
D95: GIZ, FAO and the PAEGC Founding Partners encourage the use, reproduction and dissemination of material in this information product. Except where otherwise indicated, material may be copied, downloaded and printed for private study, research and teaching purposes, or for use in non-commercial products or services, provided that appropriate acknowledgement of GIZ and FAO as the source and copyright holder is given.
D103: © GIZ and FAO, 2018

Sheet 1 Geographic Data
A1: SAFEGUARD WATER – Water Requirement Tool
A2: Enter basic rainfall and climatic data for you location.
A4: 1 GENERAL GEOGRAPHIC INFORMATION
A7: Country | B7: Kenia | F7: Region
A8: Farm code/name | F8: Date
A10: Name of the farm
A11: Village
A12: Division
A13: District
B15: January | C15: February | D15: March | E15: April | F15: May | G15: June | H15: July | I15: August | J15: September | K15: October | L15: November | M15: December
A16: Mean daily temperature [°C]: | B16: 25 | C16: 26 | D16: 26 | E16: 26 | F16: 25 | G16: 23 | H16: 22 | I16: 23 | J16: 24 | K16: 25 | L16: 25 | M16: 25
A17: Rainfall [mm/month]: | B17: 30 | C17: 26 | D17: 60 | E17: 130 | F17: 90 | G17: 37 | H17: 30 | I17: 30 | J17: 28 | K17: 57 | L17: 90 | M17: 50
A18: Use to obtain indicative monthly rainfall and temperature data for the site: | E18: http://www.worldclimate.com | H18: http://sdwebx.worldbank.org/climateportal
B20: Hemisphere: | C20: North | I20: Notes:
B22: Latitude: | C22: 30°
A40: Use to identify exact coordinates of the site: | C40: https://www.google.de/maps

Sheet 2 Crop Water Requirement
A1: SAFEGUARD WATER – Water Requirement Tool
A2: Select crop intended for planting at your location, for automatic indication of water requirements
A4: 2 CROP WATER REQUIREMENT
N6: Farm code/name: | P6: ='1 Geographic Data'!B8 -> 0
E7: Conversion factor to 1 ha:
B8: Area measurement unit: | C8: ha | E8: 1 | F8: =C8&" = 1 hectar" -> ha = 1 hectar
D11: ='1 Geographic Data'!B15 -> January | E11: February | F11: March | G11: April | H11: May | I11: June | J11: July | K11: August | L11: September | M11: October | N11: November | O11: December
B12: ='1 Geographic Data'!A16 -> Mean daily temperature [°C]: | D12: ='1 Geographic Data'!B16 -> 25 | E12: ='1 Geographic Data'!C16 -> 26 | F12: ='1 Geographic Data'!D16 -> 26 | G12: ='1 Geographic Data'!E16 -> 26 | H12: ='1 Geographic Data'!F16 -> 25 | I12: ='1 Geographic Data'!G16 -> 23 | J12: ='1 Geographic Data'!H16 -> 22 | K12: ='1 Geographic Data'!I16 -> 23 | L12: ='1 Geographic Data'!J16 -> 24 | M12: ='1 Geographic Data'!K16 -> 25 | N12: ='1 Geographic Data'!L16 -> 25 | O12: ='1 Geographic Data'!M16 -> 25 | P12: ° C | Q12: Summer months
B13: ='1 Geographic Data'!A17 -> Rainfall [mm/month]: | D13: ='1 Geographic Data'!B17 -> 30 | E13: ='1 Geographic Data'!C17 -> 26 | F13: ='1 Geographic Data'!D17 -> 60 | G13: ='1 Geographic Data'!E17 -> 130 | H13: ='1 Geographic Data'!F17 -> 90 | I13: ='1 Geographic Data'!G17 -> 37 | J13: ='1 Geographic Data'!H17 -> 30 | K13: ='1 Geographic Data'!I17 -> 30 | L13: ='1 Geographic Data'!J17 -> 28 | M13: ='1 Geographic Data'!K17 -> 57 | N13: ='1 Geographic Data'!L17 -> 90 | O13: ='1 Geographic Data'!M17 -> 50 | P13: mm/month | Q13: Rainy season
B14: Irrigation Water need [m³/day]: | D14: ='General Calculation'!E41 -> 25.14316129 | E14: ='General Calculation'!F41 -> 52.29792857 | F14: ='General Calculation'!G41 -> 58.94757355 | G14: ='General Calculation'!H41 -> 4.142981333 | H14: ='General Calculation'!I41 -> 0 | I14: ='General Calculation'!J41 -> 0 | J14: ='General Calculation'!K41 -> 0 | K14: ='General Calculation'!L41 -> 0 | L14: ='General Calculation'!M41 -> 0 | M14: ='General Calculation'!N41 -> 0 | N14: ='General Calculation'!O41 -> 0 | O14: ='General Calculation'!P41 -> 0 | P14: m³/day
B17: Crop to be irrigated | E17: ="Area in "&C8 -> Area in ha | G17: Planting | I17: Crop growing time | K17: Irrigation scheme | N17: Irrigation Efficiency | Q17: Cropping density
G18: (dd.mm.yyyy) | R18: https://www.edenseeds.com.au/flux-content/eden/pdf/EdenSeeds-PlantingGuide.pdf
B19: Barley/Oats/Wheat | E19: 1 | G19: 2017-01-01 | I19: Minimum | K19: Drip | N19: =IFERROR(IF('General Calculation'!B35=0,"",'General Calculation'!B35*100&" %"),"") -> 90 % | Q19: normal spacing
B21: none | G21: 2017-01-01 | I21: Minimum | N21: =IFERROR(IF('General Calculation'!B36=0,"",'General Calculation'!B36*100&" %"),"") ->  | Q21: normal spacing
B23: none | G23: 2017-01-01 | I23: Minimum | N23: =IFERROR(IF('General Calculation'!B37=0,"",'General Calculation'!B37*100&" %"),"") ->  | Q23: normal spacing
B25: none | G25: 2017-01-01 | I25: Minimum | N25: =IFERROR(IF('General Calculation'!B38=0,"",'General Calculation'!B38*100&" %"),"") ->  | Q25: normal spacing
B27: none | G27: 2017-01-01 | I27: Minimum | N27: =IFERROR(IF('General Calculation'!B39=0,"",'General Calculation'!B39*100&" %"),"") ->  | Q27: normal spacing
B29: Highest daily irrigation water need per day: | D29: =MAX('General Calculation'!E41:P41) -> 58.94757355 | E29: ="m³ in the month of "& INDEX('General Calculation'!E9:P9,MATCH(MAX('General Calculation'!E41:P41),'General Calculation'!E41:P41,0)) -> m³ in the month of March | H29: ="in " & '1 Geographic Data'!B7 -> in Kenia | K29: Pump utilization rate: | N29: ='General Calculation'!E48 -> 0.1986675564 | O29: Yearly Water need in m³: | R29: =SUM('General Calculation'!E42:P42) -> 4195.44422

Sheet General Calculation (hidden)
B2: TRUE | C2: Crop 1 | D2: =IF('Calculation Sheet Crop 1'!B1=0,"",'Calculation Sheet Crop 1'!B1) -> Barley/Oats/Wheat | E2: =IF($B$2=TRUE,'Calculation Sheet Crop 1'!P6,NA()) -> 78.858 | F2: =IF($B$2=TRUE,'Calculation Sheet Crop 1'!Q6,NA()) -> 138.722 | G2: =IF($B$2=TRUE,'Calculation Sheet Crop 1'!R6,NA()) -> 192.12498 | H2: =IF($B$2=TRUE,'Calculation Sheet Crop 1'!S6,NA()) -> 90.29904 | I2: =IF($B$2=TRUE,'Calculation Sheet Crop 1'!T6,NA()) -> 10.881 | J2: =IF($B$2=TRUE,'Calculation Sheet Crop 1'!U6,NA()) -> 0 | K2: =IF($B$2=TRUE,'Calculation Sheet Crop 1'!V6,NA()) -> 0 | L2: =IF($B$2=TRUE,'Calculation Sheet Crop 1'!W6,NA()) -> 0 | M2: =IF($B$2=TRUE,'Calculation Sheet Crop 1'!X6,NA()) -> 0 | N2: =IF($B$2=TRUE,'Calculation Sheet Crop 1'!Y6,NA()) -> 0 | O2: =IF($B$2=TRUE,'Calculation Sheet Crop 1'!Z6,NA()) -> 0 | P2: =IF($B$2=TRUE,'Calculation Sheet Crop 1'!AA6,NA()) -> 0 | Q2: =E2 -> 78.858 | R2: 138.722 | S2: 192.12498 | T2: 90.29904 | U2: 10.881 | V2: 0 | W2: 0 | X2: 0 | Y2: 0 | Z2: 0 | AA2: 0 | AB2: 0 | AC2: =IF(B2=TRUE,IF(D2<>"",("1 - "&$A$79&D2&$A$80),""),"") -> 1 - Evapotranspiration Barley/Oats/Wheat [mm/month]
B3: TRUE | C3: Crop 2 | D3: =IF('Calculation Sheet Crop 2'!B1=0,"",'Calculation Sheet Crop 2'!B1) -> none | E3: =IF($B$3=TRUE,'Calculation Sheet Crop 2'!P6,NA()) -> 0 | F3: =IF($B$3=TRUE,'Calculation Sheet Crop 2'!Q6,NA()) -> 0 | G3: =IF($B$3=TRUE,'Calculation Sheet Crop 2'!R6,NA()) -> 0 | H3: =IF($B$3=TRUE,'Calculation Sheet Crop 2'!S6,NA()) -> 0 | I3: =IF($B$3=TRUE,'Calculation Sheet Crop 2'!T6,NA()) -> 0 | J3: =IF($B$3=TRUE,'Calculation Sheet Crop 2'!U6,NA()) -> 0 | K3: =IF($B$3=TRUE,'Calculation Sheet Crop 2'!V6,NA()) -> 0 | L3: =IF($B$3=TRUE,'Calculation Sheet Crop 2'!W6,NA()) -> 0 | M3: =IF($B$3=TRUE,'Calculation Sheet Crop 2'!X6,NA()) -> 0 | N3: =IF($B$3=TRUE,'Calculation Sheet Crop 2'!Y6,NA()) -> 0 | O3: =IF($B$3=TRUE,'Calculation Sheet Crop 2'!Z6,NA()) -> 0 | P3: =IF($B$3=TRUE,'Calculation Sheet Crop 2'!AA6,NA()) -> 0 | Q3: 0 | R3: 0 | S3: 0 | T3: 0 | U3: 0 | V3: 0 | W3: 0 | X3: 0 | Y3: 0 | Z3: 0 | AA3: 0 | AB3: 0 | AC3: =IF(B3=TRUE,IF(D3<>"",("2 - "&$A$79&D3&$A$80),""),"") -> 2 - Evapotranspiration none [mm/month]
B4: TRUE | C4: Crop 3 | D4: =IF('Calculation Sheet Crop 3'!B1=0,"",'Calculation Sheet Crop 3'!B1) -> none | E4: =IF($B$4=TRUE,'Calculation Sheet Crop 3'!P6,NA()) -> 0 | F4: =IF($B$4=TRUE,'Calculation Sheet Crop 3'!Q6,NA()) -> 0 | G4: =IF($B$4=TRUE,'Calculation Sheet Crop 3'!R6,NA()) -> 0 | H4: =IF($B$4=TRUE,'Calculation Sheet Crop 3'!S6,NA()) -> 0 | I4: =IF($B$4=TRUE,'Calculation Sheet Crop 3'!T6,NA()) -> 0 | J4: =IF($B$4=TRUE,'Calculation Sheet Crop 3'!U6,NA()) -> 0 | K4: =IF($B$4=TRUE,'Calculation Sheet Crop 3'!V6,NA()) -> 0 | L4: =IF($B$4=TRUE,'Calculation Sheet Crop 3'!W6,NA()) -> 0 | M4: =IF($B$4=TRUE,'Calculation Sheet Crop 3'!X6,NA()) -> 0 | N4: =IF($B$4=TRUE,'Calculation Sheet Crop 3'!Y6,NA()) -> 0 | O4: =IF($B$4=TRUE,'Calculation Sheet Crop 3'!Z6,NA()) -> 0 | P4: =IF($B$4=TRUE,'Calculation Sheet Crop 3'!AA6,NA()) -> 0 | Q4: 0 | R4: 0 | S4: 0 | T4: 0 | U4: 0 | V4: 0 | W4: 0 | X4: 0 | Y4: 0 | Z4: 0 | AA4: 0 | AB4: 0 | AC4: =IF(B4=TRUE,IF(D4<>"",("3 - "&$A$79&D4&$A$80),""),"") -> 3 - Evapotranspiration none [mm/month]
B5: TRUE | C5: Crop 4 | D5: =IF('Calculation Sheet Crop 4'!B1=0,"",'Calculation Sheet Crop 4'!B1) -> none | E5: =IF($B$5=TRUE,'Calculation Sheet Crop 4'!P6,NA()) -> 0 | F5: =IF($B$5=TRUE,'Calculation Sheet Crop 4'!Q6,NA()) -> 0 | G5: =IF($B$5=TRUE,'Calculation Sheet Crop 4'!R6,NA()) -> 0 | H5: =IF($B$5=TRUE,'Calculation Sheet Crop 4'!S6,NA()) -> 0 | I5: =IF($B$5=TRUE,'Calculation Sheet Crop 4'!T6,NA()) -> 0 | J5: =IF($B$5=TRUE,'Calculation Sheet Crop 4'!U6,NA()) -> 0 | K5: =IF($B$5=TRUE,'Calculation Sheet Crop 4'!V6,NA()) -> 0 | L5: =IF($B$5=TRUE,'Calculation Sheet Crop 4'!W6,NA()) -> 0 | M5: =IF($B$5=TRUE,'Calculation Sheet Crop 4'!X6,NA()) -> 0 | N5: =IF($B$5=TRUE,'Calculation Sheet Crop 4'!Y6,NA()) -> 0 | O5: =IF($B$5=TRUE,'Calculation Sheet Crop 4'!Z6,NA()) -> 0 | P5: =IF($B$5=TRUE,'Calculation Sheet Crop 4'!AA6,NA()) -> 0 | Q5: 0 | R5: 0 | S5: 0 | T5: 0 | U5: 0 | V5: 0 | W5: 0 | X5: 0 | Y5: 0 | Z5: 0 | AA5: 0 | AB5: 0 | AC5: =IF(B5=TRUE,IF(D5<>"",("4 - "&$A$79&D5&$A$80),""),"") -> 4 - Evapotranspiration none [mm/month]
B6: TRUE | C6: Crop 5 | D6: =IF('Calculation Sheet Crop 5'!B1=0,"",'Calculation Sheet Crop 5'!B1) -> none | E6: =IF($B$6=TRUE,'Calculation Sheet Crop 5'!P6,NA()) -> 0 | F6: =IF($B$6=TRUE,'Calculation Sheet Crop 5'!Q6,NA()) -> 0 | G6: =IF($B$6=TRUE,'Calculation Sheet Crop 5'!R6,NA()) -> 0 | H6: =IF($B$6=TRUE,'Calculation Sheet Crop 5'!S6,NA()) -> 0 | I6: =IF($B$6=TRUE,'Calculation Sheet Crop 5'!T6,NA()) -> 0 | J6: =IF($B$6=TRUE,'Calculation Sheet Crop 5'!U6,NA()) -> 0 | K6: =IF($B$6=TRUE,'Calculation Sheet Crop 5'!V6,NA()) -> 0 | L6: =IF($B$6=TRUE,'Calculation Sheet Crop 5'!W6,NA()) -> 0 | M6: =IF($B$6=TRUE,'Calculation Sheet Crop 5'!X6,NA()) -> 0 | N6: =IF($B$6=TRUE,'Calculation Sheet Crop 5'!Y6,NA()) -> 0 | O6: =IF($B$6=TRUE,'Calculation Sheet Crop 5'!Z6,NA()) -> 0 | P6: =IF($B$6=TRUE,'Calculation Sheet Crop 5'!AA6,NA()) -> 0 | Q6: 0 | R6: 0 | S6: 0 | T6: 0 | U6: 0 | V6: 0 | W6: 0 | X6: 0 | Y6: 0 | Z6: 0 | AA6: 0 | AB6: 0 | AC6: =IF(B6=TRUE,IF(D6<>"",("5 - "&$A$79&D6&$A$80),""),"") -> 5 - Evapotranspiration none [mm/month]
A7: Effective Rainfall | B7: TRUE | E7: =IF($B$7=TRUE,E22,NA()) -> 8 | F7: =IF($B$7=TRUE,F22,NA()) -> 5.6 | G7: 26 | H7: 79 | I7: 47 | J7: 12.2 | K7: 8 | L7: 8 | M7: 6.8 | N7: 24.2 | O7: 47 | P7: 20 | Q7: 8 | R7: 5.6 | S7: 26 | T7: 79 | U7: 47 | V7: 12.2 | W7: 8 | X7: 8 | Y7: 6.8 | Z7: 24.2 | AA7: 47 | AB7: 20 | AC7: =IF(B7=TRUE,"Effective Rainfall [mm/month]","") -> Effective Rainfall [mm/month]
E9: January | F9: February | G9: March | H9: April | I9: May | J9: June | K9: July | L9: August | M9: September | N9: October | O9: November | P9: December | Q9: January | R9: February | S9: March | T9: April | U9: May | V9: June | W9: July | X9: August | Y9: September | Z9: October | AA9: November | AB9: December
D10: Days/month | E10: 31 | F10: 28 | G10: 31 | H10: 30 | I10: 31 | J10: 30 | K10: 31 | L10: 31 | M10: 30 | N10: 31 | O10: 30 | P10: 31 | Q10: 31 | R10: 28 | S10: 31 | T10: 30 | U10: 31 | V10: 30 | W10: 31 | X10: 31 | Y10: 30 | Z10: 31 | AA10: 30 | AB10: 31
D11: ='1 Geographic Data'!A16 -> Mean daily temperature [°C]: | E11: ='1 Geographic Data'!$B$16 -> 25 | F11: ='1 Geographic Data'!$C$16 -> 26 | G11: ='1 Geographic Data'!$D$16 -> 26 | H11: ='1 Geographic Data'!$E$16 -> 26 | I11: ='1 Geographic Data'!$F$16 -> 25 | J11: ='1 Geographic Data'!$G$16 -> 23 | K11: ='1 Geographic Data'!$H$16 -> 22 | L11: ='1 Geographic Data'!$I$16 -> 23 | M11: ='1 Geographic Data'!$J$16 -> 24 | N11: ='1 Geographic Data'!$K$16 -> 25 | O11: ='1 Geographic Data'!$L$16 -> 25 | P11: ='1 Geographic Data'!$M$16 -> 25 | Q11: ='1 Geographic Data'!$B$16 -> 25 | R11: ='1 Geographic Data'!$C$16 -> 26 | S11: ='1 Geographic Data'!$D$16 -> 26 | T11: ='1 Geographic Data'!$E$16 -> 26 | U11: ='1 Geographic Data'!$F$16 -> 25 | V11: ='1 Geographic Data'!$G$16 -> 23 | W11: ='1 Geographic Data'!$H$16 -> 22 | X11: ='1 Geographic Data'!$I$16 -> 23 | Y11: ='1 Geographic Data'!$J$16 -> 24 | Z11: ='1 Geographic Data'!$K$16 -> 25 | AA11: ='1 Geographic Data'!$L$16 -> 25 | AB11: ='1 Geographic Data'!$M$16 -> 25
D12: ='1 Geographic Data'!A17 -> Rainfall [mm/month]: | E12: ='1 Geographic Data'!$B$17 -> 30 | F12: ='1 Geographic Data'!$C$17 -> 26 | G12: ='1 Geographic Data'!$D$17 -> 60 | H12: ='1 Geographic Data'!$E$17 -> 130 | I12: ='1 Geographic Data'!$F$17 -> 90 | J12: ='1 Geographic Data'!$G$17 -> 37 | K12: ='1 Geographic Data'!$H$17 -> 30 | L12: ='1 Geographic Data'!$I$17 -> 30 | M12: ='1 Geographic Data'!$J$17 -> 28 | N12: ='1 Geographic Data'!$K$17 -> 57 | O12: ='1 Geographic Data'!$L$17 -> 90 | P12: ='1 Geographic Data'!$M$17 -> 50 | Q12: ='1 Geographic Data'!$B$17 -> 30 | R12: ='1 Geographic Data'!$C$17 -> 26 | S12: ='1 Geographic Data'!$D$17 -> 60 | T12: ='1 Geographic Data'!$E$17 -> 130 | U12: ='1 Geographic Data'!$F$17 -> 90 | V12: ='1 Geographic Data'!$G$17 -> 37 | W12: ='1 Geographic Data'!$H$17 -> 30 | X12: ='1 Geographic Data'!$I$17 -> 30 | Y12: ='1 Geographic Data'!$J$17 -> 28 | Z12: ='1 Geographic Data'!$K$17 -> 57 | AA12: ='1 Geographic Data'!$L$17 -> 90 | AB12: ='1 Geographic Data'!$M$17 -> 50
A13: Evapotranspiration | C13: Crop 1 | D13: ='Calculation Sheet Crop 1'!B1 -> Barley/Oats/Wheat | E13: ='Calculation Sheet Crop 1'!P6 -> 78.858 | F13: ='Calculation Sheet Crop 1'!Q6 -> 138.722 | G13: ='Calculation Sheet Crop 1'!R6 -> 192.12498 | H13: ='Calculation Sheet Crop 1'!S6 -> 90.29904 | I13: ='Calculation Sheet Crop 1'!T6 -> 10.881 | J13: ='Calculation Sheet Crop 1'!U6 -> 0 | K13: ='Calculation Sheet Crop 1'!V6 -> 0 | L13: ='Calculation Sheet Crop 1'!W6 -> 0 | M13: ='Calculation Sheet Crop 1'!X6 -> 0 | N13: ='Calculation Sheet Crop 1'!Y6 -> 0 | O13: ='Calculation Sheet Crop 1'!Z6 -> 0 | P13: ='Calculation Sheet Crop 1'!AA6 -> 0
C14: Crop 2 | D14: ='Calculation Sheet Crop 2'!B1 -> none | E14: ='Calculation Sheet Crop 2'!P6 -> 0 | F14: ='Calculation Sheet Crop 2'!Q6 -> 0 | G14: ='Calculation Sheet Crop 2'!R6 -> 0 | H14: ='Calculation Sheet Crop 2'!S6 -> 0 | I14: ='Calculation Sheet Crop 2'!T6 -> 0 | J14: ='Calculation Sheet Crop 2'!U6 -> 0 | K14: ='Calculation Sheet Crop 2'!V6 -> 0 | L14: ='Calculation Sheet Crop 2'!W6 -> 0 | M14: ='Calculation Sheet Crop 2'!X6 -> 0 | N14: ='Calculation Sheet Crop 2'!Y6 -> 0 | O14: ='Calculation Sheet Crop 2'!Z6 -> 0 | P14: ='Calculation Sheet Crop 2'!AA6 -> 0
C15: Crop 3 | D15: ='Calculation Sheet Crop 3'!B1 -> none | E15: ='Calculation Sheet Crop 3'!P6 -> 0 | F15: ='Calculation Sheet Crop 3'!Q6 -> 0 | G15: ='Calculation Sheet Crop 3'!R6 -> 0 | H15: ='Calculation Sheet Crop 3'!S6 -> 0 | I15: ='Calculation Sheet Crop 3'!T6 -> 0 | J15: ='Calculation Sheet Crop 3'!U6 -> 0 | K15: ='Calculation Sheet Crop 3'!V6 -> 0 | L15: ='Calculation Sheet Crop 3'!W6 -> 0 | M15: ='Calculation Sheet Crop 3'!X6 -> 0 | N15: ='Calculation Sheet Crop 3'!Y6 -> 0 | O15: ='Calculation Sheet Crop 3'!Z6 -> 0 | P15: ='Calculation Sheet Crop 3'!AA6 -> 0
C16: Crop 4 | D16: ='Calculation Sheet Crop 4'!B1 -> none | E16: ='Calculation Sheet Crop 4'!P6 -> 0 | F16: ='Calculation Sheet Crop 4'!Q6 -> 0 | G16: ='Calculation Sheet Crop 4'!R6 -> 0 | H16: ='Calculation Sheet Crop 4'!S6 -> 0 | I16: ='Calculation Sheet Crop 4'!T6 -> 0 | J16: ='Calculation Sheet Crop 4'!U6 -> 0 | K16: ='Calculation Sheet Crop 4'!V6 -> 0 | L16: ='Calculation Sheet Crop 4'!W6 -> 0 | M16: ='Calculation Sheet Crop 4'!X6 -> 0 | N16: ='Calculation Sheet Crop 4'!Y6 -> 0 | O16: ='Calculation Sheet Crop 4'!Z6 -> 0 | P16: ='Calculation Sheet Crop 4'!AA6 -> 0
C17: Crop 5 | D17: ='Calculation Sheet Crop 5'!B1 -> none | E17: ='Calculation Sheet Crop 5'!P6 -> 0 | F17: ='Calculation Sheet Crop 5'!Q6 -> 0 | G17: ='Calculation Sheet Crop 5'!R6 -> 0 | H17: ='Calculation Sheet Crop 5'!S6 -> 0 | I17: ='Calculation Sheet Crop 5'!T6 -> 0 | J17: ='Calculation Sheet Crop 5'!U6 -> 0 | K17: ='Calculation Sheet Crop 5'!V6 -> 0 | L17: ='Calculation Sheet Crop 5'!W6 -> 0 | M17: ='Calculation Sheet Crop 5'!X6 -> 0 | N17: ='Calculation Sheet Crop 5'!Y6 -> 0 | O17: ='Calculation Sheet Crop 5'!Z6 -> 0 | P17: ='Calculation Sheet Crop 5'!AA6 -> 0
D20: Daytime hours: | E20: =IF($A$105=1,INDEX(E90:E102,$A$90),INDEX(E112:E124,$A$90)) -> 0.24 | F20: 0.25 | G20: 0.27 | H20: 0.29 | I20: 0.31 | J20: 0.32 | K20: 0.31 | L20: 0.3 | M20: 0.28 | N20: 0.26 | O20: 0.24 | P20: 0.23
D21: Reference Evapotranspiration | E21: =E20*(0.46*E11+8) -> 4.68 | F21: =F20*(0.46*F11+8) -> 4.99 | G21: =G20*(0.46*G11+8) -> 5.3892 | H21: =H20*(0.46*H11+8) -> 5.7884 | I21: 6.045 | J21: 5.9456 | K21: 5.6172 | L21: 5.574 | M21: 5.3312 | N21: 5.07 | O21: 4.68 | P21: 4.485
D22: Effective rainfall [mm/month]: | E22: =IF(IF(E12>75,(0.8*E12-25),(0.6*E12-10))<0,0,IF(E12>75,(0.8*E12-25),(0.6*E12-10))) -> 8 | F22: =IF(IF(F12>75,(0.8*F12-25),(0.6*F12-10))<0,0,IF(F12>75,(0.8*F12-25),(0.6*F12-10))) -> 5.6 | G22: =IF(IF(G12>75,(0.8*G12-25),(0.6*G12-10))<0,0,IF(G12>75,(0.8*G12-25),(0.6*G12-10))) -> 26 | H22: =IF(IF(H12>75,(0.8*H12-25),(0.6*H12-10))<0,0,IF(H12>75,(0.8*H12-25),(0.6*H12-10))) -> 79 | I22: =IF(IF(I12>75,(0.8*I12-25),(0.6*I12-10))<0,0,IF(I12>75,(0.8*I12-25),(0.6*I12-10))) -> 47 | J22: 12.2 | K22: 8 | L22: 8 | M22: 6.8 | N22: 24.2 | O22: 47 | P22: 20
A26: Water need [mm/month] | C26: Crop 1 | D26: ='Calculation Sheet Crop 1'!B1 -> Barley/Oats/Wheat | E26: =IF(E13-E$22<0,0,E13-E$22) -> 70.858 | F26: =IF(F13-F$22<0,0,F13-F$22) -> 133.122 | G26: 166.12498 | H26: 11.29904 | I26: 0 | J26: 0 | K26: 0 | L26: 0 | M26: 0 | N26: 0 | O26: 0 | P26: 0
C27: Crop 2 | D27: ='Calculation Sheet Crop 2'!B1 -> none | E27: =IF(E14-E$22<0,0,E14-E$22) -> 0 | F27: 0 | G27: 0 | H27: 0 | I27: 0 | J27: 0 | K27: 0 | L27: 0 | M27: 0 | N27: 0 | O27: 0 | P27: 0
C28: Crop 3 | D28: ='Calculation Sheet Crop 3'!B1 -> none | E28: 0 | F28: 0 | G28: 0 | H28: 0 | I28: 0 | J28: 0 | K28: 0 | L28: 0 | M28: 0 | N28: 0 | O28: 0 | P28: 0
C29: Crop 4 | D29: ='Calculation Sheet Crop 4'!B1 -> none | E29: 0 | F29: 0 | G29: 0 | H29: 0 | I29: 0 | J29: 0 | K29: 0 | L29: 0 | M29: 0 | N29: 0 | O29: 0 | P29: 0
C30: Crop 5 | D30: ='Calculation Sheet Crop 5'!B1 -> none | E30: 0 | F30: 0 | G30: 0 | H30: 0 | I30: 0 | J30: 0 | K30: 0 | L30: 0 | M30: 0 | N30: 0 | O30: 0 | P30: 0
Q34: Area in ha | R34: Irrigation Method | T34: Cropping density
A35: Water need [m³/day] | B35: =VLOOKUP(S35,$A$60:$D$69,3,FALSE) -> 0.9 | C35: Crop 1 | D35: ='Calculation Sheet Crop 1'!B1 -> Barley/Oats/Wheat | E35: =E$26*10*$Q35*(1+(1-$B35))/E$10 -> 25.14316129 | F35: =F$26*10*$Q35*(1+(1-$B35))/F$10 -> 52.29792857 | G35: 58.94757355 | H35: 4.142981333 | I35: 0 | J35: 0 | K35: 0 | L35: 0 | M35: 0 | N35: 0 | O35: 0 | P35: 0 | Q35: =('2 Crop Water Requirement'!E19/'2 Crop Water Requirement'!$E$8)*U35 -> 1 | R35: 0 | S35: ='2 Crop Water Requirement'!K19 -> Drip | T35: ='2 Crop Water Requirement'!Q19 -> normal spacing | U35: =IF(T35="normal spacing",1,IF(T35="double spacing",0.5,IF(T35="triple spacing",0.3))) -> 1
B36: =VLOOKUP(S36,$A$60:$D$69,3,FALSE) ->  | C36: Crop 2 | D36: ='Calculation Sheet Crop 2'!B1 -> none | E36: =E$27*10*$Q36*(1+(1-$B36))/E$10 ->  | F36: =F$27*10*$Q36*(1+(1-$B36))/F$10 ->  | Q36: =('2 Crop Water Requirement'!E21/'2 Crop Water Requirement'!$E$8)*U36 -> 0 | R36: 0 | S36: ='2 Crop Water Requirement'!K21 -> 0 | T36: ='2 Crop Water Requirement'!Q21 -> normal spacing | U36: =IF(T36="normal spacing",1,IF(T36="double spacing",0.5,IF(T36="triple spacing",0.3))) -> 1
B37: =VLOOKUP(S37,$A$60:$D$69,3,FALSE) ->  | C37: Crop 3 | D37: ='Calculation Sheet Crop 3'!B1 -> none | E37: =E$28*10*$Q37*(1+(1-$B37))/E$10 ->  | F37: =F$28*10*$Q37*(1+(1-$B37))/F$10 ->  | Q37: =('2 Crop Water Requirement'!E23/'2 Crop Water Requirement'!$E$8)*U37 -> 0 | R37: 0 | S37: ='2 Crop Water Requirement'!K23 -> 0 | T37: ='2 Crop Water Requirement'!Q23 -> normal spacing | U37: 1
B38: =VLOOKUP(S38,$A$60:$D$69,3,FALSE) ->  | C38: Crop 4 | D38: ='Calculation Sheet Crop 4'!B1 -> none | E38: =E$29*10*$Q38*(1+(1-$B38))/E$10 ->  | F38: =F$29*10*$Q38*(1+(1-$B38))/F$10 ->  | Q38: =('2 Crop Water Requirement'!E25/'2 Crop Water Requirement'!$E$8)*U38 -> 0 | R38: 0 | S38: ='2 Crop Water Requirement'!K25 -> 0 | T38: ='2 Crop Water Requirement'!Q25 -> normal spacing | U38: 1
B39: =VLOOKUP(S39,$A$60:$D$69,3,FALSE) ->  | C39: Crop 5 | D39: ='Calculation Sheet Crop 5'!B1 -> none | E39: =E$30*10*$Q39*(1+(1-$B39))/E$10 ->  | F39: =F$30*10*$Q39*(1+(1-$B39))/F$10 ->  | Q39: =('2 Crop Water Requirement'!E27/'2 Crop Water Requirement'!$E$8)*U39 -> 0 | R39: 0 | S39: ='2 Crop Water Requirement'!K27 -> 0 | T39: ='2 Crop Water Requirement'!Q27 -> normal spacing | U39: 1
A41: Total irrigation water need [m³/day] | E41: =IFERROR(E35,0)+IFERROR(E36,0)+IFERROR(E37,0)+IFERROR(E38,0)+IFERROR(E39,0) -> 25.14316129 | F41: =IFERROR(F35,0)+IFERROR(F36,0)+IFERROR(F37,0)+IFERROR(F38,0)+IFERROR(F39,0) -> 52.29792857 | G41: 58.94757355 | H41: 4.142981333 | I41: 0 | J41: 0 | K41: 0 | L41: 0 | M41: 0 | N41: 0 | O41: 0 | P41: 0
A42: Total irrigation water need [m³/month] | E42: =E41*E10 -> 779.438 | F42: =F41*F10 -> 1464.342 | G42: 1827.37478 | H42: 124.28944 | I42: 0 | J42: 0 | K42: 0 | L42: 0 | M42: 0 | N42: 0 | O42: 0 | P42: 0
A44: =IF(D44=TRUE,A41,"") -> Total irrigation water need [m³/day] | D44: TRUE | E44: =IF($D$44=TRUE,E41,NA()) -> 25.14316129 | F44: =IF($D$44=TRUE,F41,NA()) -> 52.29792857 | G44: 58.94757355 | H44: 4.142981333 | I44: 0 | J44: 0 | K44: 0 | L44: 0 | M44: 0 | N44: 0 | O44: 0 | P44: 0 | Q44: =E44 -> 25.14316129 | R44: 52.29792857 | S44: 58.94757355 | T44: 4.142981333 | U44: 0 | V44: 0 | W44: 0 | X44: 0 | Y44: 0 | Z44: 0 | AA44: 0 | AB44: 0
A46: Pump Utilization rate: | D46: Maximum: | E46: =MAX(E41:P41) -> 58.94757355 | F46: = 100 %
D47: Daily Average: | E47: =AVERAGE(E41:P41) -> 11.7109704
D48: Pump Utilization Rate: | E48: =IFERROR(E47/E46,0) -> 0.1986675564
A57: Irrigation Methods
C59: 0
A60: Drip | C60: 0.9 | D60: 1
A61: Micro Sprinkler | C61: 0.8 | D61: 2
A62: Centre Pivot, Linear move | C62: 0.8 | D62: 3
A63: Centre Pivot LEPA | C63: 0.85 | D63: 4
A64: Flood: Piped supply | C64: 0.8 | D64: 5
A65: Flood: Lined canal supplied | C65: 0.7 | D65: 6
A66: Flood: Earth canal supplied | C66: 0.6 | D66: 7
A67: Sprinkler (permanent) | C67: 0.75 | D67: 8
A68: Sprinkler (movable) | C68: 0.7 | D68: 9
A69: Traveling gun | C69: 0.65 | D69: 10
A72: Crop Growing Periods: | C72: Efficiency of
A74: Minimum | B74: 1
A75: Maximum | B75: 2
A76: Average | B76: 3
A79: Evapotranspiration
A80: [mm/month]
A85: ='1 Geographic Data'!C20 -> North
A86: ='1 Geographic Data'!C22 -> 30°
D87: North
C88: Latitude | E88: Jan | F88: Feb | G88: Mar | H88: Apr | I88: May | J88: June | K88: July | L88: Aug | M88: Sept | N88: Oct | O88: Nov | P88: Dec
A90: =VLOOKUP(A86,C90:D102,2,FALSE) -> 7 | C90: 60° | D90: 1 | E90: 0.15 | F90: 0.2 | G90: 0.26 | H90: 0.32 | I90: 0.38 | J90: 0.41 | K90: 0.4 | L90: 0.34 | M90: 0.28 | N90: 0.22 | O90: 0.17 | P90: 0.13
C91: 55° | D91: 2 | E91: 0.17 | F91: 0.21 | G91: 0.26 | H91: 0.32 | I91: 0.36 | J91: 0.39 | K91: 0.38 | L91: 0.33 | M91: 0.28 | N91: 0.23 | O91: 0.18 | P91: 0.16
C92: 50° | D92: 3 | E92: 0.19 | F92: 0.23 | G92: 0.27 | H92: 0.31 | I92: 0.34 | J92: 0.36 | K92: 0.35 | L92: 0.32 | M92: 0.28 | N92: 0.24 | O92: 0.2 | P92: 0.18
C93: 45° | D93: 4 | E93: 0.2 | F93: 0.23 | G93: 0.27 | H93: 0.3 | I93: 0.34 | J93: 0.35 | K93: 0.34 | L93: 0.32 | M93: 0.28 | N93: 0.24 | O93: 0.21 | P93: 0.2
C94: 40° | D94: 5 | E94: 0.22 | F94: 0.24 | G94: 0.27 | H94: 0.3 | I94: 0.32 | J94: 0.34 | K94: 0.33 | L94: 0.31 | M94: 0.28 | N94: 0.25 | O94: 0.22 | P94: 0.21
C95: 35° | D95: 6 | E95: 0.23 | F95: 0.25 | G95: 0.27 | H95: 0.29 | I95: 0.31 | J95: 0.32 | K95: 0.32 | L95: 0.3 | M95: 0.28 | N95: 0.25 | O95: 0.23 | P95: 0.22
C96: 30° | D96: 7 | E96: 0.24 | F96: 0.25 | G96: 0.27 | H96: 0.29 | I96: 0.31 | J96: 0.32 | K96: 0.31 | L96: 0.3 | M96: 0.28 | N96: 0.26 | O96: 0.24 | P96: 0.23
C97: 25° | D97: 8 | E97: 0.24 | F97: 0.26 | G97: 0.27 | H97: 0.29 | I97: 0.3 | J97: 0.31 | K97: 0.31 | L97: 0.29 | M97: 0.28 | N97: 0.26 | O97: 0.25 | P97: 0.24
C98: 20° | D98: 9 | E98: 0.25 | F98: 0.26 | G98: 0.27 | H98: 0.28 | I98: 0.29 | J98: 0.3 | K98: 0.3 | L98: 0.29 | M98: 0.28 | N98: 0.26 | O98: 0.25 | P98: 0.25
C99: 15° | D99: 10 | E99: 0.26 | F99: 0.26 | G99: 0.27 | H99: 0.28 | I99: 0.29 | J99: 0.29 | K99: 0.29 | L99: 0.28 | M99: 0.28 | N99: 0.27 | O99: 0.26 | P99: 0.25
C100: 10° | D100: 11 | E100: 0.26 | F100: 0.27 | G100: 0.27 | H100: 0.28 | I100: 0.28 | J100: 0.29 | K100: 0.29 | L100: 0.28 | M100: 0.28 | N100: 0.27 | O100: 0.26 | P100: 0.26
C101: 5° | D101: 12 | E101: 0.27 | F101: 0.27 | G101: 0.27 | H101: 0.28 | I101: 0.28 | J101: 0.28 | K101: 0.28 | L101: 0.28 | M101: 0.28 | N101: 0.27 | O101: 0.27 | P101: 0.27
C102: 0° | D102: 13 | E102: 0.27 | F102: 0.27 | G102: 0.27 | H102: 0.27 | I102: 0.27 | J102: 0.27 | K102: 0.27 | L102: 0.27 | M102: 0.27 | N102: 0.27 | O102: 0.27 | P102: 0.27
A105: =A106+1 -> 1 | B105: North | C105: =INDEX(B105:B106,A105) -> North
A106: =IF(A85="South",1,0) -> 0 | B106: South | C106: =INDEX(C90:C102,A90) -> 30°
D109: South
C110: Latitude | E110: Jan | F110: Feb | G110: Mar | H110: Apr | I110: May | J110: June | K110: July | L110: Aug | M110: Sept | N110: Oct | O110: Nov | P110: Dec
C112: 60° | E112: 0.4 | F112: 0.34 | G112: 0.28 | H112: 0.22 | I112: 0.17 | J112: 0.13 | K112: 0.15 | L112: 0.2 | M112: 0.26 | N112: 0.32 | O112: 0.38 | P112: 0.41
C113: 55 | E113: 0.38 | F113: 0.33 | G113: 0.28 | H113: 0.23 | I113: 0.18 | J113: 0.16 | K113: 0.17 | L113: 0.21 | M113: 0.26 | N113: 0.32 | O113: 0.36 | P113: 0.39
C114: 50 | E114: 0.35 | F114: 0.32 | G114: 0.28 | H114: 0.24 | I114: 0.2 | J114: 0.18 | K114: 0.19 | L114: 0.23 | M114: 0.27 | N114: 0.31 | O114: 0.34 | P114: 0.36
C115: 45 | E115: 0.34 | F115: 0.32 | G115: 0.28 | H115: 0.24 | I115: 0.21 | J115: 0.2 | K115: 0.2 | L115: 0.23 | M115: 0.27 | N115: 0.3 | O115: 0.34 | P115: 0.35
C116: 40 | E116: 0.33 | F116: 0.31 | G116: 0.28 | H116: 0.25 | I116: 0.22 | J116: 0.21 | K116: 0.22 | L116: 0.24 | M116: 0.27 | N116: 0.3 | O116: 0.32 | P116: 0.34
C117: 35 | E117: 0.32 | F117: 0.3 | G117: 0.28 | H117: 0.25 | I117: 0.23 | J117: 0.22 | K117: 0.23 | L117: 0.25 | M117: 0.27 | N117: 0.29 | O117: 0.31 | P117: 0.32
C118: 30 | E118: 0.31 | F118: 0.3 | G118: 0.28 | H118: 0.26 | I118: 0.24 | J118: 0.23 | K118: 0.24 | L118: 0.25 | M118: 0.27 | N118: 0.29 | O118: 0.31 | P118: 0.32
C119: 25 | E119: 0.31 | F119: 0.29 | G119: 0.28 | H119: 0.26 | I119: 0.25 | J119: 0.24 | K119: 0.24 | L119: 0.26 | M119: 0.27 | N119: 0.29 | O119: 0.3 | P119: 0.31
C120: 20 | E120: 0.3 | F120: 0.29 | G120: 0.28 | H120: 0.26 | I120: 0.25 | J120: 0.25 | K120: 0.25 | L120: 0.26 | M120: 0.27 | N120: 0.28 | O120: 0.29 | P120: 0.3
C121: 15 | E121: 0.29 | F121: 0.28 | G121: 0.28 | H121: 0.27 | I121: 0.26 | J121: 0.25 | K121: 0.26 | L121: 0.26 | M121: 0.27 | N121: 0.28 | O121: 0.29 | P121: 0.29
C122: 10 | E122: 0.29 | F122: 0.28 | G122: 0.28 | H122: 0.27 | I122: 0.26 | J122: 0.26 | K122: 0.26 | L122: 0.27 | M122: 0.27 | N122: 0.28 | O122: 0.28 | P122: 0.29
C123: 5 | E123: 0.28 | F123: 0.28 | G123: 0.28 | H123: 0.27 | I123: 0.27 | J123: 0.27 | K123: 0.27 | L123: 0.27 | M123: 0.27 | N123: 0.28 | O123: 0.28 | P123: 0.28
C124: 0 | E124: 0.27 | F124: 0.27 | G124: 0.27 | H124: 0.27 | I124: 0.27 | J124: 0.27 | K124: 0.27 | L124: 0.27 | M124: 0.27 | N124: 0.27 | O124: 0.27 | P124: 0.27
A130: Animal Water Requirement Calculation
B132: Animal: | C132: 1 | D132: =E132+1 -> 1 | E132: 0 | F132: =AVERAGE('3 Livestock Water Requirement'!E11:P11) -> 24.58333333 | J132: Lifestock Pump utilization rate: | M132: =MAX(E147:P147) -> 0.74
C133: 2 | D133: =E133+1 -> 1 | E133: 0 | M133: =AVERAGE(E147:P147) -> 0.5916666667
C134: 3 | D134: 1 | E134: 0 | M134: =IFERROR(M133/M132,"-") -> 0.7995495495
C135: 4 | D135: 1 | E135: 0
C136: 5 | D136: 1 | E136: 0
A139: Livestock
D141: ='3 Livestock Water Requirement'!B22 -> Cattle (lactating) | E141: =IFERROR('3 Livestock Water Requirement'!E23/1000,"") -> 0.64 | F141: =IFERROR('3 Livestock Water Requirement'!F23/1000,"") -> 0.64 | G141: =IFERROR('3 Livestock Water Requirement'!G23/1000,"") -> 0.64 | H141: =IFERROR('3 Livestock Water Requirement'!H23/1000,"") -> 0.64 | I141: =IFERROR('3 Livestock Water Requirement'!I23/1000,"") -> 0.64 | J141: =IFERROR('3 Livestock Water Requirement'!J23/1000,"") -> 0.32 | K141: =IFERROR('3 Livestock Water Requirement'!K23/1000,"") -> 0.32 | L141: =IFERROR('3 Livestock Water Requirement'!L23/1000,"") -> 0.32 | M141: =IFERROR('3 Livestock Water Requirement'!M23/1000,"") -> 0.32 | N141: =IFERROR('3 Livestock Water Requirement'!N23/1000,"") -> 0.64 | O141: =IFERROR('3 Livestock Water Requirement'!O23/1000,"") -> 0.64 | P141: =IFERROR('3 Livestock Water Requirement'!P23/1000,"") -> 0.64
D142: ='3 Livestock Water Requirement'!B25 -> Cattle (weaner) | E142: =IFERROR('3 Livestock Water Requirement'!E26/1000,"") -> 0.1 | F142: =IFERROR('3 Livestock Water Requirement'!F26/1000,"") -> 0.1 | G142: =IFERROR('3 Livestock Water Requirement'!G26/1000,"") -> 0.1 | H142: =IFERROR('3 Livestock Water Requirement'!H26/1000,"") -> 0.1 | I142: =IFERROR('3 Livestock Water Requirement'!I26/1000,"") -> 0.1 | J142: =IFERROR('3 Livestock Water Requirement'!J26/1000,"") -> 0.05 | K142: =IFERROR('3 Livestock Water Requirement'!K26/1000,"") -> 0.05 | L142: =IFERROR('3 Livestock Water Requirement'!L26/1000,"") -> 0.05 | M142: =IFERROR('3 Livestock Water Requirement'!M26/1000,"") -> 0.05 | N142: =IFERROR('3 Livestock Water Requirement'!N26/1000,"") -> 0 | O142: =IFERROR('3 Livestock Water Requirement'!O26/1000,"") -> 0 | P142: =IFERROR('3 Livestock Water Requirement'!P26/1000,"") -> 0
D143: ='3 Livestock Water Requirement'!B28 -> 0 | E143: =IFERROR('3 Livestock Water Requirement'!E29/1000,"") ->  | F143: =IFERROR('3 Livestock Water Requirement'!F29/1000,"") ->  | G143: =IFERROR('3 Livestock Water Requirement'!G29/1000,"") ->  | H143: =IFERROR('3 Livestock Water Requirement'!H29/1000,"") ->  | I143: =IFERROR('3 Livestock Water Requirement'!I29/1000,"") ->  | J143: =IFERROR('3 Livestock Water Requirement'!J29/1000,"") ->  | K143: =IFERROR('3 Livestock Water Requirement'!K29/1000,"") ->  | L143: =IFERROR('3 Livestock Water Requirement'!L29/1000,"") ->  | M143: =IFERROR('3 Livestock Water Requirement'!M29/1000,"") ->  | N143: =IFERROR('3 Livestock Water Requirement'!N29/1000,"") ->  | O143: =IFERROR('3 Livestock Water Requirement'!O29/1000,"") ->  | P143: =IFERROR('3 Livestock Water Requirement'!P29/1000,"") -> 
D144: ='3 Livestock Water Requirement'!B31 -> 0 | E144: =IFERROR('3 Livestock Water Requirement'!E32/1000,"") ->  | F144: =IFERROR('3 Livestock Water Requirement'!F32/1000,"") ->  | G144: =IFERROR('3 Livestock Water Requirement'!G32/1000,"") ->  | H144: =IFERROR('3 Livestock Water Requirement'!H32/1000,"") ->  | I144: =IFERROR('3 Livestock Water Requirement'!I32/1000,"") ->  | J144: =IFERROR('3 Livestock Water Requirement'!J32/1000,"") ->  | K144: =IFERROR('3 Livestock Water Requirement'!K32/1000,"") ->  | L144: =IFERROR('3 Livestock Water Requirement'!L32/1000,"") ->  | M144: =IFERROR('3 Livestock Water Requirement'!M32/1000,"") ->  | N144: =IFERROR('3 Livestock Water Requirement'!N32/1000,"") ->  | O144: =IFERROR('3 Livestock Water Requirement'!O32/1000,"") ->  | P144: =IFERROR('3 Livestock Water Requirement'!P32/1000,"") -> 
D145: ='3 Livestock Water Requirement'!B34 -> 0 | E145: =IFERROR('3 Livestock Water Requirement'!E35/1000,"") ->  | F145: =IFERROR('3 Livestock Water Requirement'!F35/1000,"") ->  | G145: =IFERROR('3 Livestock Water Requirement'!G35/1000,"") ->  | H145: =IFERROR('3 Livestock Water Requirement'!H35/1000,"") ->  | I145: =IFERROR('3 Livestock Water Requirement'!I35/1000,"") ->  | J145: =IFERROR('3 Livestock Water Requirement'!J35/1000,"") ->  | K145: =IFERROR('3 Livestock Water Requirement'!K35/1000,"") ->  | L145: =IFERROR('3 Livestock Water Requirement'!L35/1000,"") ->  | M145: =IFERROR('3 Livestock Water Requirement'!M35/1000,"") ->  | N145: =IFERROR('3 Livestock Water Requirement'!N35/1000,"") ->  | O145: =IFERROR('3 Livestock Water Requirement'!O35/1000,"") ->  | P145: =IFERROR('3 Livestock Water Requirement'!P35/1000,"") -> 
D147: Total water need | E147: =SUM(E141:E145) -> 0.74 | F147: =SUM(F141:F145) -> 0.74 | G147: 0.74 | H147: 0.74 | I147: 0.74 | J147: 0.37 | K147: 0.37 | L147: 0.37 | M147: 0.37 | N147: 0.64 | O147: 0.64 | P147: 0.64
D148: monthly | E148: =E147*E10 -> 22.94 | F148: =F147*F10 -> 20.72 | G148: 22.94 | H148: 22.2 | I148: 22.94 | J148: 11.1 | K148: 11.47 | L148: 11.47 | M148: 11.1 | N148: 19.84 | O148: 19.2 | P148: 19.84
B154: TRUE | D154: ='3 Livestock Water Requirement'!B22 -> Cattle (lactating) | E154: =IFERROR(IF($B$154=TRUE,'3 Livestock Water Requirement'!E23/1000,NA()),"") -> 0.64 | F154: =IFERROR(IF($B$154=TRUE,'3 Livestock Water Requirement'!F23/1000,NA()),"") -> 0.64 | G154: =IFERROR(IF($B$154=TRUE,'3 Livestock Water Requirement'!G23/1000,NA()),"") -> 0.64 | H154: =IFERROR(IF($B$154=TRUE,'3 Livestock Water Requirement'!H23/1000,NA()),"") -> 0.64 | I154: =IFERROR(IF($B$154=TRUE,'3 Livestock Water Requirement'!I23/1000,NA()),"") -> 0.64 | J154: =IFERROR(IF($B$154=TRUE,'3 Livestock Water Requirement'!J23/1000,NA()),"") -> 0.32 | K154: =IFERROR(IF($B$154=TRUE,'3 Livestock Water Requirement'!K23/1000,NA()),"") -> 0.32 | L154: =IFERROR(IF($B$154=TRUE,'3 Livestock Water Requirement'!L23/1000,NA()),"") -> 0.32 | M154: =IFERROR(IF($B$154=TRUE,'3 Livestock Water Requirement'!M23/1000,NA()),"") -> 0.32 | N154: =IFERROR(IF($B$154=TRUE,'3 Livestock Water Requirement'!N23/1000,NA()),"") -> 0.64 | O154: =IFERROR(IF($B$154=TRUE,'3 Livestock Water Requirement'!O23/1000,NA()),"") -> 0.64 | P154: =IFERROR(IF($B$154=TRUE,'3 Livestock Water Requirement'!P23/1000,NA()),"") -> 0.64 | Q154: =E154 -> 0.64 | R154: =F154 -> 0.64 | S154: =G154 -> 0.64 | T154: =H154 -> 0.64 | U154: =I154 -> 0.64 | V154: =J154 -> 0.32 | W154: =K154 -> 0.32 | X154: =L154 -> 0.32 | Y154: =M154 -> 0.32 | Z154: =N154 -> 0.64 | AA154: =O154 -> 0.64 | AB154: =P154 -> 0.64
B155: TRUE | D155: ='3 Livestock Water Requirement'!B25 -> Cattle (weaner) | E155: =IFERROR(IF($B$155=TRUE,'3 Livestock Water Requirement'!E26/1000,NA()),"") -> 0.1 | F155: =IFERROR(IF($B$155=TRUE,'3 Livestock Water Requirement'!F26/1000,NA()),"") -> 0.1 | G155: =IFERROR(IF($B$155=TRUE,'3 Livestock Water Requirement'!G26/1000,NA()),"") -> 0.1 | H155: =IFERROR(IF($B$155=TRUE,'3 Livestock Water Requirement'!H26/1000,NA()),"") -> 0.1 | I155: =IFERROR(IF($B$155=TRUE,'3 Livestock Water Requirement'!I26/1000,NA()),"") -> 0.1 | J155: =IFERROR(IF($B$155=TRUE,'3 Livestock Water Requirement'!J26/1000,NA()),"") -> 0.05 | K155: =IFERROR(IF($B$155=TRUE,'3 Livestock Water Requirement'!K26/1000,NA()),"") -> 0.05 | L155: =IFERROR(IF($B$155=TRUE,'3 Livestock Water Requirement'!L26/1000,NA()),"") -> 0.05 | M155: =IFERROR(IF($B$155=TRUE,'3 Livestock Water Requirement'!M26/1000,NA()),"") -> 0.05 | N155: =IFERROR(IF($B$155=TRUE,'3 Livestock Water Requirement'!N26/1000,NA()),"") -> 0 | O155: =IFERROR(IF($B$155=TRUE,'3 Livestock Water Requirement'!O26/1000,NA()),"") -> 0 | P155: =IFERROR(IF($B$155=TRUE,'3 Livestock Water Requirement'!P26/1000,NA()),"") -> 0 | Q155: 0.1 | R155: 0.1 | S155: 0.1 | T155: 0.1 | U155: 0.1 | V155: 0.05 | W155: 0.05 | X155: 0.05 | Y155: 0.05 | Z155: 0 | AA155: 0 | AB155: 0
B156: TRUE | D156: ='3 Livestock Water Requirement'!B28 -> 0 | E156: =IFERROR(IF($B$156=TRUE,'3 Livestock Water Requirement'!E29/1000,NA()),"") ->  | F156: =IFERROR(IF($B$156=TRUE,'3 Livestock Water Requirement'!F29/1000,NA()),"") ->  | G156: =IFERROR(IF($B$156=TRUE,'3 Livestock Water Requirement'!G29/1000,NA()),"") ->  | H156: =IFERROR(IF($B$156=TRUE,'3 Livestock Water Requirement'!H29/1000,NA()),"") ->  | I156: =IFERROR(IF($B$156=TRUE,'3 Livestock Water Requirement'!I29/1000,NA()),"") ->  | J156: =IFERROR(IF($B$156=TRUE,'3 Livestock Water Requirement'!J29/1000,NA()),"") ->  | K156: =IFERROR(IF($B$156=TRUE,'3 Livestock Water Requirement'!K29/1000,NA()),"") ->  | L156: =IFERROR(IF($B$156=TRUE,'3 Livestock Water Requirement'!L29/1000,NA()),"") ->  | M156: =IFERROR(IF($B$156=TRUE,'3 Livestock Water Requirement'!M29/1000,NA()),"") ->  | N156: =IFERROR(IF($B$156=TRUE,'3 Livestock Water Requirement'!N29/1000,NA()),"") ->  | O156: =IFERROR(IF($B$156=TRUE,'3 Livestock Water Requirement'!O29/1000,NA()),"") ->  | P156: =IFERROR(IF($B$156=TRUE,'3 Livestock Water Requirement'!P29/1000,NA()),"") -> 
B157: TRUE | D157: ='3 Livestock Water Requirement'!B31 -> 0 | E157: =IFERROR(IF($B$157=TRUE,'3 Livestock Water Requirement'!E32/1000,NA()),"") ->  | F157: =IFERROR(IF($B$157=TRUE,'3 Livestock Water Requirement'!F32/1000,NA()),"") ->  | G157: =IFERROR(IF($B$157=TRUE,'3 Livestock Water Requirement'!G32/1000,NA()),"") ->  | H157: =IFERROR(IF($B$157=TRUE,'3 Livestock Water Requirement'!H32/1000,NA()),"") ->  | I157: =IFERROR(IF($B$157=TRUE,'3 Livestock Water Requirement'!I32/1000,NA()),"") ->  | J157: =IFERROR(IF($B$157=TRUE,'3 Livestock Water Requirement'!J32/1000,NA()),"") ->  | K157: =IFERROR(IF($B$157=TRUE,'3 Livestock Water Requirement'!K32/1000,NA()),"") ->  | L157: =IFERROR(IF($B$157=TRUE,'3 Livestock Water Requirement'!L32/1000,NA()),"") ->  | M157: =IFERROR(IF($B$157=TRUE,'3 Livestock Water Requirement'!M32/1000,NA()),"") ->  | N157: =IFERROR(IF($B$157=TRUE,'3 Livestock Water Requirement'!N32/1000,NA()),"") ->  | O157: =IFERROR(IF($B$157=TRUE,'3 Livestock Water Requirement'!O32/1000,NA()),"") ->  | P157: =IFERROR(IF($B$157=TRUE,'3 Livestock Water Requirement'!P32/1000,NA()),"") -> 
B158: TRUE | D158: ='3 Livestock Water Requirement'!B34 -> 0 | E158: =IFERROR(IF($B$158=TRUE,'3 Livestock Water Requirement'!E35/1000,NA()),"") ->  | F158: =IFERROR(IF($B$158=TRUE,'3 Livestock Water Requirement'!F35/1000,NA()),"") ->  | G158: =IFERROR(IF($B$158=TRUE,'3 Livestock Water Requirement'!G35/1000,NA()),"") ->  | H158: =IFERROR(IF($B$158=TRUE,'3 Livestock Water Requirement'!H35/1000,NA()),"") ->  | I158: =IFERROR(IF($B$158=TRUE,'3 Livestock Water Requirement'!I35/1000,NA()),"") ->  | J158: =IFERROR(IF($B$158=TRUE,'3 Livestock Water Requirement'!J35/1000,NA()),"") ->  | K158: =IFERROR(IF($B$158=TRUE,'3 Livestock Water Requirement'!K35/1000,NA()),"") ->  | L158: =IFERROR(IF($B$158=TRUE,'3 Livestock Water Requirement'!L35/1000,NA()),"") ->  | M158: =IFERROR(IF($B$158=TRUE,'3 Livestock Water Requirement'!M35/1000,NA()),"") ->  | N158: =IFERROR(IF($B$158=TRUE,'3 Livestock Water Requirement'!N35/1000,NA()),"") ->  | O158: =IFERROR(IF($B$158=TRUE,'3 Livestock Water Requirement'!O35/1000,NA()),"") ->  | P158: =IFERROR(IF($B$158=TRUE,'3 Livestock Water Requirement'!P35/1000,NA()),"") -> 
Q159: 0 | R159: 0 | S159: 0 | T159: 0 | U159: 0 | V159: 0 | W159: 0 | X159: 0 | Y159: 0 | Z159: 0 | AA159: 0 | AB159: 0
D160: Total Water need: | E160: =SUM(E154:E158) -> 0.74 | F160: =SUM(F154:F158) -> 0.74 | G160: 0.74 | H160: 0.74 | I160: 0.74 | J160: 0.37 | K160: 0.37 | L160: 0.37 | M160: 0.37 | N160: 0.64 | O160: 0.64 | P160: 0.64 | Q160: 0.74 | R160: 0.74 | S160: 0.74 | T160: 0.74 | U160: 0.74 | V160: 0.37 | W160: 0.37 | X160: 0.37 | Y160: 0.37 | Z160: 0.64 | AA160: 0.64 | AB160: 0.64
D161: monthly | E161: =E160*E10 -> 22.94 | F161: =F160*F10 -> 20.72 | G161: 22.94 | H161: 22.2 | I161: 22.94 | J161: 11.1 | K161: 11.47 | L161: 11.47 | M161: 11.1 | N161: 19.84 | O161: 19.2 | P161: 19.84 | Q161: 22.94 | R161: 20.72 | S161: 22.94 | T161: 22.2 | U161: 22.94 | V161: 11.1 | W161: 11.47 | X161: 11.47 | Y161: 11.1 | Z161: 19.84 | AA161: 19.2 | AB161: 19.84
B162: TRUE | D162: Water need daily | E162: =IF($B$162=TRUE,E147,NA()) -> 0.74 | F162: =IF($B$162=TRUE,F147,NA()) -> 0.74 | G162: 0.74 | H162: 0.74 | I162: 0.74 | J162: 0.37 | K162: 0.37 | L162: 0.37 | M162: 0.37 | N162: 0.64 | O162: 0.64 | P162: 0.64 | Q162: 0.74 | R162: 0.74 | S162: 0.74 | T162: 0.74 | U162: 0.74 | V162: 0.37 | W162: 0.37 | X162: 0.37 | Y162: 0.37 | Z162: 0.64 | AA162: 0.64 | AB162: 0.64
B164: TRUE | D164: Effective Rainfall | E164: =IF($B$164=TRUE,'3 Livestock Water Requirement'!E12,NA()) -> 30 | F164: =IF($B$164=TRUE,'3 Livestock Water Requirement'!F12,NA()) -> 26 | G164: =IF($B$164=TRUE,'3 Livestock Water Requirement'!G12,NA()) -> 60 | H164: =IF($B$164=TRUE,'3 Livestock Water Requirement'!H12,NA()) -> 130 | I164: =IF($B$164=TRUE,'3 Livestock Water Requirement'!I12,NA()) -> 90 | J164: =IF($B$164=TRUE,'3 Livestock Water Requirement'!J12,NA()) -> 37 | K164: =IF($B$164=TRUE,'3 Livestock Water Requirement'!K12,NA()) -> 30 | L164: =IF($B$164=TRUE,'3 Livestock Water Requirement'!L12,NA()) -> 30 | M164: =IF($B$164=TRUE,'3 Livestock Water Requirement'!M12,NA()) -> 28 | N164: =IF($B$164=TRUE,'3 Livestock Water Requirement'!N12,NA()) -> 57 | O164: =IF($B$164=TRUE,'3 Livestock Water Requirement'!O12,NA()) -> 90 | P164: =IF($B$164=TRUE,'3 Livestock Water Requirement'!P12,NA()) -> 50 | Q164: =E164 -> 30 | R164: 26 | S164: 60 | T164: 130 | U164: 90 | V164: 37 | W164: 30 | X164: 30 | Y164: 28 | Z164: 57 | AA164: 90 | AB164: 50
A171: Summary | B171: TRUE | D171: Crop Water | E171: =IF($B$171=TRUE,'4 Summary'!G20,NA()) -> 25.14316129 | F171: =IF($B$171=TRUE,'4 Summary'!H20,NA()) -> 52.29792857 | G171: =IF($B$171=TRUE,'4 Summary'!I20,NA()) -> 58.94757355 | H171: =IF($B$171=TRUE,'4 Summary'!J20,NA()) -> 4.142981333 | I171: =IF($B$171=TRUE,'4 Summary'!K20,NA()) -> 0 | J171: =IF($B$171=TRUE,'4 Summary'!L20,NA()) -> 0 | K171: =IF($B$171=TRUE,'4 Summary'!M20,NA()) -> 0 | L171: =IF($B$171=TRUE,'4 Summary'!N20,NA()) -> 0 | M171: =IF($B$171=TRUE,'4 Summary'!O20,NA()) -> 0 | N171: =IF($B$171=TRUE,'4 Summary'!P20,NA()) -> 0 | O171: =IF($B$171=TRUE,'4 Summary'!Q20,NA()) -> 0 | P171: =IF($B$171=TRUE,'4 Summary'!R20,NA()) -> 0
B172: TRUE | D172: Livestock Water | E172: =IF($B$172=TRUE,'4 Summary'!G35,NA()) -> 0.74 | F172: =IF($B$172=TRUE,'4 Summary'!H35,NA()) -> 0.74 | G172: =IF($B$172=TRUE,'4 Summary'!I35,NA()) -> 0.74 | H172: =IF($B$172=TRUE,'4 Summary'!J35,NA()) -> 0.74 | I172: =IF($B$172=TRUE,'4 Summary'!K35,NA()) -> 0.74 | J172: =IF($B$172=TRUE,'4 Summary'!L35,NA()) -> 0.37 | K172: =IF($B$172=TRUE,'4 Summary'!M35,NA()) -> 0.37 | L172: =IF($B$172=TRUE,'4 Summary'!N35,NA()) -> 0.37 | M172: =IF($B$172=TRUE,'4 Summary'!O35,NA()) -> 0.37 | N172: =IF($B$172=TRUE,'4 Summary'!P35,NA()) -> 0.64 | O172: =IF($B$172=TRUE,'4 Summary'!Q35,NA()) -> 0.64 | P172: =IF($B$172=TRUE,'4 Summary'!R35,NA()) -> 0.64
B173: TRUE | D173: Total Water | E173: =IF($B$173=TRUE,'4 Summary'!G48,NA()) -> 25.88316129 | F173: =IF($B$173=TRUE,'4 Summary'!H48,NA()) -> 53.03792857 | G173: =IF($B$173=TRUE,'4 Summary'!I48,NA()) -> 59.68757355 | H173: =IF($B$173=TRUE,'4 Summary'!J48,NA()) -> 4.882981333 | I173: =IF($B$173=TRUE,'4 Summary'!K48,NA()) -> 0.74 | J173: =IF($B$173=TRUE,'4 Summary'!L48,NA()) -> 0.37 | K173: =IF($B$173=TRUE,'4 Summary'!M48,NA()) -> 0.37 | L173: =IF($B$173=TRUE,'4 Summary'!N48,NA()) -> 0.37 | M173: =IF($B$173=TRUE,'4 Summary'!O48,NA()) -> 0.37 | N173: =IF($B$173=TRUE,'4 Summary'!P48,NA()) -> 0.64 | O173: =IF($B$173=TRUE,'4 Summary'!Q48,NA()) -> 0.64 | P173: =IF($B$173=TRUE,'4 Summary'!R48,NA()) -> 0.64
D174: Total Water | E174: ='4 Summary'!G48 -> 25.88316129 | F174: ='4 Summary'!H48 -> 53.03792857 | G174: ='4 Summary'!I48 -> 59.68757355 | H174: ='4 Summary'!J48 -> 4.882981333 | I174: ='4 Summary'!K48 -> 0.74 | J174: ='4 Summary'!L48 -> 0.37 | K174: ='4 Summary'!M48 -> 0.37 | L174: ='4 Summary'!N48 -> 0.37 | M174: ='4 Summary'!O48 -> 0.37 | N174: ='4 Summary'!P48 -> 0.64 | O174: ='4 Summary'!Q48 -> 0.64 | P174: ='4 Summary'!R48 -> 0.64
D175: Total Water monthly | E175: =E174*E10 -> 802.378 | F175: =F174*F10 -> 1485.062 | G175: 1850.31478 | H175: 146.48944 | I175: 22.94 | J175: 11.1 | K175: 11.47 | L175: 11.47 | M175: 11.1 | N175: 19.84 | O175: 19.2 | P175: 19.84
J178: Total Pump Utilizatino rate: | M178: =MAX(E174:P174) -> 59.68757355
M179: =AVERAGE(E174:P174) -> 12.30263706
M180: =IFERROR(M179/M178,"-") -> 0.2061172256
R276: 1

Sheet 3 Livestock Water Requirement
B1: SAFEGUARD WATER – Water Requirement Tool
B2: Enter the number of livestock head per month at your location, for automatic indication of water requirements.
B4: 3 LIVESTOCK WATER REQUIREMENT
T6: Farm code/name: | U6: ='1 Geographic Data'!B8 -> 0
T9: https://www.agric.wa.gov.au/small-landholders-western-australia/calculating-livestock-water-requirements-small-landholders?page=0%2C1
E10: ='1 Geographic Data'!B15 -> January | F10: ='1 Geographic Data'!C15 -> February | G10: ='1 Geographic Data'!D15 -> March | H10: ='1 Geographic Data'!E15 -> April | I10: ='1 Geographic Data'!F15 -> May | J10: ='1 Geographic Data'!G15 -> June | K10: ='1 Geographic Data'!H15 -> July | L10: ='1 Geographic Data'!I15 -> August | M10: ='1 Geographic Data'!J15 -> September | N10: ='1 Geographic Data'!K15 -> October | O10: ='1 Geographic Data'!L15 -> November | P10: ='1 Geographic Data'!M15 -> December
B11: Mean daily temperature [°C]: | E11: ='1 Geographic Data'!B16 -> 25 | F11: ='1 Geographic Data'!C16 -> 26 | G11: ='1 Geographic Data'!D16 -> 26 | H11: ='1 Geographic Data'!E16 -> 26 | I11: ='1 Geographic Data'!F16 -> 25 | J11: ='1 Geographic Data'!G16 -> 23 | K11: ='1 Geographic Data'!H16 -> 22 | L11: ='1 Geographic Data'!I16 -> 23 | M11: ='1 Geographic Data'!J16 -> 24 | N11: ='1 Geographic Data'!K16 -> 25 | O11: ='1 Geographic Data'!L16 -> 25 | P11: ='1 Geographic Data'!M16 -> 25
B12: Rainfall [mm/month]: | E12: ='1 Geographic Data'!B17 -> 30 | F12: ='1 Geographic Data'!C17 -> 26 | G12: ='1 Geographic Data'!D17 -> 60 | H12: ='1 Geographic Data'!E17 -> 130 | I12: ='1 Geographic Data'!F17 -> 90 | J12: ='1 Geographic Data'!G17 -> 37 | K12: ='1 Geographic Data'!H17 -> 30 | L12: ='1 Geographic Data'!I17 -> 30 | M12: ='1 Geographic Data'!J17 -> 28 | N12: ='1 Geographic Data'!K17 -> 57 | O12: ='1 Geographic Data'!L17 -> 90 | P12: ='1 Geographic Data'!M17 -> 50
T13: Enter new livestock data here: | U13: Long term average demand (L/day) | V13: Maximum summer demand (L/day)
T14: none
B15: Total Water Need per day [l/day] | E15: =SUM(E23,E26,E29,E32,E35) -> 740 | F15: 740 | G15: 740 | H15: 740 | I15: 740 | J15: 370 | K15: 370 | L15: 370 | M15: 370 | N15: 640 | O15: 640 | P15: 640 | T15: Alpaca (lactating) | U15: 10 | V15: 25
B16: Total Water Need per day [m³/day] | E16: =E15/1000 -> 0.74 | F16: =F15/1000 -> 0.74 | G16: 0.74 | H16: 0.74 | I16: 0.74 | J16: 0.37 | K16: 0.37 | L16: 0.37 | M16: 0.37 | N16: 0.64 | O16: 0.64 | P16: 0.64 | T16: Alpaca (dry, adult) | U16: 4 | V16: 10
T17: Alpaca (<12 months) | U17: 3 | V17: 6
T18: Cattle (lactating) | U18: 80 | V18: 160
T19: Cattle (adult, dry) | U19: 50 | V19: 100
B20: Livestock type: | E20: ='1 Geographic Data'!B15 -> January | F20: ='1 Geographic Data'!C15 -> February | G20: ='1 Geographic Data'!D15 -> March | H20: ='1 Geographic Data'!E15 -> April | I20: ='1 Geographic Data'!F15 -> May | J20: ='1 Geographic Data'!G15 -> June | K20: ='1 Geographic Data'!H15 -> July | L20: ='1 Geographic Data'!I15 -> August | M20: ='1 Geographic Data'!J15 -> September | N20: ='1 Geographic Data'!K15 -> October | O20: ='1 Geographic Data'!L15 -> November | P20: ='1 Geographic Data'!M15 -> December | T20: Cattle (weaner) | U20: 25 | V20: 50
T21: Goats (lactating) | U21: 20 | V21: 40
B22: Cattle (lactating) | D22: # | E22: 4 | F22: 4 | G22: 4 | H22: 4 | I22: 4 | J22: 4 | K22: 4 | L22: 4 | M22: 4 | N22: 4 | O22: 4 | P22: 4 | T22: Goats (adult, dry) | U22: 10 | V22: 20
D23: l / day | E23: =IFERROR(IF('General Calculation'!$F$132>'3 Livestock Water Requirement'!E11,VLOOKUP($B$22,$T$15:$V$35,2,FALSE),VLOOKUP($B$22,$T$15:$V$35,3,FALSE))*E22,"") -> 640 | F23: =IFERROR(IF('General Calculation'!$F$132>'3 Livestock Water Requirement'!F11,VLOOKUP($B$22,$T$15:$V$35,2,FALSE),VLOOKUP($B$22,$T$15:$V$35,3,FALSE))*F22,"") -> 640 | G23: =IFERROR(IF('General Calculation'!$F$132>'3 Livestock Water Requirement'!G11,VLOOKUP($B$22,$T$15:$V$35,2,FALSE),VLOOKUP($B$22,$T$15:$V$35,3,FALSE))*G22,"") -> 640 | H23: =IFERROR(IF('General Calculation'!$F$132>'3 Livestock Water Requirement'!H11,VLOOKUP($B$22,$T$15:$V$35,2,FALSE),VLOOKUP($B$22,$T$15:$V$35,3,FALSE))*H22,"") -> 640 | I23: =IFERROR(IF('General Calculation'!$F$132>'3 Livestock Water Requirement'!I11,VLOOKUP($B$22,$T$15:$V$35,2,FALSE),VLOOKUP($B$22,$T$15:$V$35,3,FALSE))*I22,"") -> 640 | J23: =IFERROR(IF('General Calculation'!$F$132>'3 Livestock Water Requirement'!J11,VLOOKUP($B$22,$T$15:$V$35,2,FALSE),VLOOKUP($B$22,$T$15:$V$35,3,FALSE))*J22,"") -> 320 | K23: =IFERROR(IF('General Calculation'!$F$132>'3 Livestock Water Requirement'!K11,VLOOKUP($B$22,$T$15:$V$35,2,FALSE),VLOOKUP($B$22,$T$15:$V$35,3,FALSE))*K22,"") -> 320 | L23: =IFERROR(IF('General Calculation'!$F$132>'3 Livestock Water Requirement'!L11,VLOOKUP($B$22,$T$15:$V$35,2,FALSE),VLOOKUP($B$22,$T$15:$V$35,3,FALSE))*L22,"") -> 320 | M23: =IFERROR(IF('General Calculation'!$F$132>'3 Livestock Water Requirement'!M11,VLOOKUP($B$22,$T$15:$V$35,2,FALSE),VLOOKUP($B$22,$T$15:$V$35,3,FALSE))*M22,"") -> 320 | N23: =IFERROR(IF('General Calculation'!$F$132>'3 Livestock Water Requirement'!N11,VLOOKUP($B$22,$T$15:$V$35,2,FALSE),VLOOKUP($B$22,$T$15:$V$35,3,FALSE))*N22,"") -> 640 | O23: =IFERROR(IF('General Calculation'!$F$132>'3 Livestock Water Requirement'!O11,VLOOKUP($B$22,$T$15:$V$35,2,FALSE),VLOOKUP($B$22,$T$15:$V$35,3,FALSE))*O22,"") -> 640 | P23: =IFERROR(IF('General Calculation'!$F$132>'3 Livestock Water Requirement'!P11,VLOOKUP($B$22,$T$15:$V$35,2,FALSE),VLOOKUP($B$22,$T$15:$V$35,3,FALSE))*P22,"") -> 640 | T23: Goats (weaner) | U23: 5 | V23: 10
T24: Horses (lactating) | U24: 90 | V24: 140
B25: Cattle (weaner) | D25: # | E25: 2 | F25: 2 | G25: 2 | H25: 2 | I25: 2 | J25: 2 | K25: 2 | L25: 2 | M25: 2 | T25: Horses (adult, dry) | U25: 45 | V25: 70
D26: l / day | E26: =IFERROR(IF('General Calculation'!$F$132>'3 Livestock Water Requirement'!E11,VLOOKUP($B$25,$T$15:$V$35,2,FALSE),VLOOKUP($B$25,$T$15:$V$35,3,FALSE))*E25,"") -> 100 | F26: =IFERROR(IF('General Calculation'!$F$132>'3 Livestock Water Requirement'!F11,VLOOKUP($B$25,$T$15:$V$35,2,FALSE),VLOOKUP($B$25,$T$15:$V$35,3,FALSE))*F25,"") -> 100 | G26: =IFERROR(IF('General Calculation'!$F$132>'3 Livestock Water Requirement'!G11,VLOOKUP($B$25,$T$15:$V$35,2,FALSE),VLOOKUP($B$25,$T$15:$V$35,3,FALSE))*G25,"") -> 100 | H26: =IFERROR(IF('General Calculation'!$F$132>'3 Livestock Water Requirement'!H11,VLOOKUP($B$25,$T$15:$V$35,2,FALSE),VLOOKUP($B$25,$T$15:$V$35,3,FALSE))*H25,"") -> 100 | I26: =IFERROR(IF('General Calculation'!$F$132>'3 Livestock Water Requirement'!I11,VLOOKUP($B$25,$T$15:$V$35,2,FALSE),VLOOKUP($B$25,$T$15:$V$35,3,FALSE))*I25,"") -> 100 | J26: =IFERROR(IF('General Calculation'!$F$132>'3 Livestock Water Requirement'!J11,VLOOKUP($B$25,$T$15:$V$35,2,FALSE),VLOOKUP($B$25,$T$15:$V$35,3,FALSE))*J25,"") -> 50 | K26: =IFERROR(IF('General Calculation'!$F$132>'3 Livestock Water Requirement'!K11,VLOOKUP($B$25,$T$15:$V$35,2,FALSE),VLOOKUP($B$25,$T$15:$V$35,3,FALSE))*K25,"") -> 50 | L26: =IFERROR(IF('General Calculation'!$F$132>'3 Livestock Water Requirement'!L11,VLOOKUP($B$25,$T$15:$V$35,2,FALSE),VLOOKUP($B$25,$T$15:$V$35,3,FALSE))*L25,"") -> 50 | M26: =IFERROR(IF('General Calculation'!$F$132>'3 Livestock Water Requirement'!M11,VLOOKUP($B$25,$T$15:$V$35,2,FALSE),VLOOKUP($B$25,$T$15:$V$35,3,FALSE))*M25,"") -> 50 | N26: =IFERROR(IF('General Calculation'!$F$132>'3 Livestock Water Requirement'!N11,VLOOKUP($B$25,$T$15:$V$35,2,FALSE),VLOOKUP($B$25,$T$15:$V$35,3,FALSE))*N25,"") -> 0 | O26: =IFERROR(IF('General Calculation'!$F$132>'3 Livestock Water Requirement'!O11,VLOOKUP($B$25,$T$15:$V$35,2,FALSE),VLOOKUP($B$25,$T$15:$V$35,3,FALSE))*O25,"") -> 0 | P26: =IFERROR(IF('General Calculation'!$F$132>'3 Livestock Water Requirement'!P11,VLOOKUP($B$25,$T$15:$V$35,2,FALSE),VLOOKUP($B$25,$T$15:$V$35,3,FALSE))*P25,"") -> 0 | T26: Horses (<12 months) | U26: 20 | V26: 40
T27: Sheep (lactating) | U27: 7 | V27: 14
D28: # | T28: Sheep (adult, dry) | U28: 5 | V28: 10
D29: l / day | E29: =IFERROR(IF('General Calculation'!$F$132>'3 Livestock Water Requirement'!E11,VLOOKUP($B$28,$T$15:$V$35,2,FALSE),VLOOKUP($B$28,$T$15:$V$35,3,FALSE))*E28,"") ->  | F29: =IFERROR(IF('General Calculation'!$F$132>'3 Livestock Water Requirement'!F11,VLOOKUP($B$28,$T$15:$V$35,2,FALSE),VLOOKUP($B$28,$T$15:$V$35,3,FALSE))*F28,"") ->  | G29: =IFERROR(IF('General Calculation'!$F$132>'3 Livestock Water Requirement'!G11,VLOOKUP($B$28,$T$15:$V$35,2,FALSE),VLOOKUP($B$28,$T$15:$V$35,3,FALSE))*G28,"") ->  | H29: =IFERROR(IF('General Calculation'!$F$132>'3 Livestock Water Requirement'!H11,VLOOKUP($B$28,$T$15:$V$35,2,FALSE),VLOOKUP($B$28,$T$15:$V$35,3,FALSE))*H28,"") ->  | I29: =IFERROR(IF('General Calculation'!$F$132>'3 Livestock Water Requirement'!I11,VLOOKUP($B$28,$T$15:$V$35,2,FALSE),VLOOKUP($B$28,$T$15:$V$35,3,FALSE))*I28,"") ->  | J29: =IFERROR(IF('General Calculation'!$F$132>'3 Livestock Water Requirement'!J11,VLOOKUP($B$28,$T$15:$V$35,2,FALSE),VLOOKUP($B$28,$T$15:$V$35,3,FALSE))*J28,"") ->  | K29: =IFERROR(IF('General Calculation'!$F$132>'3 Livestock Water Requirement'!K11,VLOOKUP($B$28,$T$15:$V$35,2,FALSE),VLOOKUP($B$28,$T$15:$V$35,3,FALSE))*K28,"") ->  | L29: =IFERROR(IF('General Calculation'!$F$132>'3 Livestock Water Requirement'!L11,VLOOKUP($B$28,$T$15:$V$35,2,FALSE),VLOOKUP($B$28,$T$15:$V$35,3,FALSE))*L28,"") ->  | M29: =IFERROR(IF('General Calculation'!$F$132>'3 Livestock Water Requirement'!M11,VLOOKUP($B$28,$T$15:$V$35,2,FALSE),VLOOKUP($B$28,$T$15:$V$35,3,FALSE))*M28,"") ->  | N29: =IFERROR(IF('General Calculation'!$F$132>'3 Livestock Water Requirement'!N11,VLOOKUP($B$28,$T$15:$V$35,2,FALSE),VLOOKUP($B$28,$T$15:$V$35,3,FALSE))*N28,"") ->  | O29: =IFERROR(IF('General Calculation'!$F$132>'3 Livestock Water Requirement'!O11,VLOOKUP($B$28,$T$15:$V$35,2,FALSE),VLOOKUP($B$28,$T$15:$V$35,3,FALSE))*O28,"") ->  | P29: =IFERROR(IF('General Calculation'!$F$132>'3 Livestock Water Requirement'!P11,VLOOKUP($B$28,$T$15:$V$35,2,FALSE),VLOOKUP($B$28,$T$15:$V$35,3,FALSE))*P28,"") ->  | T29: Sheep (weaners) | U29: 3 | V29: 5
T30: Other
D31: # | T31: Other
D32: l / day | E32: =IFERROR(IF('General Calculation'!$F$132>'3 Livestock Water Requirement'!E11,VLOOKUP($B$31,$T$15:$V$35,2,FALSE),VLOOKUP($B$31,$T$15:$V$35,3,FALSE))*E31,"") ->  | F32: =IFERROR(IF('General Calculation'!$F$132>'3 Livestock Water Requirement'!F11,VLOOKUP($B$31,$T$15:$V$35,2,FALSE),VLOOKUP($B$31,$T$15:$V$35,3,FALSE))*F31,"") ->  | G32: =IFERROR(IF('General Calculation'!$F$132>'3 Livestock Water Requirement'!G11,VLOOKUP($B$31,$T$15:$V$35,2,FALSE),VLOOKUP($B$31,$T$15:$V$35,3,FALSE))*G31,"") ->  | H32: =IFERROR(IF('General Calculation'!$F$132>'3 Livestock Water Requirement'!H11,VLOOKUP($B$31,$T$15:$V$35,2,FALSE),VLOOKUP($B$31,$T$15:$V$35,3,FALSE))*H31,"") ->  | I32: =IFERROR(IF('General Calculation'!$F$132>'3 Livestock Water Requirement'!I11,VLOOKUP($B$31,$T$15:$V$35,2,FALSE),VLOOKUP($B$31,$T$15:$V$35,3,FALSE))*I31,"") ->  | J32: =IFERROR(IF('General Calculation'!$F$132>'3 Livestock Water Requirement'!J11,VLOOKUP($B$31,$T$15:$V$35,2,FALSE),VLOOKUP($B$31,$T$15:$V$35,3,FALSE))*J31,"") ->  | K32: =IFERROR(IF('General Calculation'!$F$132>'3 Livestock Water Requirement'!K11,VLOOKUP($B$31,$T$15:$V$35,2,FALSE),VLOOKUP($B$31,$T$15:$V$35,3,FALSE))*K31,"") ->  | L32: =IFERROR(IF('General Calculation'!$F$132>'3 Livestock Water Requirement'!L11,VLOOKUP($B$31,$T$15:$V$35,2,FALSE),VLOOKUP($B$31,$T$15:$V$35,3,FALSE))*L31,"") ->  | M32: =IFERROR(IF('General Calculation'!$F$132>'3 Livestock Water Requirement'!M11,VLOOKUP($B$31,$T$15:$V$35,2,FALSE),VLOOKUP($B$31,$T$15:$V$35,3,FALSE))*M31,"") ->  | N32: =IFERROR(IF('General Calculation'!$F$132>'3 Livestock Water Requirement'!N11,VLOOKUP($B$31,$T$15:$V$35,2,FALSE),VLOOKUP($B$31,$T$15:$V$35,3,FALSE))*N31,"") ->  | O32: =IFERROR(IF('General Calculation'!$F$132>'3 Livestock Water Requirement'!O11,VLOOKUP($B$31,$T$15:$V$35,2,FALSE),VLOOKUP($B$31,$T$15:$V$35,3,FALSE))*O31,"") ->  | P32: =IFERROR(IF('General Calculation'!$F$132>'3 Livestock Water Requirement'!P11,VLOOKUP($B$31,$T$15:$V$35,2,FALSE),VLOOKUP($B$31,$T$15:$V$35,3,FALSE))*P31,"") ->  | T32: Other
T33: Other
D34: # | T34: Other
D35: l / day | E35: =IFERROR(IF('General Calculation'!$F$132>'3 Livestock Water Requirement'!E11,VLOOKUP($B$34,$T$15:$V$35,2,FALSE),VLOOKUP($B$34,$T$15:$V$35,3,FALSE))*E34,"") ->  | F35: =IFERROR(IF('General Calculation'!$F$132>'3 Livestock Water Requirement'!F11,VLOOKUP($B$34,$T$15:$V$35,2,FALSE),VLOOKUP($B$34,$T$15:$V$35,3,FALSE))*F34,"") ->  | G35: =IFERROR(IF('General Calculation'!$F$132>'3 Livestock Water Requirement'!G11,VLOOKUP($B$34,$T$15:$V$35,2,FALSE),VLOOKUP($B$34,$T$15:$V$35,3,FALSE))*G34,"") ->  | H35: =IFERROR(IF('General Calculation'!$F$132>'3 Livestock Water Requirement'!H11,VLOOKUP($B$34,$T$15:$V$35,2,FALSE),VLOOKUP($B$34,$T$15:$V$35,3,FALSE))*H34,"") ->  | I35: =IFERROR(IF('General Calculation'!$F$132>'3 Livestock Water Requirement'!I11,VLOOKUP($B$34,$T$15:$V$35,2,FALSE),VLOOKUP($B$34,$T$15:$V$35,3,FALSE))*I34,"") ->  | J35: =IFERROR(IF('General Calculation'!$F$132>'3 Livestock Water Requirement'!J11,VLOOKUP($B$34,$T$15:$V$35,2,FALSE),VLOOKUP($B$34,$T$15:$V$35,3,FALSE))*J34,"") ->  | K35: =IFERROR(IF('General Calculation'!$F$132>'3 Livestock Water Requirement'!K11,VLOOKUP($B$34,$T$15:$V$35,2,FALSE),VLOOKUP($B$34,$T$15:$V$35,3,FALSE))*K34,"") ->  | L35: =IFERROR(IF('General Calculation'!$F$132>'3 Livestock Water Requirement'!L11,VLOOKUP($B$34,$T$15:$V$35,2,FALSE),VLOOKUP($B$34,$T$15:$V$35,3,FALSE))*L34,"") ->  | M35: =IFERROR(IF('General Calculation'!$F$132>'3 Livestock Water Requirement'!M11,VLOOKUP($B$34,$T$15:$V$35,2,FALSE),VLOOKUP($B$34,$T$15:$V$35,3,FALSE))*M34,"") ->  | N35: =IFERROR(IF('General Calculation'!$F$132>'3 Livestock Water Requirement'!N11,VLOOKUP($B$34,$T$15:$V$35,2,FALSE),VLOOKUP($B$34,$T$15:$V$35,3,FALSE))*N34,"") ->  | O35: =IFERROR(IF('General Calculation'!$F$132>'3 Livestock Water Requirement'!O11,VLOOKUP($B$34,$T$15:$V$35,2,FALSE),VLOOKUP($B$34,$T$15:$V$35,3,FALSE))*O34,"") ->  | P35: =IFERROR(IF('General Calculation'!$F$132>'3 Livestock Water Requirement'!P11,VLOOKUP($B$34,$T$15:$V$35,2,FALSE),VLOOKUP($B$34,$T$15:$V$35,3,FALSE))*P34,"") ->  | T35: Other
E38: Highest daily water need: | H38: =MAX(E16:P16) -> 0.74 | I38: ="m³ in the month of "& INDEX(E10:P10,MATCH(MAX(E15:P15),E15:P15,0)) & "." -> m³ in the month of January. | N38: Pump utilization rate: | P38: ='General Calculation'!M134 -> 0.7995495495 | R38: Yearly Water need in m³: | U38: =SUM('General Calculation'!E148:P148) -> 215.76

Sheet 4 Summary
A1: SAFEGUARD WATER – Water Requirement Tool
A2: Summary Sheet of Crop Water Requirements and Livestock Water Requirements
A4: 4 Summary for Total Annual Water Requirements
N6: Farm code/name: | P6: ='1 Geographic Data'!B8 -> 0
B10: Crop Water Requirements
G11: Crop Water need [m³/day]
C12: Crops | E12: ='2 Crop Water Requirement'!$E$17 -> Area in ha | G12: ='1 Geographic Data'!B15 -> January | H12: ='1 Geographic Data'!C15 -> February | I12: ='1 Geographic Data'!D15 -> March | J12: ='1 Geographic Data'!E15 -> April | K12: ='1 Geographic Data'!F15 -> May | L12: ='1 Geographic Data'!G15 -> June | M12: ='1 Geographic Data'!H15 -> July | N12: ='1 Geographic Data'!I15 -> August | O12: ='1 Geographic Data'!J15 -> September | P12: ='1 Geographic Data'!K15 -> October | Q12: ='1 Geographic Data'!L15 -> November | R12: ='1 Geographic Data'!M15 -> December
C14: ='2 Crop Water Requirement'!B19 -> Barley/Oats/Wheat | E14: =IF('2 Crop Water Requirement'!$E$19="","",'2 Crop Water Requirement'!$E$19) -> 1 | G14: =IFERROR(IF('General Calculation'!E35=0,"-",'General Calculation'!E35),"") -> 25.14316129 | H14: =IFERROR(IF('General Calculation'!F35=0,"-",'General Calculation'!F35),"") -> 52.29792857 | I14: =IFERROR(IF('General Calculation'!G35=0,"-",'General Calculation'!G35),"") -> 58.94757355 | J14: =IFERROR(IF('General Calculation'!H35=0,"-",'General Calculation'!H35),"") -> 4.142981333 | K14: =IFERROR(IF('General Calculation'!I35=0,"-",'General Calculation'!I35),"") -> - | L14: =IFERROR(IF('General Calculation'!J35=0,"-",'General Calculation'!J35),"") -> - | M14: =IFERROR(IF('General Calculation'!K35=0,"-",'General Calculation'!K35),"") -> - | N14: =IFERROR(IF('General Calculation'!L35=0,"-",'General Calculation'!L35),"") -> - | O14: =IFERROR(IF('General Calculation'!M35=0,"-",'General Calculation'!M35),"") -> - | P14: =IFERROR(IF('General Calculation'!N35=0,"-",'General Calculation'!N35),"") -> - | Q14: =IFERROR(IF('General Calculation'!O35=0,"-",'General Calculation'!O35),"") -> - | R14: =IFERROR(IF('General Calculation'!P35=0,"-",'General Calculation'!P35),"") -> -
C15: ='2 Crop Water Requirement'!B21 -> none | E15: =IF('2 Crop Water Requirement'!$E$21="","",'2 Crop Water Requirement'!$E$21) ->  | G15: =IFERROR(IF('General Calculation'!E36=0,"-",'General Calculation'!E36),"") ->  | H15: =IFERROR(IF('General Calculation'!F36=0,"-",'General Calculation'!F36),"") ->  | I15: =IFERROR(IF('General Calculation'!G36=0,"-",'General Calculation'!G36),"") ->  | J15: =IFERROR(IF('General Calculation'!H36=0,"-",'General Calculation'!H36),"") ->  | K15: =IFERROR(IF('General Calculation'!I36=0,"-",'General Calculation'!I36),"") ->  | L15: =IFERROR(IF('General Calculation'!J36=0,"-",'General Calculation'!J36),"") ->  | M15: =IFERROR(IF('General Calculation'!K36=0,"-",'General Calculation'!K36),"") ->  | N15: =IFERROR(IF('General Calculation'!L36=0,"-",'General Calculation'!L36),"") ->  | O15: =IFERROR(IF('General Calculation'!M36=0,"-",'General Calculation'!M36),"") ->  | P15: =IFERROR(IF('General Calculation'!N36=0,"-",'General Calculation'!N36),"") ->  | Q15: =IFERROR(IF('General Calculation'!O36=0,"-",'General Calculation'!O36),"") ->  | R15: =IFERROR(IF('General Calculation'!P36=0,"-",'General Calculation'!P36),"") -> 
C16: ='2 Crop Water Requirement'!B23 -> none | E16: =IF('2 Crop Water Requirement'!$E$23="","",'2 Crop Water Requirement'!$E$23) ->  | G16: =IFERROR(IF('General Calculation'!E37=0,"-",'General Calculation'!E37),"") ->  | H16: =IFERROR(IF('General Calculation'!F37=0,"-",'General Calculation'!F37),"") ->  | I16: =IFERROR(IF('General Calculation'!G37=0,"-",'General Calculation'!G37),"") ->  | J16: =IFERROR(IF('General Calculation'!H37=0,"-",'General Calculation'!H37),"") ->  | K16: =IFERROR(IF('General Calculation'!I37=0,"-",'General Calculation'!I37),"") ->  | L16: =IFERROR(IF('General Calculation'!J37=0,"-",'General Calculation'!J37),"") ->  | M16: =IFERROR(IF('General Calculation'!K37=0,"-",'General Calculation'!K37),"") ->  | N16: =IFERROR(IF('General Calculation'!L37=0,"-",'General Calculation'!L37),"") ->  | O16: =IFERROR(IF('General Calculation'!M37=0,"-",'General Calculation'!M37),"") ->  | P16: =IFERROR(IF('General Calculation'!N37=0,"-",'General Calculation'!N37),"") ->  | Q16: =IFERROR(IF('General Calculation'!O37=0,"-",'General Calculation'!O37),"") ->  | R16: =IFERROR(IF('General Calculation'!P37=0,"-",'General Calculation'!P37),"") -> 
C17: ='2 Crop Water Requirement'!B25 -> none | E17: =IF('2 Crop Water Requirement'!$E$25="","",'2 Crop Water Requirement'!$E$25) ->  | G17: =IFERROR(IF('General Calculation'!E38=0,"-",'General Calculation'!E38),"") ->  | H17: =IFERROR(IF('General Calculation'!F38=0,"-",'General Calculation'!F38),"") ->  | I17: =IFERROR(IF('General Calculation'!G38=0,"-",'General Calculation'!G38),"") ->  | J17: =IFERROR(IF('General Calculation'!H38=0,"-",'General Calculation'!H38),"") ->  | K17: =IFERROR(IF('General Calculation'!I38=0,"-",'General Calculation'!I38),"") ->  | L17: =IFERROR(IF('General Calculation'!J38=0,"-",'General Calculation'!J38),"") ->  | M17: =IFERROR(IF('General Calculation'!K38=0,"-",'General Calculation'!K38),"") ->  | N17: =IFERROR(IF('General Calculation'!L38=0,"-",'General Calculation'!L38),"") ->  | O17: =IFERROR(IF('General Calculation'!M38=0,"-",'General Calculation'!M38),"") ->  | P17: =IFERROR(IF('General Calculation'!N38=0,"-",'General Calculation'!N38),"") ->  | Q17: =IFERROR(IF('General Calculation'!O38=0,"-",'General Calculation'!O38),"") ->  | R17: =IFERROR(IF('General Calculation'!P38=0,"-",'General Calculation'!P38),"") -> 
C18: ='2 Crop Water Requirement'!B27 -> none | E18: =IF('2 Crop Water Requirement'!$E$27="","",'2 Crop Water Requirement'!$E$27) ->  | G18: =IFERROR(IF('General Calculation'!E39=0,"-",'General Calculation'!E39),"") ->  | H18: =IFERROR(IF('General Calculation'!F39=0,"-",'General Calculation'!F39),"") ->  | I18: =IFERROR(IF('General Calculation'!G39=0,"-",'General Calculation'!G39),"") ->  | J18: =IFERROR(IF('General Calculation'!H39=0,"-",'General Calculation'!H39),"") ->  | K18: =IFERROR(IF('General Calculation'!I39=0,"-",'General Calculation'!I39),"") ->  | L18: =IFERROR(IF('General Calculation'!J39=0,"-",'General Calculation'!J39),"") ->  | M18: =IFERROR(IF('General Calculation'!K39=0,"-",'General Calculation'!K39),"") ->  | N18: =IFERROR(IF('General Calculation'!L39=0,"-",'General Calculation'!L39),"") ->  | O18: =IFERROR(IF('General Calculation'!M39=0,"-",'General Calculation'!M39),"") ->  | P18: =IFERROR(IF('General Calculation'!N39=0,"-",'General Calculation'!N39),"") ->  | Q18: =IFERROR(IF('General Calculation'!O39=0,"-",'General Calculation'!O39),"") ->  | R18: =IFERROR(IF('General Calculation'!P39=0,"-",'General Calculation'!P39),"") -> 
C20: Total | E20: =SUM(E14:E18) -> 1 | G20: =SUM(G14:G18) -> 25.14316129 | H20: 52.29792857 | I20: 58.94757355 | J20: 4.142981333 | K20: 0 | L20: 0 | M20: 0 | N20: 0 | O20: 0 | P20: 0 | Q20: 0 | R20: 0
B25: Livestock Water Requirements
G26: Livestock Water need [m³/day]
C27: Livestock | E27: Ø Heads | G27: ='1 Geographic Data'!B15 -> January | H27: ='1 Geographic Data'!C15 -> February | I27: ='1 Geographic Data'!D15 -> March | J27: ='1 Geographic Data'!E15 -> April | K27: ='1 Geographic Data'!F15 -> May | L27: ='1 Geographic Data'!G15 -> June | M27: ='1 Geographic Data'!H15 -> July | N27: ='1 Geographic Data'!I15 -> August | O27: ='1 Geographic Data'!J15 -> September | P27: ='1 Geographic Data'!K15 -> October | Q27: ='1 Geographic Data'!L15 -> November | R27: ='1 Geographic Data'!M15 -> December
C29: ='3 Livestock Water Requirement'!B22 -> Cattle (lactating) | E29: =IFERROR(SUM('3 Livestock Water Requirement'!E22:P22)/COUNTA('3 Livestock Water Requirement'!E22:P22),"") -> 4 | G29: =IFERROR(IF('3 Livestock Water Requirement'!E23=0,"-",'3 Livestock Water Requirement'!E23/1000),"") -> 0.64 | H29: =IFERROR(IF('3 Livestock Water Requirement'!F23=0,"-",'3 Livestock Water Requirement'!F23/1000),"") -> 0.64 | I29: =IFERROR(IF('3 Livestock Water Requirement'!G23=0,"-",'3 Livestock Water Requirement'!G23/1000),"") -> 0.64 | J29: =IFERROR(IF('3 Livestock Water Requirement'!H23=0,"-",'3 Livestock Water Requirement'!H23/1000),"") -> 0.64 | K29: =IFERROR(IF('3 Livestock Water Requirement'!I23=0,"-",'3 Livestock Water Requirement'!I23/1000),"") -> 0.64 | L29: =IFERROR(IF('3 Livestock Water Requirement'!J23=0,"-",'3 Livestock Water Requirement'!J23/1000),"") -> 0.32 | M29: =IFERROR(IF('3 Livestock Water Requirement'!K23=0,"-",'3 Livestock Water Requirement'!K23/1000),"") -> 0.32 | N29: =IFERROR(IF('3 Livestock Water Requirement'!L23=0,"-",'3 Livestock Water Requirement'!L23/1000),"") -> 0.32 | O29: =IFERROR(IF('3 Livestock Water Requirement'!M23=0,"-",'3 Livestock Water Requirement'!M23/1000),"") -> 0.32 | P29: =IFERROR(IF('3 Livestock Water Requirement'!N23=0,"-",'3 Livestock Water Requirement'!N23/1000),"") -> 0.64 | Q29: =IFERROR(IF('3 Livestock Water Requirement'!O23=0,"-",'3 Livestock Water Requirement'!O23/1000),"") -> 0.64 | R29: =IFERROR(IF('3 Livestock Water Requirement'!P23=0,"-",'3 Livestock Water Requirement'!P23/1000),"") -> 0.64
C30: ='3 Livestock Water Requirement'!B25 -> Cattle (weaner) | E30: =IFERROR(SUM('3 Livestock Water Requirement'!E25:P25)/COUNTA('3 Livestock Water Requirement'!E25:P25),"") -> 2 | G30: =IFERROR(IF('3 Livestock Water Requirement'!E26=0,"-",'3 Livestock Water Requirement'!E26/1000),"") -> 0.1 | H30: =IFERROR(IF('3 Livestock Water Requirement'!F26=0,"-",'3 Livestock Water Requirement'!F26/1000),"") -> 0.1 | I30: =IFERROR(IF('3 Livestock Water Requirement'!G26=0,"-",'3 Livestock Water Requirement'!G26/1000),"") -> 0.1 | J30: =IFERROR(IF('3 Livestock Water Requirement'!H26=0,"-",'3 Livestock Water Requirement'!H26/1000),"") -> 0.1 | K30: =IFERROR(IF('3 Livestock Water Requirement'!I26=0,"-",'3 Livestock Water Requirement'!I26/1000),"") -> 0.1 | L30: =IFERROR(IF('3 Livestock Water Requirement'!J26=0,"-",'3 Livestock Water Requirement'!J26/1000),"") -> 0.05 | M30: =IFERROR(IF('3 Livestock Water Requirement'!K26=0,"-",'3 Livestock Water Requirement'!K26/1000),"") -> 0.05 | N30: =IFERROR(IF('3 Livestock Water Requirement'!L26=0,"-",'3 Livestock Water Requirement'!L26/1000),"") -> 0.05 | O30: =IFERROR(IF('3 Livestock Water Requirement'!M26=0,"-",'3 Livestock Water Requirement'!M26/1000),"") -> 0.05 | P30: =IFERROR(IF('3 Livestock Water Requirement'!N26=0,"-",'3 Livestock Water Requirement'!N26/1000),"") -> - | Q30: =IFERROR(IF('3 Livestock Water Requirement'!O26=0,"-",'3 Livestock Water Requirement'!O26/1000),"") -> - | R30: =IFERROR(IF('3 Livestock Water Requirement'!P26=0,"-",'3 Livestock Water Requirement'!P26/1000),"") -> -
C31: ='3 Livestock Water Requirement'!B28 -> 0 | E31: =IFERROR(SUM('3 Livestock Water Requirement'!E28:P28)/COUNTA('3 Livestock Water Requirement'!E28:P28),"") ->  | G31: =IFERROR(IF('3 Livestock Water Requirement'!E29=0,"-",'3 Livestock Water Requirement'!E29/1000),"") ->  | H31: =IFERROR(IF('3 Livestock Water Requirement'!F29=0,"-",'3 Livestock Water Requirement'!F29/1000),"") ->  | I31: =IFERROR(IF('3 Livestock Water Requirement'!G29=0,"-",'3 Livestock Water Requirement'!G29/1000),"") ->  | J31: =IFERROR(IF('3 Livestock Water Requirement'!H29=0,"-",'3 Livestock Water Requirement'!H29/1000),"") ->  | K31: =IFERROR(IF('3 Livestock Water Requirement'!I29=0,"-",'3 Livestock Water Requirement'!I29/1000),"") ->  | L31: =IFERROR(IF('3 Livestock Water Requirement'!J29=0,"-",'3 Livestock Water Requirement'!J29/1000),"") ->  | M31: =IFERROR(IF('3 Livestock Water Requirement'!K29=0,"-",'3 Livestock Water Requirement'!K29/1000),"") ->  | N31: =IFERROR(IF('3 Livestock Water Requirement'!L29=0,"-",'3 Livestock Water Requirement'!L29/1000),"") ->  | O31: =IFERROR(IF('3 Livestock Water Requirement'!M29=0,"-",'3 Livestock Water Requirement'!M29/1000),"") ->  | P31: =IFERROR(IF('3 Livestock Water Requirement'!N29=0,"-",'3 Livestock Water Requirement'!N29/1000),"") ->  | Q31: =IFERROR(IF('3 Livestock Water Requirement'!O29=0,"-",'3 Livestock Water Requirement'!O29/1000),"") ->  | R31: =IFERROR(IF('3 Livestock Water Requirement'!P29=0,"-",'3 Livestock Water Requirement'!P29/1000),"") -> 
C32: ='3 Livestock Water Requirement'!B31 -> 0 | E32: =IFERROR(SUM('3 Livestock Water Requirement'!E31:P31)/COUNTA('3 Livestock Water Requirement'!E31:P31),"") ->  | G32: =IFERROR(IF('3 Livestock Water Requirement'!E32=0,"-",'3 Livestock Water Requirement'!E32/1000),"") ->  | H32: =IFERROR(IF('3 Livestock Water Requirement'!F32=0,"-",'3 Livestock Water Requirement'!F32/1000),"") ->  | I32: =IFERROR(IF('3 Livestock Water Requirement'!G32=0,"-",'3 Livestock Water Requirement'!G32/1000),"") ->  | J32: =IFERROR(IF('3 Livestock Water Requirement'!H32=0,"-",'3 Livestock Water Requirement'!H32/1000),"") ->  | K32: =IFERROR(IF('3 Livestock Water Requirement'!I32=0,"-",'3 Livestock Water Requirement'!I32/1000),"") ->  | L32: =IFERROR(IF('3 Livestock Water Requirement'!J32=0,"-",'3 Livestock Water Requirement'!J32/1000),"") ->  | M32: =IFERROR(IF('3 Livestock Water Requirement'!K32=0,"-",'3 Livestock Water Requirement'!K32/1000),"") ->  | N32: =IFERROR(IF('3 Livestock Water Requirement'!L32=0,"-",'3 Livestock Water Requirement'!L32/1000),"") ->  | O32: =IFERROR(IF('3 Livestock Water Requirement'!M32=0,"-",'3 Livestock Water Requirement'!M32/1000),"") ->  | P32: =IFERROR(IF('3 Livestock Water Requirement'!N32=0,"-",'3 Livestock Water Requirement'!N32/1000),"") ->  | Q32: =IFERROR(IF('3 Livestock Water Requirement'!O32=0,"-",'3 Livestock Water Requirement'!O32/1000),"") ->  | R32: =IFERROR(IF('3 Livestock Water Requirement'!P32=0,"-",'3 Livestock Water Requirement'!P32/1000),"") -> 
C33: ='3 Livestock Water Requirement'!B34 -> 0 | E33: =IFERROR(SUM('3 Livestock Water Requirement'!E34:P34)/COUNTA('3 Livestock Water Requirement'!E34:P34),"") ->  | G33: =IFERROR(IF('3 Livestock Water Requirement'!E35=0,"-",'3 Livestock Water Requirement'!E35/1000),"") ->  | H33: =IFERROR(IF('3 Livestock Water Requirement'!F35=0,"-",'3 Livestock Water Requirement'!F35/1000),"") ->  | I33: =IFERROR(IF('3 Livestock Water Requirement'!G35=0,"-",'3 Livestock Water Requirement'!G35/1000),"") ->  | J33: =IFERROR(IF('3 Livestock Water Requirement'!H35=0,"-",'3 Livestock Water Requirement'!H35/1000),"") ->  | K33: =IFERROR(IF('3 Livestock Water Requirement'!I35=0,"-",'3 Livestock Water Requirement'!I35/1000),"") ->  | L33: =IFERROR(IF('3 Livestock Water Requirement'!J35=0,"-",'3 Livestock Water Requirement'!J35/1000),"") ->  | M33: =IFERROR(IF('3 Livestock Water Requirement'!K35=0,"-",'3 Livestock Water Requirement'!K35/1000),"") ->  | N33: =IFERROR(IF('3 Livestock Water Requirement'!L35=0,"-",'3 Livestock Water Requirement'!L35/1000),"") ->  | O33: =IFERROR(IF('3 Livestock Water Requirement'!M35=0,"-",'3 Livestock Water Requirement'!M35/1000),"") ->  | P33: =IFERROR(IF('3 Livestock Water Requirement'!N35=0,"-",'3 Livestock Water Requirement'!N35/1000),"") ->  | Q33: =IFERROR(IF('3 Livestock Water Requirement'!O35=0,"-",'3 Livestock Water Requirement'!O35/1000),"") ->  | R33: =IFERROR(IF('3 Livestock Water Requirement'!P35=0,"-",'3 Livestock Water Requirement'!P35/1000),"") -> 
C35: Total | E35: =SUM(E29:E33) -> 6 | G35: =SUM(G29:G33) -> 0.74 | H35: 0.74 | I35: 0.74 | J35: 0.74 | K35: 0.74 | L35: 0.37 | M35: 0.37 | N35: 0.37 | O35: 0.37 | P35: 0.64 | Q35: 0.64 | R35: 0.64
B40: Total Water Requirements
G42: Total Water need [m³/day]
G43: =G27 -> January | H43: =H27 -> February | I43: March | J43: April | K43: May | L43: June | M43: July | N43: August | O43: September | P43: October | Q43: November | R43: December
C45: Crops | E45: =E20&" "&'2 Crop Water Requirement'!C8 -> 1 ha | G45: =G20 -> 25.14316129 | H45: 52.29792857 | I45: 58.94757355 | J45: 4.142981333 | K45: 0 | L45: 0 | M45: 0 | N45: 0 | O45: 0 | P45: 0 | Q45: 0 | R45: 0
C46: Livestock | E46: ="Ø "&ROUND(E35,1)&" heads" -> Ø 6 heads | G46: =G35 -> 0.74 | H46: 0.74 | I46: 0.74 | J46: 0.74 | K46: 0.74 | L46: 0.37 | M46: 0.37 | N46: 0.37 | O46: 0.37 | P46: 0.64 | Q46: 0.64 | R46: 0.64
C48: Total | E48: =E45&" and "&E46 -> 1 ha and Ø 6 heads | G48: =SUM(G45:G46) -> 25.88316129 | H48: =SUM(H45:H46) -> 53.03792857 | I48: 59.68757355 | J48: 4.882981333 | K48: 0.74 | L48: 0.37 | M48: 0.37 | N48: 0.37 | O48: 0.37 | P48: 0.64 | Q48: 0.64 | R48: 0.64
D52: Highest daily water need: | G52: =MAX(G48:R48) -> 59.68757355 | H52: ="m³ in the month of "& INDEX(G43:R43,MATCH(MAX(G48:R48),G48:R48,0)) & "." -> m³ in the month of March. | L52: Pump utilization rate: | N52: ='General Calculation'!M180 -> 0.2061172256 | P52: Yearly Water need in m³: | S52: =SUM('General Calculation'!E175:P175) -> 4411.20422

Sheet Calculation Sheet Crop 1 (hidden)
A1: =VLOOKUP(B1,'Crop Information'!B8:C63,2,FALSE) -> 2 | B1: ='2 Crop Water Requirement'!B19 -> Barley/Oats/Wheat | I1: =VLOOKUP(J2,'General Calculation'!A74:B76,2,FALSE) -> 1 | J1: =(I1-1)*5 -> 0
J2: ='2 Crop Water Requirement'!I19 -> Minimum
B5: Date | C5: Stage: | D5: ETo | E5: ='Calculation Sheet Crop 1'!M5 -> Crop Factor | F5: ETo x Kc | I5: =INDEX('Crop Information'!B8:B63,'Calculation Sheet Crop 1'!A1) &" [mm/month]" -> Barley/Oats/Wheat [mm/month] | J5: Days | K5: From | L5: To | M5: Crop Factor | P5: January | Q5: February | R5: March | S5: April | T5: May | U5: June | V5: July | W5: August | X5: September | Y5: October | Z5: November | AA5: December
I6: Initial stage: | J6: =INDEX('Crop Information'!$D$8:$V$63,$A$1,(2+$J$1)) -> 15 | K6: ='2 Crop Water Requirement'!G19 -> 2017-01-01 | L6: =K6+J6 -> 2017-01-16 | M6: =INDEX('Crop Information'!S8:S63,'Calculation Sheet Crop 1'!A1) -> 0.35 | O6: Sum: | P6: =SUM(P7:P3293) -> 78.858 | Q6: =SUM(Q7:Q3293) -> 138.722 | R6: 192.12498 | S6: 90.29904 | T6: 10.881 | U6: 0 | V6: 0 | W6: 0 | X6: 0 | Y6: 0 | Z6: 0 | AA6: 0
B7: 2017-01-01 | C7: =IF(AND(B7>='Calculation Sheet Crop 1'!$K$6,B7<='Calculation Sheet Crop 1'!$L$6),"Initial Stage",IF(AND(B7+1>'Calculation Sheet Crop 1'!$K$7,B7<='Calculation Sheet Crop 1'!$L$7),"Crop Development Phase",IF(AND(B7+1>'Calculation Sheet Crop 1'!$K$8,B7<'Calculation Sheet Crop 1'!$L$8+1),"Mid Season",IF(AND(B7+1>'Calculation Sheet Crop 1'!$K$9,B7-1<'Calculation Sheet Crop 1'!$L$9),"Late Season Stage","")))) -> Initial Stage | D7: =IF(MONTH(B7)=1,'General Calculation'!$E$21,IF(MONTH(B7)=2,'General Calculation'!$F$21,IF(MONTH(B7)=3,'General Calculation'!$G$21,IF(MONTH(B7)=4,'General Calculation'!$H$21,IF(MONTH(B7)=5,'General Calculation'!$I$21,IF(MONTH(B7)=6,'General Calculation'!$J$21,IF(MONTH(B7)=7,'General Calculation'!$K$21,IF(MONTH(B7)=8,'General Calculation'!$L$21,IF(MONTH(B7)=9,'General Calculation'!$M$21,IF(MONTH(B7)=10,'General Calculation'!$N$21,IF(MONTH(B7)=11,'General Calculation'!$O$21,IF(MONTH(B7)=12,'General Calculation'!$P$21,"")))))))))))) -> 4.68 | E7: =IF(C7="Initial Stage",'Calculation Sheet Crop 1'!$M$6,IF(C7="Crop Development Phase",'Calculation Sheet Crop 1'!$M$7,IF(C7="Mid Season",'Calculation Sheet Crop 1'!$M$8,IF(C7="Late Season Stage",'Calculation Sheet Crop 1'!$M$9,"")))) -> 0.35 | F7: =IFERROR((D7*E7),0) -> 1.638 | I7: Crop development stage: | J7: =INDEX('Crop Information'!$D$8:$V$63,$A$1,(3+$J$1)) -> 25 | K7: =L6+1 -> 2017-01-17 | L7: =K7+J7 -> 2017-02-11 | M7: =INDEX('Crop Information'!T8:T63,'Calculation Sheet Crop 1'!A1) -> 0.75 | P7: =IF(MONTH($B7)=1,$F7,0) -> 1.638 | Q7: =IF(MONTH($B7)=2,$F7,0) -> 0 | R7: =IF(MONTH($B7)=3,$F7,0) -> 0 | S7: =IF(MONTH($B7)=4,$F7,0) -> 0 | T7: =IF(MONTH($B7)=5,$F7,0) -> 0 | U7: =IF(MONTH($B7)=6,$F7,0) -> 0 | V7: =IF(MONTH($B7)=7,$F7,0) -> 0 | W7: =IF(MONTH($B7)=8,$F7,0) -> 0 | X7: =IF(MONTH($B7)=9,$F7,0) -> 0 | Y7: =IF(MONTH($B7)=10,$F7,0) -> 0 | Z7: =IF(MONTH($B7)=11,$F7,0) -> 0 | AA7: =IF(MONTH($B7)=12,$F7,0) -> 0
B8: 2017-01-02 | C8: =IF(AND(B8>='Calculation Sheet Crop 1'!$K$6,B8<='Calculation Sheet Crop 1'!$L$6),"Initial Stage",IF(AND(B8+1>'Calculation Sheet Crop 1'!$K$7,B8<='Calculation Sheet Crop 1'!$L$7),"Crop Development Phase",IF(AND(B8+1>'Calculation Sheet Crop 1'!$K$8,B8<'Calculation Sheet Crop 1'!$L$8+1),"Mid Season",IF(AND(B8+1>'Calculation Sheet Crop 1'!$K$9,B8-1<'Calculation Sheet Crop 1'!$L$9),"Late Season Stage","")))) -> Initial Stage | D8: =IF(MONTH(B8)=1,'General Calculation'!$E$21,IF(MONTH(B8)=2,'General Calculation'!$F$21,IF(MONTH(B8)=3,'General Calculation'!$G$21,IF(MONTH(B8)=4,'General Calculation'!$H$21,IF(MONTH(B8)=5,'General Calculation'!$I$21,IF(MONTH(B8)=6,'General Calculation'!$J$21,IF(MONTH(B8)=7,'General Calculation'!$K$21,IF(MONTH(B8)=8,'General Calculation'!$L$21,IF(MONTH(B8)=9,'General Calculation'!$M$21,IF(MONTH(B8)=10,'General Calculation'!$N$21,IF(MONTH(B8)=11,'General Calculation'!$O$21,IF(MONTH(B8)=12,'General Calculation'!$P$21,"")))))))))))) -> 4.68 | E8: =IF(C8="Initial Stage",'Calculation Sheet Crop 1'!$M$6,IF(C8="Crop Development Phase",'Calculation Sheet Crop 1'!$M$7,IF(C8="Mid Season",'Calculation Sheet Crop 1'!$M$8,IF(C8="Late Season Stage",'Calculation Sheet Crop 1'!$M$9,"")))) -> 0.35 | F8: =IFERROR((D8*E8),0) -> 1.638 | I8: Mid season: | J8: =INDEX('Crop Information'!$D$8:$V$63,$A$1,(4+$J$1)) -> 50 | K8: =L7+1 -> 2017-02-12 | L8: =K8+J8 -> 2017-04-03 | M8: =INDEX('Crop Information'!U8:U63,'Calculation Sheet Crop 1'!A1) -> 1.15 | P8: =IF(MONTH($B8)=1,$F8,0) -> 1.638 | Q8: =IF(MONTH($B8)=2,$F8,0) -> 0 | R8: =IF(MONTH($B8)=3,$F8,0) -> 0 | S8: =IF(MONTH($B8)=4,$F8,0) -> 0 | T8: =IF(MONTH($B8)=5,$F8,0) -> 0 | U8: =IF(MONTH($B8)=6,$F8,0) -> 0 | V8: =IF(MONTH($B8)=7,$F8,0) -> 0 | W8: =IF(MONTH($B8)=8,$F8,0) -> 0 | X8: =IF(MONTH($B8)=9,$F8,0) -> 0 | Y8: =IF(MONTH($B8)=10,$F8,0) -> 0 | Z8: =IF(MONTH($B8)=11,$F8,0) -> 0 | AA8: =IF(MONTH($B8)=12,$F8,0) -> 0
B9: 2017-01-03 | C9: =IF(AND(B9>='Calculation Sheet Crop 1'!$K$6,B9<='Calculation Sheet Crop 1'!$L$6),"Initial Stage",IF(AND(B9+1>'Calculation Sheet Crop 1'!$K$7,B9<='Calculation Sheet Crop 1'!$L$7),"Crop Development Phase",IF(AND(B9+1>'Calculation Sheet Crop 1'!$K$8,B9<'Calculation Sheet Crop 1'!$L$8+1),"Mid Season",IF(AND(B9+1>'Calculation Sheet Crop 1'!$K$9,B9-1<'Calculation Sheet Crop 1'!$L$9),"Late Season Stage","")))) -> Initial Stage | D9: =IF(MONTH(B9)=1,'General Calculation'!$E$21,IF(MONTH(B9)=2,'General Calculation'!$F$21,IF(MONTH(B9)=3,'General Calculation'!$G$21,IF(MONTH(B9)=4,'General Calculation'!$H$21,IF(MONTH(B9)=5,'General Calculation'!$I$21,IF(MONTH(B9)=6,'General Calculation'!$J$21,IF(MONTH(B9)=7,'General Calculation'!$K$21,IF(MONTH(B9)=8,'General Calculation'!$L$21,IF(MONTH(B9)=9,'General Calculation'!$M$21,IF(MONTH(B9)=10,'General Calculation'!$N$21,IF(MONTH(B9)=11,'General Calculation'!$O$21,IF(MONTH(B9)=12,'General Calculation'!$P$21,"")))))))))))) -> 4.68 | E9: =IF(C9="Initial Stage",'Calculation Sheet Crop 1'!$M$6,IF(C9="Crop Development Phase",'Calculation Sheet Crop 1'!$M$7,IF(C9="Mid Season",'Calculation Sheet Crop 1'!$M$8,IF(C9="Late Season Stage",'Calculation Sheet Crop 1'!$M$9,"")))) -> 0.35 | F9: 1.638 | I9: Late season stage: | J9: =INDEX('Crop Information'!$D$8:$V$63,$A$1,(5+$J$1)) -> 30 | K9: =L8+1 -> 2017-04-04 | L9: =K9+J9 -> 2017-05-04 | M9: =INDEX('Crop Information'!V8:V63,'Calculation Sheet Crop 1'!A1) -> 0.45 | P9: 1.638 | Q9: 0 | R9: 0 | S9: 0 | T9: 0 | U9: 0 | V9: 0 | W9: 0 | X9: 0 | Y9: 0 | Z9: 0 | AA9: 0
B10: 2017-01-04 | C10: =IF(AND(B10>='Calculation Sheet Crop 1'!$K$6,B10<='Calculation Sheet Crop 1'!$L$6),"Initial Stage",IF(AND(B10+1>'Calculation Sheet Crop 1'!$K$7,B10<='Calculation Sheet Crop 1'!$L$7),"Crop Development Phase",IF(AND(B10+1>'Calculation Sheet Crop 1'!$K$8,B10<'Calculation Sheet Crop 1'!$L$8+1),"Mid Season",IF(AND(B10+1>'Calculation Sheet Crop 1'!$K$9,B10-1<'Calculation Sheet Crop 1'!$L$9),"Late Season Stage","")))) -> Initial Stage | D10: =IF(MONTH(B10)=1,'General Calculation'!$E$21,IF(MONTH(B10)=2,'General Calculation'!$F$21,IF(MONTH(B10)=3,'General Calculation'!$G$21,IF(MONTH(B10)=4,'General Calculation'!$H$21,IF(MONTH(B10)=5,'General Calculation'!$I$21,IF(MONTH(B10)=6,'General Calculation'!$J$21,IF(MONTH(B10)=7,'General Calculation'!$K$21,IF(MONTH(B10)=8,'General Calculation'!$L$21,IF(MONTH(B10)=9,'General Calculation'!$M$21,IF(MONTH(B10)=10,'General Calculation'!$N$21,IF(MONTH(B10)=11,'General Calculation'!$O$21,IF(MONTH(B10)=12,'General Calculation'!$P$21,"")))))))))))) -> 4.68 | E10: =IF(C10="Initial Stage",'Calculation Sheet Crop 1'!$M$6,IF(C10="Crop Development Phase",'Calculation Sheet Crop 1'!$M$7,IF(C10="Mid Season",'Calculation Sheet Crop 1'!$M$8,IF(C10="Late Season Stage",'Calculation Sheet Crop 1'!$M$9,"")))) -> 0.35 | F10: 1.638 | I10: Total growing days: | J10: =INDEX('Crop Information'!$D$8:$V$63,$A$1,(1+$J$1)) -> 120 | P10: 1.638 | Q10: 0 | R10: 0 | S10: 0 | T10: 0 | U10: 0 | V10: 0 | W10: 0 | X10: 0 | Y10: 0 | Z10: 0 | AA10: 0
B11: 2017-01-05 | C11: =IF(AND(B11>='Calculation Sheet Crop 1'!$K$6,B11<='Calculation Sheet Crop 1'!$L$6),"Initial Stage",IF(AND(B11+1>'Calculation Sheet Crop 1'!$K$7,B11<='Calculation Sheet Crop 1'!$L$7),"Crop Development Phase",IF(AND(B11+1>'Calculation Sheet Crop 1'!$K$8,B11<'Calculation Sheet Crop 1'!$L$8+1),"Mid Season",IF(AND(B11+1>'Calculation Sheet Crop 1'!$K$9,B11-1<'Calculation Sheet Crop 1'!$L$9),"Late Season Stage","")))) -> Initial Stage | D11: =IF(MONTH(B11)=1,'General Calculation'!$E$21,IF(MONTH(B11)=2,'General Calculation'!$F$21,IF(MONTH(B11)=3,'General Calculation'!$G$21,IF(MONTH(B11)=4,'General Calculation'!$H$21,IF(MONTH(B11)=5,'General Calculation'!$I$21,IF(MONTH(B11)=6,'General Calculation'!$J$21,IF(MONTH(B11)=7,'General Calculation'!$K$21,IF(MONTH(B11)=8,'General Calculation'!$L$21,IF(MONTH(B11)=9,'General Calculation'!$M$21,IF(MONTH(B11)=10,'General Calculation'!$N$21,IF(MONTH(B11)=11,'General Calculation'!$O$21,IF(MONTH(B11)=12,'General Calculation'!$P$21,"")))))))))))) -> 4.68 | E11: =IF(C11="Initial Stage",'Calculation Sheet Crop 1'!$M$6,IF(C11="Crop Development Phase",'Calculation Sheet Crop 1'!$M$7,IF(C11="Mid Season",'Calculation Sheet Crop 1'!$M$8,IF(C11="Late Season Stage",'Calculation Sheet Crop 1'!$M$9,"")))) -> 0.35 | F11: 1.638 | P11: 1.638 | Q11: 0 | R11: 0 | S11: 0 | T11: 0 | U11: 0 | V11: 0 | W11: 0 | X11: 0 | Y11: 0 | Z11: 0 | AA11: 0
B12: 2017-01-06 | C12: =IF(AND(B12>='Calculation Sheet Crop 1'!$K$6,B12<='Calculation Sheet Crop 1'!$L$6),"Initial Stage",IF(AND(B12+1>'Calculation Sheet Crop 1'!$K$7,B12<='Calculation Sheet Crop 1'!$L$7),"Crop Development Phase",IF(AND(B12+1>'Calculation Sheet Crop 1'!$K$8,B12<'Calculation Sheet Crop 1'!$L$8+1),"Mid Season",IF(AND(B12+1>'Calculation Sheet Crop 1'!$K$9,B12-1<'Calculation Sheet Crop 1'!$L$9),"Late Season Stage","")))) -> Initial Stage | D12: =IF(MONTH(B12)=1,'General Calculation'!$E$21,IF(MONTH(B12)=2,'General Calculation'!$F$21,IF(MONTH(B12)=3,'General Calculation'!$G$21,IF(MONTH(B12)=4,'General Calculation'!$H$21,IF(MONTH(B12)=5,'General Calculation'!$I$21,IF(MONTH(B12)=6,'General Calculation'!$J$21,IF(MONTH(B12)=7,'General Calculation'!$K$21,IF(MONTH(B12)=8,'General Calculation'!$L$21,IF(MONTH(B12)=9,'General Calculation'!$M$21,IF(MONTH(B12)=10,'General Calculation'!$N$21,IF(MONTH(B12)=11,'General Calculation'!$O$21,IF(MONTH(B12)=12,'General Calculation'!$P$21,"")))))))))))) -> 4.68 | E12: =IF(C12="Initial Stage",'Calculation Sheet Crop 1'!$M$6,IF(C12="Crop Development Phase",'Calculation Sheet Crop 1'!$M$7,IF(C12="Mid Season",'Calculation Sheet Crop 1'!$M$8,IF(C12="Late Season Stage",'Calculation Sheet Crop 1'!$M$9,"")))) -> 0.35 | F12: 1.638 | P12: 1.638 | Q12: 0 | R12: 0 | S12: 0 | T12: 0 | U12: 0 | V12: 0 | W12: 0 | X12: 0 | Y12: 0 | Z12: 0 | AA12: 0
B13: 2017-01-07 | C13: =IF(AND(B13>='Calculation Sheet Crop 1'!$K$6,B13<='Calculation Sheet Crop 1'!$L$6),"Initial Stage",IF(AND(B13+1>'Calculation Sheet Crop 1'!$K$7,B13<='Calculation Sheet Crop 1'!$L$7),"Crop Development Phase",IF(AND(B13+1>'Calculation Sheet Crop 1'!$K$8,B13<'Calculation Sheet Crop 1'!$L$8+1),"Mid Season",IF(AND(B13+1>'Calculation Sheet Crop 1'!$K$9,B13-1<'Calculation Sheet Crop 1'!$L$9),"Late Season Stage","")))) -> Initial Stage | D13: =IF(MONTH(B13)=1,'General Calculation'!$E$21,IF(MONTH(B13)=2,'General Calculation'!$F$21,IF(MONTH(B13)=3,'General Calculation'!$G$21,IF(MONTH(B13)=4,'General Calculation'!$H$21,IF(MONTH(B13)=5,'General Calculation'!$I$21,IF(MONTH(B13)=6,'General Calculation'!$J$21,IF(MONTH(B13)=7,'General Calculation'!$K$21,IF(MONTH(B13)=8,'General Calculation'!$L$21,IF(MONTH(B13)=9,'General Calculation'!$M$21,IF(MONTH(B13)=10,'General Calculation'!$N$21,IF(MONTH(B13)=11,'General Calculation'!$O$21,IF(MONTH(B13)=12,'General Calculation'!$P$21,"")))))))))))) -> 4.68 | E13: =IF(C13="Initial Stage",'Calculation Sheet Crop 1'!$M$6,IF(C13="Crop Development Phase",'Calculation Sheet Crop 1'!$M$7,IF(C13="Mid Season",'Calculation Sheet Crop 1'!$M$8,IF(C13="Late Season Stage",'Calculation Sheet Crop 1'!$M$9,"")))) -> 0.35 | F13: 1.638 | P13: 1.638 | Q13: 0 | R13: 0 | S13: 0 | T13: 0 | U13: 0 | V13: 0 | W13: 0 | X13: 0 | Y13: 0 | Z13: 0 | AA13: 0
B14: 2017-01-08 | C14: =IF(AND(B14>='Calculation Sheet Crop 1'!$K$6,B14<='Calculation Sheet Crop 1'!$L$6),"Initial Stage",IF(AND(B14+1>'Calculation Sheet Crop 1'!$K$7,B14<='Calculation Sheet Crop 1'!$L$7),"Crop Development Phase",IF(AND(B14+1>'Calculation Sheet Crop 1'!$K$8,B14<'Calculation Sheet Crop 1'!$L$8+1),"Mid Season",IF(AND(B14+1>'Calculation Sheet Crop 1'!$K$9,B14-1<'Calculation Sheet Crop 1'!$L$9),"Late Season Stage","")))) -> Initial Stage | D14: =IF(MONTH(B14)=1,'General Calculation'!$E$21,IF(MONTH(B14)=2,'General Calculation'!$F$21,IF(MONTH(B14)=3,'General Calculation'!$G$21,IF(MONTH(B14)=4,'General Calculation'!$H$21,IF(MONTH(B14)=5,'General Calculation'!$I$21,IF(MONTH(B14)=6,'General Calculation'!$J$21,IF(MONTH(B14)=7,'General Calculation'!$K$21,IF(MONTH(B14)=8,'General Calculation'!$L$21,IF(MONTH(B14)=9,'General Calculation'!$M$21,IF(MONTH(B14)=10,'General Calculation'!$N$21,IF(MONTH(B14)=11,'General Calculation'!$O$21,IF(MONTH(B14)=12,'General Calculation'!$P$21,"")))))))))))) -> 4.68 | E14: =IF(C14="Initial Stage",'Calculation Sheet Crop 1'!$M$6,IF(C14="Crop Development Phase",'Calculation Sheet Crop 1'!$M$7,IF(C14="Mid Season",'Calculation Sheet Crop 1'!$M$8,IF(C14="Late Season Stage",'Calculation Sheet Crop 1'!$M$9,"")))) -> 0.35 | F14: 1.638 | P14: 1.638 | Q14: 0 | R14: 0 | S14: 0 | T14: 0 | U14: 0 | V14: 0 | W14: 0 | X14: 0 | Y14: 0 | Z14: 0 | AA14: 0
B15: 2017-01-09 | C15: =IF(AND(B15>='Calculation Sheet Crop 1'!$K$6,B15<='Calculation Sheet Crop 1'!$L$6),"Initial Stage",IF(AND(B15+1>'Calculation Sheet Crop 1'!$K$7,B15<='Calculation Sheet Crop 1'!$L$7),"Crop Development Phase",IF(AND(B15+1>'Calculation Sheet Crop 1'!$K$8,B15<'Calculation Sheet Crop 1'!$L$8+1),"Mid Season",IF(AND(B15+1>'Calculation Sheet Crop 1'!$K$9,B15-1<'Calculation Sheet Crop 1'!$L$9),"Late Season Stage","")))) -> Initial Stage | D15: =IF(MONTH(B15)=1,'General Calculation'!$E$21,IF(MONTH(B15)=2,'General Calculation'!$F$21,IF(MONTH(B15)=3,'General Calculation'!$G$21,IF(MONTH(B15)=4,'General Calculation'!$H$21,IF(MONTH(B15)=5,'General Calculation'!$I$21,IF(MONTH(B15)=6,'General Calculation'!$J$21,IF(MONTH(B15)=7,'General Calculation'!$K$21,IF(MONTH(B15)=8,'General Calculation'!$L$21,IF(MONTH(B15)=9,'General Calculation'!$M$21,IF(MONTH(B15)=10,'General Calculation'!$N$21,IF(MONTH(B15)=11,'General Calculation'!$O$21,IF(MONTH(B15)=12,'General Calculation'!$P$21,"")))))))))))) -> 4.68 | E15: =IF(C15="Initial Stage",'Calculation Sheet Crop 1'!$M$6,IF(C15="Crop Development Phase",'Calculation Sheet Crop 1'!$M$7,IF(C15="Mid Season",'Calculation Sheet Crop 1'!$M$8,IF(C15="Late Season Stage",'Calculation Sheet Crop 1'!$M$9,"")))) -> 0.35 | F15: 1.638 | P15: 1.638 | Q15: 0 | R15: 0 | S15: 0 | T15: 0 | U15: 0 | V15: 0 | W15: 0 | X15: 0 | Y15: 0 | Z15: 0 | AA15: 0
B16: 2017-01-10 | C16: =IF(AND(B16>='Calculation Sheet Crop 1'!$K$6,B16<='Calculation Sheet Crop 1'!$L$6),"Initial Stage",IF(AND(B16+1>'Calculation Sheet Crop 1'!$K$7,B16<='Calculation Sheet Crop 1'!$L$7),"Crop Development Phase",IF(AND(B16+1>'Calculation Sheet Crop 1'!$K$8,B16<'Calculation Sheet Crop 1'!$L$8+1),"Mid Season",IF(AND(B16+1>'Calculation Sheet Crop 1'!$K$9,B16-1<'Calculation Sheet Crop 1'!$L$9),"Late Season Stage","")))) -> Initial Stage | D16: =IF(MONTH(B16)=1,'General Calculation'!$E$21,IF(MONTH(B16)=2,'General Calculation'!$F$21,IF(MONTH(B16)=3,'General Calculation'!$G$21,IF(MONTH(B16)=4,'General Calculation'!$H$21,IF(MONTH(B16)=5,'General Calculation'!$I$21,IF(MONTH(B16)=6,'General Calculation'!$J$21,IF(MONTH(B16)=7,'General Calculation'!$K$21,IF(MONTH(B16)=8,'General Calculation'!$L$21,IF(MONTH(B16)=9,'General Calculation'!$M$21,IF(MONTH(B16)=10,'General Calculation'!$N$21,IF(MONTH(B16)=11,'General Calculation'!$O$21,IF(MONTH(B16)=12,'General Calculation'!$P$21,"")))))))))))) -> 4.68 | E16: =IF(C16="Initial Stage",'Calculation Sheet Crop 1'!$M$6,IF(C16="Crop Development Phase",'Calculation Sheet Crop 1'!$M$7,IF(C16="Mid Season",'Calculation Sheet Crop 1'!$M$8,IF(C16="Late Season Stage",'Calculation Sheet Crop 1'!$M$9,"")))) -> 0.35 | F16: 1.638 | P16: 1.638 | Q16: 0 | R16: 0 | S16: 0 | T16: 0 | U16: 0 | V16: 0 | W16: 0 | X16: 0 | Y16: 0 | Z16: 0 | AA16: 0
B17: 2017-01-11 | C17: =IF(AND(B17>='Calculation Sheet Crop 1'!$K$6,B17<='Calculation Sheet Crop 1'!$L$6),"Initial Stage",IF(AND(B17+1>'Calculation Sheet Crop 1'!$K$7,B17<='Calculation Sheet Crop 1'!$L$7),"Crop Development Phase",IF(AND(B17+1>'Calculation Sheet Crop 1'!$K$8,B17<'Calculation Sheet Crop 1'!$L$8+1),"Mid Season",IF(AND(B17+1>'Calculation Sheet Crop 1'!$K$9,B17-1<'Calculation Sheet Crop 1'!$L$9),"Late Season Stage","")))) -> Initial Stage | D17: =IF(MONTH(B17)=1,'General Calculation'!$E$21,IF(MONTH(B17)=2,'General Calculation'!$F$21,IF(MONTH(B17)=3,'General Calculation'!$G$21,IF(MONTH(B17)=4,'General Calculation'!$H$21,IF(MONTH(B17)=5,'General Calculation'!$I$21,IF(MONTH(B17)=6,'General Calculation'!$J$21,IF(MONTH(B17)=7,'General Calculation'!$K$21,IF(MONTH(B17)=8,'General Calculation'!$L$21,IF(MONTH(B17)=9,'General Calculation'!$M$21,IF(MONTH(B17)=10,'General Calculation'!$N$21,IF(MONTH(B17)=11,'General Calculation'!$O$21,IF(MONTH(B17)=12,'General Calculation'!$P$21,"")))))))))))) -> 4.68 | E17: =IF(C17="Initial Stage",'Calculation Sheet Crop 1'!$M$6,IF(C17="Crop Development Phase",'Calculation Sheet Crop 1'!$M$7,IF(C17="Mid Season",'Calculation Sheet Crop 1'!$M$8,IF(C17="Late Season Stage",'Calculation Sheet Crop 1'!$M$9,"")))) -> 0.35 | F17: 1.638 | P17: 1.638 | Q17: 0 | R17: 0 | S17: 0 | T17: 0 | U17: 0 | V17: 0 | W17: 0 | X17: 0 | Y17: 0 | Z17: 0 | AA17: 0
B18: 2017-01-12 | C18: =IF(AND(B18>='Calculation Sheet Crop 1'!$K$6,B18<='Calculation Sheet Crop 1'!$L$6),"Initial Stage",IF(AND(B18+1>'Calculation Sheet Crop 1'!$K$7,B18<='Calculation Sheet Crop 1'!$L$7),"Crop Development Phase",IF(AND(B18+1>'Calculation Sheet Crop 1'!$K$8,B18<'Calculation Sheet Crop 1'!$L$8+1),"Mid Season",IF(AND(B18+1>'Calculation Sheet Crop 1'!$K$9,B18-1<'Calculation Sheet Crop 1'!$L$9),"Late Season Stage","")))) -> Initial Stage | D18: =IF(MONTH(B18)=1,'General Calculation'!$E$21,IF(MONTH(B18)=2,'General Calculation'!$F$21,IF(MONTH(B18)=3,'General Calculation'!$G$21,IF(MONTH(B18)=4,'General Calculation'!$H$21,IF(MONTH(B18)=5,'General Calculation'!$I$21,IF(MONTH(B18)=6,'General Calculation'!$J$21,IF(MONTH(B18)=7,'General Calculation'!$K$21,IF(MONTH(B18)=8,'General Calculation'!$L$21,IF(MONTH(B18)=9,'General Calculation'!$M$21,IF(MONTH(B18)=10,'General Calculation'!$N$21,IF(MONTH(B18)=11,'General Calculation'!$O$21,IF(MONTH(B18)=12,'General Calculation'!$P$21,"")))))))))))) -> 4.68 | E18: =IF(C18="Initial Stage",'Calculation Sheet Crop 1'!$M$6,IF(C18="Crop Development Phase",'Calculation Sheet Crop 1'!$M$7,IF(C18="Mid Season",'Calculation Sheet Crop 1'!$M$8,IF(C18="Late Season Stage",'Calculation Sheet Crop 1'!$M$9,"")))) -> 0.35 | F18: 1.638 | P18: 1.638 | Q18: 0 | R18: 0 | S18: 0 | T18: 0 | U18: 0 | V18: 0 | W18: 0 | X18: 0 | Y18: 0 | Z18: 0 | AA18: 0
B19: 2017-01-13 | C19: =IF(AND(B19>='Calculation Sheet Crop 1'!$K$6,B19<='Calculation Sheet Crop 1'!$L$6),"Initial Stage",IF(AND(B19+1>'Calculation Sheet Crop 1'!$K$7,B19<='Calculation Sheet Crop 1'!$L$7),"Crop Development Phase",IF(AND(B19+1>'Calculation Sheet Crop 1'!$K$8,B19<'Calculation Sheet Crop 1'!$L$8+1),"Mid Season",IF(AND(B19+1>'Calculation Sheet Crop 1'!$K$9,B19-1<'Calculation Sheet Crop 1'!$L$9),"Late Season Stage","")))) -> Initial Stage | D19: =IF(MONTH(B19)=1,'General Calculation'!$E$21,IF(MONTH(B19)=2,'General Calculation'!$F$21,IF(MONTH(B19)=3,'General Calculation'!$G$21,IF(MONTH(B19)=4,'General Calculation'!$H$21,IF(MONTH(B19)=5,'General Calculation'!$I$21,IF(MONTH(B19)=6,'General Calculation'!$J$21,IF(MONTH(B19)=7,'General Calculation'!$K$21,IF(MONTH(B19)=8,'General Calculation'!$L$21,IF(MONTH(B19)=9,'General Calculation'!$M$21,IF(MONTH(B19)=10,'General Calculation'!$N$21,IF(MONTH(B19)=11,'General Calculation'!$O$21,IF(MONTH(B19)=12,'General Calculation'!$P$21,"")))))))))))) -> 4.68 | E19: =IF(C19="Initial Stage",'Calculation Sheet Crop 1'!$M$6,IF(C19="Crop Development Phase",'Calculation Sheet Crop 1'!$M$7,IF(C19="Mid Season",'Calculation Sheet Crop 1'!$M$8,IF(C19="Late Season Stage",'Calculation Sheet Crop 1'!$M$9,"")))) -> 0.35 | F19: 1.638 | P19: 1.638 | Q19: 0 | R19: 0 | S19: 0 | T19: 0 | U19: 0 | V19: 0 | W19: 0 | X19: 0 | Y19: 0 | Z19: 0 | AA19: 0
B20: 2017-01-14 | C20: =IF(AND(B20>='Calculation Sheet Crop 1'!$K$6,B20<='Calculation Sheet Crop 1'!$L$6),"Initial Stage",IF(AND(B20+1>'Calculation Sheet Crop 1'!$K$7,B20<='Calculation Sheet Crop 1'!$L$7),"Crop Development Phase",IF(AND(B20+1>'Calculation Sheet Crop 1'!$K$8,B20<'Calculation Sheet Crop 1'!$L$8+1),"Mid Season",IF(AND(B20+1>'Calculation Sheet Crop 1'!$K$9,B20-1<'Calculation Sheet Crop 1'!$L$9),"Late Season Stage","")))) -> Initial Stage | D20: =IF(MONTH(B20)=1,'General Calculation'!$E$21,IF(MONTH(B20)=2,'General Calculation'!$F$21,IF(MONTH(B20)=3,'General Calculation'!$G$21,IF(MONTH(B20)=4,'General Calculation'!$H$21,IF(MONTH(B20)=5,'General Calculation'!$I$21,IF(MONTH(B20)=6,'General Calculation'!$J$21,IF(MONTH(B20)=7,'General Calculation'!$K$21,IF(MONTH(B20)=8,'General Calculation'!$L$21,IF(MONTH(B20)=9,'General Calculation'!$M$21,IF(MONTH(B20)=10,'General Calculation'!$N$21,IF(MONTH(B20)=11,'General Calculation'!$O$21,IF(MONTH(B20)=12,'General Calculation'!$P$21,"")))))))))))) -> 4.68 | E20: =IF(C20="Initial Stage",'Calculation Sheet Crop 1'!$M$6,IF(C20="Crop Development Phase",'Calculation Sheet Crop 1'!$M$7,IF(C20="Mid Season",'Calculation Sheet Crop 1'!$M$8,IF(C20="Late Season Stage",'Calculation Sheet Crop 1'!$M$9,"")))) -> 0.35 | F20: 1.638 | P20: 1.638 | Q20: 0 | R20: 0 | S20: 0 | T20: 0 | U20: 0 | V20: 0 | W20: 0 | X20: 0 | Y20: 0 | Z20: 0 | AA20: 0
B21: 2017-01-15 | C21: =IF(AND(B21>='Calculation Sheet Crop 1'!$K$6,B21<='Calculation Sheet Crop 1'!$L$6),"Initial Stage",IF(AND(B21+1>'Calculation Sheet Crop 1'!$K$7,B21<='Calculation Sheet Crop 1'!$L$7),"Crop Development Phase",IF(AND(B21+1>'Calculation Sheet Crop 1'!$K$8,B21<'Calculation Sheet Crop 1'!$L$8+1),"Mid Season",IF(AND(B21+1>'Calculation Sheet Crop 1'!$K$9,B21-1<'Calculation Sheet Crop 1'!$L$9),"Late Season Stage","")))) -> Initial Stage | D21: =IF(MONTH(B21)=1,'General Calculation'!$E$21,IF(MONTH(B21)=2,'General Calculation'!$F$21,IF(MONTH(B21)=3,'General Calculation'!$G$21,IF(MONTH(B21)=4,'General Calculation'!$H$21,IF(MONTH(B21)=5,'General Calculation'!$I$21,IF(MONTH(B21)=6,'General Calculation'!$J$21,IF(MONTH(B21)=7,'General Calculation'!$K$21,IF(MONTH(B21)=8,'General Calculation'!$L$21,IF(MONTH(B21)=9,'General Calculation'!$M$21,IF(MONTH(B21)=10,'General Calculation'!$N$21,IF(MONTH(B21)=11,'General Calculation'!$O$21,IF(MONTH(B21)=12,'General Calculation'!$P$21,"")))))))))))) -> 4.68 | E21: =IF(C21="Initial Stage",'Calculation Sheet Crop 1'!$M$6,IF(C21="Crop Development Phase",'Calculation Sheet Crop 1'!$M$7,IF(C21="Mid Season",'Calculation Sheet Crop 1'!$M$8,IF(C21="Late Season Stage",'Calculation Sheet Crop 1'!$M$9,"")))) -> 0.35 | F21: 1.638 | P21: 1.638 | Q21: 0 | R21: 0 | S21: 0 | T21: 0 | U21: 0 | V21: 0 | W21: 0 | X21: 0 | Y21: 0 | Z21: 0 | AA21: 0
B22: 2017-01-16 | C22: =IF(AND(B22>='Calculation Sheet Crop 1'!$K$6,B22<='Calculation Sheet Crop 1'!$L$6),"Initial Stage",IF(AND(B22+1>'Calculation Sheet Crop 1'!$K$7,B22<='Calculation Sheet Crop 1'!$L$7),"Crop Development Phase",IF(AND(B22+1>'Calculation Sheet Crop 1'!$K$8,B22<'Calculation Sheet Crop 1'!$L$8+1),"Mid Season",IF(AND(B22+1>'Calculation Sheet Crop 1'!$K$9,B22-1<'Calculation Sheet Crop 1'!$L$9),"Late Season Stage","")))) -> Initial Stage | D22: =IF(MONTH(B22)=1,'General Calculation'!$E$21,IF(MONTH(B22)=2,'General Calculation'!$F$21,IF(MONTH(B22)=3,'General Calculation'!$G$21,IF(MONTH(B22)=4,'General Calculation'!$H$21,IF(MONTH(B22)=5,'General Calculation'!$I$21,IF(MONTH(B22)=6,'General Calculation'!$J$21,IF(MONTH(B22)=7,'General Calculation'!$K$21,IF(MONTH(B22)=8,'General Calculation'!$L$21,IF(MONTH(B22)=9,'General Calculation'!$M$21,IF(MONTH(B22)=10,'General Calculation'!$N$21,IF(MONTH(B22)=11,'General Calculation'!$O$21,IF(MONTH(B22)=12,'General Calculation'!$P$21,"")))))))))))) -> 4.68 | E22: =IF(C22="Initial Stage",'Calculation Sheet Crop 1'!$M$6,IF(C22="Crop Development Phase",'Calculation Sheet Crop 1'!$M$7,IF(C22="Mid Season",'Calculation Sheet Crop 1'!$M$8,IF(C22="Late Season Stage",'Calculation Sheet Crop 1'!$M$9,"")))) -> 0.35 | F22: 1.638 | P22: 1.638 | Q22: 0 | R22: 0 | S22: 0 | T22: 0 | U22: 0 | V22: 0 | W22: 0 | X22: 0 | Y22: 0 | Z22: 0 | AA22: 0
B23: 2017-01-17 | C23: =IF(AND(B23>='Calculation Sheet Crop 1'!$K$6,B23<='Calculation Sheet Crop 1'!$L$6),"Initial Stage",IF(AND(B23+1>'Calculation Sheet Crop 1'!$K$7,B23<='Calculation Sheet Crop 1'!$L$7),"Crop Development Phase",IF(AND(B23+1>'Calculation Sheet Crop 1'!$K$8,B23<'Calculation Sheet Crop 1'!$L$8+1),"Mid Season",IF(AND(B23+1>'Calculation Sheet Crop 1'!$K$9,B23-1<'Calculation Sheet Crop 1'!$L$9),"Late Season Stage","")))) -> Crop Development Phase | D23: =IF(MONTH(B23)=1,'General Calculation'!$E$21,IF(MONTH(B23)=2,'General Calculation'!$F$21,IF(MONTH(B23)=3,'General Calculation'!$G$21,IF(MONTH(B23)=4,'General Calculation'!$H$21,IF(MONTH(B23)=5,'General Calculation'!$I$21,IF(MONTH(B23)=6,'General Calculation'!$J$21,IF(MONTH(B23)=7,'General Calculation'!$K$21,IF(MONTH(B23)=8,'General Calculation'!$L$21,IF(MONTH(B23)=9,'General Calculation'!$M$21,IF(MONTH(B23)=10,'General Calculation'!$N$21,IF(MONTH(B23)=11,'General Calculation'!$O$21,IF(MONTH(B23)=12,'General Calculation'!$P$21,"")))))))))))) -> 4.68 | E23: =IF(C23="Initial Stage",'Calculation Sheet Crop 1'!$M$6,IF(C23="Crop Development Phase",'Calculation Sheet Crop 1'!$M$7,IF(C23="Mid Season",'Calculation Sheet Crop 1'!$M$8,IF(C23="Late Season Stage",'Calculation Sheet Crop 1'!$M$9,"")))) -> 0.75 | F23: 3.51 | P23: 3.51 | Q23: 0 | R23: 0 | S23: 0 | T23: 0 | U23: 0 | V23: 0 | W23: 0 | X23: 0 | Y23: 0 | Z23: 0 | AA23: 0
B24: 2017-01-18 | C24: =IF(AND(B24>='Calculation Sheet Crop 1'!$K$6,B24<='Calculation Sheet Crop 1'!$L$6),"Initial Stage",IF(AND(B24+1>'Calculation Sheet Crop 1'!$K$7,B24<='Calculation Sheet Crop 1'!$L$7),"Crop Development Phase",IF(AND(B24+1>'Calculation Sheet Crop 1'!$K$8,B24<'Calculation Sheet Crop 1'!$L$8+1),"Mid Season",IF(AND(B24+1>'Calculation Sheet Crop 1'!$K$9,B24-1<'Calculation Sheet Crop 1'!$L$9),"Late Season Stage","")))) -> Crop Development Phase | D24: =IF(MONTH(B24)=1,'General Calculation'!$E$21,IF(MONTH(B24)=2,'General Calculation'!$F$21,IF(MONTH(B24)=3,'General Calculation'!$G$21,IF(MONTH(B24)=4,'General Calculation'!$H$21,IF(MONTH(B24)=5,'General Calculation'!$I$21,IF(MONTH(B24)=6,'General Calculation'!$J$21,IF(MONTH(B24)=7,'General Calculation'!$K$21,IF(MONTH(B24)=8,'General Calculation'!$L$21,IF(MONTH(B24)=9,'General Calculation'!$M$21,IF(MONTH(B24)=10,'General Calculation'!$N$21,IF(MONTH(B24)=11,'General Calculation'!$O$21,IF(MONTH(B24)=12,'General Calculation'!$P$21,"")))))))))))) -> 4.68 | E24: =IF(C24="Initial Stage",'Calculation Sheet Crop 1'!$M$6,IF(C24="Crop Development Phase",'Calculation Sheet Crop 1'!$M$7,IF(C24="Mid Season",'Calculation Sheet Crop 1'!$M$8,IF(C24="Late Season Stage",'Calculation Sheet Crop 1'!$M$9,"")))) -> 0.75 | F24: 3.51 | P24: 3.51 | Q24: 0 | R24: 0 | S24: 0 | T24: 0 | U24: 0 | V24: 0 | W24: 0 | X24: 0 | Y24: 0 | Z24: 0 | AA24: 0
B25: 2017-01-19 | C25: =IF(AND(B25>='Calculation Sheet Crop 1'!$K$6,B25<='Calculation Sheet Crop 1'!$L$6),"Initial Stage",IF(AND(B25+1>'Calculation Sheet Crop 1'!$K$7,B25<='Calculation Sheet Crop 1'!$L$7),"Crop Development Phase",IF(AND(B25+1>'Calculation Sheet Crop 1'!$K$8,B25<'Calculation Sheet Crop 1'!$L$8+1),"Mid Season",IF(AND(B25+1>'Calculation Sheet Crop 1'!$K$9,B25-1<'Calculation Sheet Crop 1'!$L$9),"Late Season Stage","")))) -> Crop Development Phase | D25: =IF(MONTH(B25)=1,'General Calculation'!$E$21,IF(MONTH(B25)=2,'General Calculation'!$F$21,IF(MONTH(B25)=3,'General Calculation'!$G$21,IF(MONTH(B25)=4,'General Calculation'!$H$21,IF(MONTH(B25)=5,'General Calculation'!$I$21,IF(MONTH(B25)=6,'General Calculation'!$J$21,IF(MONTH(B25)=7,'General Calculation'!$K$21,IF(MONTH(B25)=8,'General Calculation'!$L$21,IF(MONTH(B25)=9,'General Calculation'!$M$21,IF(MONTH(B25)=10,'General Calculation'!$N$21,IF(MONTH(B25)=11,'General Calculation'!$O$21,IF(MONTH(B25)=12,'General Calculation'!$P$21,"")))))))))))) -> 4.68 | E25: =IF(C25="Initial Stage",'Calculation Sheet Crop 1'!$M$6,IF(C25="Crop Development Phase",'Calculation Sheet Crop 1'!$M$7,IF(C25="Mid Season",'Calculation Sheet Crop 1'!$M$8,IF(C25="Late Season Stage",'Calculation Sheet Crop 1'!$M$9,"")))) -> 0.75 | F25: 3.51 | P25: 3.51 | Q25: 0 | R25: 0 | S25: 0 | T25: 0 | U25: 0 | V25: 0 | W25: 0 | X25: 0 | Y25: 0 | Z25: 0 | AA25: 0
B26: 2017-01-20 | C26: =IF(AND(B26>='Calculation Sheet Crop 1'!$K$6,B26<='Calculation Sheet Crop 1'!$L$6),"Initial Stage",IF(AND(B26+1>'Calculation Sheet Crop 1'!$K$7,B26<='Calculation Sheet Crop 1'!$L$7),"Crop Development Phase",IF(AND(B26+1>'Calculation Sheet Crop 1'!$K$8,B26<'Calculation Sheet Crop 1'!$L$8+1),"Mid Season",IF(AND(B26+1>'Calculation Sheet Crop 1'!$K$9,B26-1<'Calculation Sheet Crop 1'!$L$9),"Late Season Stage","")))) -> Crop Development Phase | D26: =IF(MONTH(B26)=1,'General Calculation'!$E$21,IF(MONTH(B26)=2,'General Calculation'!$F$21,IF(MONTH(B26)=3,'General Calculation'!$G$21,IF(MONTH(B26)=4,'General Calculation'!$H$21,IF(MONTH(B26)=5,'General Calculation'!$I$21,IF(MONTH(B26)=6,'General Calculation'!$J$21,IF(MONTH(B26)=7,'General Calculation'!$K$21,IF(MONTH(B26)=8,'General Calculation'!$L$21,IF(MONTH(B26)=9,'General Calculation'!$M$21,IF(MONTH(B26)=10,'General Calculation'!$N$21,IF(MONTH(B26)=11,'General Calculation'!$O$21,IF(MONTH(B26)=12,'General Calculation'!$P$21,"")))))))))))) -> 4.68 | E26: =IF(C26="Initial Stage",'Calculation Sheet Crop 1'!$M$6,IF(C26="Crop Development Phase",'Calculation Sheet Crop 1'!$M$7,IF(C26="Mid Season",'Calculation Sheet Crop 1'!$M$8,IF(C26="Late Season Stage",'Calculation Sheet Crop 1'!$M$9,"")))) -> 0.75 | F26: 3.51 | P26: 3.51 | Q26: 0 | R26: 0 | S26: 0 | T26: 0 | U26: 0 | V26: 0 | W26: 0 | X26: 0 | Y26: 0 | Z26: 0 | AA26: 0
B27: 2017-01-21 | C27: =IF(AND(B27>='Calculation Sheet Crop 1'!$K$6,B27<='Calculation Sheet Crop 1'!$L$6),"Initial Stage",IF(AND(B27+1>'Calculation Sheet Crop 1'!$K$7,B27<='Calculation Sheet Crop 1'!$L$7),"Crop Development Phase",IF(AND(B27+1>'Calculation Sheet Crop 1'!$K$8,B27<'Calculation Sheet Crop 1'!$L$8+1),"Mid Season",IF(AND(B27+1>'Calculation Sheet Crop 1'!$K$9,B27-1<'Calculation Sheet Crop 1'!$L$9),"Late Season Stage","")))) -> Crop Development Phase | D27: =IF(MONTH(B27)=1,'General Calculation'!$E$21,IF(MONTH(B27)=2,'General Calculation'!$F$21,IF(MONTH(B27)=3,'General Calculation'!$G$21,IF(MONTH(B27)=4,'General Calculation'!$H$21,IF(MONTH(B27)=5,'General Calculation'!$I$21,IF(MONTH(B27)=6,'General Calculation'!$J$21,IF(MONTH(B27)=7,'General Calculation'!$K$21,IF(MONTH(B27)=8,'General Calculation'!$L$21,IF(MONTH(B27)=9,'General Calculation'!$M$21,IF(MONTH(B27)=10,'General Calculation'!$N$21,IF(MONTH(B27)=11,'General Calculation'!$O$21,IF(MONTH(B27)=12,'General Calculation'!$P$21,"")))))))))))) -> 4.68 | E27: =IF(C27="Initial Stage",'Calculation Sheet Crop 1'!$M$6,IF(C27="Crop Development Phase",'Calculation Sheet Crop 1'!$M$7,IF(C27="Mid Season",'Calculation Sheet Crop 1'!$M$8,IF(C27="Late Season Stage",'Calculation Sheet Crop 1'!$M$9,"")))) -> 0.75 | F27: 3.51 | P27: 3.51 | Q27: 0 | R27: 0 | S27: 0 | T27: 0 | U27: 0 | V27: 0 | W27: 0 | X27: 0 | Y27: 0 | Z27: 0 | AA27: 0
B28: 2017-01-22 | C28: =IF(AND(B28>='Calculation Sheet Crop 1'!$K$6,B28<='Calculation Sheet Crop 1'!$L$6),"Initial Stage",IF(AND(B28+1>'Calculation Sheet Crop 1'!$K$7,B28<='Calculation Sheet Crop 1'!$L$7),"Crop Development Phase",IF(AND(B28+1>'Calculation Sheet Crop 1'!$K$8,B28<'Calculation Sheet Crop 1'!$L$8+1),"Mid Season",IF(AND(B28+1>'Calculation Sheet Crop 1'!$K$9,B28-1<'Calculation Sheet Crop 1'!$L$9),"Late Season Stage","")))) -> Crop Development Phase | D28: =IF(MONTH(B28)=1,'General Calculation'!$E$21,IF(MONTH(B28)=2,'General Calculation'!$F$21,IF(MONTH(B28)=3,'General Calculation'!$G$21,IF(MONTH(B28)=4,'General Calculation'!$H$21,IF(MONTH(B28)=5,'General Calculation'!$I$21,IF(MONTH(B28)=6,'General Calculation'!$J$21,IF(MONTH(B28)=7,'General Calculation'!$K$21,IF(MONTH(B28)=8,'General Calculation'!$L$21,IF(MONTH(B28)=9,'General Calculation'!$M$21,IF(MONTH(B28)=10,'General Calculation'!$N$21,IF(MONTH(B28)=11,'General Calculation'!$O$21,IF(MONTH(B28)=12,'General Calculation'!$P$21,"")))))))))))) -> 4.68 | E28: =IF(C28="Initial Stage",'Calculation Sheet Crop 1'!$M$6,IF(C28="Crop Development Phase",'Calculation Sheet Crop 1'!$M$7,IF(C28="Mid Season",'Calculation Sheet Crop 1'!$M$8,IF(C28="Late Season Stage",'Calculation Sheet Crop 1'!$M$9,"")))) -> 0.75 | F28: 3.51 | P28: 3.51 | Q28: 0 | R28: 0 | S28: 0 | T28: 0 | U28: 0 | V28: 0 | W28: 0 | X28: 0 | Y28: 0 | Z28: 0 | AA28: 0
B29: 2017-01-23 | C29: =IF(AND(B29>='Calculation Sheet Crop 1'!$K$6,B29<='Calculation Sheet Crop 1'!$L$6),"Initial Stage",IF(AND(B29+1>'Calculation Sheet Crop 1'!$K$7,B29<='Calculation Sheet Crop 1'!$L$7),"Crop Development Phase",IF(AND(B29+1>'Calculation Sheet Crop 1'!$K$8,B29<'Calculation Sheet Crop 1'!$L$8+1),"Mid Season",IF(AND(B29+1>'Calculation Sheet Crop 1'!$K$9,B29-1<'Calculation Sheet Crop 1'!$L$9),"Late Season Stage","")))) -> Crop Development Phase | D29: =IF(MONTH(B29)=1,'General Calculation'!$E$21,IF(MONTH(B29)=2,'General Calculation'!$F$21,IF(MONTH(B29)=3,'General Calculation'!$G$21,IF(MONTH(B29)=4,'General Calculation'!$H$21,IF(MONTH(B29)=5,'General Calculation'!$I$21,IF(MONTH(B29)=6,'General Calculation'!$J$21,IF(MONTH(B29)=7,'General Calculation'!$K$21,IF(MONTH(B29)=8,'General Calculation'!$L$21,IF(MONTH(B29)=9,'General Calculation'!$M$21,IF(MONTH(B29)=10,'General Calculation'!$N$21,IF(MONTH(B29)=11,'General Calculation'!$O$21,IF(MONTH(B29)=12,'General Calculation'!$P$21,"")))))))))))) -> 4.68 | E29: =IF(C29="Initial Stage",'Calculation Sheet Crop 1'!$M$6,IF(C29="Crop Development Phase",'Calculation Sheet Crop 1'!$M$7,IF(C29="Mid Season",'Calculation Sheet Crop 1'!$M$8,IF(C29="Late Season Stage",'Calculation Sheet Crop 1'!$M$9,"")))) -> 0.75 | F29: 3.51 | P29: 3.51 | Q29: 0 | R29: 0 | S29: 0 | T29: 0 | U29: 0 | V29: 0 | W29: 0 | X29: 0 | Y29: 0 | Z29: 0 | AA29: 0
B30: 2017-01-24 | C30: =IF(AND(B30>='Calculation Sheet Crop 1'!$K$6,B30<='Calculation Sheet Crop 1'!$L$6),"Initial Stage",IF(AND(B30+1>'Calculation Sheet Crop 1'!$K$7,B30<='Calculation Sheet Crop 1'!$L$7),"Crop Development Phase",IF(AND(B30+1>'Calculation Sheet Crop 1'!$K$8,B30<'Calculation Sheet Crop 1'!$L$8+1),"Mid Season",IF(AND(B30+1>'Calculation Sheet Crop 1'!$K$9,B30-1<'Calculation Sheet Crop 1'!$L$9),"Late Season Stage","")))) -> Crop Development Phase | D30: =IF(MONTH(B30)=1,'General Calculation'!$E$21,IF(MONTH(B30)=2,'General Calculation'!$F$21,IF(MONTH(B30)=3,'General Calculation'!$G$21,IF(MONTH(B30)=4,'General Calculation'!$H$21,IF(MONTH(B30)=5,'General Calculation'!$I$21,IF(MONTH(B30)=6,'General Calculation'!$J$21,IF(MONTH(B30)=7,'General Calculation'!$K$21,IF(MONTH(B30)=8,'General Calculation'!$L$21,IF(MONTH(B30)=9,'General Calculation'!$M$21,IF(MONTH(B30)=10,'General Calculation'!$N$21,IF(MONTH(B30)=11,'General Calculation'!$O$21,IF(MONTH(B30)=12,'General Calculation'!$P$21,"")))))))))))) -> 4.68 | E30: =IF(C30="Initial Stage",'Calculation Sheet Crop 1'!$M$6,IF(C30="Crop Development Phase",'Calculation Sheet Crop 1'!$M$7,IF(C30="Mid Season",'Calculation Sheet Crop 1'!$M$8,IF(C30="Late Season Stage",'Calculation Sheet Crop 1'!$M$9,"")))) -> 0.75 | F30: 3.51 | P30: 3.51 | Q30: 0 | R30: 0 | S30: 0 | T30: 0 | U30: 0 | V30: 0 | W30: 0 | X30: 0 | Y30: 0 | Z30: 0 | AA30: 0
B31: 2017-01-25 | C31: =IF(AND(B31>='Calculation Sheet Crop 1'!$K$6,B31<='Calculation Sheet Crop 1'!$L$6),"Initial Stage",IF(AND(B31+1>'Calculation Sheet Crop 1'!$K$7,B31<='Calculation Sheet Crop 1'!$L$7),"Crop Development Phase",IF(AND(B31+1>'Calculation Sheet Crop 1'!$K$8,B31<'Calculation Sheet Crop 1'!$L$8+1),"Mid Season",IF(AND(B31+1>'Calculation Sheet Crop 1'!$K$9,B31-1<'Calculation Sheet Crop 1'!$L$9),"Late Season Stage","")))) -> Crop Development Phase | D31: =IF(MONTH(B31)=1,'General Calculation'!$E$21,IF(MONTH(B31)=2,'General Calculation'!$F$21,IF(MONTH(B31)=3,'General Calculation'!$G$21,IF(MONTH(B31)=4,'General Calculation'!$H$21,IF(MONTH(B31)=5,'General Calculation'!$I$21,IF(MONTH(B31)=6,'General Calculation'!$J$21,IF(MONTH(B31)=7,'General Calculation'!$K$21,IF(MONTH(B31)=8,'General Calculation'!$L$21,IF(MONTH(B31)=9,'General Calculation'!$M$21,IF(MONTH(B31)=10,'General Calculation'!$N$21,IF(MONTH(B31)=11,'General Calculation'!$O$21,IF(MONTH(B31)=12,'General Calculation'!$P$21,"")))))))))))) -> 4.68 | E31: =IF(C31="Initial Stage",'Calculation Sheet Crop 1'!$M$6,IF(C31="Crop Development Phase",'Calculation Sheet Crop 1'!$M$7,IF(C31="Mid Season",'Calculation Sheet Crop 1'!$M$8,IF(C31="Late Season Stage",'Calculation Sheet Crop 1'!$M$9,"")))) -> 0.75 | F31: 3.51 | P31: 3.51 | Q31: 0 | R31: 0 | S31: 0 | T31: 0 | U31: 0 | V31: 0 | W31: 0 | X31: 0 | Y31: 0 | Z31: 0 | AA31: 0
B32: 2017-01-26 | C32: =IF(AND(B32>='Calculation Sheet Crop 1'!$K$6,B32<='Calculation Sheet Crop 1'!$L$6),"Initial Stage",IF(AND(B32+1>'Calculation Sheet Crop 1'!$K$7,B32<='Calculation Sheet Crop 1'!$L$7),"Crop Development Phase",IF(AND(B32+1>'Calculation Sheet Crop 1'!$K$8,B32<'Calculation Sheet Crop 1'!$L$8+1),"Mid Season",IF(AND(B32+1>'Calculation Sheet Crop 1'!$K$9,B32-1<'Calculation Sheet Crop 1'!$L$9),"Late Season Stage","")))) -> Crop Development Phase | D32: =IF(MONTH(B32)=1,'General Calculation'!$E$21,IF(MONTH(B32)=2,'General Calculation'!$F$21,IF(MONTH(B32)=3,'General Calculation'!$G$21,IF(MONTH(B32)=4,'General Calculation'!$H$21,IF(MONTH(B32)=5,'General Calculation'!$I$21,IF(MONTH(B32)=6,'General Calculation'!$J$21,IF(MONTH(B32)=7,'General Calculation'!$K$21,IF(MONTH(B32)=8,'General Calculation'!$L$21,IF(MONTH(B32)=9,'General Calculation'!$M$21,IF(MONTH(B32)=10,'General Calculation'!$N$21,IF(MONTH(B32)=11,'General Calculation'!$O$21,IF(MONTH(B32)=12,'General Calculation'!$P$21,"")))))))))))) -> 4.68 | E32: =IF(C32="Initial Stage",'Calculation Sheet Crop 1'!$M$6,IF(C32="Crop Development Phase",'Calculation Sheet Crop 1'!$M$7,IF(C32="Mid Season",'Calculation Sheet Crop 1'!$M$8,IF(C32="Late Season Stage",'Calculation Sheet Crop 1'!$M$9,"")))) -> 0.75 | F32: 3.51 | P32: 3.51 | Q32: 0 | R32: 0 | S32: 0 | T32: 0 | U32: 0 | V32: 0 | W32: 0 | X32: 0 | Y32: 0 | Z32: 0 | AA32: 0
B33: 2017-01-27 | C33: =IF(AND(B33>='Calculation Sheet Crop 1'!$K$6,B33<='Calculation Sheet Crop 1'!$L$6),"Initial Stage",IF(AND(B33+1>'Calculation Sheet Crop 1'!$K$7,B33<='Calculation Sheet Crop 1'!$L$7),"Crop Development Phase",IF(AND(B33+1>'Calculation Sheet Crop 1'!$K$8,B33<'Calculation Sheet Crop 1'!$L$8+1),"Mid Season",IF(AND(B33+1>'Calculation Sheet Crop 1'!$K$9,B33-1<'Calculation Sheet Crop 1'!$L$9),"Late Season Stage","")))) -> Crop Development Phase | D33: =IF(MONTH(B33)=1,'General Calculation'!$E$21,IF(MONTH(B33)=2,'General Calculation'!$F$21,IF(MONTH(B33)=3,'General Calculation'!$G$21,IF(MONTH(B33)=4,'General Calculation'!$H$21,IF(MONTH(B33)=5,'General Calculation'!$I$21,IF(MONTH(B33)=6,'General Calculation'!$J$21,IF(MONTH(B33)=7,'General Calculation'!$K$21,IF(MONTH(B33)=8,'General Calculation'!$L$21,IF(MONTH(B33)=9,'General Calculation'!$M$21,IF(MONTH(B33)=10,'General Calculation'!$N$21,IF(MONTH(B33)=11,'General Calculation'!$O$21,IF(MONTH(B33)=12,'General Calculation'!$P$21,"")))))))))))) -> 4.68 | E33: =IF(C33="Initial Stage",'Calculation Sheet Crop 1'!$M$6,IF(C33="Crop Development Phase",'Calculation Sheet Crop 1'!$M$7,IF(C33="Mid Season",'Calculation Sheet Crop 1'!$M$8,IF(C33="Late Season Stage",'Calculation Sheet Crop 1'!$M$9,"")))) -> 0.75 | F33: 3.51 | P33: 3.51 | Q33: 0 | R33: 0 | S33: 0 | T33: 0 | U33: 0 | V33: 0 | W33: 0 | X33: 0 | Y33: 0 | Z33: 0 | AA33: 0
B34: 2017-01-28 | C34: =IF(AND(B34>='Calculation Sheet Crop 1'!$K$6,B34<='Calculation Sheet Crop 1'!$L$6),"Initial Stage",IF(AND(B34+1>'Calculation Sheet Crop 1'!$K$7,B34<='Calculation Sheet Crop 1'!$L$7),"Crop Development Phase",IF(AND(B34+1>'Calculation Sheet Crop 1'!$K$8,B34<'Calculation Sheet Crop 1'!$L$8+1),"Mid Season",IF(AND(B34+1>'Calculation Sheet Crop 1'!$K$9,B34-1<'Calculation Sheet Crop 1'!$L$9),"Late Season Stage","")))) -> Crop Development Phase | D34: =IF(MONTH(B34)=1,'General Calculation'!$E$21,IF(MONTH(B34)=2,'General Calculation'!$F$21,IF(MONTH(B34)=3,'General Calculation'!$G$21,IF(MONTH(B34)=4,'General Calculation'!$H$21,IF(MONTH(B34)=5,'General Calculation'!$I$21,IF(MONTH(B34)=6,'General Calculation'!$J$21,IF(MONTH(B34)=7,'General Calculation'!$K$21,IF(MONTH(B34)=8,'General Calculation'!$L$21,IF(MONTH(B34)=9,'General Calculation'!$M$21,IF(MONTH(B34)=10,'General Calculation'!$N$21,IF(MONTH(B34)=11,'General Calculation'!$O$21,IF(MONTH(B34)=12,'General Calculation'!$P$21,"")))))))))))) -> 4.68 | E34: =IF(C34="Initial Stage",'Calculation Sheet Crop 1'!$M$6,IF(C34="Crop Development Phase",'Calculation Sheet Crop 1'!$M$7,IF(C34="Mid Season",'Calculation Sheet Crop 1'!$M$8,IF(C34="Late Season Stage",'Calculation Sheet Crop 1'!$M$9,"")))) -> 0.75 | F34: 3.51 | P34: 3.51 | Q34: 0 | R34: 0 | S34: 0 | T34: 0 | U34: 0 | V34: 0 | W34: 0 | X34: 0 | Y34: 0 | Z34: 0 | AA34: 0
B35: 2017-01-29 | C35: =IF(AND(B35>='Calculation Sheet Crop 1'!$K$6,B35<='Calculation Sheet Crop 1'!$L$6),"Initial Stage",IF(AND(B35+1>'Calculation Sheet Crop 1'!$K$7,B35<='Calculation Sheet Crop 1'!$L$7),"Crop Development Phase",IF(AND(B35+1>'Calculation Sheet Crop 1'!$K$8,B35<'Calculation Sheet Crop 1'!$L$8+1),"Mid Season",IF(AND(B35+1>'Calculation Sheet Crop 1'!$K$9,B35-1<'Calculation Sheet Crop 1'!$L$9),"Late Season Stage","")))) -> Crop Development Phase | D35: =IF(MONTH(B35)=1,'General Calculation'!$E$21,IF(MONTH(B35)=2,'General Calculation'!$F$21,IF(MONTH(B35)=3,'General Calculation'!$G$21,IF(MONTH(B35)=4,'General Calculation'!$H$21,IF(MONTH(B35)=5,'General Calculation'!$I$21,IF(MONTH(B35)=6,'General Calculation'!$J$21,IF(MONTH(B35)=7,'General Calculation'!$K$21,IF(MONTH(B35)=8,'General Calculation'!$L$21,IF(MONTH(B35)=9,'General Calculation'!$M$21,IF(MONTH(B35)=10,'General Calculation'!$N$21,IF(MONTH(B35)=11,'General Calculation'!$O$21,IF(MONTH(B35)=12,'General Calculation'!$P$21,"")))))))))))) -> 4.68 | E35: =IF(C35="Initial Stage",'Calculation Sheet Crop 1'!$M$6,IF(C35="Crop Development Phase",'Calculation Sheet Crop 1'!$M$7,IF(C35="Mid Season",'Calculation Sheet Crop 1'!$M$8,IF(C35="Late Season Stage",'Calculation Sheet Crop 1'!$M$9,"")))) -> 0.75 | F35: 3.51 | P35: 3.51 | Q35: 0 | R35: 0 | S35: 0 | T35: 0 | U35: 0 | V35: 0 | W35: 0 | X35: 0 | Y35: 0 | Z35: 0 | AA35: 0
B36: 2017-01-30 | C36: =IF(AND(B36>='Calculation Sheet Crop 1'!$K$6,B36<='Calculation Sheet Crop 1'!$L$6),"Initial Stage",IF(AND(B36+1>'Calculation Sheet Crop 1'!$K$7,B36<='Calculation Sheet Crop 1'!$L$7),"Crop Development Phase",IF(AND(B36+1>'Calculation Sheet Crop 1'!$K$8,B36<'Calculation Sheet Crop 1'!$L$8+1),"Mid Season",IF(AND(B36+1>'Calculation Sheet Crop 1'!$K$9,B36-1<'Calculation Sheet Crop 1'!$L$9),"Late Season Stage","")))) -> Crop Development Phase | D36: =IF(MONTH(B36)=1,'General Calculation'!$E$21,IF(MONTH(B36)=2,'General Calculation'!$F$21,IF(MONTH(B36)=3,'General Calculation'!$G$21,IF(MONTH(B36)=4,'General Calculation'!$H$21,IF(MONTH(B36)=5,'General Calculation'!$I$21,IF(MONTH(B36)=6,'General Calculation'!$J$21,IF(MONTH(B36)=7,'General Calculation'!$K$21,IF(MONTH(B36)=8,'General Calculation'!$L$21,IF(MONTH(B36)=9,'General Calculation'!$M$21,IF(MONTH(B36)=10,'General Calculation'!$N$21,IF(MONTH(B36)=11,'General Calculation'!$O$21,IF(MONTH(B36)=12,'General Calculation'!$P$21,"")))))))))))) -> 4.68 | E36: =IF(C36="Initial Stage",'Calculation Sheet Crop 1'!$M$6,IF(C36="Crop Development Phase",'Calculation Sheet Crop 1'!$M$7,IF(C36="Mid Season",'Calculation Sheet Crop 1'!$M$8,IF(C36="Late Season Stage",'Calculation Sheet Crop 1'!$M$9,"")))) -> 0.75 | F36: 3.51 | P36: 3.51 | Q36: 0 | R36: 0 | S36: 0 | T36: 0 | U36: 0 | V36: 0 | W36: 0 | X36: 0 | Y36: 0 | Z36: 0 | AA36: 0
B37: 2017-01-31 | C37: =IF(AND(B37>='Calculation Sheet Crop 1'!$K$6,B37<='Calculation Sheet Crop 1'!$L$6),"Initial Stage",IF(AND(B37+1>'Calculation Sheet Crop 1'!$K$7,B37<='Calculation Sheet Crop 1'!$L$7),"Crop Development Phase",IF(AND(B37+1>'Calculation Sheet Crop 1'!$K$8,B37<'Calculation Sheet Crop 1'!$L$8+1),"Mid Season",IF(AND(B37+1>'Calculation Sheet Crop 1'!$K$9,B37-1<'Calculation Sheet Crop 1'!$L$9),"Late Season Stage","")))) -> Crop Development Phase | D37: =IF(MONTH(B37)=1,'General Calculation'!$E$21,IF(MONTH(B37)=2,'General Calculation'!$F$21,IF(MONTH(B37)=3,'General Calculation'!$G$21,IF(MONTH(B37)=4,'General Calculation'!$H$21,IF(MONTH(B37)=5,'General Calculation'!$I$21,IF(MONTH(B37)=6,'General Calculation'!$J$21,IF(MONTH(B37)=7,'General Calculation'!$K$21,IF(MONTH(B37)=8,'General Calculation'!$L$21,IF(MONTH(B37)=9,'General Calculation'!$M$21,IF(MONTH(B37)=10,'General Calculation'!$N$21,IF(MONTH(B37)=11,'General Calculation'!$O$21,IF(MONTH(B37)=12,'General Calculation'!$P$21,"")))))))))))) -> 4.68 | E37: =IF(C37="Initial Stage",'Calculation Sheet Crop 1'!$M$6,IF(C37="Crop Development Phase",'Calculation Sheet Crop 1'!$M$7,IF(C37="Mid Season",'Calculation Sheet Crop 1'!$M$8,IF(C37="Late Season Stage",'Calculation Sheet Crop 1'!$M$9,"")))) -> 0.75 | F37: 3.51 | P37: 3.51 | Q37: 0 | R37: 0 | S37: 0 | T37: 0 | U37: 0 | V37: 0 | W37: 0 | X37: 0 | Y37: 0 | Z37: 0 | AA37: 0
B38: 2017-02-01 | C38: =IF(AND(B38>='Calculation Sheet Crop 1'!$K$6,B38<='Calculation Sheet Crop 1'!$L$6),"Initial Stage",IF(AND(B38+1>'Calculation Sheet Crop 1'!$K$7,B38<='Calculation Sheet Crop 1'!$L$7),"Crop Development Phase",IF(AND(B38+1>'Calculation Sheet Crop 1'!$K$8,B38<'Calculation Sheet Crop 1'!$L$8+1),"Mid Season",IF(AND(B38+1>'Calculation Sheet Crop 1'!$K$9,B38-1<'Calculation Sheet Crop 1'!$L$9),"Late Season Stage","")))) -> Crop Development Phase | D38: =IF(MONTH(B38)=1,'General Calculation'!$E$21,IF(MONTH(B38)=2,'General Calculation'!$F$21,IF(MONTH(B38)=3,'General Calculation'!$G$21,IF(MONTH(B38)=4,'General Calculation'!$H$21,IF(MONTH(B38)=5,'General Calculation'!$I$21,IF(MONTH(B38)=6,'General Calculation'!$J$21,IF(MONTH(B38)=7,'General Calculation'!$K$21,IF(MONTH(B38)=8,'General Calculation'!$L$21,IF(MONTH(B38)=9,'General Calculation'!$M$21,IF(MONTH(B38)=10,'General Calculation'!$N$21,IF(MONTH(B38)=11,'General Calculation'!$O$21,IF(MONTH(B38)=12,'General Calculation'!$P$21,"")))))))))))) -> 4.99 | E38: =IF(C38="Initial Stage",'Calculation Sheet Crop 1'!$M$6,IF(C38="Crop Development Phase",'Calculation Sheet Crop 1'!$M$7,IF(C38="Mid Season",'Calculation Sheet Crop 1'!$M$8,IF(C38="Late Season Stage",'Calculation Sheet Crop 1'!$M$9,"")))) -> 0.75 | F38: 3.7425 | P38: 0 | Q38: 3.7425 | R38: 0 | S38: 0 | T38: 0 | U38: 0 | V38: 0 | W38: 0 | X38: 0 | Y38: 0 | Z38: 0 | AA38: 0
B39: 2017-02-02 | C39: =IF(AND(B39>='Calculation Sheet Crop 1'!$K$6,B39<='Calculation Sheet Crop 1'!$L$6),"Initial Stage",IF(AND(B39+1>'Calculation Sheet Crop 1'!$K$7,B39<='Calculation Sheet Crop 1'!$L$7),"Crop Development Phase",IF(AND(B39+1>'Calculation Sheet Crop 1'!$K$8,B39<'Calculation Sheet Crop 1'!$L$8+1),"Mid Season",IF(AND(B39+1>'Calculation Sheet Crop 1'!$K$9,B39-1<'Calculation Sheet Crop 1'!$L$9),"Late Season Stage","")))) -> Crop Development Phase | D39: =IF(MONTH(B39)=1,'General Calculation'!$E$21,IF(MONTH(B39)=2,'General Calculation'!$F$21,IF(MONTH(B39)=3,'General Calculation'!$G$21,IF(MONTH(B39)=4,'General Calculation'!$H$21,IF(MONTH(B39)=5,'General Calculation'!$I$21,IF(MONTH(B39)=6,'General Calculation'!$J$21,IF(MONTH(B39)=7,'General Calculation'!$K$21,IF(MONTH(B39)=8,'General Calculation'!$L$21,IF(MONTH(B39)=9,'General Calculation'!$M$21,IF(MONTH(B39)=10,'General Calculation'!$N$21,IF(MONTH(B39)=11,'General Calculation'!$O$21,IF(MONTH(B39)=12,'General Calculation'!$P$21,"")))))))))))) -> 4.99 | E39: =IF(C39="Initial Stage",'Calculation Sheet Crop 1'!$M$6,IF(C39="Crop Development Phase",'Calculation Sheet Crop 1'!$M$7,IF(C39="Mid Season",'Calculation Sheet Crop 1'!$M$8,IF(C39="Late Season Stage",'Calculation Sheet Crop 1'!$M$9,"")))) -> 0.75 | F39: 3.7425 | P39: 0 | Q39: 3.7425 | R39: 0 | S39: 0 | T39: 0 | U39: 0 | V39: 0 | W39: 0 | X39: 0 | Y39: 0 | Z39: 0 | AA39: 0
B40: 2017-02-03 | C40: =IF(AND(B40>='Calculation Sheet Crop 1'!$K$6,B40<='Calculation Sheet Crop 1'!$L$6),"Initial Stage",IF(AND(B40+1>'Calculation Sheet Crop 1'!$K$7,B40<='Calculation Sheet Crop 1'!$L$7),"Crop Development Phase",IF(AND(B40+1>'Calculation Sheet Crop 1'!$K$8,B40<'Calculation Sheet Crop 1'!$L$8+1),"Mid Season",IF(AND(B40+1>'Calculation Sheet Crop 1'!$K$9,B40-1<'Calculation Sheet Crop 1'!$L$9),"Late Season Stage","")))) -> Crop Development Phase | D40: =IF(MONTH(B40)=1,'General Calculation'!$E$21,IF(MONTH(B40)=2,'General Calculation'!$F$21,IF(MONTH(B40)=3,'General Calculation'!$G$21,IF(MONTH(B40)=4,'General Calculation'!$H$21,IF(MONTH(B40)=5,'General Calculation'!$I$21,IF(MONTH(B40)=6,'General Calculation'!$J$21,IF(MONTH(B40)=7,'General Calculation'!$K$21,IF(MONTH(B40)=8,'General Calculation'!$L$21,IF(MONTH(B40)=9,'General Calculation'!$M$21,IF(MONTH(B40)=10,'General Calculation'!$N$21,IF(MONTH(B40)=11,'General Calculation'!$O$21,IF(MONTH(B40)=12,'General Calculation'!$P$21,"")))))))))))) -> 4.99 | E40: =IF(C40="Initial Stage",'Calculation Sheet Crop 1'!$M$6,IF(C40="Crop Development Phase",'Calculation Sheet Crop 1'!$M$7,IF(C40="Mid Season",'Calculation Sheet Crop 1'!$M$8,IF(C40="Late Season Stage",'Calculation Sheet Crop 1'!$M$9,"")))) -> 0.75 | F40: 3.7425 | P40: 0 | Q40: 3.7425 | R40: 0 | S40: 0 | T40: 0 | U40: 0 | V40: 0 | W40: 0 | X40: 0 | Y40: 0 | Z40: 0 | AA40: 0
B41: 2017-02-04 | C41: =IF(AND(B41>='Calculation Sheet Crop 1'!$K$6,B41<='Calculation Sheet Crop 1'!$L$6),"Initial Stage",IF(AND(B41+1>'Calculation Sheet Crop 1'!$K$7,B41<='Calculation Sheet Crop 1'!$L$7),"Crop Development Phase",IF(AND(B41+1>'Calculation Sheet Crop 1'!$K$8,B41<'Calculation Sheet Crop 1'!$L$8+1),"Mid Season",IF(AND(B41+1>'Calculation Sheet Crop 1'!$K$9,B41-1<'Calculation Sheet Crop 1'!$L$9),"Late Season Stage","")))) -> Crop Development Phase | D41: =IF(MONTH(B41)=1,'General Calculation'!$E$21,IF(MONTH(B41)=2,'General Calculation'!$F$21,IF(MONTH(B41)=3,'General Calculation'!$G$21,IF(MONTH(B41)=4,'General Calculation'!$H$21,IF(MONTH(B41)=5,'General Calculation'!$I$21,IF(MONTH(B41)=6,'General Calculation'!$J$21,IF(MONTH(B41)=7,'General Calculation'!$K$21,IF(MONTH(B41)=8,'General Calculation'!$L$21,IF(MONTH(B41)=9,'General Calculation'!$M$21,IF(MONTH(B41)=10,'General Calculation'!$N$21,IF(MONTH(B41)=11,'General Calculation'!$O$21,IF(MONTH(B41)=12,'General Calculation'!$P$21,"")))))))))))) -> 4.99 | E41: =IF(C41="Initial Stage",'Calculation Sheet Crop 1'!$M$6,IF(C41="Crop Development Phase",'Calculation Sheet Crop 1'!$M$7,IF(C41="Mid Season",'Calculation Sheet Crop 1'!$M$8,IF(C41="Late Season Stage",'Calculation Sheet Crop 1'!$M$9,"")))) -> 0.75 | F41: 3.7425 | P41: 0 | Q41: 3.7425 | R41: 0 | S41: 0 | T41: 0 | U41: 0 | V41: 0 | W41: 0 | X41: 0 | Y41: 0 | Z41: 0 | AA41: 0
B42: 2017-02-05 | C42: =IF(AND(B42>='Calculation Sheet Crop 1'!$K$6,B42<='Calculation Sheet Crop 1'!$L$6),"Initial Stage",IF(AND(B42+1>'Calculation Sheet Crop 1'!$K$7,B42<='Calculation Sheet Crop 1'!$L$7),"Crop Development Phase",IF(AND(B42+1>'Calculation Sheet Crop 1'!$K$8,B42<'Calculation Sheet Crop 1'!$L$8+1),"Mid Season",IF(AND(B42+1>'Calculation Sheet Crop 1'!$K$9,B42-1<'Calculation Sheet Crop 1'!$L$9),"Late Season Stage","")))) -> Crop Development Phase | D42: =IF(MONTH(B42)=1,'General Calculation'!$E$21,IF(MONTH(B42)=2,'General Calculation'!$F$21,IF(MONTH(B42)=3,'General Calculation'!$G$21,IF(MONTH(B42)=4,'General Calculation'!$H$21,IF(MONTH(B42)=5,'General Calculation'!$I$21,IF(MONTH(B42)=6,'General Calculation'!$J$21,IF(MONTH(B42)=7,'General Calculation'!$K$21,IF(MONTH(B42)=8,'General Calculation'!$L$21,IF(MONTH(B42)=9,'General Calculation'!$M$21,IF(MONTH(B42)=10,'General Calculation'!$N$21,IF(MONTH(B42)=11,'General Calculation'!$O$21,IF(MONTH(B42)=12,'General Calculation'!$P$21,"")))))))))))) -> 4.99 | E42: =IF(C42="Initial Stage",'Calculation Sheet Crop 1'!$M$6,IF(C42="Crop Development Phase",'Calculation Sheet Crop 1'!$M$7,IF(C42="Mid Season",'Calculation Sheet Crop 1'!$M$8,IF(C42="Late Season Stage",'Calculation Sheet Crop 1'!$M$9,"")))) -> 0.75 | F42: 3.7425 | P42: 0 | Q42: 3.7425 | R42: 0 | S42: 0 | T42: 0 | U42: 0 | V42: 0 | W42: 0 | X42: 0 | Y42: 0 | Z42: 0 | AA42: 0
B43: 2017-02-06 | C43: =IF(AND(B43>='Calculation Sheet Crop 1'!$K$6,B43<='Calculation Sheet Crop 1'!$L$6),"Initial Stage",IF(AND(B43+1>'Calculation Sheet Crop 1'!$K$7,B43<='Calculation Sheet Crop 1'!$L$7),"Crop Development Phase",IF(AND(B43+1>'Calculation Sheet Crop 1'!$K$8,B43<'Calculation Sheet Crop 1'!$L$8+1),"Mid Season",IF(AND(B43+1>'Calculation Sheet Crop 1'!$K$9,B43-1<'Calculation Sheet Crop 1'!$L$9),"Late Season Stage","")))) -> Crop Development Phase | D43: =IF(MONTH(B43)=1,'General Calculation'!$E$21,IF(MONTH(B43)=2,'General Calculation'!$F$21,IF(MONTH(B43)=3,'General Calculation'!$G$21,IF(MONTH(B43)=4,'General Calculation'!$H$21,IF(MONTH(B43)=5,'General Calculation'!$I$21,IF(MONTH(B43)=6,'General Calculation'!$J$21,IF(MONTH(B43)=7,'General Calculation'!$K$21,IF(MONTH(B43)=8,'General Calculation'!$L$21,IF(MONTH(B43)=9,'General Calculation'!$M$21,IF(MONTH(B43)=10,'General Calculation'!$N$21,IF(MONTH(B43)=11,'General Calculation'!$O$21,IF(MONTH(B43)=12,'General Calculation'!$P$21,"")))))))))))) -> 4.99 | E43: =IF(C43="Initial Stage",'Calculation Sheet Crop 1'!$M$6,IF(C43="Crop Development Phase",'Calculation Sheet Crop 1'!$M$7,IF(C43="Mid Season",'Calculation Sheet Crop 1'!$M$8,IF(C43="Late Season Stage",'Calculation Sheet Crop 1'!$M$9,"")))) -> 0.75 | F43: 3.7425 | P43: 0 | Q43: 3.7425 | R43: 0 | S43: 0 | T43: 0 | U43: 0 | V43: 0 | W43: 0 | X43: 0 | Y43: 0 | Z43: 0 | AA43: 0
B44: 2017-02-07 | C44: =IF(AND(B44>='Calculation Sheet Crop 1'!$K$6,B44<='Calculation Sheet Crop 1'!$L$6),"Initial Stage",IF(AND(B44+1>'Calculation Sheet Crop 1'!$K$7,B44<='Calculation Sheet Crop 1'!$L$7),"Crop Development Phase",IF(AND(B44+1>'Calculation Sheet Crop 1'!$K$8,B44<'Calculation Sheet Crop 1'!$L$8+1),"Mid Season",IF(AND(B44+1>'Calculation Sheet Crop 1'!$K$9,B44-1<'Calculation Sheet Crop 1'!$L$9),"Late Season Stage","")))) -> Crop Development Phase | D44: =IF(MONTH(B44)=1,'General Calculation'!$E$21,IF(MONTH(B44)=2,'General Calculation'!$F$21,IF(MONTH(B44)=3,'General Calculation'!$G$21,IF(MONTH(B44)=4,'General Calculation'!$H$21,IF(MONTH(B44)=5,'General Calculation'!$I$21,IF(MONTH(B44)=6,'General Calculation'!$J$21,IF(MONTH(B44)=7,'General Calculation'!$K$21,IF(MONTH(B44)=8,'General Calculation'!$L$21,IF(MONTH(B44)=9,'General Calculation'!$M$21,IF(MONTH(B44)=10,'General Calculation'!$N$21,IF(MONTH(B44)=11,'General Calculation'!$O$21,IF(MONTH(B44)=12,'General Calculation'!$P$21,"")))))))))))) -> 4.99 | E44: =IF(C44="Initial Stage",'Calculation Sheet Crop 1'!$M$6,IF(C44="Crop Development Phase",'Calculation Sheet Crop 1'!$M$7,IF(C44="Mid Season",'Calculation Sheet Crop 1'!$M$8,IF(C44="Late Season Stage",'Calculation Sheet Crop 1'!$M$9,"")))) -> 0.75 | F44: 3.7425 | P44: 0 | Q44: 3.7425 | R44: 0 | S44: 0 | T44: 0 | U44: 0 | V44: 0 | W44: 0 | X44: 0 | Y44: 0 | Z44: 0 | AA44: 0
B45: 2017-02-08 | C45: =IF(AND(B45>='Calculation Sheet Crop 1'!$K$6,B45<='Calculation Sheet Crop 1'!$L$6),"Initial Stage",IF(AND(B45+1>'Calculation Sheet Crop 1'!$K$7,B45<='Calculation Sheet Crop 1'!$L$7),"Crop Development Phase",IF(AND(B45+1>'Calculation Sheet Crop 1'!$K$8,B45<'Calculation Sheet Crop 1'!$L$8+1),"Mid Season",IF(AND(B45+1>'Calculation Sheet Crop 1'!$K$9,B45-1<'Calculation Sheet Crop 1'!$L$9),"Late Season Stage","")))) -> Crop Development Phase | D45: =IF(MONTH(B45)=1,'General Calculation'!$E$21,IF(MONTH(B45)=2,'General Calculation'!$F$21,IF(MONTH(B45)=3,'General Calculation'!$G$21,IF(MONTH(B45)=4,'General Calculation'!$H$21,IF(MONTH(B45)=5,'General Calculation'!$I$21,IF(MONTH(B45)=6,'General Calculation'!$J$21,IF(MONTH(B45)=7,'General Calculation'!$K$21,IF(MONTH(B45)=8,'General Calculation'!$L$21,IF(MONTH(B45)=9,'General Calculation'!$M$21,IF(MONTH(B45)=10,'General Calculation'!$N$21,IF(MONTH(B45)=11,'General Calculation'!$O$21,IF(MONTH(B45)=12,'General Calculation'!$P$21,"")))))))))))) -> 4.99 | E45: =IF(C45="Initial Stage",'Calculation Sheet Crop 1'!$M$6,IF(C45="Crop Development Phase",'Calculation Sheet Crop 1'!$M$7,IF(C45="Mid Season",'Calculation Sheet Crop 1'!$M$8,IF(C45="Late Season Stage",'Calculation Sheet Crop 1'!$M$9,"")))) -> 0.75 | F45: 3.7425 | P45: 0 | Q45: 3.7425 | R45: 0 | S45: 0 | T45: 0 | U45: 0 | V45: 0 | W45: 0 | X45: 0 | Y45: 0 | Z45: 0 | AA45: 0
B46: 2017-02-09 | C46: =IF(AND(B46>='Calculation Sheet Crop 1'!$K$6,B46<='Calculation Sheet Crop 1'!$L$6),"Initial Stage",IF(AND(B46+1>'Calculation Sheet Crop 1'!$K$7,B46<='Calculation Sheet Crop 1'!$L$7),"Crop Development Phase",IF(AND(B46+1>'Calculation Sheet Crop 1'!$K$8,B46<'Calculation Sheet Crop 1'!$L$8+1),"Mid Season",IF(AND(B46+1>'Calculation Sheet Crop 1'!$K$9,B46-1<'Calculation Sheet Crop 1'!$L$9),"Late Season Stage","")))) -> Crop Development Phase | D46: =IF(MONTH(B46)=1,'General Calculation'!$E$21,IF(MONTH(B46)=2,'General Calculation'!$F$21,IF(MONTH(B46)=3,'General Calculation'!$G$21,IF(MONTH(B46)=4,'General Calculation'!$H$21,IF(MONTH(B46)=5,'General Calculation'!$I$21,IF(MONTH(B46)=6,'General Calculation'!$J$21,IF(MONTH(B46)=7,'General Calculation'!$K$21,IF(MONTH(B46)=8,'General Calculation'!$L$21,IF(MONTH(B46)=9,'General Calculation'!$M$21,IF(MONTH(B46)=10,'General Calculation'!$N$21,IF(MONTH(B46)=11,'General Calculation'!$O$21,IF(MONTH(B46)=12,'General Calculation'!$P$21,"")))))))))))) -> 4.99 | E46: =IF(C46="Initial Stage",'Calculation Sheet Crop 1'!$M$6,IF(C46="Crop Development Phase",'Calculation Sheet Crop 1'!$M$7,IF(C46="Mid Season",'Calculation Sheet Crop 1'!$M$8,IF(C46="Late Season Stage",'Calculation Sheet Crop 1'!$M$9,"")))) -> 0.75 | F46: 3.7425 | P46: 0 | Q46: 3.7425 | R46: 0 | S46: 0 | T46: 0 | U46: 0 | V46: 0 | W46: 0 | X46: 0 | Y46: 0 | Z46: 0 | AA46: 0
B47: 2017-02-10 | C47: =IF(AND(B47>='Calculation Sheet Crop 1'!$K$6,B47<='Calculation Sheet Crop 1'!$L$6),"Initial Stage",IF(AND(B47+1>'Calculation Sheet Crop 1'!$K$7,B47<='Calculation Sheet Crop 1'!$L$7),"Crop Development Phase",IF(AND(B47+1>'Calculation Sheet Crop 1'!$K$8,B47<'Calculation Sheet Crop 1'!$L$8+1),"Mid Season",IF(AND(B47+1>'Calculation Sheet Crop 1'!$K$9,B47-1<'Calculation Sheet Crop 1'!$L$9),"Late Season Stage","")))) -> Crop Development Phase | D47: =IF(MONTH(B47)=1,'General Calculation'!$E$21,IF(MONTH(B47)=2,'General Calculation'!$F$21,IF(MONTH(B47)=3,'General Calculation'!$G$21,IF(MONTH(B47)=4,'General Calculation'!$H$21,IF(MONTH(B47)=5,'General Calculation'!$I$21,IF(MONTH(B47)=6,'General Calculation'!$J$21,IF(MONTH(B47)=7,'General Calculation'!$K$21,IF(MONTH(B47)=8,'General Calculation'!$L$21,IF(MONTH(B47)=9,'General Calculation'!$M$21,IF(MONTH(B47)=10,'General Calculation'!$N$21,IF(MONTH(B47)=11,'General Calculation'!$O$21,IF(MONTH(B47)=12,'General Calculation'!$P$21,"")))))))))))) -> 4.99 | E47: =IF(C47="Initial Stage",'Calculation Sheet Crop 1'!$M$6,IF(C47="Crop Development Phase",'Calculation Sheet Crop 1'!$M$7,IF(C47="Mid Season",'Calculation Sheet Crop 1'!$M$8,IF(C47="Late Season Stage",'Calculation Sheet Crop 1'!$M$9,"")))) -> 0.75 | F47: 3.7425 | P47: 0 | Q47: 3.7425 | R47: 0 | S47: 0 | T47: 0 | U47: 0 | V47: 0 | W47: 0 | X47: 0 | Y47: 0 | Z47: 0 | AA47: 0
B48: 2017-02-11 | C48: =IF(AND(B48>='Calculation Sheet Crop 1'!$K$6,B48<='Calculation Sheet Crop 1'!$L$6),"Initial Stage",IF(AND(B48+1>'Calculation Sheet Crop 1'!$K$7,B48<='Calculation Sheet Crop 1'!$L$7),"Crop Development Phase",IF(AND(B48+1>'Calculation Sheet Crop 1'!$K$8,B48<'Calculation Sheet Crop 1'!$L$8+1),"Mid Season",IF(AND(B48+1>'Calculation Sheet Crop 1'!$K$9,B48-1<'Calculation Sheet Crop 1'!$L$9),"Late Season Stage","")))) -> Crop Development Phase | D48: =IF(MONTH(B48)=1,'General Calculation'!$E$21,IF(MONTH(B48)=2,'General Calculation'!$F$21,IF(MONTH(B48)=3,'General Calculation'!$G$21,IF(MONTH(B48)=4,'General Calculation'!$H$21,IF(MONTH(B48)=5,'General Calculation'!$I$21,IF(MONTH(B48)=6,'General Calculation'!$J$21,IF(MONTH(B48)=7,'General Calculation'!$K$21,IF(MONTH(B48)=8,'General Calculation'!$L$21,IF(MONTH(B48)=9,'General Calculation'!$M$21,IF(MONTH(B48)=10,'General Calculation'!$N$21,IF(MONTH(B48)=11,'General Calculation'!$O$21,IF(MONTH(B48)=12,'General Calculation'!$P$21,"")))))))))))) -> 4.99 | E48: =IF(C48="Initial Stage",'Calculation Sheet Crop 1'!$M$6,IF(C48="Crop Development Phase",'Calculation Sheet Crop 1'!$M$7,IF(C48="Mid Season",'Calculation Sheet Crop 1'!$M$8,IF(C48="Late Season Stage",'Calculation Sheet Crop 1'!$M$9,"")))) -> 0.75 | F48: 3.7425 | P48: 0 | Q48: 3.7425 | R48: 0 | S48: 0 | T48: 0 | U48: 0 | V48: 0 | W48: 0 | X48: 0 | Y48: 0 | Z48: 0 | AA48: 0
B49: 2017-02-12 | C49: =IF(AND(B49>='Calculation Sheet Crop 1'!$K$6,B49<='Calculation Sheet Crop 1'!$L$6),"Initial Stage",IF(AND(B49+1>'Calculation Sheet Crop 1'!$K$7,B49<='Calculation Sheet Crop 1'!$L$7),"Crop Development Phase",IF(AND(B49+1>'Calculation Sheet Crop 1'!$K$8,B49<'Calculation Sheet Crop 1'!$L$8+1),"Mid Season",IF(AND(B49+1>'Calculation Sheet Crop 1'!$K$9,B49-1<'Calculation Sheet Crop 1'!$L$9),"Late Season Stage","")))) -> Mid Season | D49: =IF(MONTH(B49)=1,'General Calculation'!$E$21,IF(MONTH(B49)=2,'General Calculation'!$F$21,IF(MONTH(B49)=3,'General Calculation'!$G$21,IF(MONTH(B49)=4,'General Calculation'!$H$21,IF(MONTH(B49)=5,'General Calculation'!$I$21,IF(MONTH(B49)=6,'General Calculation'!$J$21,IF(MONTH(B49)=7,'General Calculation'!$K$21,IF(MONTH(B49)=8,'General Calculation'!$L$21,IF(MONTH(B49)=9,'General Calculation'!$M$21,IF(MONTH(B49)=10,'General Calculation'!$N$21,IF(MONTH(B49)=11,'General Calculation'!$O$21,IF(MONTH(B49)=12,'General Calculation'!$P$21,"")))))))))))) -> 4.99 | E49: =IF(C49="Initial Stage",'Calculation Sheet Crop 1'!$M$6,IF(C49="Crop Development Phase",'Calculation Sheet Crop 1'!$M$7,IF(C49="Mid Season",'Calculation Sheet Crop 1'!$M$8,IF(C49="Late Season Stage",'Calculation Sheet Crop 1'!$M$9,"")))) -> 1.15 | F49: 5.7385 | P49: 0 | Q49: 5.7385 | R49: 0 | S49: 0 | T49: 0 | U49: 0 | V49: 0 | W49: 0 | X49: 0 | Y49: 0 | Z49: 0 | AA49: 0
B50: 2017-02-13 | C50: =IF(AND(B50>='Calculation Sheet Crop 1'!$K$6,B50<='Calculation Sheet Crop 1'!$L$6),"Initial Stage",IF(AND(B50+1>'Calculation Sheet Crop 1'!$K$7,B50<='Calculation Sheet Crop 1'!$L$7),"Crop Development Phase",IF(AND(B50+1>'Calculation Sheet Crop 1'!$K$8,B50<'Calculation Sheet Crop 1'!$L$8+1),"Mid Season",IF(AND(B50+1>'Calculation Sheet Crop 1'!$K$9,B50-1<'Calculation Sheet Crop 1'!$L$9),"Late Season Stage","")))) -> Mid Season | D50: =IF(MONTH(B50)=1,'General Calculation'!$E$21,IF(MONTH(B50)=2,'General Calculation'!$F$21,IF(MONTH(B50)=3,'General Calculation'!$G$21,IF(MONTH(B50)=4,'General Calculation'!$H$21,IF(MONTH(B50)=5,'General Calculation'!$I$21,IF(MONTH(B50)=6,'General Calculation'!$J$21,IF(MONTH(B50)=7,'General Calculation'!$K$21,IF(MONTH(B50)=8,'General Calculation'!$L$21,IF(MONTH(B50)=9,'General Calculation'!$M$21,IF(MONTH(B50)=10,'General Calculation'!$N$21,IF(MONTH(B50)=11,'General Calculation'!$O$21,IF(MONTH(B50)=12,'General Calculation'!$P$21,"")))))))))))) -> 4.99 | E50: =IF(C50="Initial Stage",'Calculation Sheet Crop 1'!$M$6,IF(C50="Crop Development Phase",'Calculation Sheet Crop 1'!$M$7,IF(C50="Mid Season",'Calculation Sheet Crop 1'!$M$8,IF(C50="Late Season Stage",'Calculation Sheet Crop 1'!$M$9,"")))) -> 1.15 | F50: 5.7385 | P50: 0 | Q50: 5.7385 | R50: 0 | S50: 0 | T50: 0 | U50: 0 | V50: 0 | W50: 0 | X50: 0 | Y50: 0 | Z50: 0 | AA50: 0
B51: 2017-02-14 | C51: =IF(AND(B51>='Calculation Sheet Crop 1'!$K$6,B51<='Calculation Sheet Crop 1'!$L$6),"Initial Stage",IF(AND(B51+1>'Calculation Sheet Crop 1'!$K$7,B51<='Calculation Sheet Crop 1'!$L$7),"Crop Development Phase",IF(AND(B51+1>'Calculation Sheet Crop 1'!$K$8,B51<'Calculation Sheet Crop 1'!$L$8+1),"Mid Season",IF(AND(B51+1>'Calculation Sheet Crop 1'!$K$9,B51-1<'Calculation Sheet Crop 1'!$L$9),"Late Season Stage","")))) -> Mid Season | D51: =IF(MONTH(B51)=1,'General Calculation'!$E$21,IF(MONTH(B51)=2,'General Calculation'!$F$21,IF(MONTH(B51)=3,'General Calculation'!$G$21,IF(MONTH(B51)=4,'General Calculation'!$H$21,IF(MONTH(B51)=5,'General Calculation'!$I$21,IF(MONTH(B51)=6,'General Calculation'!$J$21,IF(MONTH(B51)=7,'General Calculation'!$K$21,IF(MONTH(B51)=8,'General Calculation'!$L$21,IF(MONTH(B51)=9,'General Calculation'!$M$21,IF(MONTH(B51)=10,'General Calculation'!$N$21,IF(MONTH(B51)=11,'General Calculation'!$O$21,IF(MONTH(B51)=12,'General Calculation'!$P$21,"")))))))))))) -> 4.99 | E51: =IF(C51="Initial Stage",'Calculation Sheet Crop 1'!$M$6,IF(C51="Crop Development Phase",'Calculation Sheet Crop 1'!$M$7,IF(C51="Mid Season",'Calculation Sheet Crop 1'!$M$8,IF(C51="Late Season Stage",'Calculation Sheet Crop 1'!$M$9,"")))) -> 1.15 | F51: 5.7385 | P51: 0 | Q51: 5.7385 | R51: 0 | S51: 0 | T51: 0 | U51: 0 | V51: 0 | W51: 0 | X51: 0 | Y51: 0 | Z51: 0 | AA51: 0
B52: 2017-02-15 | C52: =IF(AND(B52>='Calculation Sheet Crop 1'!$K$6,B52<='Calculation Sheet Crop 1'!$L$6),"Initial Stage",IF(AND(B52+1>'Calculation Sheet Crop 1'!$K$7,B52<='Calculation Sheet Crop 1'!$L$7),"Crop Development Phase",IF(AND(B52+1>'Calculation Sheet Crop 1'!$K$8,B52<'Calculation Sheet Crop 1'!$L$8+1),"Mid Season",IF(AND(B52+1>'Calculation Sheet Crop 1'!$K$9,B52-1<'Calculation Sheet Crop 1'!$L$9),"Late Season Stage","")))) -> Mid Season | D52: =IF(MONTH(B52)=1,'General Calculation'!$E$21,IF(MONTH(B52)=2,'General Calculation'!$F$21,IF(MONTH(B52)=3,'General Calculation'!$G$21,IF(MONTH(B52)=4,'General Calculation'!$H$21,IF(MONTH(B52)=5,'General Calculation'!$I$21,IF(MONTH(B52)=6,'General Calculation'!$J$21,IF(MONTH(B52)=7,'General Calculation'!$K$21,IF(MONTH(B52)=8,'General Calculation'!$L$21,IF(MONTH(B52)=9,'General Calculation'!$M$21,IF(MONTH(B52)=10,'General Calculation'!$N$21,IF(MONTH(B52)=11,'General Calculation'!$O$21,IF(MONTH(B52)=12,'General Calculation'!$P$21,"")))))))))))) -> 4.99 | E52: =IF(C52="Initial Stage",'Calculation Sheet Crop 1'!$M$6,IF(C52="Crop Development Phase",'Calculation Sheet Crop 1'!$M$7,IF(C52="Mid Season",'Calculation Sheet Crop 1'!$M$8,IF(C52="Late Season Stage",'Calculation Sheet Crop 1'!$M$9,"")))) -> 1.15 | F52: 5.7385 | P52: 0 | Q52: 5.7385 | R52: 0 | S52: 0 | T52: 0 | U52: 0 | V52: 0 | W52: 0 | X52: 0 | Y52: 0 | Z52: 0 | AA52: 0
B53: 2017-02-16 | C53: =IF(AND(B53>='Calculation Sheet Crop 1'!$K$6,B53<='Calculation Sheet Crop 1'!$L$6),"Initial Stage",IF(AND(B53+1>'Calculation Sheet Crop 1'!$K$7,B53<='Calculation Sheet Crop 1'!$L$7),"Crop Development Phase",IF(AND(B53+1>'Calculation Sheet Crop 1'!$K$8,B53<'Calculation Sheet Crop 1'!$L$8+1),"Mid Season",IF(AND(B53+1>'Calculation Sheet Crop 1'!$K$9,B53-1<'Calculation Sheet Crop 1'!$L$9),"Late Season Stage","")))) -> Mid Season | D53: =IF(MONTH(B53)=1,'General Calculation'!$E$21,IF(MONTH(B53)=2,'General Calculation'!$F$21,IF(MONTH(B53)=3,'General Calculation'!$G$21,IF(MONTH(B53)=4,'General Calculation'!$H$21,IF(MONTH(B53)=5,'General Calculation'!$I$21,IF(MONTH(B53)=6,'General Calculation'!$J$21,IF(MONTH(B53)=7,'General Calculation'!$K$21,IF(MONTH(B53)=8,'General Calculation'!$L$21,IF(MONTH(B53)=9,'General Calculation'!$M$21,IF(MONTH(B53)=10,'General Calculation'!$N$21,IF(MONTH(B53)=11,'General Calculation'!$O$21,IF(MONTH(B53)=12,'General Calculation'!$P$21,"")))))))))))) -> 4.99 | E53: =IF(C53="Initial Stage",'Calculation Sheet Crop 1'!$M$6,IF(C53="Crop Development Phase",'Calculation Sheet Crop 1'!$M$7,IF(C53="Mid Season",'Calculation Sheet Crop 1'!$M$8,IF(C53="Late Season Stage",'Calculation Sheet Crop 1'!$M$9,"")))) -> 1.15 | F53: 5.7385 | P53: 0 | Q53: 5.7385 | R53: 0 | S53: 0 | T53: 0 | U53: 0 | V53: 0 | W53: 0 | X53: 0 | Y53: 0 | Z53: 0 | AA53: 0
B54: 2017-02-17 | C54: =IF(AND(B54>='Calculation Sheet Crop 1'!$K$6,B54<='Calculation Sheet Crop 1'!$L$6),"Initial Stage",IF(AND(B54+1>'Calculation Sheet Crop 1'!$K$7,B54<='Calculation Sheet Crop 1'!$L$7),"Crop Development Phase",IF(AND(B54+1>'Calculation Sheet Crop 1'!$K$8,B54<'Calculation Sheet Crop 1'!$L$8+1),"Mid Season",IF(AND(B54+1>'Calculation Sheet Crop 1'!$K$9,B54-1<'Calculation Sheet Crop 1'!$L$9),"Late Season Stage","")))) -> Mid Season | D54: =IF(MONTH(B54)=1,'General Calculation'!$E$21,IF(MONTH(B54)=2,'General Calculation'!$F$21,IF(MONTH(B54)=3,'General Calculation'!$G$21,IF(MONTH(B54)=4,'General Calculation'!$H$21,IF(MONTH(B54)=5,'General Calculation'!$I$21,IF(MONTH(B54)=6,'General Calculation'!$J$21,IF(MONTH(B54)=7,'General Calculation'!$K$21,IF(MONTH(B54)=8,'General Calculation'!$L$21,IF(MONTH(B54)=9,'General Calculation'!$M$21,IF(MONTH(B54)=10,'General Calculation'!$N$21,IF(MONTH(B54)=11,'General Calculation'!$O$21,IF(MONTH(B54)=12,'General Calculation'!$P$21,"")))))))))))) -> 4.99 | E54: =IF(C54="Initial Stage",'Calculation Sheet Crop 1'!$M$6,IF(C54="Crop Development Phase",'Calculation Sheet Crop 1'!$M$7,IF(C54="Mid Season",'Calculation Sheet Crop 1'!$M$8,IF(C54="Late Season Stage",'Calculation Sheet Crop 1'!$M$9,"")))) -> 1.15 | F54: 5.7385 | P54: 0 | Q54: 5.7385 | R54: 0 | S54: 0 | T54: 0 | U54: 0 | V54: 0 | W54: 0 | X54: 0 | Y54: 0 | Z54: 0 | AA54: 0
B55: 2017-02-18 | C55: =IF(AND(B55>='Calculation Sheet Crop 1'!$K$6,B55<='Calculation Sheet Crop 1'!$L$6),"Initial Stage",IF(AND(B55+1>'Calculation Sheet Crop 1'!$K$7,B55<='Calculation Sheet Crop 1'!$L$7),"Crop Development Phase",IF(AND(B55+1>'Calculation Sheet Crop 1'!$K$8,B55<'Calculation Sheet Crop 1'!$L$8+1),"Mid Season",IF(AND(B55+1>'Calculation Sheet Crop 1'!$K$9,B55-1<'Calculation Sheet Crop 1'!$L$9),"Late Season Stage","")))) -> Mid Season | D55: =IF(MONTH(B55)=1,'General Calculation'!$E$21,IF(MONTH(B55)=2,'General Calculation'!$F$21,IF(MONTH(B55)=3,'General Calculation'!$G$21,IF(MONTH(B55)=4,'General Calculation'!$H$21,IF(MONTH(B55)=5,'General Calculation'!$I$21,IF(MONTH(B55)=6,'General Calculation'!$J$21,IF(MONTH(B55)=7,'General Calculation'!$K$21,IF(MONTH(B55)=8,'General Calculation'!$L$21,IF(MONTH(B55)=9,'General Calculation'!$M$21,IF(MONTH(B55)=10,'General Calculation'!$N$21,IF(MONTH(B55)=11,'General Calculation'!$O$21,IF(MONTH(B55)=12,'General Calculation'!$P$21,"")))))))))))) -> 4.99 | E55: =IF(C55="Initial Stage",'Calculation Sheet Crop 1'!$M$6,IF(C55="Crop Development Phase",'Calculation Sheet Crop 1'!$M$7,IF(C55="Mid Season",'Calculation Sheet Crop 1'!$M$8,IF(C55="Late Season Stage",'Calculation Sheet Crop 1'!$M$9,"")))) -> 1.15 | F55: 5.7385 | P55: 0 | Q55: 5.7385 | R55: 0 | S55: 0 | T55: 0 | U55: 0 | V55: 0 | W55: 0 | X55: 0 | Y55: 0 | Z55: 0 | AA55: 0
B56: 2017-02-19 | C56: =IF(AND(B56>='Calculation Sheet Crop 1'!$K$6,B56<='Calculation Sheet Crop 1'!$L$6),"Initial Stage",IF(AND(B56+1>'Calculation Sheet Crop 1'!$K$7,B56<='Calculation Sheet Crop 1'!$L$7),"Crop Development Phase",IF(AND(B56+1>'Calculation Sheet Crop 1'!$K$8,B56<'Calculation Sheet Crop 1'!$L$8+1),"Mid Season",IF(AND(B56+1>'Calculation Sheet Crop 1'!$K$9,B56-1<'Calculation Sheet Crop 1'!$L$9),"Late Season Stage","")))) -> Mid Season | D56: =IF(MONTH(B56)=1,'General Calculation'!$E$21,IF(MONTH(B56)=2,'General Calculation'!$F$21,IF(MONTH(B56)=3,'General Calculation'!$G$21,IF(MONTH(B56)=4,'General Calculation'!$H$21,IF(MONTH(B56)=5,'General Calculation'!$I$21,IF(MONTH(B56)=6,'General Calculation'!$J$21,IF(MONTH(B56)=7,'General Calculation'!$K$21,IF(MONTH(B56)=8,'General Calculation'!$L$21,IF(MONTH(B56)=9,'General Calculation'!$M$21,IF(MONTH(B56)=10,'General Calculation'!$N$21,IF(MONTH(B56)=11,'General Calculation'!$O$21,IF(MONTH(B56)=12,'General Calculation'!$P$21,"")))))))))))) -> 4.99 | E56: =IF(C56="Initial Stage",'Calculation Sheet Crop 1'!$M$6,IF(C56="Crop Development Phase",'Calculation Sheet Crop 1'!$M$7,IF(C56="Mid Season",'Calculation Sheet Crop 1'!$M$8,IF(C56="Late Season Stage",'Calculation Sheet Crop 1'!$M$9,"")))) -> 1.15 | F56: 5.7385 | P56: 0 | Q56: 5.7385 | R56: 0 | S56: 0 | T56: 0 | U56: 0 | V56: 0 | W56: 0 | X56: 0 | Y56: 0 | Z56: 0 | AA56: 0
B57: 2017-02-20 | C57: =IF(AND(B57>='Calculation Sheet Crop 1'!$K$6,B57<='Calculation Sheet Crop 1'!$L$6),"Initial Stage",IF(AND(B57+1>'Calculation Sheet Crop 1'!$K$7,B57<='Calculation Sheet Crop 1'!$L$7),"Crop Development Phase",IF(AND(B57+1>'Calculation Sheet Crop 1'!$K$8,B57<'Calculation Sheet Crop 1'!$L$8+1),"Mid Season",IF(AND(B57+1>'Calculation Sheet Crop 1'!$K$9,B57-1<'Calculation Sheet Crop 1'!$L$9),"Late Season Stage","")))) -> Mid Season | D57: =IF(MONTH(B57)=1,'General Calculation'!$E$21,IF(MONTH(B57)=2,'General Calculation'!$F$21,IF(MONTH(B57)=3,'General Calculation'!$G$21,IF(MONTH(B57)=4,'General Calculation'!$H$21,IF(MONTH(B57)=5,'General Calculation'!$I$21,IF(MONTH(B57)=6,'General Calculation'!$J$21,IF(MONTH(B57)=7,'General Calculation'!$K$21,IF(MONTH(B57)=8,'General Calculation'!$L$21,IF(MONTH(B57)=9,'General Calculation'!$M$21,IF(MONTH(B57)=10,'General Calculation'!$N$21,IF(MONTH(B57)=11,'General Calculation'!$O$21,IF(MONTH(B57)=12,'General Calculation'!$P$21,"")))))))))))) -> 4.99 | E57: =IF(C57="Initial Stage",'Calculation Sheet Crop 1'!$M$6,IF(C57="Crop Development Phase",'Calculation Sheet Crop 1'!$M$7,IF(C57="Mid Season",'Calculation Sheet Crop 1'!$M$8,IF(C57="Late Season Stage",'Calculation Sheet Crop 1'!$M$9,"")))) -> 1.15 | F57: 5.7385 | P57: 0 | Q57: 5.7385 | R57: 0 | S57: 0 | T57: 0 | U57: 0 | V57: 0 | W57: 0 | X57: 0 | Y57: 0 | Z57: 0 | AA57: 0
B58: 2017-02-21 | C58: =IF(AND(B58>='Calculation Sheet Crop 1'!$K$6,B58<='Calculation Sheet Crop 1'!$L$6),"Initial Stage",IF(AND(B58+1>'Calculation Sheet Crop 1'!$K$7,B58<='Calculation Sheet Crop 1'!$L$7),"Crop Development Phase",IF(AND(B58+1>'Calculation Sheet Crop 1'!$K$8,B58<'Calculation Sheet Crop 1'!$L$8+1),"Mid Season",IF(AND(B58+1>'Calculation Sheet Crop 1'!$K$9,B58-1<'Calculation Sheet Crop 1'!$L$9),"Late Season Stage","")))) -> Mid Season | D58: =IF(MONTH(B58)=1,'General Calculation'!$E$21,IF(MONTH(B58)=2,'General Calculation'!$F$21,IF(MONTH(B58)=3,'General Calculation'!$G$21,IF(MONTH(B58)=4,'General Calculation'!$H$21,IF(MONTH(B58)=5,'General Calculation'!$I$21,IF(MONTH(B58)=6,'General Calculation'!$J$21,IF(MONTH(B58)=7,'General Calculation'!$K$21,IF(MONTH(B58)=8,'General Calculation'!$L$21,IF(MONTH(B58)=9,'General Calculation'!$M$21,IF(MONTH(B58)=10,'General Calculation'!$N$21,IF(MONTH(B58)=11,'General Calculation'!$O$21,IF(MONTH(B58)=12,'General Calculation'!$P$21,"")))))))))))) -> 4.99 | E58: =IF(C58="Initial Stage",'Calculation Sheet Crop 1'!$M$6,IF(C58="Crop Development Phase",'Calculation Sheet Crop 1'!$M$7,IF(C58="Mid Season",'Calculation Sheet Crop 1'!$M$8,IF(C58="Late Season Stage",'Calculation Sheet Crop 1'!$M$9,"")))) -> 1.15 | F58: 5.7385 | P58: 0 | Q58: 5.7385 | R58: 0 | S58: 0 | T58: 0 | U58: 0 | V58: 0 | W58: 0 | X58: 0 | Y58: 0 | Z58: 0 | AA58: 0
B59: 2017-02-22 | C59: =IF(AND(B59>='Calculation Sheet Crop 1'!$K$6,B59<='Calculation Sheet Crop 1'!$L$6),"Initial Stage",IF(AND(B59+1>'Calculation Sheet Crop 1'!$K$7,B59<='Calculation Sheet Crop 1'!$L$7),"Crop Development Phase",IF(AND(B59+1>'Calculation Sheet Crop 1'!$K$8,B59<'Calculation Sheet Crop 1'!$L$8+1),"Mid Season",IF(AND(B59+1>'Calculation Sheet Crop 1'!$K$9,B59-1<'Calculation Sheet Crop 1'!$L$9),"Late Season Stage","")))) -> Mid Season | D59: =IF(MONTH(B59)=1,'General Calculation'!$E$21,IF(MONTH(B59)=2,'General Calculation'!$F$21,IF(MONTH(B59)=3,'General Calculation'!$G$21,IF(MONTH(B59)=4,'General Calculation'!$H$21,IF(MONTH(B59)=5,'General Calculation'!$I$21,IF(MONTH(B59)=6,'General Calculation'!$J$21,IF(MONTH(B59)=7,'General Calculation'!$K$21,IF(MONTH(B59)=8,'General Calculation'!$L$21,IF(MONTH(B59)=9,'General Calculation'!$M$21,IF(MONTH(B59)=10,'General Calculation'!$N$21,IF(MONTH(B59)=11,'General Calculation'!$O$21,IF(MONTH(B59)=12,'General Calculation'!$P$21,"")))))))))))) -> 4.99 | E59: =IF(C59="Initial Stage",'Calculation Sheet Crop 1'!$M$6,IF(C59="Crop Development Phase",'Calculation Sheet Crop 1'!$M$7,IF(C59="Mid Season",'Calculation Sheet Crop 1'!$M$8,IF(C59="Late Season Stage",'Calculation Sheet Crop 1'!$M$9,"")))) -> 1.15 | F59: 5.7385 | P59: 0 | Q59: 5.7385 | R59: 0 | S59: 0 | T59: 0 | U59: 0 | V59: 0 | W59: 0 | X59: 0 | Y59: 0 | Z59: 0 | AA59: 0
B60: 2017-02-23 | C60: =IF(AND(B60>='Calculation Sheet Crop 1'!$K$6,B60<='Calculation Sheet Crop 1'!$L$6),"Initial Stage",IF(AND(B60+1>'Calculation Sheet Crop 1'!$K$7,B60<='Calculation Sheet Crop 1'!$L$7),"Crop Development Phase",IF(AND(B60+1>'Calculation Sheet Crop 1'!$K$8,B60<'Calculation Sheet Crop 1'!$L$8+1),"Mid Season",IF(AND(B60+1>'Calculation Sheet Crop 1'!$K$9,B60-1<'Calculation Sheet Crop 1'!$L$9),"Late Season Stage","")))) -> Mid Season | D60: =IF(MONTH(B60)=1,'General Calculation'!$E$21,IF(MONTH(B60)=2,'General Calculation'!$F$21,IF(MONTH(B60)=3,'General Calculation'!$G$21,IF(MONTH(B60)=4,'General Calculation'!$H$21,IF(MONTH(B60)=5,'General Calculation'!$I$21,IF(MONTH(B60)=6,'General Calculation'!$J$21,IF(MONTH(B60)=7,'General Calculation'!$K$21,IF(MONTH(B60)=8,'General Calculation'!$L$21,IF(MONTH(B60)=9,'General Calculation'!$M$21,IF(MONTH(B60)=10,'General Calculation'!$N$21,IF(MONTH(B60)=11,'General Calculation'!$O$21,IF(MONTH(B60)=12,'General Calculation'!$P$21,"")))))))))))) -> 4.99 | E60: =IF(C60="Initial Stage",'Calculation Sheet Crop 1'!$M$6,IF(C60="Crop Development Phase",'Calculation Sheet Crop 1'!$M$7,IF(C60="Mid Season",'Calculation Sheet Crop 1'!$M$8,IF(C60="Late Season Stage",'Calculation Sheet Crop 1'!$M$9,"")))) -> 1.15 | F60: 5.7385 | P60: 0 | Q60: 5.7385 | R60: 0 | S60: 0 | T60: 0 | U60: 0 | V60: 0 | W60: 0 | X60: 0 | Y60: 0 | Z60: 0 | AA60: 0
B61: 2017-02-24 | C61: =IF(AND(B61>='Calculation Sheet Crop 1'!$K$6,B61<='Calculation Sheet Crop 1'!$L$6),"Initial Stage",IF(AND(B61+1>'Calculation Sheet Crop 1'!$K$7,B61<='Calculation Sheet Crop 1'!$L$7),"Crop Development Phase",IF(AND(B61+1>'Calculation Sheet Crop 1'!$K$8,B61<'Calculation Sheet Crop 1'!$L$8+1),"Mid Season",IF(AND(B61+1>'Calculation Sheet Crop 1'!$K$9,B61-1<'Calculation Sheet Crop 1'!$L$9),"Late Season Stage","")))) -> Mid Season | D61: =IF(MONTH(B61)=1,'General Calculation'!$E$21,IF(MONTH(B61)=2,'General Calculation'!$F$21,IF(MONTH(B61)=3,'General Calculation'!$G$21,IF(MONTH(B61)=4,'General Calculation'!$H$21,IF(MONTH(B61)=5,'General Calculation'!$I$21,IF(MONTH(B61)=6,'General Calculation'!$J$21,IF(MONTH(B61)=7,'General Calculation'!$K$21,IF(MONTH(B61)=8,'General Calculation'!$L$21,IF(MONTH(B61)=9,'General Calculation'!$M$21,IF(MONTH(B61)=10,'General Calculation'!$N$21,IF(MONTH(B61)=11,'General Calculation'!$O$21,IF(MONTH(B61)=12,'General Calculation'!$P$21,"")))))))))))) -> 4.99 | E61: =IF(C61="Initial Stage",'Calculation Sheet Crop 1'!$M$6,IF(C61="Crop Development Phase",'Calculation Sheet Crop 1'!$M$7,IF(C61="Mid Season",'Calculation Sheet Crop 1'!$M$8,IF(C61="Late Season Stage",'Calculation Sheet Crop 1'!$M$9,"")))) -> 1.15 | F61: 5.7385 | P61: 0 | Q61: 5.7385 | R61: 0 | S61: 0 | T61: 0 | U61: 0 | V61: 0 | W61: 0 | X61: 0 | Y61: 0 | Z61: 0 | AA61: 0
B62: 2017-02-25 | C62: =IF(AND(B62>='Calculation Sheet Crop 1'!$K$6,B62<='Calculation Sheet Crop 1'!$L$6),"Initial Stage",IF(AND(B62+1>'Calculation Sheet Crop 1'!$K$7,B62<='Calculation Sheet Crop 1'!$L$7),"Crop Development Phase",IF(AND(B62+1>'Calculation Sheet Crop 1'!$K$8,B62<'Calculation Sheet Crop 1'!$L$8+1),"Mid Season",IF(AND(B62+1>'Calculation Sheet Crop 1'!$K$9,B62-1<'Calculation Sheet Crop 1'!$L$9),"Late Season Stage","")))) -> Mid Season | D62: =IF(MONTH(B62)=1,'General Calculation'!$E$21,IF(MONTH(B62)=2,'General Calculation'!$F$21,IF(MONTH(B62)=3,'General Calculation'!$G$21,IF(MONTH(B62)=4,'General Calculation'!$H$21,IF(MONTH(B62)=5,'General Calculation'!$I$21,IF(MONTH(B62)=6,'General Calculation'!$J$21,IF(MONTH(B62)=7,'General Calculation'!$K$21,IF(MONTH(B62)=8,'General Calculation'!$L$21,IF(MONTH(B62)=9,'General Calculation'!$M$21,IF(MONTH(B62)=10,'General Calculation'!$N$21,IF(MONTH(B62)=11,'General Calculation'!$O$21,IF(MONTH(B62)=12,'General Calculation'!$P$21,"")))))))))))) -> 4.99 | E62: =IF(C62="Initial Stage",'Calculation Sheet Crop 1'!$M$6,IF(C62="Crop Development Phase",'Calculation Sheet Crop 1'!$M$7,IF(C62="Mid Season",'Calculation Sheet Crop 1'!$M$8,IF(C62="Late Season Stage",'Calculation Sheet Crop 1'!$M$9,"")))) -> 1.15 | F62: 5.7385 | P62: 0 | Q62: 5.7385 | R62: 0 | S62: 0 | T62: 0 | U62: 0 | V62: 0 | W62: 0 | X62: 0 | Y62: 0 | Z62: 0 | AA62: 0
B63: 2017-02-26 | C63: =IF(AND(B63>='Calculation Sheet Crop 1'!$K$6,B63<='Calculation Sheet Crop 1'!$L$6),"Initial Stage",IF(AND(B63+1>'Calculation Sheet Crop 1'!$K$7,B63<='Calculation Sheet Crop 1'!$L$7),"Crop Development Phase",IF(AND(B63+1>'Calculation Sheet Crop 1'!$K$8,B63<'Calculation Sheet Crop 1'!$L$8+1),"Mid Season",IF(AND(B63+1>'Calculation Sheet Crop 1'!$K$9,B63-1<'Calculation Sheet Crop 1'!$L$9),"Late Season Stage","")))) -> Mid Season | D63: =IF(MONTH(B63)=1,'General Calculation'!$E$21,IF(MONTH(B63)=2,'General Calculation'!$F$21,IF(MONTH(B63)=3,'General Calculation'!$G$21,IF(MONTH(B63)=4,'General Calculation'!$H$21,IF(MONTH(B63)=5,'General Calculation'!$I$21,IF(MONTH(B63)=6,'General Calculation'!$J$21,IF(MONTH(B63)=7,'General Calculation'!$K$21,IF(MONTH(B63)=8,'General Calculation'!$L$21,IF(MONTH(B63)=9,'General Calculation'!$M$21,IF(MONTH(B63)=10,'General Calculation'!$N$21,IF(MONTH(B63)=11,'General Calculation'!$O$21,IF(MONTH(B63)=12,'General Calculation'!$P$21,"")))))))))))) -> 4.99 | E63: =IF(C63="Initial Stage",'Calculation Sheet Crop 1'!$M$6,IF(C63="Crop Development Phase",'Calculation Sheet Crop 1'!$M$7,IF(C63="Mid Season",'Calculation Sheet Crop 1'!$M$8,IF(C63="Late Season Stage",'Calculation Sheet Crop 1'!$M$9,"")))) -> 1.15 | F63: 5.7385 | P63: 0 | Q63: 5.7385 | R63: 0 | S63: 0 | T63: 0 | U63: 0 | V63: 0 | W63: 0 | X63: 0 | Y63: 0 | Z63: 0 | AA63: 0
B64: 2017-02-27 | C64: =IF(AND(B64>='Calculation Sheet Crop 1'!$K$6,B64<='Calculation Sheet Crop 1'!$L$6),"Initial Stage",IF(AND(B64+1>'Calculation Sheet Crop 1'!$K$7,B64<='Calculation Sheet Crop 1'!$L$7),"Crop Development Phase",IF(AND(B64+1>'Calculation Sheet Crop 1'!$K$8,B64<'Calculation Sheet Crop 1'!$L$8+1),"Mid Season",IF(AND(B64+1>'Calculation Sheet Crop 1'!$K$9,B64-1<'Calculation Sheet Crop 1'!$L$9),"Late Season Stage","")))) -> Mid Season | D64: =IF(MONTH(B64)=1,'General Calculation'!$E$21,IF(MONTH(B64)=2,'General Calculation'!$F$21,IF(MONTH(B64)=3,'General Calculation'!$G$21,IF(MONTH(B64)=4,'General Calculation'!$H$21,IF(MONTH(B64)=5,'General Calculation'!$I$21,IF(MONTH(B64)=6,'General Calculation'!$J$21,IF(MONTH(B64)=7,'General Calculation'!$K$21,IF(MONTH(B64)=8,'General Calculation'!$L$21,IF(MONTH(B64)=9,'General Calculation'!$M$21,IF(MONTH(B64)=10,'General Calculation'!$N$21,IF(MONTH(B64)=11,'General Calculation'!$O$21,IF(MONTH(B64)=12,'General Calculation'!$P$21,"")))))))))))) -> 4.99 | E64: =IF(C64="Initial Stage",'Calculation Sheet Crop 1'!$M$6,IF(C64="Crop Development Phase",'Calculation Sheet Crop 1'!$M$7,IF(C64="Mid Season",'Calculation Sheet Crop 1'!$M$8,IF(C64="Late Season Stage",'Calculation Sheet Crop 1'!$M$9,"")))) -> 1.15 | F64: 5.7385 | P64: 0 | Q64: 5.7385 | R64: 0 | S64: 0 | T64: 0 | U64: 0 | V64: 0 | W64: 0 | X64: 0 | Y64: 0 | Z64: 0 | AA64: 0
B65: 2017-02-28 | C65: =IF(AND(B65>='Calculation Sheet Crop 1'!$K$6,B65<='Calculation Sheet Crop 1'!$L$6),"Initial Stage",IF(AND(B65+1>'Calculation Sheet Crop 1'!$K$7,B65<='Calculation Sheet Crop 1'!$L$7),"Crop Development Phase",IF(AND(B65+1>'Calculation Sheet Crop 1'!$K$8,B65<'Calculation Sheet Crop 1'!$L$8+1),"Mid Season",IF(AND(B65+1>'Calculation Sheet Crop 1'!$K$9,B65-1<'Calculation Sheet Crop 1'!$L$9),"Late Season Stage","")))) -> Mid Season | D65: =IF(MONTH(B65)=1,'General Calculation'!$E$21,IF(MONTH(B65)=2,'General Calculation'!$F$21,IF(MONTH(B65)=3,'General Calculation'!$G$21,IF(MONTH(B65)=4,'General Calculation'!$H$21,IF(MONTH(B65)=5,'General Calculation'!$I$21,IF(MONTH(B65)=6,'General Calculation'!$J$21,IF(MONTH(B65)=7,'General Calculation'!$K$21,IF(MONTH(B65)=8,'General Calculation'!$L$21,IF(MONTH(B65)=9,'General Calculation'!$M$21,IF(MONTH(B65)=10,'General Calculation'!$N$21,IF(MONTH(B65)=11,'General Calculation'!$O$21,IF(MONTH(B65)=12,'General Calculation'!$P$21,"")))))))))))) -> 4.99 | E65: =IF(C65="Initial Stage",'Calculation Sheet Crop 1'!$M$6,IF(C65="Crop Development Phase",'Calculation Sheet Crop 1'!$M$7,IF(C65="Mid Season",'Calculation Sheet Crop 1'!$M$8,IF(C65="Late Season Stage",'Calculation Sheet Crop 1'!$M$9,"")))) -> 1.15 | F65: 5.7385 | P65: 0 | Q65: 5.7385 | R65: 0 | S65: 0 | T65: 0 | U65: 0 | V65: 0 | W65: 0 | X65: 0 | Y65: 0 | Z65: 0 | AA65: 0
B66: 2017-03-01 | C66: =IF(AND(B66>='Calculation Sheet Crop 1'!$K$6,B66<='Calculation Sheet Crop 1'!$L$6),"Initial Stage",IF(AND(B66+1>'Calculation Sheet Crop 1'!$K$7,B66<='Calculation Sheet Crop 1'!$L$7),"Crop Development Phase",IF(AND(B66+1>'Calculation Sheet Crop 1'!$K$8,B66<'Calculation Sheet Crop 1'!$L$8+1),"Mid Season",IF(AND(B66+1>'Calculation Sheet Crop 1'!$K$9,B66-1<'Calculation Sheet Crop 1'!$L$9),"Late Season Stage","")))) -> Mid Season | D66: =IF(MONTH(B66)=1,'General Calculation'!$E$21,IF(MONTH(B66)=2,'General Calculation'!$F$21,IF(MONTH(B66)=3,'General Calculation'!$G$21,IF(MONTH(B66)=4,'General Calculation'!$H$21,IF(MONTH(B66)=5,'General Calculation'!$I$21,IF(MONTH(B66)=6,'General Calculation'!$J$21,IF(MONTH(B66)=7,'General Calculation'!$K$21,IF(MONTH(B66)=8,'General Calculation'!$L$21,IF(MONTH(B66)=9,'General Calculation'!$M$21,IF(MONTH(B66)=10,'General Calculation'!$N$21,IF(MONTH(B66)=11,'General Calculation'!$O$21,IF(MONTH(B66)=12,'General Calculation'!$P$21,"")))))))))))) -> 5.3892 | E66: =IF(C66="Initial Stage",'Calculation Sheet Crop 1'!$M$6,IF(C66="Crop Development Phase",'Calculation Sheet Crop 1'!$M$7,IF(C66="Mid Season",'Calculation Sheet Crop 1'!$M$8,IF(C66="Late Season Stage",'Calculation Sheet Crop 1'!$M$9,"")))) -> 1.15 | F66: 6.19758 | P66: 0 | Q66: 0 | R66: 6.19758 | S66: 0 | T66: 0 | U66: 0 | V66: 0 | W66: 0 | X66: 0 | Y66: 0 | Z66: 0 | AA66: 0
B67: 2017-03-02 | C67: =IF(AND(B67>='Calculation Sheet Crop 1'!$K$6,B67<='Calculation Sheet Crop 1'!$L$6),"Initial Stage",IF(AND(B67+1>'Calculation Sheet Crop 1'!$K$7,B67<='Calculation Sheet Crop 1'!$L$7),"Crop Development Phase",IF(AND(B67+1>'Calculation Sheet Crop 1'!$K$8,B67<'Calculation Sheet Crop 1'!$L$8+1),"Mid Season",IF(AND(B67+1>'Calculation Sheet Crop 1'!$K$9,B67-1<'Calculation Sheet Crop 1'!$L$9),"Late Season Stage","")))) -> Mid Season | D67: =IF(MONTH(B67)=1,'General Calculation'!$E$21,IF(MONTH(B67)=2,'General Calculation'!$F$21,IF(MONTH(B67)=3,'General Calculation'!$G$21,IF(MONTH(B67)=4,'General Calculation'!$H$21,IF(MONTH(B67)=5,'General Calculation'!$I$21,IF(MONTH(B67)=6,'General Calculation'!$J$21,IF(MONTH(B67)=7,'General Calculation'!$K$21,IF(MONTH(B67)=8,'General Calculation'!$L$21,IF(MONTH(B67)=9,'General Calculation'!$M$21,IF(MONTH(B67)=10,'General Calculation'!$N$21,IF(MONTH(B67)=11,'General Calculation'!$O$21,IF(MONTH(B67)=12,'General Calculation'!$P$21,"")))))))))))) -> 5.3892 | E67: =IF(C67="Initial Stage",'Calculation Sheet Crop 1'!$M$6,IF(C67="Crop Development Phase",'Calculation Sheet Crop 1'!$M$7,IF(C67="Mid Season",'Calculation Sheet Crop 1'!$M$8,IF(C67="Late Season Stage",'Calculation Sheet Crop 1'!$M$9,"")))) -> 1.15 | F67: 6.19758 | P67: 0 | Q67: 0 | R67: 6.19758 | S67: 0 | T67: 0 | U67: 0 | V67: 0 | W67: 0 | X67: 0 | Y67: 0 | Z67: 0 | AA67: 0
B68: 2017-03-03 | C68: =IF(AND(B68>='Calculation Sheet Crop 1'!$K$6,B68<='Calculation Sheet Crop 1'!$L$6),"Initial Stage",IF(AND(B68+1>'Calculation Sheet Crop 1'!$K$7,B68<='Calculation Sheet Crop 1'!$L$7),"Crop Development Phase",IF(AND(B68+1>'Calculation Sheet Crop 1'!$K$8,B68<'Calculation Sheet Crop 1'!$L$8+1),"Mid Season",IF(AND(B68+1>'Calculation Sheet Crop 1'!$K$9,B68-1<'Calculation Sheet Crop 1'!$L$9),"Late Season Stage","")))) -> Mid Season | D68: =IF(MONTH(B68)=1,'General Calculation'!$E$21,IF(MONTH(B68)=2,'General Calculation'!$F$21,IF(MONTH(B68)=3,'General Calculation'!$G$21,IF(MONTH(B68)=4,'General Calculation'!$H$21,IF(MONTH(B68)=5,'General Calculation'!$I$21,IF(MONTH(B68)=6,'General Calculation'!$J$21,IF(MONTH(B68)=7,'General Calculation'!$K$21,IF(MONTH(B68)=8,'General Calculation'!$L$21,IF(MONTH(B68)=9,'General Calculation'!$M$21,IF(MONTH(B68)=10,'General Calculation'!$N$21,IF(MONTH(B68)=11,'General Calculation'!$O$21,IF(MONTH(B68)=12,'General Calculation'!$P$21,"")))))))))))) -> 5.3892 | E68: =IF(C68="Initial Stage",'Calculation Sheet Crop 1'!$M$6,IF(C68="Crop Development Phase",'Calculation Sheet Crop 1'!$M$7,IF(C68="Mid Season",'Calculation Sheet Crop 1'!$M$8,IF(C68="Late Season Stage",'Calculation Sheet Crop 1'!$M$9,"")))) -> 1.15 | F68: 6.19758 | P68: 0 | Q68: 0 | R68: 6.19758 | S68: 0 | T68: 0 | U68: 0 | V68: 0 | W68: 0 | X68: 0 | Y68: 0 | Z68: 0 | AA68: 0
B69: 2017-03-04 | C69: =IF(AND(B69>='Calculation Sheet Crop 1'!$K$6,B69<='Calculation Sheet Crop 1'!$L$6),"Initial Stage",IF(AND(B69+1>'Calculation Sheet Crop 1'!$K$7,B69<='Calculation Sheet Crop 1'!$L$7),"Crop Development Phase",IF(AND(B69+1>'Calculation Sheet Crop 1'!$K$8,B69<'Calculation Sheet Crop 1'!$L$8+1),"Mid Season",IF(AND(B69+1>'Calculation Sheet Crop 1'!$K$9,B69-1<'Calculation Sheet Crop 1'!$L$9),"Late Season Stage","")))) -> Mid Season | D69: =IF(MONTH(B69)=1,'General Calculation'!$E$21,IF(MONTH(B69)=2,'General Calculation'!$F$21,IF(MONTH(B69)=3,'General Calculation'!$G$21,IF(MONTH(B69)=4,'General Calculation'!$H$21,IF(MONTH(B69)=5,'General Calculation'!$I$21,IF(MONTH(B69)=6,'General Calculation'!$J$21,IF(MONTH(B69)=7,'General Calculation'!$K$21,IF(MONTH(B69)=8,'General Calculation'!$L$21,IF(MONTH(B69)=9,'General Calculation'!$M$21,IF(MONTH(B69)=10,'General Calculation'!$N$21,IF(MONTH(B69)=11,'General Calculation'!$O$21,IF(MONTH(B69)=12,'General Calculation'!$P$21,"")))))))))))) -> 5.3892 | E69: =IF(C69="Initial Stage",'Calculation Sheet Crop 1'!$M$6,IF(C69="Crop Development Phase",'Calculation Sheet Crop 1'!$M$7,IF(C69="Mid Season",'Calculation Sheet Crop 1'!$M$8,IF(C69="Late Season Stage",'Calculation Sheet Crop 1'!$M$9,"")))) -> 1.15 | F69: 6.19758 | P69: 0 | Q69: 0 | R69: 6.19758 | S69: 0 | T69: 0 | U69: 0 | V69: 0 | W69: 0 | X69: 0 | Y69: 0 | Z69: 0 | AA69: 0
B70: 2017-03-05 | C70: =IF(AND(B70>='Calculation Sheet Crop 1'!$K$6,B70<='Calculation Sheet Crop 1'!$L$6),"Initial Stage",IF(AND(B70+1>'Calculation Sheet Crop 1'!$K$7,B70<='Calculation Sheet Crop 1'!$L$7),"Crop Development Phase",IF(AND(B70+1>'Calculation Sheet Crop 1'!$K$8,B70<'Calculation Sheet Crop 1'!$L$8+1),"Mid Season",IF(AND(B70+1>'Calculation Sheet Crop 1'!$K$9,B70-1<'Calculation Sheet Crop 1'!$L$9),"Late Season Stage","")))) -> Mid Season | D70: =IF(MONTH(B70)=1,'General Calculation'!$E$21,IF(MONTH(B70)=2,'General Calculation'!$F$21,IF(MONTH(B70)=3,'General Calculation'!$G$21,IF(MONTH(B70)=4,'General Calculation'!$H$21,IF(MONTH(B70)=5,'General Calculation'!$I$21,IF(MONTH(B70)=6,'General Calculation'!$J$21,IF(MONTH(B70)=7,'General Calculation'!$K$21,IF(MONTH(B70)=8,'General Calculation'!$L$21,IF(MONTH(B70)=9,'General Calculation'!$M$21,IF(MONTH(B70)=10,'General Calculation'!$N$21,IF(MONTH(B70)=11,'General Calculation'!$O$21,IF(MONTH(B70)=12,'General Calculation'!$P$21,"")))))))))))) -> 5.3892 | E70: =IF(C70="Initial Stage",'Calculation Sheet Crop 1'!$M$6,IF(C70="Crop Development Phase",'Calculation Sheet Crop 1'!$M$7,IF(C70="Mid Season",'Calculation Sheet Crop 1'!$M$8,IF(C70="Late Season Stage",'Calculation Sheet Crop 1'!$M$9,"")))) -> 1.15 | F70: 6.19758 | P70: 0 | Q70: 0 | R70: 6.19758 | S70: 0 | T70: 0 | U70: 0 | V70: 0 | W70: 0 | X70: 0 | Y70: 0 | Z70: 0 | AA70: 0
B71: 2017-03-06 | C71: =IF(AND(B71>='Calculation Sheet Crop 1'!$K$6,B71<='Calculation Sheet Crop 1'!$L$6),"Initial Stage",IF(AND(B71+1>'Calculation Sheet Crop 1'!$K$7,B71<='Calculation Sheet Crop 1'!$L$7),"Crop Development Phase",IF(AND(B71+1>'Calculation Sheet Crop 1'!$K$8,B71<'Calculation Sheet Crop 1'!$L$8+1),"Mid Season",IF(AND(B71+1>'Calculation Sheet Crop 1'!$K$9,B71-1<'Calculation Sheet Crop 1'!$L$9),"Late Season Stage","")))) -> Mid Season | D71: =IF(MONTH(B71)=1,'General Calculation'!$E$21,IF(MONTH(B71)=2,'General Calculation'!$F$21,IF(MONTH(B71)=3,'General Calculation'!$G$21,IF(MONTH(B71)=4,'General Calculation'!$H$21,IF(MONTH(B71)=5,'General Calculation'!$I$21,IF(MONTH(B71)=6,'General Calculation'!$J$21,IF(MONTH(B71)=7,'General Calculation'!$K$21,IF(MONTH(B71)=8,'General Calculation'!$L$21,IF(MONTH(B71)=9,'General Calculation'!$M$21,IF(MONTH(B71)=10,'General Calculation'!$N$21,IF(MONTH(B71)=11,'General Calculation'!$O$21,IF(MONTH(B71)=12,'General Calculation'!$P$21,"")))))))))))) -> 5.3892 | E71: =IF(C71="Initial Stage",'Calculation Sheet Crop 1'!$M$6,IF(C71="Crop Development Phase",'Calculation Sheet Crop 1'!$M$7,IF(C71="Mid Season",'Calculation Sheet Crop 1'!$M$8,IF(C71="Late Season Stage",'Calculation Sheet Crop 1'!$M$9,"")))) -> 1.15 | F71: 6.19758 | P71: 0 | Q71: 0 | R71: 6.19758 | S71: 0 | T71: 0 | U71: 0 | V71: 0 | W71: 0 | X71: 0 | Y71: 0 | Z71: 0 | AA71: 0
B72: 2017-03-07 | C72: =IF(AND(B72>='Calculation Sheet Crop 1'!$K$6,B72<='Calculation Sheet Crop 1'!$L$6),"Initial Stage",IF(AND(B72+1>'Calculation Sheet Crop 1'!$K$7,B72<='Calculation Sheet Crop 1'!$L$7),"Crop Development Phase",IF(AND(B72+1>'Calculation Sheet Crop 1'!$K$8,B72<'Calculation Sheet Crop 1'!$L$8+1),"Mid Season",IF(AND(B72+1>'Calculation Sheet Crop 1'!$K$9,B72-1<'Calculation Sheet Crop 1'!$L$9),"Late Season Stage","")))) -> Mid Season | D72: =IF(MONTH(B72)=1,'General Calculation'!$E$21,IF(MONTH(B72)=2,'General Calculation'!$F$21,IF(MONTH(B72)=3,'General Calculation'!$G$21,IF(MONTH(B72)=4,'General Calculation'!$H$21,IF(MONTH(B72)=5,'General Calculation'!$I$21,IF(MONTH(B72)=6,'General Calculation'!$J$21,IF(MONTH(B72)=7,'General Calculation'!$K$21,IF(MONTH(B72)=8,'General Calculation'!$L$21,IF(MONTH(B72)=9,'General Calculation'!$M$21,IF(MONTH(B72)=10,'General Calculation'!$N$21,IF(MONTH(B72)=11,'General Calculation'!$O$21,IF(MONTH(B72)=12,'General Calculation'!$P$21,"")))))))))))) -> 5.3892 | E72: =IF(C72="Initial Stage",'Calculation Sheet Crop 1'!$M$6,IF(C72="Crop Development Phase",'Calculation Sheet Crop 1'!$M$7,IF(C72="Mid Season",'Calculation Sheet Crop 1'!$M$8,IF(C72="Late Season Stage",'Calculation Sheet Crop 1'!$M$9,"")))) -> 1.15 | F72: =IFERROR((D72*E72),0) -> 6.19758 | P72: =IF(MONTH($B72)=1,$F72,0) -> 0 | Q72: =IF(MONTH($B72)=2,$F72,0) -> 0 | R72: =IF(MONTH($B72)=3,$F72,0) -> 6.19758 | S72: =IF(MONTH($B72)=4,$F72,0) -> 0 | T72: =IF(MONTH($B72)=5,$F72,0) -> 0 | U72: =IF(MONTH($B72)=6,$F72,0) -> 0 | V72: =IF(MONTH($B72)=7,$F72,0) -> 0 | W72: =IF(MONTH($B72)=8,$F72,0) -> 0 | X72: =IF(MONTH($B72)=9,$F72,0) -> 0 | Y72: =IF(MONTH($B72)=10,$F72,0) -> 0 | Z72: =IF(MONTH($B72)=11,$F72,0) -> 0 | AA72: =IF(MONTH($B72)=12,$F72,0) -> 0
B73: 2017-03-08 | C73: =IF(AND(B73>='Calculation Sheet Crop 1'!$K$6,B73<='Calculation Sheet Crop 1'!$L$6),"Initial Stage",IF(AND(B73+1>'Calculation Sheet Crop 1'!$K$7,B73<='Calculation Sheet Crop 1'!$L$7),"Crop Development Phase",IF(AND(B73+1>'Calculation Sheet Crop 1'!$K$8,B73<'Calculation Sheet Crop 1'!$L$8+1),"Mid Season",IF(AND(B73+1>'Calculation Sheet Crop 1'!$K$9,B73-1<'Calculation Sheet Crop 1'!$L$9),"Late Season Stage","")))) -> Mid Season | D73: =IF(MONTH(B73)=1,'General Calculation'!$E$21,IF(MONTH(B73)=2,'General Calculation'!$F$21,IF(MONTH(B73)=3,'General Calculation'!$G$21,IF(MONTH(B73)=4,'General Calculation'!$H$21,IF(MONTH(B73)=5,'General Calculation'!$I$21,IF(MONTH(B73)=6,'General Calculation'!$J$21,IF(MONTH(B73)=7,'General Calculation'!$K$21,IF(MONTH(B73)=8,'General Calculation'!$L$21,IF(MONTH(B73)=9,'General Calculation'!$M$21,IF(MONTH(B73)=10,'General Calculation'!$N$21,IF(MONTH(B73)=11,'General Calculation'!$O$21,IF(MONTH(B73)=12,'General Calculation'!$P$21,"")))))))))))) -> 5.3892 | E73: =IF(C73="Initial Stage",'Calculation Sheet Crop 1'!$M$6,IF(C73="Crop Development Phase",'Calculation Sheet Crop 1'!$M$7,IF(C73="Mid Season",'Calculation Sheet Crop 1'!$M$8,IF(C73="Late Season Stage",'Calculation Sheet Crop 1'!$M$9,"")))) -> 1.15 | F73: 6.19758 | P73: 0 | Q73: 0 | R73: 6.19758 | S73: 0 | T73: 0 | U73: 0 | V73: 0 | W73: 0 | X73: 0 | Y73: 0 | Z73: 0 | AA73: 0
B74: 2017-03-09 | C74: =IF(AND(B74>='Calculation Sheet Crop 1'!$K$6,B74<='Calculation Sheet Crop 1'!$L$6),"Initial Stage",IF(AND(B74+1>'Calculation Sheet Crop 1'!$K$7,B74<='Calculation Sheet Crop 1'!$L$7),"Crop Development Phase",IF(AND(B74+1>'Calculation Sheet Crop 1'!$K$8,B74<'Calculation Sheet Crop 1'!$L$8+1),"Mid Season",IF(AND(B74+1>'Calculation Sheet Crop 1'!$K$9,B74-1<'Calculation Sheet Crop 1'!$L$9),"Late Season Stage","")))) -> Mid Season | D74: =IF(MONTH(B74)=1,'General Calculation'!$E$21,IF(MONTH(B74)=2,'General Calculation'!$F$21,IF(MONTH(B74)=3,'General Calculation'!$G$21,IF(MONTH(B74)=4,'General Calculation'!$H$21,IF(MONTH(B74)=5,'General Calculation'!$I$21,IF(MONTH(B74)=6,'General Calculation'!$J$21,IF(MONTH(B74)=7,'General Calculation'!$K$21,IF(MONTH(B74)=8,'General Calculation'!$L$21,IF(MONTH(B74)=9,'General Calculation'!$M$21,IF(MONTH(B74)=10,'General Calculation'!$N$21,IF(MONTH(B74)=11,'General Calculation'!$O$21,IF(MONTH(B74)=12,'General Calculation'!$P$21,"")))))))))))) -> 5.3892 | E74: =IF(C74="Initial Stage",'Calculation Sheet Crop 1'!$M$6,IF(C74="Crop Development Phase",'Calculation Sheet Crop 1'!$M$7,IF(C74="Mid Season",'Calculation Sheet Crop 1'!$M$8,IF(C74="Late Season Stage",'Calculation Sheet Crop 1'!$M$9,"")))) -> 1.15 | F74: 6.19758 | P74: 0 | Q74: 0 | R74: 6.19758 | S74: 0 | T74: 0 | U74: 0 | V74: 0 | W74: 0 | X74: 0 | Y74: 0 | Z74: 0 | AA74: 0
B75: 2017-03-10 | C75: =IF(AND(B75>='Calculation Sheet Crop 1'!$K$6,B75<='Calculation Sheet Crop 1'!$L$6),"Initial Stage",IF(AND(B75+1>'Calculation Sheet Crop 1'!$K$7,B75<='Calculation Sheet Crop 1'!$L$7),"Crop Development Phase",IF(AND(B75+1>'Calculation Sheet Crop 1'!$K$8,B75<'Calculation Sheet Crop 1'!$L$8+1),"Mid Season",IF(AND(B75+1>'Calculation Sheet Crop 1'!$K$9,B75-1<'Calculation Sheet Crop 1'!$L$9),"Late Season Stage","")))) -> Mid Season | D75: =IF(MONTH(B75)=1,'General Calculation'!$E$21,IF(MONTH(B75)=2,'General Calculation'!$F$21,IF(MONTH(B75)=3,'General Calculation'!$G$21,IF(MONTH(B75)=4,'General Calculation'!$H$21,IF(MONTH(B75)=5,'General Calculation'!$I$21,IF(MONTH(B75)=6,'General Calculation'!$J$21,IF(MONTH(B75)=7,'General Calculation'!$K$21,IF(MONTH(B75)=8,'General Calculation'!$L$21,IF(MONTH(B75)=9,'General Calculation'!$M$21,IF(MONTH(B75)=10,'General Calculation'!$N$21,IF(MONTH(B75)=11,'General Calculation'!$O$21,IF(MONTH(B75)=12,'General Calculation'!$P$21,"")))))))))))) -> 5.3892 | E75: =IF(C75="Initial Stage",'Calculation Sheet Crop 1'!$M$6,IF(C75="Crop Development Phase",'Calculation Sheet Crop 1'!$M$7,IF(C75="Mid Season",'Calculation Sheet Crop 1'!$M$8,IF(C75="Late Season Stage",'Calculation Sheet Crop 1'!$M$9,"")))) -> 1.15 | F75: 6.19758 | P75: 0 | Q75: 0 | R75: 6.19758 | S75: 0 | T75: 0 | U75: 0 | V75: 0 | W75: 0 | X75: 0 | Y75: 0 | Z75: 0 | AA75: 0
B76: 2017-03-11 | C76: =IF(AND(B76>='Calculation Sheet Crop 1'!$K$6,B76<='Calculation Sheet Crop 1'!$L$6),"Initial Stage",IF(AND(B76+1>'Calculation Sheet Crop 1'!$K$7,B76<='Calculation Sheet Crop 1'!$L$7),"Crop Development Phase",IF(AND(B76+1>'Calculation Sheet Crop 1'!$K$8,B76<'Calculation Sheet Crop 1'!$L$8+1),"Mid Season",IF(AND(B76+1>'Calculation Sheet Crop 1'!$K$9,B76-1<'Calculation Sheet Crop 1'!$L$9),"Late Season Stage","")))) -> Mid Season | D76: =IF(MONTH(B76)=1,'General Calculation'!$E$21,IF(MONTH(B76)=2,'General Calculation'!$F$21,IF(MONTH(B76)=3,'General Calculation'!$G$21,IF(MONTH(B76)=4,'General Calculation'!$H$21,IF(MONTH(B76)=5,'General Calculation'!$I$21,IF(MONTH(B76)=6,'General Calculation'!$J$21,IF(MONTH(B76)=7,'General Calculation'!$K$21,IF(MONTH(B76)=8,'General Calculation'!$L$21,IF(MONTH(B76)=9,'General Calculation'!$M$21,IF(MONTH(B76)=10,'General Calculation'!$N$21,IF(MONTH(B76)=11,'General Calculation'!$O$21,IF(MONTH(B76)=12,'General Calculation'!$P$21,"")))))))))))) -> 5.3892 | E76: =IF(C76="Initial Stage",'Calculation Sheet Crop 1'!$M$6,IF(C76="Crop Development Phase",'Calculation Sheet Crop 1'!$M$7,IF(C76="Mid Season",'Calculation Sheet Crop 1'!$M$8,IF(C76="Late Season Stage",'Calculation Sheet Crop 1'!$M$9,"")))) -> 1.15 | F76: 6.19758 | P76: 0 | Q76: 0 | R76: 6.19758 | S76: 0 | T76: 0 | U76: 0 | V76: 0 | W76: 0 | X76: 0 | Y76: 0 | Z76: 0 | AA76: 0
B77: 2017-03-12 | C77: =IF(AND(B77>='Calculation Sheet Crop 1'!$K$6,B77<='Calculation Sheet Crop 1'!$L$6),"Initial Stage",IF(AND(B77+1>'Calculation Sheet Crop 1'!$K$7,B77<='Calculation Sheet Crop 1'!$L$7),"Crop Development Phase",IF(AND(B77+1>'Calculation Sheet Crop 1'!$K$8,B77<'Calculation Sheet Crop 1'!$L$8+1),"Mid Season",IF(AND(B77+1>'Calculation Sheet Crop 1'!$K$9,B77-1<'Calculation Sheet Crop 1'!$L$9),"Late Season Stage","")))) -> Mid Season | D77: =IF(MONTH(B77)=1,'General Calculation'!$E$21,IF(MONTH(B77)=2,'General Calculation'!$F$21,IF(MONTH(B77)=3,'General Calculation'!$G$21,IF(MONTH(B77)=4,'General Calculation'!$H$21,IF(MONTH(B77)=5,'General Calculation'!$I$21,IF(MONTH(B77)=6,'General Calculation'!$J$21,IF(MONTH(B77)=7,'General Calculation'!$K$21,IF(MONTH(B77)=8,'General Calculation'!$L$21,IF(MONTH(B77)=9,'General Calculation'!$M$21,IF(MONTH(B77)=10,'General Calculation'!$N$21,IF(MONTH(B77)=11,'General Calculation'!$O$21,IF(MONTH(B77)=12,'General Calculation'!$P$21,"")))))))))))) -> 5.3892 | E77: =IF(C77="Initial Stage",'Calculation Sheet Crop 1'!$M$6,IF(C77="Crop Development Phase",'Calculation Sheet Crop 1'!$M$7,IF(C77="Mid Season",'Calculation Sheet Crop 1'!$M$8,IF(C77="Late Season Stage",'Calculation Sheet Crop 1'!$M$9,"")))) -> 1.15 | F77: 6.19758 | P77: 0 | Q77: 0 | R77: 6.19758 | S77: 0 | T77: 0 | U77: 0 | V77: 0 | W77: 0 | X77: 0 | Y77: 0 | Z77: 0 | AA77: 0
B78: 2017-03-13 | C78: =IF(AND(B78>='Calculation Sheet Crop 1'!$K$6,B78<='Calculation Sheet Crop 1'!$L$6),"Initial Stage",IF(AND(B78+1>'Calculation Sheet Crop 1'!$K$7,B78<='Calculation Sheet Crop 1'!$L$7),"Crop Development Phase",IF(AND(B78+1>'Calculation Sheet Crop 1'!$K$8,B78<'Calculation Sheet Crop 1'!$L$8+1),"Mid Season",IF(AND(B78+1>'Calculation Sheet Crop 1'!$K$9,B78-1<'Calculation Sheet Crop 1'!$L$9),"Late Season Stage","")))) -> Mid Season | D78: =IF(MONTH(B78)=1,'General Calculation'!$E$21,IF(MONTH(B78)=2,'General Calculation'!$F$21,IF(MONTH(B78)=3,'General Calculation'!$G$21,IF(MONTH(B78)=4,'General Calculation'!$H$21,IF(MONTH(B78)=5,'General Calculation'!$I$21,IF(MONTH(B78)=6,'General Calculation'!$J$21,IF(MONTH(B78)=7,'General Calculation'!$K$21,IF(MONTH(B78)=8,'General Calculation'!$L$21,IF(MONTH(B78)=9,'General Calculation'!$M$21,IF(MONTH(B78)=10,'General Calculation'!$N$21,IF(MONTH(B78)=11,'General Calculation'!$O$21,IF(MONTH(B78)=12,'General Calculation'!$P$21,"")))))))))))) -> 5.3892 | E78: =IF(C78="Initial Stage",'Calculation Sheet Crop 1'!$M$6,IF(C78="Crop Development Phase",'Calculation Sheet Crop 1'!$M$7,IF(C78="Mid Season",'Calculation Sheet Crop 1'!$M$8,IF(C78="Late Season Stage",'Calculation Sheet Crop 1'!$M$9,"")))) -> 1.15 | F78: 6.19758 | P78: 0 | Q78: 0 | R78: 6.19758 | S78: 0 | T78: 0 | U78: 0 | V78: 0 | W78: 0 | X78: 0 | Y78: 0 | Z78: 0 | AA78: 0
B79: 2017-03-14 | C79: =IF(AND(B79>='Calculation Sheet Crop 1'!$K$6,B79<='Calculation Sheet Crop 1'!$L$6),"Initial Stage",IF(AND(B79+1>'Calculation Sheet Crop 1'!$K$7,B79<='Calculation Sheet Crop 1'!$L$7),"Crop Development Phase",IF(AND(B79+1>'Calculation Sheet Crop 1'!$K$8,B79<'Calculation Sheet Crop 1'!$L$8+1),"Mid Season",IF(AND(B79+1>'Calculation Sheet Crop 1'!$K$9,B79-1<'Calculation Sheet Crop 1'!$L$9),"Late Season Stage","")))) -> Mid Season | D79: =IF(MONTH(B79)=1,'General Calculation'!$E$21,IF(MONTH(B79)=2,'General Calculation'!$F$21,IF(MONTH(B79)=3,'General Calculation'!$G$21,IF(MONTH(B79)=4,'General Calculation'!$H$21,IF(MONTH(B79)=5,'General Calculation'!$I$21,IF(MONTH(B79)=6,'General Calculation'!$J$21,IF(MONTH(B79)=7,'General Calculation'!$K$21,IF(MONTH(B79)=8,'General Calculation'!$L$21,IF(MONTH(B79)=9,'General Calculation'!$M$21,IF(MONTH(B79)=10,'General Calculation'!$N$21,IF(MONTH(B79)=11,'General Calculation'!$O$21,IF(MONTH(B79)=12,'General Calculation'!$P$21,"")))))))))))) -> 5.3892 | E79: =IF(C79="Initial Stage",'Calculation Sheet Crop 1'!$M$6,IF(C79="Crop Development Phase",'Calculation Sheet Crop 1'!$M$7,IF(C79="Mid Season",'Calculation Sheet Crop 1'!$M$8,IF(C79="Late Season Stage",'Calculation Sheet Crop 1'!$M$9,"")))) -> 1.15 | F79: 6.19758 | P79: 0 | Q79: 0 | R79: 6.19758 | S79: 0 | T79: 0 | U79: 0 | V79: 0 | W79: 0 | X79: 0 | Y79: 0 | Z79: 0 | AA79: 0
B80: 2017-03-15 | C80: =IF(AND(B80>='Calculation Sheet Crop 1'!$K$6,B80<='Calculation Sheet Crop 1'!$L$6),"Initial Stage",IF(AND(B80+1>'Calculation Sheet Crop 1'!$K$7,B80<='Calculation Sheet Crop 1'!$L$7),"Crop Development Phase",IF(AND(B80+1>'Calculation Sheet Crop 1'!$K$8,B80<'Calculation Sheet Crop 1'!$L$8+1),"Mid Season",IF(AND(B80+1>'Calculation Sheet Crop 1'!$K$9,B80-1<'Calculation Sheet Crop 1'!$L$9),"Late Season Stage","")))) -> Mid Season | D80: =IF(MONTH(B80)=1,'General Calculation'!$E$21,IF(MONTH(B80)=2,'General Calculation'!$F$21,IF(MONTH(B80)=3,'General Calculation'!$G$21,IF(MONTH(B80)=4,'General Calculation'!$H$21,IF(MONTH(B80)=5,'General Calculation'!$I$21,IF(MONTH(B80)=6,'General Calculation'!$J$21,IF(MONTH(B80)=7,'General Calculation'!$K$21,IF(MONTH(B80)=8,'General Calculation'!$L$21,IF(MONTH(B80)=9,'General Calculation'!$M$21,IF(MONTH(B80)=10,'General Calculation'!$N$21,IF(MONTH(B80)=11,'General Calculation'!$O$21,IF(MONTH(B80)=12,'General Calculation'!$P$21,"")))))))))))) -> 5.3892 | E80: =IF(C80="Initial Stage",'Calculation Sheet Crop 1'!$M$6,IF(C80="Crop Development Phase",'Calculation Sheet Crop 1'!$M$7,IF(C80="Mid Season",'Calculation Sheet Crop 1'!$M$8,IF(C80="Late Season Stage",'Calculation Sheet Crop 1'!$M$9,"")))) -> 1.15 | F80: 6.19758 | P80: 0 | Q80: 0 | R80: 6.19758 | S80: 0 | T80: 0 | U80: 0 | V80: 0 | W80: 0 | X80: 0 | Y80: 0 | Z80: 0 | AA80: 0
B81: 2017-03-16 | C81: =IF(AND(B81>='Calculation Sheet Crop 1'!$K$6,B81<='Calculation Sheet Crop 1'!$L$6),"Initial Stage",IF(AND(B81+1>'Calculation Sheet Crop 1'!$K$7,B81<='Calculation Sheet Crop 1'!$L$7),"Crop Development Phase",IF(AND(B81+1>'Calculation Sheet Crop 1'!$K$8,B81<'Calculation Sheet Crop 1'!$L$8+1),"Mid Season",IF(AND(B81+1>'Calculation Sheet Crop 1'!$K$9,B81-1<'Calculation Sheet Crop 1'!$L$9),"Late Season Stage","")))) -> Mid Season | D81: =IF(MONTH(B81)=1,'General Calculation'!$E$21,IF(MONTH(B81)=2,'General Calculation'!$F$21,IF(MONTH(B81)=3,'General Calculation'!$G$21,IF(MONTH(B81)=4,'General Calculation'!$H$21,IF(MONTH(B81)=5,'General Calculation'!$I$21,IF(MONTH(B81)=6,'General Calculation'!$J$21,IF(MONTH(B81)=7,'General Calculation'!$K$21,IF(MONTH(B81)=8,'General Calculation'!$L$21,IF(MONTH(B81)=9,'General Calculation'!$M$21,IF(MONTH(B81)=10,'General Calculation'!$N$21,IF(MONTH(B81)=11,'General Calculation'!$O$21,IF(MONTH(B81)=12,'General Calculation'!$P$21,"")))))))))))) -> 5.3892 | E81: =IF(C81="Initial Stage",'Calculation Sheet Crop 1'!$M$6,IF(C81="Crop Development Phase",'Calculation Sheet Crop 1'!$M$7,IF(C81="Mid Season",'Calculation Sheet Crop 1'!$M$8,IF(C81="Late Season Stage",'Calculation Sheet Crop 1'!$M$9,"")))) -> 1.15 | F81: 6.19758 | P81: 0 | Q81: 0 | R81: 6.19758 | S81: 0 | T81: 0 | U81: 0 | V81: 0 | W81: 0 | X81: 0 | Y81: 0 | Z81: 0 | AA81: 0
B82: 2017-03-17 | C82: =IF(AND(B82>='Calculation Sheet Crop 1'!$K$6,B82<='Calculation Sheet Crop 1'!$L$6),"Initial Stage",IF(AND(B82+1>'Calculation Sheet Crop 1'!$K$7,B82<='Calculation Sheet Crop 1'!$L$7),"Crop Development Phase",IF(AND(B82+1>'Calculation Sheet Crop 1'!$K$8,B82<'Calculation Sheet Crop 1'!$L$8+1),"Mid Season",IF(AND(B82+1>'Calculation Sheet Crop 1'!$K$9,B82-1<'Calculation Sheet Crop 1'!$L$9),"Late Season Stage","")))) -> Mid Season | D82: =IF(MONTH(B82)=1,'General Calculation'!$E$21,IF(MONTH(B82)=2,'General Calculation'!$F$21,IF(MONTH(B82)=3,'General Calculation'!$G$21,IF(MONTH(B82)=4,'General Calculation'!$H$21,IF(MONTH(B82)=5,'General Calculation'!$I$21,IF(MONTH(B82)=6,'General Calculation'!$J$21,IF(MONTH(B82)=7,'General Calculation'!$K$21,IF(MONTH(B82)=8,'General Calculation'!$L$21,IF(MONTH(B82)=9,'General Calculation'!$M$21,IF(MONTH(B82)=10,'General Calculation'!$N$21,IF(MONTH(B82)=11,'General Calculation'!$O$21,IF(MONTH(B82)=12,'General Calculation'!$P$21,"")))))))))))) -> 5.3892 | E82: =IF(C82="Initial Stage",'Calculation Sheet Crop 1'!$M$6,IF(C82="Crop Development Phase",'Calculation Sheet Crop 1'!$M$7,IF(C82="Mid Season",'Calculation Sheet Crop 1'!$M$8,IF(C82="Late Season Stage",'Calculation Sheet Crop 1'!$M$9,"")))) -> 1.15 | F82: 6.19758 | P82: 0 | Q82: 0 | R82: 6.19758 | S82: 0 | T82: 0 | U82: 0 | V82: 0 | W82: 0 | X82: 0 | Y82: 0 | Z82: 0 | AA82: 0
B83: 2017-03-18 | C83: =IF(AND(B83>='Calculation Sheet Crop 1'!$K$6,B83<='Calculation Sheet Crop 1'!$L$6),"Initial Stage",IF(AND(B83+1>'Calculation Sheet Crop 1'!$K$7,B83<='Calculation Sheet Crop 1'!$L$7),"Crop Development Phase",IF(AND(B83+1>'Calculation Sheet Crop 1'!$K$8,B83<'Calculation Sheet Crop 1'!$L$8+1),"Mid Season",IF(AND(B83+1>'Calculation Sheet Crop 1'!$K$9,B83-1<'Calculation Sheet Crop 1'!$L$9),"Late Season Stage","")))) -> Mid Season | D83: =IF(MONTH(B83)=1,'General Calculation'!$E$21,IF(MONTH(B83)=2,'General Calculation'!$F$21,IF(MONTH(B83)=3,'General Calculation'!$G$21,IF(MONTH(B83)=4,'General Calculation'!$H$21,IF(MONTH(B83)=5,'General Calculation'!$I$21,IF(MONTH(B83)=6,'General Calculation'!$J$21,IF(MONTH(B83)=7,'General Calculation'!$K$21,IF(MONTH(B83)=8,'General Calculation'!$L$21,IF(MONTH(B83)=9,'General Calculation'!$M$21,IF(MONTH(B83)=10,'General Calculation'!$N$21,IF(MONTH(B83)=11,'General Calculation'!$O$21,IF(MONTH(B83)=12,'General Calculation'!$P$21,"")))))))))))) -> 5.3892 | E83: =IF(C83="Initial Stage",'Calculation Sheet Crop 1'!$M$6,IF(C83="Crop Development Phase",'Calculation Sheet Crop 1'!$M$7,IF(C83="Mid Season",'Calculation Sheet Crop 1'!$M$8,IF(C83="Late Season Stage",'Calculation Sheet Crop 1'!$M$9,"")))) -> 1.15 | F83: 6.19758 | P83: 0 | Q83: 0 | R83: 6.19758 | S83: 0 | T83: 0 | U83: 0 | V83: 0 | W83: 0 | X83: 0 | Y83: 0 | Z83: 0 | AA83: 0
B84: 2017-03-19 | C84: =IF(AND(B84>='Calculation Sheet Crop 1'!$K$6,B84<='Calculation Sheet Crop 1'!$L$6),"Initial Stage",IF(AND(B84+1>'Calculation Sheet Crop 1'!$K$7,B84<='Calculation Sheet Crop 1'!$L$7),"Crop Development Phase",IF(AND(B84+1>'Calculation Sheet Crop 1'!$K$8,B84<'Calculation Sheet Crop 1'!$L$8+1),"Mid Season",IF(AND(B84+1>'Calculation Sheet Crop 1'!$K$9,B84-1<'Calculation Sheet Crop 1'!$L$9),"Late Season Stage","")))) -> Mid Season | D84: =IF(MONTH(B84)=1,'General Calculation'!$E$21,IF(MONTH(B84)=2,'General Calculation'!$F$21,IF(MONTH(B84)=3,'General Calculation'!$G$21,IF(MONTH(B84)=4,'General Calculation'!$H$21,IF(MONTH(B84)=5,'General Calculation'!$I$21,IF(MONTH(B84)=6,'General Calculation'!$J$21,IF(MONTH(B84)=7,'General Calculation'!$K$21,IF(MONTH(B84)=8,'General Calculation'!$L$21,IF(MONTH(B84)=9,'General Calculation'!$M$21,IF(MONTH(B84)=10,'General Calculation'!$N$21,IF(MONTH(B84)=11,'General Calculation'!$O$21,IF(MONTH(B84)=12,'General Calculation'!$P$21,"")))))))))))) -> 5.3892 | E84: =IF(C84="Initial Stage",'Calculation Sheet Crop 1'!$M$6,IF(C84="Crop Development Phase",'Calculation Sheet Crop 1'!$M$7,IF(C84="Mid Season",'Calculation Sheet Crop 1'!$M$8,IF(C84="Late Season Stage",'Calculation Sheet Crop 1'!$M$9,"")))) -> 1.15 | F84: 6.19758 | P84: 0 | Q84: 0 | R84: 6.19758 | S84: 0 | T84: 0 | U84: 0 | V84: 0 | W84: 0 | X84: 0 | Y84: 0 | Z84: 0 | AA84: 0
B85: 2017-03-20 | C85: =IF(AND(B85>='Calculation Sheet Crop 1'!$K$6,B85<='Calculation Sheet Crop 1'!$L$6),"Initial Stage",IF(AND(B85+1>'Calculation Sheet Crop 1'!$K$7,B85<='Calculation Sheet Crop 1'!$L$7),"Crop Development Phase",IF(AND(B85+1>'Calculation Sheet Crop 1'!$K$8,B85<'Calculation Sheet Crop 1'!$L$8+1),"Mid Season",IF(AND(B85+1>'Calculation Sheet Crop 1'!$K$9,B85-1<'Calculation Sheet Crop 1'!$L$9),"Late Season Stage","")))) -> Mid Season | D85: =IF(MONTH(B85)=1,'General Calculation'!$E$21,IF(MONTH(B85)=2,'General Calculation'!$F$21,IF(MONTH(B85)=3,'General Calculation'!$G$21,IF(MONTH(B85)=4,'General Calculation'!$H$21,IF(MONTH(B85)=5,'General Calculation'!$I$21,IF(MONTH(B85)=6,'General Calculation'!$J$21,IF(MONTH(B85)=7,'General Calculation'!$K$21,IF(MONTH(B85)=8,'General Calculation'!$L$21,IF(MONTH(B85)=9,'General Calculation'!$M$21,IF(MONTH(B85)=10,'General Calculation'!$N$21,IF(MONTH(B85)=11,'General Calculation'!$O$21,IF(MONTH(B85)=12,'General Calculation'!$P$21,"")))))))))))) -> 5.3892 | E85: =IF(C85="Initial Stage",'Calculation Sheet Crop 1'!$M$6,IF(C85="Crop Development Phase",'Calculation Sheet Crop 1'!$M$7,IF(C85="Mid Season",'Calculation Sheet Crop 1'!$M$8,IF(C85="Late Season Stage",'Calculation Sheet Crop 1'!$M$9,"")))) -> 1.15 | F85: 6.19758 | P85: 0 | Q85: 0 | R85: 6.19758 | S85: 0 | T85: 0 | U85: 0 | V85: 0 | W85: 0 | X85: 0 | Y85: 0 | Z85: 0 | AA85: 0
B86: 2017-03-21 | C86: =IF(AND(B86>='Calculation Sheet Crop 1'!$K$6,B86<='Calculation Sheet Crop 1'!$L$6),"Initial Stage",IF(AND(B86+1>'Calculation Sheet Crop 1'!$K$7,B86<='Calculation Sheet Crop 1'!$L$7),"Crop Development Phase",IF(AND(B86+1>'Calculation Sheet Crop 1'!$K$8,B86<'Calculation Sheet Crop 1'!$L$8+1),"Mid Season",IF(AND(B86+1>'Calculation Sheet Crop 1'!$K$9,B86-1<'Calculation Sheet Crop 1'!$L$9),"Late Season Stage","")))) -> Mid Season | D86: =IF(MONTH(B86)=1,'General Calculation'!$E$21,IF(MONTH(B86)=2,'General Calculation'!$F$21,IF(MONTH(B86)=3,'General Calculation'!$G$21,IF(MONTH(B86)=4,'General Calculation'!$H$21,IF(MONTH(B86)=5,'General Calculation'!$I$21,IF(MONTH(B86)=6,'General Calculation'!$J$21,IF(MONTH(B86)=7,'General Calculation'!$K$21,IF(MONTH(B86)=8,'General Calculation'!$L$21,IF(MONTH(B86)=9,'General Calculation'!$M$21,IF(MONTH(B86)=10,'General Calculation'!$N$21,IF(MONTH(B86)=11,'General Calculation'!$O$21,IF(MONTH(B86)=12,'General Calculation'!$P$21,"")))))))))))) -> 5.3892 | E86: =IF(C86="Initial Stage",'Calculation Sheet Crop 1'!$M$6,IF(C86="Crop Development Phase",'Calculation Sheet Crop 1'!$M$7,IF(C86="Mid Season",'Calculation Sheet Crop 1'!$M$8,IF(C86="Late Season Stage",'Calculation Sheet Crop 1'!$M$9,"")))) -> 1.15 | F86: 6.19758 | P86: 0 | Q86: 0 | R86: 6.19758 | S86: 0 | T86: 0 | U86: 0 | V86: 0 | W86: 0 | X86: 0 | Y86: 0 | Z86: 0 | AA86: 0
B87: 2017-03-22 | C87: =IF(AND(B87>='Calculation Sheet Crop 1'!$K$6,B87<='Calculation Sheet Crop 1'!$L$6),"Initial Stage",IF(AND(B87+1>'Calculation Sheet Crop 1'!$K$7,B87<='Calculation Sheet Crop 1'!$L$7),"Crop Development Phase",IF(AND(B87+1>'Calculation Sheet Crop 1'!$K$8,B87<'Calculation Sheet Crop 1'!$L$8+1),"Mid Season",IF(AND(B87+1>'Calculation Sheet Crop 1'!$K$9,B87-1<'Calculation Sheet Crop 1'!$L$9),"Late Season Stage","")))) -> Mid Season | D87: =IF(MONTH(B87)=1,'General Calculation'!$E$21,IF(MONTH(B87)=2,'General Calculation'!$F$21,IF(MONTH(B87)=3,'General Calculation'!$G$21,IF(MONTH(B87)=4,'General Calculation'!$H$21,IF(MONTH(B87)=5,'General Calculation'!$I$21,IF(MONTH(B87)=6,'General Calculation'!$J$21,IF(MONTH(B87)=7,'General Calculation'!$K$21,IF(MONTH(B87)=8,'General Calculation'!$L$21,IF(MONTH(B87)=9,'General Calculation'!$M$21,IF(MONTH(B87)=10,'General Calculation'!$N$21,IF(MONTH(B87)=11,'General Calculation'!$O$21,IF(MONTH(B87)=12,'General Calculation'!$P$21,"")))))))))))) -> 5.3892 | E87: =IF(C87="Initial Stage",'Calculation Sheet Crop 1'!$M$6,IF(C87="Crop Development Phase",'Calculation Sheet Crop 1'!$M$7,IF(C87="Mid Season",'Calculation Sheet Crop 1'!$M$8,IF(C87="Late Season Stage",'Calculation Sheet Crop 1'!$M$9,"")))) -> 1.15 | F87: 6.19758 | P87: 0 | Q87: 0 | R87: 6.19758 | S87: 0 | T87: 0 | U87: 0 | V87: 0 | W87: 0 | X87: 0 | Y87: 0 | Z87: 0 | AA87: 0
B88: 2017-03-23 | C88: =IF(AND(B88>='Calculation Sheet Crop 1'!$K$6,B88<='Calculation Sheet Crop 1'!$L$6),"Initial Stage",IF(AND(B88+1>'Calculation Sheet Crop 1'!$K$7,B88<='Calculation Sheet Crop 1'!$L$7),"Crop Development Phase",IF(AND(B88+1>'Calculation Sheet Crop 1'!$K$8,B88<'Calculation Sheet Crop 1'!$L$8+1),"Mid Season",IF(AND(B88+1>'Calculation Sheet Crop 1'!$K$9,B88-1<'Calculation Sheet Crop 1'!$L$9),"Late Season Stage","")))) -> Mid Season | D88: =IF(MONTH(B88)=1,'General Calculation'!$E$21,IF(MONTH(B88)=2,'General Calculation'!$F$21,IF(MONTH(B88)=3,'General Calculation'!$G$21,IF(MONTH(B88)=4,'General Calculation'!$H$21,IF(MONTH(B88)=5,'General Calculation'!$I$21,IF(MONTH(B88)=6,'General Calculation'!$J$21,IF(MONTH(B88)=7,'General Calculation'!$K$21,IF(MONTH(B88)=8,'General Calculation'!$L$21,IF(MONTH(B88)=9,'General Calculation'!$M$21,IF(MONTH(B88)=10,'General Calculation'!$N$21,IF(MONTH(B88)=11,'General Calculation'!$O$21,IF(MONTH(B88)=12,'General Calculation'!$P$21,"")))))))))))) -> 5.3892 | E88: =IF(C88="Initial Stage",'Calculation Sheet Crop 1'!$M$6,IF(C88="Crop Development Phase",'Calculation Sheet Crop 1'!$M$7,IF(C88="Mid Season",'Calculation Sheet Crop 1'!$M$8,IF(C88="Late Season Stage",'Calculation Sheet Crop 1'!$M$9,"")))) -> 1.15 | F88: 6.19758 | P88: 0 | Q88: 0 | R88: 6.19758 | S88: 0 | T88: 0 | U88: 0 | V88: 0 | W88: 0 | X88: 0 | Y88: 0 | Z88: 0 | AA88: 0
B89: 2017-03-24 | C89: =IF(AND(B89>='Calculation Sheet Crop 1'!$K$6,B89<='Calculation Sheet Crop 1'!$L$6),"Initial Stage",IF(AND(B89+1>'Calculation Sheet Crop 1'!$K$7,B89<='Calculation Sheet Crop 1'!$L$7),"Crop Development Phase",IF(AND(B89+1>'Calculation Sheet Crop 1'!$K$8,B89<'Calculation Sheet Crop 1'!$L$8+1),"Mid Season",IF(AND(B89+1>'Calculation Sheet Crop 1'!$K$9,B89-1<'Calculation Sheet Crop 1'!$L$9),"Late Season Stage","")))) -> Mid Season | D89: =IF(MONTH(B89)=1,'General Calculation'!$E$21,IF(MONTH(B89)=2,'General Calculation'!$F$21,IF(MONTH(B89)=3,'General Calculation'!$G$21,IF(MONTH(B89)=4,'General Calculation'!$H$21,IF(MONTH(B89)=5,'General Calculation'!$I$21,IF(MONTH(B89)=6,'General Calculation'!$J$21,IF(MONTH(B89)=7,'General Calculation'!$K$21,IF(MONTH(B89)=8,'General Calculation'!$L$21,IF(MONTH(B89)=9,'General Calculation'!$M$21,IF(MONTH(B89)=10,'General Calculation'!$N$21,IF(MONTH(B89)=11,'General Calculation'!$O$21,IF(MONTH(B89)=12,'General Calculation'!$P$21,"")))))))))))) -> 5.3892 | E89: =IF(C89="Initial Stage",'Calculation Sheet Crop 1'!$M$6,IF(C89="Crop Development Phase",'Calculation Sheet Crop 1'!$M$7,IF(C89="Mid Season",'Calculation Sheet Crop 1'!$M$8,IF(C89="Late Season Stage",'Calculation Sheet Crop 1'!$M$9,"")))) -> 1.15 | F89: 6.19758 | P89: 0 | Q89: 0 | R89: 6.19758 | S89: 0 | T89: 0 | U89: 0 | V89: 0 | W89: 0 | X89: 0 | Y89: 0 | Z89: 0 | AA89: 0
B90: 2017-03-25 | C90: =IF(AND(B90>='Calculation Sheet Crop 1'!$K$6,B90<='Calculation Sheet Crop 1'!$L$6),"Initial Stage",IF(AND(B90+1>'Calculation Sheet Crop 1'!$K$7,B90<='Calculation Sheet Crop 1'!$L$7),"Crop Development Phase",IF(AND(B90+1>'Calculation Sheet Crop 1'!$K$8,B90<'Calculation Sheet Crop 1'!$L$8+1),"Mid Season",IF(AND(B90+1>'Calculation Sheet Crop 1'!$K$9,B90-1<'Calculation Sheet Crop 1'!$L$9),"Late Season Stage","")))) -> Mid Season | D90: =IF(MONTH(B90)=1,'General Calculation'!$E$21,IF(MONTH(B90)=2,'General Calculation'!$F$21,IF(MONTH(B90)=3,'General Calculation'!$G$21,IF(MONTH(B90)=4,'General Calculation'!$H$21,IF(MONTH(B90)=5,'General Calculation'!$I$21,IF(MONTH(B90)=6,'General Calculation'!$J$21,IF(MONTH(B90)=7,'General Calculation'!$K$21,IF(MONTH(B90)=8,'General Calculation'!$L$21,IF(MONTH(B90)=9,'General Calculation'!$M$21,IF(MONTH(B90)=10,'General Calculation'!$N$21,IF(MONTH(B90)=11,'General Calculation'!$O$21,IF(MONTH(B90)=12,'General Calculation'!$P$21,"")))))))))))) -> 5.3892 | E90: =IF(C90="Initial Stage",'Calculation Sheet Crop 1'!$M$6,IF(C90="Crop Development Phase",'Calculation Sheet Crop 1'!$M$7,IF(C90="Mid Season",'Calculation Sheet Crop 1'!$M$8,IF(C90="Late Season Stage",'Calculation Sheet Crop 1'!$M$9,"")))) -> 1.15 | F90: 6.19758 | P90: 0 | Q90: 0 | R90: 6.19758 | S90: 0 | T90: 0 | U90: 0 | V90: 0 | W90: 0 | X90: 0 | Y90: 0 | Z90: 0 | AA90: 0
B91: 2017-03-26 | C91: =IF(AND(B91>='Calculation Sheet Crop 1'!$K$6,B91<='Calculation Sheet Crop 1'!$L$6),"Initial Stage",IF(AND(B91+1>'Calculation Sheet Crop 1'!$K$7,B91<='Calculation Sheet Crop 1'!$L$7),"Crop Development Phase",IF(AND(B91+1>'Calculation Sheet Crop 1'!$K$8,B91<'Calculation Sheet Crop 1'!$L$8+1),"Mid Season",IF(AND(B91+1>'Calculation Sheet Crop 1'!$K$9,B91-1<'Calculation Sheet Crop 1'!$L$9),"Late Season Stage","")))) -> Mid Season | D91: =IF(MONTH(B91)=1,'General Calculation'!$E$21,IF(MONTH(B91)=2,'General Calculation'!$F$21,IF(MONTH(B91)=3,'General Calculation'!$G$21,IF(MONTH(B91)=4,'General Calculation'!$H$21,IF(MONTH(B91)=5,'General Calculation'!$I$21,IF(MONTH(B91)=6,'General Calculation'!$J$21,IF(MONTH(B91)=7,'General Calculation'!$K$21,IF(MONTH(B91)=8,'General Calculation'!$L$21,IF(MONTH(B91)=9,'General Calculation'!$M$21,IF(MONTH(B91)=10,'General Calculation'!$N$21,IF(MONTH(B91)=11,'General Calculation'!$O$21,IF(MONTH(B91)=12,'General Calculation'!$P$21,"")))))))))))) -> 5.3892 | E91: =IF(C91="Initial Stage",'Calculation Sheet Crop 1'!$M$6,IF(C91="Crop Development Phase",'Calculation Sheet Crop 1'!$M$7,IF(C91="Mid Season",'Calculation Sheet Crop 1'!$M$8,IF(C91="Late Season Stage",'Calculation Sheet Crop 1'!$M$9,"")))) -> 1.15 | F91: 6.19758 | P91: 0 | Q91: 0 | R91: 6.19758 | S91: 0 | T91: 0 | U91: 0 | V91: 0 | W91: 0 | X91: 0 | Y91: 0 | Z91: 0 | AA91: 0
B92: 2017-03-27 | C92: =IF(AND(B92>='Calculation Sheet Crop 1'!$K$6,B92<='Calculation Sheet Crop 1'!$L$6),"Initial Stage",IF(AND(B92+1>'Calculation Sheet Crop 1'!$K$7,B92<='Calculation Sheet Crop 1'!$L$7),"Crop Development Phase",IF(AND(B92+1>'Calculation Sheet Crop 1'!$K$8,B92<'Calculation Sheet Crop 1'!$L$8+1),"Mid Season",IF(AND(B92+1>'Calculation Sheet Crop 1'!$K$9,B92-1<'Calculation Sheet Crop 1'!$L$9),"Late Season Stage","")))) -> Mid Season | D92: =IF(MONTH(B92)=1,'General Calculation'!$E$21,IF(MONTH(B92)=2,'General Calculation'!$F$21,IF(MONTH(B92)=3,'General Calculation'!$G$21,IF(MONTH(B92)=4,'General Calculation'!$H$21,IF(MONTH(B92)=5,'General Calculation'!$I$21,IF(MONTH(B92)=6,'General Calculation'!$J$21,IF(MONTH(B92)=7,'General Calculation'!$K$21,IF(MONTH(B92)=8,'General Calculation'!$L$21,IF(MONTH(B92)=9,'General Calculation'!$M$21,IF(MONTH(B92)=10,'General Calculation'!$N$21,IF(MONTH(B92)=11,'General Calculation'!$O$21,IF(MONTH(B92)=12,'General Calculation'!$P$21,"")))))))))))) -> 5.3892 | E92: =IF(C92="Initial Stage",'Calculation Sheet Crop 1'!$M$6,IF(C92="Crop Development Phase",'Calculation Sheet Crop 1'!$M$7,IF(C92="Mid Season",'Calculation Sheet Crop 1'!$M$8,IF(C92="Late Season Stage",'Calculation Sheet Crop 1'!$M$9,"")))) -> 1.15 | F92: 6.19758 | P92: 0 | Q92: 0 | R92: 6.19758 | S92: 0 | T92: 0 | U92: 0 | V92: 0 | W92: 0 | X92: 0 | Y92: 0 | Z92: 0 | AA92: 0
B93: 2017-03-28 | C93: =IF(AND(B93>='Calculation Sheet Crop 1'!$K$6,B93<='Calculation Sheet Crop 1'!$L$6),"Initial Stage",IF(AND(B93+1>'Calculation Sheet Crop 1'!$K$7,B93<='Calculation Sheet Crop 1'!$L$7),"Crop Development Phase",IF(AND(B93+1>'Calculation Sheet Crop 1'!$K$8,B93<'Calculation Sheet Crop 1'!$L$8+1),"Mid Season",IF(AND(B93+1>'Calculation Sheet Crop 1'!$K$9,B93-1<'Calculation Sheet Crop 1'!$L$9),"Late Season Stage","")))) -> Mid Season | D93: =IF(MONTH(B93)=1,'General Calculation'!$E$21,IF(MONTH(B93)=2,'General Calculation'!$F$21,IF(MONTH(B93)=3,'General Calculation'!$G$21,IF(MONTH(B93)=4,'General Calculation'!$H$21,IF(MONTH(B93)=5,'General Calculation'!$I$21,IF(MONTH(B93)=6,'General Calculation'!$J$21,IF(MONTH(B93)=7,'General Calculation'!$K$21,IF(MONTH(B93)=8,'General Calculation'!$L$21,IF(MONTH(B93)=9,'General Calculation'!$M$21,IF(MONTH(B93)=10,'General Calculation'!$N$21,IF(MONTH(B93)=11,'General Calculation'!$O$21,IF(MONTH(B93)=12,'General Calculation'!$P$21,"")))))))))))) -> 5.3892 | E93: =IF(C93="Initial Stage",'Calculation Sheet Crop 1'!$M$6,IF(C93="Crop Development Phase",'Calculation Sheet Crop 1'!$M$7,IF(C93="Mid Season",'Calculation Sheet Crop 1'!$M$8,IF(C93="Late Season Stage",'Calculation Sheet Crop 1'!$M$9,"")))) -> 1.15 | F93: 6.19758 | P93: 0 | Q93: 0 | R93: 6.19758 | S93: 0 | T93: 0 | U93: 0 | V93: 0 | W93: 0 | X93: 0 | Y93: 0 | Z93: 0 | AA93: 0
B94: 2017-03-29 | C94: =IF(AND(B94>='Calculation Sheet Crop 1'!$K$6,B94<='Calculation Sheet Crop 1'!$L$6),"Initial Stage",IF(AND(B94+1>'Calculation Sheet Crop 1'!$K$7,B94<='Calculation Sheet Crop 1'!$L$7),"Crop Development Phase",IF(AND(B94+1>'Calculation Sheet Crop 1'!$K$8,B94<'Calculation Sheet Crop 1'!$L$8+1),"Mid Season",IF(AND(B94+1>'Calculation Sheet Crop 1'!$K$9,B94-1<'Calculation Sheet Crop 1'!$L$9),"Late Season Stage","")))) -> Mid Season | D94: =IF(MONTH(B94)=1,'General Calculation'!$E$21,IF(MONTH(B94)=2,'General Calculation'!$F$21,IF(MONTH(B94)=3,'General Calculation'!$G$21,IF(MONTH(B94)=4,'General Calculation'!$H$21,IF(MONTH(B94)=5,'General Calculation'!$I$21,IF(MONTH(B94)=6,'General Calculation'!$J$21,IF(MONTH(B94)=7,'General Calculation'!$K$21,IF(MONTH(B94)=8,'General Calculation'!$L$21,IF(MONTH(B94)=9,'General Calculation'!$M$21,IF(MONTH(B94)=10,'General Calculation'!$N$21,IF(MONTH(B94)=11,'General Calculation'!$O$21,IF(MONTH(B94)=12,'General Calculation'!$P$21,"")))))))))))) -> 5.3892 | E94: =IF(C94="Initial Stage",'Calculation Sheet Crop 1'!$M$6,IF(C94="Crop Development Phase",'Calculation Sheet Crop 1'!$M$7,IF(C94="Mid Season",'Calculation Sheet Crop 1'!$M$8,IF(C94="Late Season Stage",'Calculation Sheet Crop 1'!$M$9,"")))) -> 1.15 | F94: 6.19758 | P94: 0 | Q94: 0 | R94: 6.19758 | S94: 0 | T94: 0 | U94: 0 | V94: 0 | W94: 0 | X94: 0 | Y94: 0 | Z94: 0 | AA94: 0
B95: 2017-03-30 | C95: =IF(AND(B95>='Calculation Sheet Crop 1'!$K$6,B95<='Calculation Sheet Crop 1'!$L$6),"Initial Stage",IF(AND(B95+1>'Calculation Sheet Crop 1'!$K$7,B95<='Calculation Sheet Crop 1'!$L$7),"Crop Development Phase",IF(AND(B95+1>'Calculation Sheet Crop 1'!$K$8,B95<'Calculation Sheet Crop 1'!$L$8+1),"Mid Season",IF(AND(B95+1>'Calculation Sheet Crop 1'!$K$9,B95-1<'Calculation Sheet Crop 1'!$L$9),"Late Season Stage","")))) -> Mid Season | D95: =IF(MONTH(B95)=1,'General Calculation'!$E$21,IF(MONTH(B95)=2,'General Calculation'!$F$21,IF(MONTH(B95)=3,'General Calculation'!$G$21,IF(MONTH(B95)=4,'General Calculation'!$H$21,IF(MONTH(B95)=5,'General Calculation'!$I$21,IF(MONTH(B95)=6,'General Calculation'!$J$21,IF(MONTH(B95)=7,'General Calculation'!$K$21,IF(MONTH(B95)=8,'General Calculation'!$L$21,IF(MONTH(B95)=9,'General Calculation'!$M$21,IF(MONTH(B95)=10,'General Calculation'!$N$21,IF(MONTH(B95)=11,'General Calculation'!$O$21,IF(MONTH(B95)=12,'General Calculation'!$P$21,"")))))))))))) -> 5.3892 | E95: =IF(C95="Initial Stage",'Calculation Sheet Crop 1'!$M$6,IF(C95="Crop Development Phase",'Calculation Sheet Crop 1'!$M$7,IF(C95="Mid Season",'Calculation Sheet Crop 1'!$M$8,IF(C95="Late Season Stage",'Calculation Sheet Crop 1'!$M$9,"")))) -> 1.15 | F95: 6.19758 | P95: 0 | Q95: 0 | R95: 6.19758 | S95: 0 | T95: 0 | U95: 0 | V95: 0 | W95: 0 | X95: 0 | Y95: 0 | Z95: 0 | AA95: 0
B96: 2017-03-31 | C96: =IF(AND(B96>='Calculation Sheet Crop 1'!$K$6,B96<='Calculation Sheet Crop 1'!$L$6),"Initial Stage",IF(AND(B96+1>'Calculation Sheet Crop 1'!$K$7,B96<='Calculation Sheet Crop 1'!$L$7),"Crop Development Phase",IF(AND(B96+1>'Calculation Sheet Crop 1'!$K$8,B96<'Calculation Sheet Crop 1'!$L$8+1),"Mid Season",IF(AND(B96+1>'Calculation Sheet Crop 1'!$K$9,B96-1<'Calculation Sheet Crop 1'!$L$9),"Late Season Stage","")))) -> Mid Season | D96: =IF(MONTH(B96)=1,'General Calculation'!$E$21,IF(MONTH(B96)=2,'General Calculation'!$F$21,IF(MONTH(B96)=3,'General Calculation'!$G$21,IF(MONTH(B96)=4,'General Calculation'!$H$21,IF(MONTH(B96)=5,'General Calculation'!$I$21,IF(MONTH(B96)=6,'General Calculation'!$J$21,IF(MONTH(B96)=7,'General Calculation'!$K$21,IF(MONTH(B96)=8,'General Calculation'!$L$21,IF(MONTH(B96)=9,'General Calculation'!$M$21,IF(MONTH(B96)=10,'General Calculation'!$N$21,IF(MONTH(B96)=11,'General Calculation'!$O$21,IF(MONTH(B96)=12,'General Calculation'!$P$21,"")))))))))))) -> 5.3892 | E96: =IF(C96="Initial Stage",'Calculation Sheet Crop 1'!$M$6,IF(C96="Crop Development Phase",'Calculation Sheet Crop 1'!$M$7,IF(C96="Mid Season",'Calculation Sheet Crop 1'!$M$8,IF(C96="Late Season Stage",'Calculation Sheet Crop 1'!$M$9,"")))) -> 1.15 | F96: 6.19758 | P96: 0 | Q96: 0 | R96: 6.19758 | S96: 0 | T96: 0 | U96: 0 | V96: 0 | W96: 0 | X96: 0 | Y96: 0 | Z96: 0 | AA96: 0
B97: 2017-04-01 | C97: =IF(AND(B97>='Calculation Sheet Crop 1'!$K$6,B97<='Calculation Sheet Crop 1'!$L$6),"Initial Stage",IF(AND(B97+1>'Calculation Sheet Crop 1'!$K$7,B97<='Calculation Sheet Crop 1'!$L$7),"Crop Development Phase",IF(AND(B97+1>'Calculation Sheet Crop 1'!$K$8,B97<'Calculation Sheet Crop 1'!$L$8+1),"Mid Season",IF(AND(B97+1>'Calculation Sheet Crop 1'!$K$9,B97-1<'Calculation Sheet Crop 1'!$L$9),"Late Season Stage","")))) -> Mid Season | D97: =IF(MONTH(B97)=1,'General Calculation'!$E$21,IF(MONTH(B97)=2,'General Calculation'!$F$21,IF(MONTH(B97)=3,'General Calculation'!$G$21,IF(MONTH(B97)=4,'General Calculation'!$H$21,IF(MONTH(B97)=5,'General Calculation'!$I$21,IF(MONTH(B97)=6,'General Calculation'!$J$21,IF(MONTH(B97)=7,'General Calculation'!$K$21,IF(MONTH(B97)=8,'General Calculation'!$L$21,IF(MONTH(B97)=9,'General Calculation'!$M$21,IF(MONTH(B97)=10,'General Calculation'!$N$21,IF(MONTH(B97)=11,'General Calculation'!$O$21,IF(MONTH(B97)=12,'General Calculation'!$P$21,"")))))))))))) -> 5.7884 | E97: =IF(C97="Initial Stage",'Calculation Sheet Crop 1'!$M$6,IF(C97="Crop Development Phase",'Calculation Sheet Crop 1'!$M$7,IF(C97="Mid Season",'Calculation Sheet Crop 1'!$M$8,IF(C97="Late Season Stage",'Calculation Sheet Crop 1'!$M$9,"")))) -> 1.15 | F97: 6.65666 | P97: 0 | Q97: 0 | R97: 0 | S97: 6.65666 | T97: 0 | U97: 0 | V97: 0 | W97: 0 | X97: 0 | Y97: 0 | Z97: 0 | AA97: 0
B98: 2017-04-02 | C98: =IF(AND(B98>='Calculation Sheet Crop 1'!$K$6,B98<='Calculation Sheet Crop 1'!$L$6),"Initial Stage",IF(AND(B98+1>'Calculation Sheet Crop 1'!$K$7,B98<='Calculation Sheet Crop 1'!$L$7),"Crop Development Phase",IF(AND(B98+1>'Calculation Sheet Crop 1'!$K$8,B98<'Calculation Sheet Crop 1'!$L$8+1),"Mid Season",IF(AND(B98+1>'Calculation Sheet Crop 1'!$K$9,B98-1<'Calculation Sheet Crop 1'!$L$9),"Late Season Stage","")))) -> Mid Season | D98: =IF(MONTH(B98)=1,'General Calculation'!$E$21,IF(MONTH(B98)=2,'General Calculation'!$F$21,IF(MONTH(B98)=3,'General Calculation'!$G$21,IF(MONTH(B98)=4,'General Calculation'!$H$21,IF(MONTH(B98)=5,'General Calculation'!$I$21,IF(MONTH(B98)=6,'General Calculation'!$J$21,IF(MONTH(B98)=7,'General Calculation'!$K$21,IF(MONTH(B98)=8,'General Calculation'!$L$21,IF(MONTH(B98)=9,'General Calculation'!$M$21,IF(MONTH(B98)=10,'General Calculation'!$N$21,IF(MONTH(B98)=11,'General Calculation'!$O$21,IF(MONTH(B98)=12,'General Calculation'!$P$21,"")))))))))))) -> 5.7884 | E98: =IF(C98="Initial Stage",'Calculation Sheet Crop 1'!$M$6,IF(C98="Crop Development Phase",'Calculation Sheet Crop 1'!$M$7,IF(C98="Mid Season",'Calculation Sheet Crop 1'!$M$8,IF(C98="Late Season Stage",'Calculation Sheet Crop 1'!$M$9,"")))) -> 1.15 | F98: 6.65666 | P98: 0 | Q98: 0 | R98: 0 | S98: 6.65666 | T98: 0 | U98: 0 | V98: 0 | W98: 0 | X98: 0 | Y98: 0 | Z98: 0 | AA98: 0
B99: 2017-04-03 | C99: =IF(AND(B99>='Calculation Sheet Crop 1'!$K$6,B99<='Calculation Sheet Crop 1'!$L$6),"Initial Stage",IF(AND(B99+1>'Calculation Sheet Crop 1'!$K$7,B99<='Calculation Sheet Crop 1'!$L$7),"Crop Development Phase",IF(AND(B99+1>'Calculation Sheet Crop 1'!$K$8,B99<'Calculation Sheet Crop 1'!$L$8+1),"Mid Season",IF(AND(B99+1>'Calculation Sheet Crop 1'!$K$9,B99-1<'Calculation Sheet Crop 1'!$L$9),"Late Season Stage","")))) -> Mid Season | D99: =IF(MONTH(B99)=1,'General Calculation'!$E$21,IF(MONTH(B99)=2,'General Calculation'!$F$21,IF(MONTH(B99)=3,'General Calculation'!$G$21,IF(MONTH(B99)=4,'General Calculation'!$H$21,IF(MONTH(B99)=5,'General Calculation'!$I$21,IF(MONTH(B99)=6,'General Calculation'!$J$21,IF(MONTH(B99)=7,'General Calculation'!$K$21,IF(MONTH(B99)=8,'General Calculation'!$L$21,IF(MONTH(B99)=9,'General Calculation'!$M$21,IF(MONTH(B99)=10,'General Calculation'!$N$21,IF(MONTH(B99)=11,'General Calculation'!$O$21,IF(MONTH(B99)=12,'General Calculation'!$P$21,"")))))))))))) -> 5.7884 | E99: =IF(C99="Initial Stage",'Calculation Sheet Crop 1'!$M$6,IF(C99="Crop Development Phase",'Calculation Sheet Crop 1'!$M$7,IF(C99="Mid Season",'Calculation Sheet Crop 1'!$M$8,IF(C99="Late Season Stage",'Calculation Sheet Crop 1'!$M$9,"")))) -> 1.15 | F99: 6.65666 | P99: 0 | Q99: 0 | R99: 0 | S99: 6.65666 | T99: 0 | U99: 0 | V99: 0 | W99: 0 | X99: 0 | Y99: 0 | Z99: 0 | AA99: 0
B100: 2017-04-04 | C100: =IF(AND(B100>='Calculation Sheet Crop 1'!$K$6,B100<='Calculation Sheet Crop 1'!$L$6),"Initial Stage",IF(AND(B100+1>'Calculation Sheet Crop 1'!$K$7,B100<='Calculation Sheet Crop 1'!$L$7),"Crop Development Phase",IF(AND(B100+1>'Calculation Sheet Crop 1'!$K$8,B100<'Calculation Sheet Crop 1'!$L$8+1),"Mid Season",IF(AND(B100+1>'Calculation Sheet Crop 1'!$K$9,B100-1<'Calculation Sheet Crop 1'!$L$9),"Late Season Stage","")))) -> Late Season Stage | D100: =IF(MONTH(B100)=1,'General Calculation'!$E$21,IF(MONTH(B100)=2,'General Calculation'!$F$21,IF(MONTH(B100)=3,'General Calculation'!$G$21,IF(MONTH(B100)=4,'General Calculation'!$H$21,IF(MONTH(B100)=5,'General Calculation'!$I$21,IF(MONTH(B100)=6,'General Calculation'!$J$21,IF(MONTH(B100)=7,'General Calculation'!$K$21,IF(MONTH(B100)=8,'General Calculation'!$L$21,IF(MONTH(B100)=9,'General Calculation'!$M$21,IF(MONTH(B100)=10,'General Calculation'!$N$21,IF(MONTH(B100)=11,'General Calculation'!$O$21,IF(MONTH(B100)=12,'General Calculation'!$P$21,"")))))))))))) -> 5.7884 | E100: =IF(C100="Initial Stage",'Calculation Sheet Crop 1'!$M$6,IF(C100="Crop Development Phase",'Calculation Sheet Crop 1'!$M$7,IF(C100="Mid Season",'Calculation Sheet Crop 1'!$M$8,IF(C100="Late Season Stage",'Calculation Sheet Crop 1'!$M$9,"")))) -> 0.45 | F100: 2.60478 | P100: 0 | Q100: 0 | R100: 0 | S100: 2.60478 | T100: 0 | U100: 0 | V100: 0 | W100: 0 | X100: 0 | Y100: 0 | Z100: 0 | AA100: 0
B101: 2017-04-05 | C101: =IF(AND(B101>='Calculation Sheet Crop 1'!$K$6,B101<='Calculation Sheet Crop 1'!$L$6),"Initial Stage",IF(AND(B101+1>'Calculation Sheet Crop 1'!$K$7,B101<='Calculation Sheet Crop 1'!$L$7),"Crop Development Phase",IF(AND(B101+1>'Calculation Sheet Crop 1'!$K$8,B101<'Calculation Sheet Crop 1'!$L$8+1),"Mid Season",IF(AND(B101+1>'Calculation Sheet Crop 1'!$K$9,B101-1<'Calculation Sheet Crop 1'!$L$9),"Late Season Stage","")))) -> Late Season Stage | D101: =IF(MONTH(B101)=1,'General Calculation'!$E$21,IF(MONTH(B101)=2,'General Calculation'!$F$21,IF(MONTH(B101)=3,'General Calculation'!$G$21,IF(MONTH(B101)=4,'General Calculation'!$H$21,IF(MONTH(B101)=5,'General Calculation'!$I$21,IF(MONTH(B101)=6,'General Calculation'!$J$21,IF(MONTH(B101)=7,'General Calculation'!$K$21,IF(MONTH(B101)=8,'General Calculation'!$L$21,IF(MONTH(B101)=9,'General Calculation'!$M$21,IF(MONTH(B101)=10,'General Calculation'!$N$21,IF(MONTH(B101)=11,'General Calculation'!$O$21,IF(MONTH(B101)=12,'General Calculation'!$P$21,"")))))))))))) -> 5.7884 | E101: =IF(C101="Initial Stage",'Calculation Sheet Crop 1'!$M$6,IF(C101="Crop Development Phase",'Calculation Sheet Crop 1'!$M$7,IF(C101="Mid Season",'Calculation Sheet Crop 1'!$M$8,IF(C101="Late Season Stage",'Calculation Sheet Crop 1'!$M$9,"")))) -> 0.45 | F101: 2.60478 | P101: 0 | Q101: 0 | R101: 0 | S101: 2.60478 | T101: 0 | U101: 0 | V101: 0 | W101: 0 | X101: 0 | Y101: 0 | Z101: 0 | AA101: 0
B102: 2017-04-06 | C102: =IF(AND(B102>='Calculation Sheet Crop 1'!$K$6,B102<='Calculation Sheet Crop 1'!$L$6),"Initial Stage",IF(AND(B102+1>'Calculation Sheet Crop 1'!$K$7,B102<='Calculation Sheet Crop 1'!$L$7),"Crop Development Phase",IF(AND(B102+1>'Calculation Sheet Crop 1'!$K$8,B102<'Calculation Sheet Crop 1'!$L$8+1),"Mid Season",IF(AND(B102+1>'Calculation Sheet Crop 1'!$K$9,B102-1<'Calculation Sheet Crop 1'!$L$9),"Late Season Stage","")))) -> Late Season Stage | D102: =IF(MONTH(B102)=1,'General Calculation'!$E$21,IF(MONTH(B102)=2,'General Calculation'!$F$21,IF(MONTH(B102)=3,'General Calculation'!$G$21,IF(MONTH(B102)=4,'General Calculation'!$H$21,IF(MONTH(B102)=5,'General Calculation'!$I$21,IF(MONTH(B102)=6,'General Calculation'!$J$21,IF(MONTH(B102)=7,'General Calculation'!$K$21,IF(MONTH(B102)=8,'General Calculation'!$L$21,IF(MONTH(B102)=9,'General Calculation'!$M$21,IF(MONTH(B102)=10,'General Calculation'!$N$21,IF(MONTH(B102)=11,'General Calculation'!$O$21,IF(MONTH(B102)=12,'General Calculation'!$P$21,"")))))))))))) -> 5.7884 | E102: =IF(C102="Initial Stage",'Calculation Sheet Crop 1'!$M$6,IF(C102="Crop Development Phase",'Calculation Sheet Crop 1'!$M$7,IF(C102="Mid Season",'Calculation Sheet Crop 1'!$M$8,IF(C102="Late Season Stage",'Calculation Sheet Crop 1'!$M$9,"")))) -> 0.45 | F102: 2.60478 | P102: 0 | Q102: 0 | R102: 0 | S102: 2.60478 | T102: 0 | U102: 0 | V102: 0 | W102: 0 | X102: 0 | Y102: 0 | Z102: 0 | AA102: 0
B103: 2017-04-07 | C103: =IF(AND(B103>='Calculation Sheet Crop 1'!$K$6,B103<='Calculation Sheet Crop 1'!$L$6),"Initial Stage",IF(AND(B103+1>'Calculation Sheet Crop 1'!$K$7,B103<='Calculation Sheet Crop 1'!$L$7),"Crop Development Phase",IF(AND(B103+1>'Calculation Sheet Crop 1'!$K$8,B103<'Calculation Sheet Crop 1'!$L$8+1),"Mid Season",IF(AND(B103+1>'Calculation Sheet Crop 1'!$K$9,B103-1<'Calculation Sheet Crop 1'!$L$9),"Late Season Stage","")))) -> Late Season Stage | D103: =IF(MONTH(B103)=1,'General Calculation'!$E$21,IF(MONTH(B103)=2,'General Calculation'!$F$21,IF(MONTH(B103)=3,'General Calculation'!$G$21,IF(MONTH(B103)=4,'General Calculation'!$H$21,IF(MONTH(B103)=5,'General Calculation'!$I$21,IF(MONTH(B103)=6,'General Calculation'!$J$21,IF(MONTH(B103)=7,'General Calculation'!$K$21,IF(MONTH(B103)=8,'General Calculation'!$L$21,IF(MONTH(B103)=9,'General Calculation'!$M$21,IF(MONTH(B103)=10,'General Calculation'!$N$21,IF(MONTH(B103)=11,'General Calculation'!$O$21,IF(MONTH(B103)=12,'General Calculation'!$P$21,"")))))))))))) -> 5.7884 | E103: =IF(C103="Initial Stage",'Calculation Sheet Crop 1'!$M$6,IF(C103="Crop Development Phase",'Calculation Sheet Crop 1'!$M$7,IF(C103="Mid Season",'Calculation Sheet Crop 1'!$M$8,IF(C103="Late Season Stage",'Calculation Sheet Crop 1'!$M$9,"")))) -> 0.45 | F103: 2.60478 | P103: 0 | Q103: 0 | R103: 0 | S103: 2.60478 | T103: 0 | U103: 0 | V103: 0 | W103: 0 | X103: 0 | Y103: 0 | Z103: 0 | AA103: 0
B104: 2017-04-08 | C104: =IF(AND(B104>='Calculation Sheet Crop 1'!$K$6,B104<='Calculation Sheet Crop 1'!$L$6),"Initial Stage",IF(AND(B104+1>'Calculation Sheet Crop 1'!$K$7,B104<='Calculation Sheet Crop 1'!$L$7),"Crop Development Phase",IF(AND(B104+1>'Calculation Sheet Crop 1'!$K$8,B104<'Calculation Sheet Crop 1'!$L$8+1),"Mid Season",IF(AND(B104+1>'Calculation Sheet Crop 1'!$K$9,B104-1<'Calculation Sheet Crop 1'!$L$9),"Late Season Stage","")))) -> Late Season Stage | D104: =IF(MONTH(B104)=1,'General Calculation'!$E$21,IF(MONTH(B104)=2,'General Calculation'!$F$21,IF(MONTH(B104)=3,'General Calculation'!$G$21,IF(MONTH(B104)=4,'General Calculation'!$H$21,IF(MONTH(B104)=5,'General Calculation'!$I$21,IF(MONTH(B104)=6,'General Calculation'!$J$21,IF(MONTH(B104)=7,'General Calculation'!$K$21,IF(MONTH(B104)=8,'General Calculation'!$L$21,IF(MONTH(B104)=9,'General Calculation'!$M$21,IF(MONTH(B104)=10,'General Calculation'!$N$21,IF(MONTH(B104)=11,'General Calculation'!$O$21,IF(MONTH(B104)=12,'General Calculation'!$P$21,"")))))))))))) -> 5.7884 | E104: =IF(C104="Initial Stage",'Calculation Sheet Crop 1'!$M$6,IF(C104="Crop Development Phase",'Calculation Sheet Crop 1'!$M$7,IF(C104="Mid Season",'Calculation Sheet Crop 1'!$M$8,IF(C104="Late Season Stage",'Calculation Sheet Crop 1'!$M$9,"")))) -> 0.45 | F104: 2.60478 | P104: 0 | Q104: 0 | R104: 0 | S104: 2.60478 | T104: 0 | U104: 0 | V104: 0 | W104: 0 | X104: 0 | Y104: 0 | Z104: 0 | AA104: 0
B105: 2017-04-09 | C105: =IF(AND(B105>='Calculation Sheet Crop 1'!$K$6,B105<='Calculation Sheet Crop 1'!$L$6),"Initial Stage",IF(AND(B105+1>'Calculation Sheet Crop 1'!$K$7,B105<='Calculation Sheet Crop 1'!$L$7),"Crop Development Phase",IF(AND(B105+1>'Calculation Sheet Crop 1'!$K$8,B105<'Calculation Sheet Crop 1'!$L$8+1),"Mid Season",IF(AND(B105+1>'Calculation Sheet Crop 1'!$K$9,B105-1<'Calculation Sheet Crop 1'!$L$9),"Late Season Stage","")))) -> Late Season Stage | D105: =IF(MONTH(B105)=1,'General Calculation'!$E$21,IF(MONTH(B105)=2,'General Calculation'!$F$21,IF(MONTH(B105)=3,'General Calculation'!$G$21,IF(MONTH(B105)=4,'General Calculation'!$H$21,IF(MONTH(B105)=5,'General Calculation'!$I$21,IF(MONTH(B105)=6,'General Calculation'!$J$21,IF(MONTH(B105)=7,'General Calculation'!$K$21,IF(MONTH(B105)=8,'General Calculation'!$L$21,IF(MONTH(B105)=9,'General Calculation'!$M$21,IF(MONTH(B105)=10,'General Calculation'!$N$21,IF(MONTH(B105)=11,'General Calculation'!$O$21,IF(MONTH(B105)=12,'General Calculation'!$P$21,"")))))))))))) -> 5.7884 | E105: =IF(C105="Initial Stage",'Calculation Sheet Crop 1'!$M$6,IF(C105="Crop Development Phase",'Calculation Sheet Crop 1'!$M$7,IF(C105="Mid Season",'Calculation Sheet Crop 1'!$M$8,IF(C105="Late Season Stage",'Calculation Sheet Crop 1'!$M$9,"")))) -> 0.45 | F105: 2.60478 | P105: 0 | Q105: 0 | R105: 0 | S105: 2.60478 | T105: 0 | U105: 0 | V105: 0 | W105: 0 | X105: 0 | Y105: 0 | Z105: 0 | AA105: 0
B106: 2017-04-10 | C106: =IF(AND(B106>='Calculation Sheet Crop 1'!$K$6,B106<='Calculation Sheet Crop 1'!$L$6),"Initial Stage",IF(AND(B106+1>'Calculation Sheet Crop 1'!$K$7,B106<='Calculation Sheet Crop 1'!$L$7),"Crop Development Phase",IF(AND(B106+1>'Calculation Sheet Crop 1'!$K$8,B106<'Calculation Sheet Crop 1'!$L$8+1),"Mid Season",IF(AND(B106+1>'Calculation Sheet Crop 1'!$K$9,B106-1<'Calculation Sheet Crop 1'!$L$9),"Late Season Stage","")))) -> Late Season Stage | D106: =IF(MONTH(B106)=1,'General Calculation'!$E$21,IF(MONTH(B106)=2,'General Calculation'!$F$21,IF(MONTH(B106)=3,'General Calculation'!$G$21,IF(MONTH(B106)=4,'General Calculation'!$H$21,IF(MONTH(B106)=5,'General Calculation'!$I$21,IF(MONTH(B106)=6,'General Calculation'!$J$21,IF(MONTH(B106)=7,'General Calculation'!$K$21,IF(MONTH(B106)=8,'General Calculation'!$L$21,IF(MONTH(B106)=9,'General Calculation'!$M$21,IF(MONTH(B106)=10,'General Calculation'!$N$21,IF(MONTH(B106)=11,'General Calculation'!$O$21,IF(MONTH(B106)=12,'General Calculation'!$P$21,"")))))))))))) -> 5.7884 | E106: =IF(C106="Initial Stage",'Calculation Sheet Crop 1'!$M$6,IF(C106="Crop Development Phase",'Calculation Sheet Crop 1'!$M$7,IF(C106="Mid Season",'Calculation Sheet Crop 1'!$M$8,IF(C106="Late Season Stage",'Calculation Sheet Crop 1'!$M$9,"")))) -> 0.45 | F106: 2.60478 | P106: 0 | Q106: 0 | R106: 0 | S106: 2.60478 | T106: 0 | U106: 0 | V106: 0 | W106: 0 | X106: 0 | Y106: 0 | Z106: 0 | AA106: 0
B107: 2017-04-11 | C107: =IF(AND(B107>='Calculation Sheet Crop 1'!$K$6,B107<='Calculation Sheet Crop 1'!$L$6),"Initial Stage",IF(AND(B107+1>'Calculation Sheet Crop 1'!$K$7,B107<='Calculation Sheet Crop 1'!$L$7),"Crop Development Phase",IF(AND(B107+1>'Calculation Sheet Crop 1'!$K$8,B107<'Calculation Sheet Crop 1'!$L$8+1),"Mid Season",IF(AND(B107+1>'Calculation Sheet Crop 1'!$K$9,B107-1<'Calculation Sheet Crop 1'!$L$9),"Late Season Stage","")))) -> Late Season Stage | D107: =IF(MONTH(B107)=1,'General Calculation'!$E$21,IF(MONTH(B107)=2,'General Calculation'!$F$21,IF(MONTH(B107)=3,'General Calculation'!$G$21,IF(MONTH(B107)=4,'General Calculation'!$H$21,IF(MONTH(B107)=5,'General Calculation'!$I$21,IF(MONTH(B107)=6,'General Calculation'!$J$21,IF(MONTH(B107)=7,'General Calculation'!$K$21,IF(MONTH(B107)=8,'General Calculation'!$L$21,IF(MONTH(B107)=9,'General Calculation'!$M$21,IF(MONTH(B107)=10,'General Calculation'!$N$21,IF(MONTH(B107)=11,'General Calculation'!$O$21,IF(MONTH(B107)=12,'General Calculation'!$P$21,"")))))))))))) -> 5.7884 | E107: =IF(C107="Initial Stage",'Calculation Sheet Crop 1'!$M$6,IF(C107="Crop Development Phase",'Calculation Sheet Crop 1'!$M$7,IF(C107="Mid Season",'Calculation Sheet Crop 1'!$M$8,IF(C107="Late Season Stage",'Calculation Sheet Crop 1'!$M$9,"")))) -> 0.45 | F107: 2.60478 | P107: 0 | Q107: 0 | R107: 0 | S107: 2.60478 | T107: 0 | U107: 0 | V107: 0 | W107: 0 | X107: 0 | Y107: 0 | Z107: 0 | AA107: 0
B108: 2017-04-12 | C108: =IF(AND(B108>='Calculation Sheet Crop 1'!$K$6,B108<='Calculation Sheet Crop 1'!$L$6),"Initial Stage",IF(AND(B108+1>'Calculation Sheet Crop 1'!$K$7,B108<='Calculation Sheet Crop 1'!$L$7),"Crop Development Phase",IF(AND(B108+1>'Calculation Sheet Crop 1'!$K$8,B108<'Calculation Sheet Crop 1'!$L$8+1),"Mid Season",IF(AND(B108+1>'Calculation Sheet Crop 1'!$K$9,B108-1<'Calculation Sheet Crop 1'!$L$9),"Late Season Stage","")))) -> Late Season Stage | D108: =IF(MONTH(B108)=1,'General Calculation'!$E$21,IF(MONTH(B108)=2,'General Calculation'!$F$21,IF(MONTH(B108)=3,'General Calculation'!$G$21,IF(MONTH(B108)=4,'General Calculation'!$H$21,IF(MONTH(B108)=5,'General Calculation'!$I$21,IF(MONTH(B108)=6,'General Calculation'!$J$21,IF(MONTH(B108)=7,'General Calculation'!$K$21,IF(MONTH(B108)=8,'General Calculation'!$L$21,IF(MONTH(B108)=9,'General Calculation'!$M$21,IF(MONTH(B108)=10,'General Calculation'!$N$21,IF(MONTH(B108)=11,'General Calculation'!$O$21,IF(MONTH(B108)=12,'General Calculation'!$P$21,"")))))))))))) -> 5.7884 | E108: =IF(C108="Initial Stage",'Calculation Sheet Crop 1'!$M$6,IF(C108="Crop Development Phase",'Calculation Sheet Crop 1'!$M$7,IF(C108="Mid Season",'Calculation Sheet Crop 1'!$M$8,IF(C108="Late Season Stage",'Calculation Sheet Crop 1'!$M$9,"")))) -> 0.45 | F108: 2.60478 | P108: 0 | Q108: 0 | R108: 0 | S108: 2.60478 | T108: 0 | U108: 0 | V108: 0 | W108: 0 | X108: 0 | Y108: 0 | Z108: 0 | AA108: 0
B109: 2017-04-13 | C109: =IF(AND(B109>='Calculation Sheet Crop 1'!$K$6,B109<='Calculation Sheet Crop 1'!$L$6),"Initial Stage",IF(AND(B109+1>'Calculation Sheet Crop 1'!$K$7,B109<='Calculation Sheet Crop 1'!$L$7),"Crop Development Phase",IF(AND(B109+1>'Calculation Sheet Crop 1'!$K$8,B109<'Calculation Sheet Crop 1'!$L$8+1),"Mid Season",IF(AND(B109+1>'Calculation Sheet Crop 1'!$K$9,B109-1<'Calculation Sheet Crop 1'!$L$9),"Late Season Stage","")))) -> Late Season Stage | D109: =IF(MONTH(B109)=1,'General Calculation'!$E$21,IF(MONTH(B109)=2,'General Calculation'!$F$21,IF(MONTH(B109)=3,'General Calculation'!$G$21,IF(MONTH(B109)=4,'General Calculation'!$H$21,IF(MONTH(B109)=5,'General Calculation'!$I$21,IF(MONTH(B109)=6,'General Calculation'!$J$21,IF(MONTH(B109)=7,'General Calculation'!$K$21,IF(MONTH(B109)=8,'General Calculation'!$L$21,IF(MONTH(B109)=9,'General Calculation'!$M$21,IF(MONTH(B109)=10,'General Calculation'!$N$21,IF(MONTH(B109)=11,'General Calculation'!$O$21,IF(MONTH(B109)=12,'General Calculation'!$P$21,"")))))))))))) -> 5.7884 | E109: =IF(C109="Initial Stage",'Calculation Sheet Crop 1'!$M$6,IF(C109="Crop Development Phase",'Calculation Sheet Crop 1'!$M$7,IF(C109="Mid Season",'Calculation Sheet Crop 1'!$M$8,IF(C109="Late Season Stage",'Calculation Sheet Crop 1'!$M$9,"")))) -> 0.45 | F109: 2.60478 | P109: 0 | Q109: 0 | R109: 0 | S109: 2.60478 | T109: 0 | U109: 0 | V109: 0 | W109: 0 | X109: 0 | Y109: 0 | Z109: 0 | AA109: 0
B110: 2017-04-14 | C110: =IF(AND(B110>='Calculation Sheet Crop 1'!$K$6,B110<='Calculation Sheet Crop 1'!$L$6),"Initial Stage",IF(AND(B110+1>'Calculation Sheet Crop 1'!$K$7,B110<='Calculation Sheet Crop 1'!$L$7),"Crop Development Phase",IF(AND(B110+1>'Calculation Sheet Crop 1'!$K$8,B110<'Calculation Sheet Crop 1'!$L$8+1),"Mid Season",IF(AND(B110+1>'Calculation Sheet Crop 1'!$K$9,B110-1<'Calculation Sheet Crop 1'!$L$9),"Late Season Stage","")))) -> Late Season Stage | D110: =IF(MONTH(B110)=1,'General Calculation'!$E$21,IF(MONTH(B110)=2,'General Calculation'!$F$21,IF(MONTH(B110)=3,'General Calculation'!$G$21,IF(MONTH(B110)=4,'General Calculation'!$H$21,IF(MONTH(B110)=5,'General Calculation'!$I$21,IF(MONTH(B110)=6,'General Calculation'!$J$21,IF(MONTH(B110)=7,'General Calculation'!$K$21,IF(MONTH(B110)=8,'General Calculation'!$L$21,IF(MONTH(B110)=9,'General Calculation'!$M$21,IF(MONTH(B110)=10,'General Calculation'!$N$21,IF(MONTH(B110)=11,'General Calculation'!$O$21,IF(MONTH(B110)=12,'General Calculation'!$P$21,"")))))))))))) -> 5.7884 | E110: =IF(C110="Initial Stage",'Calculation Sheet Crop 1'!$M$6,IF(C110="Crop Development Phase",'Calculation Sheet Crop 1'!$M$7,IF(C110="Mid Season",'Calculation Sheet Crop 1'!$M$8,IF(C110="Late Season Stage",'Calculation Sheet Crop 1'!$M$9,"")))) -> 0.45 | F110: 2.60478 | P110: 0 | Q110: 0 | R110: 0 | S110: 2.60478 | T110: 0 | U110: 0 | V110: 0 | W110: 0 | X110: 0 | Y110: 0 | Z110: 0 | AA110: 0
B111: 2017-04-15 | C111: =IF(AND(B111>='Calculation Sheet Crop 1'!$K$6,B111<='Calculation Sheet Crop 1'!$L$6),"Initial Stage",IF(AND(B111+1>'Calculation Sheet Crop 1'!$K$7,B111<='Calculation Sheet Crop 1'!$L$7),"Crop Development Phase",IF(AND(B111+1>'Calculation Sheet Crop 1'!$K$8,B111<'Calculation Sheet Crop 1'!$L$8+1),"Mid Season",IF(AND(B111+1>'Calculation Sheet Crop 1'!$K$9,B111-1<'Calculation Sheet Crop 1'!$L$9),"Late Season Stage","")))) -> Late Season Stage | D111: =IF(MONTH(B111)=1,'General Calculation'!$E$21,IF(MONTH(B111)=2,'General Calculation'!$F$21,IF(MONTH(B111)=3,'General Calculation'!$G$21,IF(MONTH(B111)=4,'General Calculation'!$H$21,IF(MONTH(B111)=5,'General Calculation'!$I$21,IF(MONTH(B111)=6,'General Calculation'!$J$21,IF(MONTH(B111)=7,'General Calculation'!$K$21,IF(MONTH(B111)=8,'General Calculation'!$L$21,IF(MONTH(B111)=9,'General Calculation'!$M$21,IF(MONTH(B111)=10,'General Calculation'!$N$21,IF(MONTH(B111)=11,'General Calculation'!$O$21,IF(MONTH(B111)=12,'General Calculation'!$P$21,"")))))))))))) -> 5.7884 | E111: =IF(C111="Initial Stage",'Calculation Sheet Crop 1'!$M$6,IF(C111="Crop Development Phase",'Calculation Sheet Crop 1'!$M$7,IF(C111="Mid Season",'Calculation Sheet Crop 1'!$M$8,IF(C111="Late Season Stage",'Calculation Sheet Crop 1'!$M$9,"")))) -> 0.45 | F111: 2.60478 | P111: 0 | Q111: 0 | R111: 0 | S111: 2.60478 | T111: 0 | U111: 0 | V111: 0 | W111: 0 | X111: 0 | Y111: 0 | Z111: 0 | AA111: 0
B112: 2017-04-16 | C112: =IF(AND(B112>='Calculation Sheet Crop 1'!$K$6,B112<='Calculation Sheet Crop 1'!$L$6),"Initial Stage",IF(AND(B112+1>'Calculation Sheet Crop 1'!$K$7,B112<='Calculation Sheet Crop 1'!$L$7),"Crop Development Phase",IF(AND(B112+1>'Calculation Sheet Crop 1'!$K$8,B112<'Calculation Sheet Crop 1'!$L$8+1),"Mid Season",IF(AND(B112+1>'Calculation Sheet Crop 1'!$K$9,B112-1<'Calculation Sheet Crop 1'!$L$9),"Late Season Stage","")))) -> Late Season Stage | D112: =IF(MONTH(B112)=1,'General Calculation'!$E$21,IF(MONTH(B112)=2,'General Calculation'!$F$21,IF(MONTH(B112)=3,'General Calculation'!$G$21,IF(MONTH(B112)=4,'General Calculation'!$H$21,IF(MONTH(B112)=5,'General Calculation'!$I$21,IF(MONTH(B112)=6,'General Calculation'!$J$21,IF(MONTH(B112)=7,'General Calculation'!$K$21,IF(MONTH(B112)=8,'General Calculation'!$L$21,IF(MONTH(B112)=9,'General Calculation'!$M$21,IF(MONTH(B112)=10,'General Calculation'!$N$21,IF(MONTH(B112)=11,'General Calculation'!$O$21,IF(MONTH(B112)=12,'General Calculation'!$P$21,"")))))))))))) -> 5.7884 | E112: =IF(C112="Initial Stage",'Calculation Sheet Crop 1'!$M$6,IF(C112="Crop Development Phase",'Calculation Sheet Crop 1'!$M$7,IF(C112="Mid Season",'Calculation Sheet Crop 1'!$M$8,IF(C112="Late Season Stage",'Calculation Sheet Crop 1'!$M$9,"")))) -> 0.45 | F112: 2.60478 | P112: 0 | Q112: 0 | R112: 0 | S112: 2.60478 | T112: 0 | U112: 0 | V112: 0 | W112: 0 | X112: 0 | Y112: 0 | Z112: 0 | AA112: 0
B113: 2017-04-17 | C113: =IF(AND(B113>='Calculation Sheet Crop 1'!$K$6,B113<='Calculation Sheet Crop 1'!$L$6),"Initial Stage",IF(AND(B113+1>'Calculation Sheet Crop 1'!$K$7,B113<='Calculation Sheet Crop 1'!$L$7),"Crop Development Phase",IF(AND(B113+1>'Calculation Sheet Crop 1'!$K$8,B113<'Calculation Sheet Crop 1'!$L$8+1),"Mid Season",IF(AND(B113+1>'Calculation Sheet Crop 1'!$K$9,B113-1<'Calculation Sheet Crop 1'!$L$9),"Late Season Stage","")))) -> Late Season Stage | D113: =IF(MONTH(B113)=1,'General Calculation'!$E$21,IF(MONTH(B113)=2,'General Calculation'!$F$21,IF(MONTH(B113)=3,'General Calculation'!$G$21,IF(MONTH(B113)=4,'General Calculation'!$H$21,IF(MONTH(B113)=5,'General Calculation'!$I$21,IF(MONTH(B113)=6,'General Calculation'!$J$21,IF(MONTH(B113)=7,'General Calculation'!$K$21,IF(MONTH(B113)=8,'General Calculation'!$L$21,IF(MONTH(B113)=9,'General Calculation'!$M$21,IF(MONTH(B113)=10,'General Calculation'!$N$21,IF(MONTH(B113)=11,'General Calculation'!$O$21,IF(MONTH(B113)=12,'General Calculation'!$P$21,"")))))))))))) -> 5.7884 | E113: =IF(C113="Initial Stage",'Calculation Sheet Crop 1'!$M$6,IF(C113="Crop Development Phase",'Calculation Sheet Crop 1'!$M$7,IF(C113="Mid Season",'Calculation Sheet Crop 1'!$M$8,IF(C113="Late Season Stage",'Calculation Sheet Crop 1'!$M$9,"")))) -> 0.45 | F113: 2.60478 | P113: 0 | Q113: 0 | R113: 0 | S113: 2.60478 | T113: 0 | U113: 0 | V113: 0 | W113: 0 | X113: 0 | Y113: 0 | Z113: 0 | AA113: 0
B114: 2017-04-18 | C114: =IF(AND(B114>='Calculation Sheet Crop 1'!$K$6,B114<='Calculation Sheet Crop 1'!$L$6),"Initial Stage",IF(AND(B114+1>'Calculation Sheet Crop 1'!$K$7,B114<='Calculation Sheet Crop 1'!$L$7),"Crop Development Phase",IF(AND(B114+1>'Calculation Sheet Crop 1'!$K$8,B114<'Calculation Sheet Crop 1'!$L$8+1),"Mid Season",IF(AND(B114+1>'Calculation Sheet Crop 1'!$K$9,B114-1<'Calculation Sheet Crop 1'!$L$9),"Late Season Stage","")))) -> Late Season Stage | D114: =IF(MONTH(B114)=1,'General Calculation'!$E$21,IF(MONTH(B114)=2,'General Calculation'!$F$21,IF(MONTH(B114)=3,'General Calculation'!$G$21,IF(MONTH(B114)=4,'General Calculation'!$H$21,IF(MONTH(B114)=5,'General Calculation'!$I$21,IF(MONTH(B114)=6,'General Calculation'!$J$21,IF(MONTH(B114)=7,'General Calculation'!$K$21,IF(MONTH(B114)=8,'General Calculation'!$L$21,IF(MONTH(B114)=9,'General Calculation'!$M$21,IF(MONTH(B114)=10,'General Calculation'!$N$21,IF(MONTH(B114)=11,'General Calculation'!$O$21,IF(MONTH(B114)=12,'General Calculation'!$P$21,"")))))))))))) -> 5.7884 | E114: =IF(C114="Initial Stage",'Calculation Sheet Crop 1'!$M$6,IF(C114="Crop Development Phase",'Calculation Sheet Crop 1'!$M$7,IF(C114="Mid Season",'Calculation Sheet Crop 1'!$M$8,IF(C114="Late Season Stage",'Calculation Sheet Crop 1'!$M$9,"")))) -> 0.45 | F114: 2.60478 | P114: 0 | Q114: 0 | R114: 0 | S114: 2.60478 | T114: 0 | U114: 0 | V114: 0 | W114: 0 | X114: 0 | Y114: 0 | Z114: 0 | AA114: 0
B115: 2017-04-19 | C115: =IF(AND(B115>='Calculation Sheet Crop 1'!$K$6,B115<='Calculation Sheet Crop 1'!$L$6),"Initial Stage",IF(AND(B115+1>'Calculation Sheet Crop 1'!$K$7,B115<='Calculation Sheet Crop 1'!$L$7),"Crop Development Phase",IF(AND(B115+1>'Calculation Sheet Crop 1'!$K$8,B115<'Calculation Sheet Crop 1'!$L$8+1),"Mid Season",IF(AND(B115+1>'Calculation Sheet Crop 1'!$K$9,B115-1<'Calculation Sheet Crop 1'!$L$9),"Late Season Stage","")))) -> Late Season Stage | D115: =IF(MONTH(B115)=1,'General Calculation'!$E$21,IF(MONTH(B115)=2,'General Calculation'!$F$21,IF(MONTH(B115)=3,'General Calculation'!$G$21,IF(MONTH(B115)=4,'General Calculation'!$H$21,IF(MONTH(B115)=5,'General Calculation'!$I$21,IF(MONTH(B115)=6,'General Calculation'!$J$21,IF(MONTH(B115)=7,'General Calculation'!$K$21,IF(MONTH(B115)=8,'General Calculation'!$L$21,IF(MONTH(B115)=9,'General Calculation'!$M$21,IF(MONTH(B115)=10,'General Calculation'!$N$21,IF(MONTH(B115)=11,'General Calculation'!$O$21,IF(MONTH(B115)=12,'General Calculation'!$P$21,"")))))))))))) -> 5.7884 | E115: =IF(C115="Initial Stage",'Calculation Sheet Crop 1'!$M$6,IF(C115="Crop Development Phase",'Calculation Sheet Crop 1'!$M$7,IF(C115="Mid Season",'Calculation Sheet Crop 1'!$M$8,IF(C115="Late Season Stage",'Calculation Sheet Crop 1'!$M$9,"")))) -> 0.45 | F115: 2.60478 | P115: 0 | Q115: 0 | R115: 0 | S115: 2.60478 | T115: 0 | U115: 0 | V115: 0 | W115: 0 | X115: 0 | Y115: 0 | Z115: 0 | AA115: 0
B116: 2017-04-20 | C116: =IF(AND(B116>='Calculation Sheet Crop 1'!$K$6,B116<='Calculation Sheet Crop 1'!$L$6),"Initial Stage",IF(AND(B116+1>'Calculation Sheet Crop 1'!$K$7,B116<='Calculation Sheet Crop 1'!$L$7),"Crop Development Phase",IF(AND(B116+1>'Calculation Sheet Crop 1'!$K$8,B116<'Calculation Sheet Crop 1'!$L$8+1),"Mid Season",IF(AND(B116+1>'Calculation Sheet Crop 1'!$K$9,B116-1<'Calculation Sheet Crop 1'!$L$9),"Late Season Stage","")))) -> Late Season Stage | D116: =IF(MONTH(B116)=1,'General Calculation'!$E$21,IF(MONTH(B116)=2,'General Calculation'!$F$21,IF(MONTH(B116)=3,'General Calculation'!$G$21,IF(MONTH(B116)=4,'General Calculation'!$H$21,IF(MONTH(B116)=5,'General Calculation'!$I$21,IF(MONTH(B116)=6,'General Calculation'!$J$21,IF(MONTH(B116)=7,'General Calculation'!$K$21,IF(MONTH(B116)=8,'General Calculation'!$L$21,IF(MONTH(B116)=9,'General Calculation'!$M$21,IF(MONTH(B116)=10,'General Calculation'!$N$21,IF(MONTH(B116)=11,'General Calculation'!$O$21,IF(MONTH(B116)=12,'General Calculation'!$P$21,"")))))))))))) -> 5.7884 | E116: =IF(C116="Initial Stage",'Calculation Sheet Crop 1'!$M$6,IF(C116="Crop Development Phase",'Calculation Sheet Crop 1'!$M$7,IF(C116="Mid Season",'Calculation Sheet Crop 1'!$M$8,IF(C116="Late Season Stage",'Calculation Sheet Crop 1'!$M$9,"")))) -> 0.45 | F116: 2.60478 | P116: 0 | Q116: 0 | R116: 0 | S116: 2.60478 | T116: 0 | U116: 0 | V116: 0 | W116: 0 | X116: 0 | Y116: 0 | Z116: 0 | AA116: 0
B117: 2017-04-21 | C117: =IF(AND(B117>='Calculation Sheet Crop 1'!$K$6,B117<='Calculation Sheet Crop 1'!$L$6),"Initial Stage",IF(AND(B117+1>'Calculation Sheet Crop 1'!$K$7,B117<='Calculation Sheet Crop 1'!$L$7),"Crop Development Phase",IF(AND(B117+1>'Calculation Sheet Crop 1'!$K$8,B117<'Calculation Sheet Crop 1'!$L$8+1),"Mid Season",IF(AND(B117+1>'Calculation Sheet Crop 1'!$K$9,B117-1<'Calculation Sheet Crop 1'!$L$9),"Late Season Stage","")))) -> Late Season Stage | D117: =IF(MONTH(B117)=1,'General Calculation'!$E$21,IF(MONTH(B117)=2,'General Calculation'!$F$21,IF(MONTH(B117)=3,'General Calculation'!$G$21,IF(MONTH(B117)=4,'General Calculation'!$H$21,IF(MONTH(B117)=5,'General Calculation'!$I$21,IF(MONTH(B117)=6,'General Calculation'!$J$21,IF(MONTH(B117)=7,'General Calculation'!$K$21,IF(MONTH(B117)=8,'General Calculation'!$L$21,IF(MONTH(B117)=9,'General Calculation'!$M$21,IF(MONTH(B117)=10,'General Calculation'!$N$21,IF(MONTH(B117)=11,'General Calculation'!$O$21,IF(MONTH(B117)=12,'General Calculation'!$P$21,"")))))))))))) -> 5.7884 | E117: =IF(C117="Initial Stage",'Calculation Sheet Crop 1'!$M$6,IF(C117="Crop Development Phase",'Calculation Sheet Crop 1'!$M$7,IF(C117="Mid Season",'Calculation Sheet Crop 1'!$M$8,IF(C117="Late Season Stage",'Calculation Sheet Crop 1'!$M$9,"")))) -> 0.45 | F117: 2.60478 | P117: 0 | Q117: 0 | R117: 0 | S117: 2.60478 | T117: 0 | U117: 0 | V117: 0 | W117: 0 | X117: 0 | Y117: 0 | Z117: 0 | AA117: 0
B118: 2017-04-22 | C118: =IF(AND(B118>='Calculation Sheet Crop 1'!$K$6,B118<='Calculation Sheet Crop 1'!$L$6),"Initial Stage",IF(AND(B118+1>'Calculation Sheet Crop 1'!$K$7,B118<='Calculation Sheet Crop 1'!$L$7),"Crop Development Phase",IF(AND(B118+1>'Calculation Sheet Crop 1'!$K$8,B118<'Calculation Sheet Crop 1'!$L$8+1),"Mid Season",IF(AND(B118+1>'Calculation Sheet Crop 1'!$K$9,B118-1<'Calculation Sheet Crop 1'!$L$9),"Late Season Stage","")))) -> Late Season Stage | D118: =IF(MONTH(B118)=1,'General Calculation'!$E$21,IF(MONTH(B118)=2,'General Calculation'!$F$21,IF(MONTH(B118)=3,'General Calculation'!$G$21,IF(MONTH(B118)=4,'General Calculation'!$H$21,IF(MONTH(B118)=5,'General Calculation'!$I$21,IF(MONTH(B118)=6,'General Calculation'!$J$21,IF(MONTH(B118)=7,'General Calculation'!$K$21,IF(MONTH(B118)=8,'General Calculation'!$L$21,IF(MONTH(B118)=9,'General Calculation'!$M$21,IF(MONTH(B118)=10,'General Calculation'!$N$21,IF(MONTH(B118)=11,'General Calculation'!$O$21,IF(MONTH(B118)=12,'General Calculation'!$P$21,"")))))))))))) -> 5.7884 | E118: =IF(C118="Initial Stage",'Calculation Sheet Crop 1'!$M$6,IF(C118="Crop Development Phase",'Calculation Sheet Crop 1'!$M$7,IF(C118="Mid Season",'Calculation Sheet Crop 1'!$M$8,IF(C118="Late Season Stage",'Calculation Sheet Crop 1'!$M$9,"")))) -> 0.45 | F118: 2.60478 | P118: 0 | Q118: 0 | R118: 0 | S118: 2.60478 | T118: 0 | U118: 0 | V118: 0 | W118: 0 | X118: 0 | Y118: 0 | Z118: 0 | AA118: 0
B119: 2017-04-23 | C119: =IF(AND(B119>='Calculation Sheet Crop 1'!$K$6,B119<='Calculation Sheet Crop 1'!$L$6),"Initial Stage",IF(AND(B119+1>'Calculation Sheet Crop 1'!$K$7,B119<='Calculation Sheet Crop 1'!$L$7),"Crop Development Phase",IF(AND(B119+1>'Calculation Sheet Crop 1'!$K$8,B119<'Calculation Sheet Crop 1'!$L$8+1),"Mid Season",IF(AND(B119+1>'Calculation Sheet Crop 1'!$K$9,B119-1<'Calculation Sheet Crop 1'!$L$9),"Late Season Stage","")))) -> Late Season Stage | D119: =IF(MONTH(B119)=1,'General Calculation'!$E$21,IF(MONTH(B119)=2,'General Calculation'!$F$21,IF(MONTH(B119)=3,'General Calculation'!$G$21,IF(MONTH(B119)=4,'General Calculation'!$H$21,IF(MONTH(B119)=5,'General Calculation'!$I$21,IF(MONTH(B119)=6,'General Calculation'!$J$21,IF(MONTH(B119)=7,'General Calculation'!$K$21,IF(MONTH(B119)=8,'General Calculation'!$L$21,IF(MONTH(B119)=9,'General Calculation'!$M$21,IF(MONTH(B119)=10,'General Calculation'!$N$21,IF(MONTH(B119)=11,'General Calculation'!$O$21,IF(MONTH(B119)=12,'General Calculation'!$P$21,"")))))))))))) -> 5.7884 | E119: =IF(C119="Initial Stage",'Calculation Sheet Crop 1'!$M$6,IF(C119="Crop Development Phase",'Calculation Sheet Crop 1'!$M$7,IF(C119="Mid Season",'Calculation Sheet Crop 1'!$M$8,IF(C119="Late Season Stage",'Calculation Sheet Crop 1'!$M$9,"")))) -> 0.45 | F119: 2.60478 | P119: 0 | Q119: 0 | R119: 0 | S119: 2.60478 | T119: 0 | U119: 0 | V119: 0 | W119: 0 | X119: 0 | Y119: 0 | Z119: 0 | AA119: 0
B120: 2017-04-24 | C120: =IF(AND(B120>='Calculation Sheet Crop 1'!$K$6,B120<='Calculation Sheet Crop 1'!$L$6),"Initial Stage",IF(AND(B120+1>'Calculation Sheet Crop 1'!$K$7,B120<='Calculation Sheet Crop 1'!$L$7),"Crop Development Phase",IF(AND(B120+1>'Calculation Sheet Crop 1'!$K$8,B120<'Calculation Sheet Crop 1'!$L$8+1),"Mid Season",IF(AND(B120+1>'Calculation Sheet Crop 1'!$K$9,B120-1<'Calculation Sheet Crop 1'!$L$9),"Late Season Stage","")))) -> Late Season Stage | D120: =IF(MONTH(B120)=1,'General Calculation'!$E$21,IF(MONTH(B120)=2,'General Calculation'!$F$21,IF(MONTH(B120)=3,'General Calculation'!$G$21,IF(MONTH(B120)=4,'General Calculation'!$H$21,IF(MONTH(B120)=5,'General Calculation'!$I$21,IF(MONTH(B120)=6,'General Calculation'!$J$21,IF(MONTH(B120)=7,'General Calculation'!$K$21,IF(MONTH(B120)=8,'General Calculation'!$L$21,IF(MONTH(B120)=9,'General Calculation'!$M$21,IF(MONTH(B120)=10,'General Calculation'!$N$21,IF(MONTH(B120)=11,'General Calculation'!$O$21,IF(MONTH(B120)=12,'General Calculation'!$P$21,"")))))))))))) -> 5.7884 | E120: =IF(C120="Initial Stage",'Calculation Sheet Crop 1'!$M$6,IF(C120="Crop Development Phase",'Calculation Sheet Crop 1'!$M$7,IF(C120="Mid Season",'Calculation Sheet Crop 1'!$M$8,IF(C120="Late Season Stage",'Calculation Sheet Crop 1'!$M$9,"")))) -> 0.45 | F120: 2.60478 | P120: 0 | Q120: 0 | R120: 0 | S120: 2.60478 | T120: 0 | U120: 0 | V120: 0 | W120: 0 | X120: 0 | Y120: 0 | Z120: 0 | AA120: 0
B121: 2017-04-25 | C121: =IF(AND(B121>='Calculation Sheet Crop 1'!$K$6,B121<='Calculation Sheet Crop 1'!$L$6),"Initial Stage",IF(AND(B121+1>'Calculation Sheet Crop 1'!$K$7,B121<='Calculation Sheet Crop 1'!$L$7),"Crop Development Phase",IF(AND(B121+1>'Calculation Sheet Crop 1'!$K$8,B121<'Calculation Sheet Crop 1'!$L$8+1),"Mid Season",IF(AND(B121+1>'Calculation Sheet Crop 1'!$K$9,B121-1<'Calculation Sheet Crop 1'!$L$9),"Late Season Stage","")))) -> Late Season Stage | D121: =IF(MONTH(B121)=1,'General Calculation'!$E$21,IF(MONTH(B121)=2,'General Calculation'!$F$21,IF(MONTH(B121)=3,'General Calculation'!$G$21,IF(MONTH(B121)=4,'General Calculation'!$H$21,IF(MONTH(B121)=5,'General Calculation'!$I$21,IF(MONTH(B121)=6,'General Calculation'!$J$21,IF(MONTH(B121)=7,'General Calculation'!$K$21,IF(MONTH(B121)=8,'General Calculation'!$L$21,IF(MONTH(B121)=9,'General Calculation'!$M$21,IF(MONTH(B121)=10,'General Calculation'!$N$21,IF(MONTH(B121)=11,'General Calculation'!$O$21,IF(MONTH(B121)=12,'General Calculation'!$P$21,"")))))))))))) -> 5.7884 | E121: =IF(C121="Initial Stage",'Calculation Sheet Crop 1'!$M$6,IF(C121="Crop Development Phase",'Calculation Sheet Crop 1'!$M$7,IF(C121="Mid Season",'Calculation Sheet Crop 1'!$M$8,IF(C121="Late Season Stage",'Calculation Sheet Crop 1'!$M$9,"")))) -> 0.45 | F121: 2.60478 | P121: 0 | Q121: 0 | R121: 0 | S121: 2.60478 | T121: 0 | U121: 0 | V121: 0 | W121: 0 | X121: 0 | Y121: 0 | Z121: 0 | AA121: 0
B122: 2017-04-26 | C122: =IF(AND(B122>='Calculation Sheet Crop 1'!$K$6,B122<='Calculation Sheet Crop 1'!$L$6),"Initial Stage",IF(AND(B122+1>'Calculation Sheet Crop 1'!$K$7,B122<='Calculation Sheet Crop 1'!$L$7),"Crop Development Phase",IF(AND(B122+1>'Calculation Sheet Crop 1'!$K$8,B122<'Calculation Sheet Crop 1'!$L$8+1),"Mid Season",IF(AND(B122+1>'Calculation Sheet Crop 1'!$K$9,B122-1<'Calculation Sheet Crop 1'!$L$9),"Late Season Stage","")))) -> Late Season Stage | D122: =IF(MONTH(B122)=1,'General Calculation'!$E$21,IF(MONTH(B122)=2,'General Calculation'!$F$21,IF(MONTH(B122)=3,'General Calculation'!$G$21,IF(MONTH(B122)=4,'General Calculation'!$H$21,IF(MONTH(B122)=5,'General Calculation'!$I$21,IF(MONTH(B122)=6,'General Calculation'!$J$21,IF(MONTH(B122)=7,'General Calculation'!$K$21,IF(MONTH(B122)=8,'General Calculation'!$L$21,IF(MONTH(B122)=9,'General Calculation'!$M$21,IF(MONTH(B122)=10,'General Calculation'!$N$21,IF(MONTH(B122)=11,'General Calculation'!$O$21,IF(MONTH(B122)=12,'General Calculation'!$P$21,"")))))))))))) -> 5.7884 | E122: =IF(C122="Initial Stage",'Calculation Sheet Crop 1'!$M$6,IF(C122="Crop Development Phase",'Calculation Sheet Crop 1'!$M$7,IF(C122="Mid Season",'Calculation Sheet Crop 1'!$M$8,IF(C122="Late Season Stage",'Calculation Sheet Crop 1'!$M$9,"")))) -> 0.45 | F122: 2.60478 | P122: 0 | Q122: 0 | R122: 0 | S122: 2.60478 | T122: 0 | U122: 0 | V122: 0 | W122: 0 | X122: 0 | Y122: 0 | Z122: 0 | AA122: 0
B123: 2017-04-27 | C123: =IF(AND(B123>='Calculation Sheet Crop 1'!$K$6,B123<='Calculation Sheet Crop 1'!$L$6),"Initial Stage",IF(AND(B123+1>'Calculation Sheet Crop 1'!$K$7,B123<='Calculation Sheet Crop 1'!$L$7),"Crop Development Phase",IF(AND(B123+1>'Calculation Sheet Crop 1'!$K$8,B123<'Calculation Sheet Crop 1'!$L$8+1),"Mid Season",IF(AND(B123+1>'Calculation Sheet Crop 1'!$K$9,B123-1<'Calculation Sheet Crop 1'!$L$9),"Late Season Stage","")))) -> Late Season Stage | D123: =IF(MONTH(B123)=1,'General Calculation'!$E$21,IF(MONTH(B123)=2,'General Calculation'!$F$21,IF(MONTH(B123)=3,'General Calculation'!$G$21,IF(MONTH(B123)=4,'General Calculation'!$H$21,IF(MONTH(B123)=5,'General Calculation'!$I$21,IF(MONTH(B123)=6,'General Calculation'!$J$21,IF(MONTH(B123)=7,'General Calculation'!$K$21,IF(MONTH(B123)=8,'General Calculation'!$L$21,IF(MONTH(B123)=9,'General Calculation'!$M$21,IF(MONTH(B123)=10,'General Calculation'!$N$21,IF(MONTH(B123)=11,'General Calculation'!$O$21,IF(MONTH(B123)=12,'General Calculation'!$P$21,"")))))))))))) -> 5.7884 | E123: =IF(C123="Initial Stage",'Calculation Sheet Crop 1'!$M$6,IF(C123="Crop Development Phase",'Calculation Sheet Crop 1'!$M$7,IF(C123="Mid Season",'Calculation Sheet Crop 1'!$M$8,IF(C123="Late Season Stage",'Calculation Sheet Crop 1'!$M$9,"")))) -> 0.45 | F123: 2.60478 | P123: 0 | Q123: 0 | R123: 0 | S123: 2.60478 | T123: 0 | U123: 0 | V123: 0 | W123: 0 | X123: 0 | Y123: 0 | Z123: 0 | AA123: 0
B124: 2017-04-28 | C124: =IF(AND(B124>='Calculation Sheet Crop 1'!$K$6,B124<='Calculation Sheet Crop 1'!$L$6),"Initial Stage",IF(AND(B124+1>'Calculation Sheet Crop 1'!$K$7,B124<='Calculation Sheet Crop 1'!$L$7),"Crop Development Phase",IF(AND(B124+1>'Calculation Sheet Crop 1'!$K$8,B124<'Calculation Sheet Crop 1'!$L$8+1),"Mid Season",IF(AND(B124+1>'Calculation Sheet Crop 1'!$K$9,B124-1<'Calculation Sheet Crop 1'!$L$9),"Late Season Stage","")))) -> Late Season Stage | D124: =IF(MONTH(B124)=1,'General Calculation'!$E$21,IF(MONTH(B124)=2,'General Calculation'!$F$21,IF(MONTH(B124)=3,'General Calculation'!$G$21,IF(MONTH(B124)=4,'General Calculation'!$H$21,IF(MONTH(B124)=5,'General Calculation'!$I$21,IF(MONTH(B124)=6,'General Calculation'!$J$21,IF(MONTH(B124)=7,'General Calculation'!$K$21,IF(MONTH(B124)=8,'General Calculation'!$L$21,IF(MONTH(B124)=9,'General Calculation'!$M$21,IF(MONTH(B124)=10,'General Calculation'!$N$21,IF(MONTH(B124)=11,'General Calculation'!$O$21,IF(MONTH(B124)=12,'General Calculation'!$P$21,"")))))))))))) -> 5.7884 | E124: =IF(C124="Initial Stage",'Calculation Sheet Crop 1'!$M$6,IF(C124="Crop Development Phase",'Calculation Sheet Crop 1'!$M$7,IF(C124="Mid Season",'Calculation Sheet Crop 1'!$M$8,IF(C124="Late Season Stage",'Calculation Sheet Crop 1'!$M$9,"")))) -> 0.45 | F124: 2.60478 | P124: 0 | Q124: 0 | R124: 0 | S124: 2.60478 | T124: 0 | U124: 0 | V124: 0 | W124: 0 | X124: 0 | Y124: 0 | Z124: 0 | AA124: 0
B125: 2017-04-29 | C125: =IF(AND(B125>='Calculation Sheet Crop 1'!$K$6,B125<='Calculation Sheet Crop 1'!$L$6),"Initial Stage",IF(AND(B125+1>'Calculation Sheet Crop 1'!$K$7,B125<='Calculation Sheet Crop 1'!$L$7),"Crop Development Phase",IF(AND(B125+1>'Calculation Sheet Crop 1'!$K$8,B125<'Calculation Sheet Crop 1'!$L$8+1),"Mid Season",IF(AND(B125+1>'Calculation Sheet Crop 1'!$K$9,B125-1<'Calculation Sheet Crop 1'!$L$9),"Late Season Stage","")))) -> Late Season Stage | D125: =IF(MONTH(B125)=1,'General Calculation'!$E$21,IF(MONTH(B125)=2,'General Calculation'!$F$21,IF(MONTH(B125)=3,'General Calculation'!$G$21,IF(MONTH(B125)=4,'General Calculation'!$H$21,IF(MONTH(B125)=5,'General Calculation'!$I$21,IF(MONTH(B125)=6,'General Calculation'!$J$21,IF(MONTH(B125)=7,'General Calculation'!$K$21,IF(MONTH(B125)=8,'General Calculation'!$L$21,IF(MONTH(B125)=9,'General Calculation'!$M$21,IF(MONTH(B125)=10,'General Calculation'!$N$21,IF(MONTH(B125)=11,'General Calculation'!$O$21,IF(MONTH(B125)=12,'General Calculation'!$P$21,"")))))))))))) -> 5.7884 | E125: =IF(C125="Initial Stage",'Calculation Sheet Crop 1'!$M$6,IF(C125="Crop Development Phase",'Calculation Sheet Crop 1'!$M$7,IF(C125="Mid Season",'Calculation Sheet Crop 1'!$M$8,IF(C125="Late Season Stage",'Calculation Sheet Crop 1'!$M$9,"")))) -> 0.45 | F125: 2.60478 | P125: 0 | Q125: 0 | R125: 0 | S125: 2.60478 | T125: 0 | U125: 0 | V125: 0 | W125: 0 | X125: 0 | Y125: 0 | Z125: 0 | AA125: 0
B126: 2017-04-30 | C126: =IF(AND(B126>='Calculation Sheet Crop 1'!$K$6,B126<='Calculation Sheet Crop 1'!$L$6),"Initial Stage",IF(AND(B126+1>'Calculation Sheet Crop 1'!$K$7,B126<='Calculation Sheet Crop 1'!$L$7),"Crop Development Phase",IF(AND(B126+1>'Calculation Sheet Crop 1'!$K$8,B126<'Calculation Sheet Crop 1'!$L$8+1),"Mid Season",IF(AND(B126+1>'Calculation Sheet Crop 1'!$K$9,B126-1<'Calculation Sheet Crop 1'!$L$9),"Late Season Stage","")))) -> Late Season Stage | D126: =IF(MONTH(B126)=1,'General Calculation'!$E$21,IF(MONTH(B126)=2,'General Calculation'!$F$21,IF(MONTH(B126)=3,'General Calculation'!$G$21,IF(MONTH(B126)=4,'General Calculation'!$H$21,IF(MONTH(B126)=5,'General Calculation'!$I$21,IF(MONTH(B126)=6,'General Calculation'!$J$21,IF(MONTH(B126)=7,'General Calculation'!$K$21,IF(MONTH(B126)=8,'General Calculation'!$L$21,IF(MONTH(B126)=9,'General Calculation'!$M$21,IF(MONTH(B126)=10,'General Calculation'!$N$21,IF(MONTH(B126)=11,'General Calculation'!$O$21,IF(MONTH(B126)=12,'General Calculation'!$P$21,"")))))))))))) -> 5.7884 | E126: =IF(C126="Initial Stage",'Calculation Sheet Crop 1'!$M$6,IF(C126="Crop Development Phase",'Calculation Sheet Crop 1'!$M$7,IF(C126="Mid Season",'Calculation Sheet Crop 1'!$M$8,IF(C126="Late Season Stage",'Calculation Sheet Crop 1'!$M$9,"")))) -> 0.45 | F126: 2.60478 | P126: 0 | Q126: 0 | R126: 0 | S126: 2.60478 | T126: 0 | U126: 0 | V126: 0 | W126: 0 | X126: 0 | Y126: 0 | Z126: 0 | AA126: 0
B127: 2017-05-01 | C127: =IF(AND(B127>='Calculation Sheet Crop 1'!$K$6,B127<='Calculation Sheet Crop 1'!$L$6),"Initial Stage",IF(AND(B127+1>'Calculation Sheet Crop 1'!$K$7,B127<='Calculation Sheet Crop 1'!$L$7),"Crop Development Phase",IF(AND(B127+1>'Calculation Sheet Crop 1'!$K$8,B127<'Calculation Sheet Crop 1'!$L$8+1),"Mid Season",IF(AND(B127+1>'Calculation Sheet Crop 1'!$K$9,B127-1<'Calculation Sheet Crop 1'!$L$9),"Late Season Stage","")))) -> Late Season Stage | D127: =IF(MONTH(B127)=1,'General Calculation'!$E$21,IF(MONTH(B127)=2,'General Calculation'!$F$21,IF(MONTH(B127)=3,'General Calculation'!$G$21,IF(MONTH(B127)=4,'General Calculation'!$H$21,IF(MONTH(B127)=5,'General Calculation'!$I$21,IF(MONTH(B127)=6,'General Calculation'!$J$21,IF(MONTH(B127)=7,'General Calculation'!$K$21,IF(MONTH(B127)=8,'General Calculation'!$L$21,IF(MONTH(B127)=9,'General Calculation'!$M$21,IF(MONTH(B127)=10,'General Calculation'!$N$21,IF(MONTH(B127)=11,'General Calculation'!$O$21,IF(MONTH(B127)=12,'General Calculation'!$P$21,"")))))))))))) -> 6.045 | E127: =IF(C127="Initial Stage",'Calculation Sheet Crop 1'!$M$6,IF(C127="Crop Development Phase",'Calculation Sheet Crop 1'!$M$7,IF(C127="Mid Season",'Calculation Sheet Crop 1'!$M$8,IF(C127="Late Season Stage",'Calculation Sheet Crop 1'!$M$9,"")))) -> 0.45 | F127: 2.72025 | P127: 0 | Q127: 0 | R127: 0 | S127: 0 | T127: 2.72025 | U127: 0 | V127: 0 | W127: 0 | X127: 0 | Y127: 0 | Z127: 0 | AA127: 0
B128: 2017-05-02 | C128: =IF(AND(B128>='Calculation Sheet Crop 1'!$K$6,B128<='Calculation Sheet Crop 1'!$L$6),"Initial Stage",IF(AND(B128+1>'Calculation Sheet Crop 1'!$K$7,B128<='Calculation Sheet Crop 1'!$L$7),"Crop Development Phase",IF(AND(B128+1>'Calculation Sheet Crop 1'!$K$8,B128<'Calculation Sheet Crop 1'!$L$8+1),"Mid Season",IF(AND(B128+1>'Calculation Sheet Crop 1'!$K$9,B128-1<'Calculation Sheet Crop 1'!$L$9),"Late Season Stage","")))) -> Late Season Stage | D128: =IF(MONTH(B128)=1,'General Calculation'!$E$21,IF(MONTH(B128)=2,'General Calculation'!$F$21,IF(MONTH(B128)=3,'General Calculation'!$G$21,IF(MONTH(B128)=4,'General Calculation'!$H$21,IF(MONTH(B128)=5,'General Calculation'!$I$21,IF(MONTH(B128)=6,'General Calculation'!$J$21,IF(MONTH(B128)=7,'General Calculation'!$K$21,IF(MONTH(B128)=8,'General Calculation'!$L$21,IF(MONTH(B128)=9,'General Calculation'!$M$21,IF(MONTH(B128)=10,'General Calculation'!$N$21,IF(MONTH(B128)=11,'General Calculation'!$O$21,IF(MONTH(B128)=12,'General Calculation'!$P$21,"")))))))))))) -> 6.045 | E128: =IF(C128="Initial Stage",'Calculation Sheet Crop 1'!$M$6,IF(C128="Crop Development Phase",'Calculation Sheet Crop 1'!$M$7,IF(C128="Mid Season",'Calculation Sheet Crop 1'!$M$8,IF(C128="Late Season Stage",'Calculation Sheet Crop 1'!$M$9,"")))) -> 0.45 | F128: 2.72025 | P128: 0 | Q128: 0 | R128: 0 | S128: 0 | T128: 2.72025 | U128: 0 | V128: 0 | W128: 0 | X128: 0 | Y128: 0 | Z128: 0 | AA128: 0
B129: 2017-05-03 | C129: =IF(AND(B129>='Calculation Sheet Crop 1'!$K$6,B129<='Calculation Sheet Crop 1'!$L$6),"Initial Stage",IF(AND(B129+1>'Calculation Sheet Crop 1'!$K$7,B129<='Calculation Sheet Crop 1'!$L$7),"Crop Development Phase",IF(AND(B129+1>'Calculation Sheet Crop 1'!$K$8,B129<'Calculation Sheet Crop 1'!$L$8+1),"Mid Season",IF(AND(B129+1>'Calculation Sheet Crop 1'!$K$9,B129-1<'Calculation Sheet Crop 1'!$L$9),"Late Season Stage","")))) -> Late Season Stage | D129: =IF(MONTH(B129)=1,'General Calculation'!$E$21,IF(MONTH(B129)=2,'General Calculation'!$F$21,IF(MONTH(B129)=3,'General Calculation'!$G$21,IF(MONTH(B129)=4,'General Calculation'!$H$21,IF(MONTH(B129)=5,'General Calculation'!$I$21,IF(MONTH(B129)=6,'General Calculation'!$J$21,IF(MONTH(B129)=7,'General Calculation'!$K$21,IF(MONTH(B129)=8,'General Calculation'!$L$21,IF(MONTH(B129)=9,'General Calculation'!$M$21,IF(MONTH(B129)=10,'General Calculation'!$N$21,IF(MONTH(B129)=11,'General Calculation'!$O$21,IF(MONTH(B129)=12,'General Calculation'!$P$21,"")))))))))))) -> 6.045 | E129: =IF(C129="Initial Stage",'Calculation Sheet Crop 1'!$M$6,IF(C129="Crop Development Phase",'Calculation Sheet Crop 1'!$M$7,IF(C129="Mid Season",'Calculation Sheet Crop 1'!$M$8,IF(C129="Late Season Stage",'Calculation Sheet Crop 1'!$M$9,"")))) -> 0.45 | F129: 2.72025 | P129: 0 | Q129: 0 | R129: 0 | S129: 0 | T129: 2.72025 | U129: 0 | V129: 0 | W129: 0 | X129: 0 | Y129: 0 | Z129: 0 | AA129: 0
B130: 2017-05-04 | C130: =IF(AND(B130>='Calculation Sheet Crop 1'!$K$6,B130<='Calculation Sheet Crop 1'!$L$6),"Initial Stage",IF(AND(B130+1>'Calculation Sheet Crop 1'!$K$7,B130<='Calculation Sheet Crop 1'!$L$7),"Crop Development Phase",IF(AND(B130+1>'Calculation Sheet Crop 1'!$K$8,B130<'Calculation Sheet Crop 1'!$L$8+1),"Mid Season",IF(AND(B130+1>'Calculation Sheet Crop 1'!$K$9,B130-1<'Calculation Sheet Crop 1'!$L$9),"Late Season Stage","")))) -> Late Season Stage | D130: =IF(MONTH(B130)=1,'General Calculation'!$E$21,IF(MONTH(B130)=2,'General Calculation'!$F$21,IF(MONTH(B130)=3,'General Calculation'!$G$21,IF(MONTH(B130)=4,'General Calculation'!$H$21,IF(MONTH(B130)=5,'General Calculation'!$I$21,IF(MONTH(B130)=6,'General Calculation'!$J$21,IF(MONTH(B130)=7,'General Calculation'!$K$21,IF(MONTH(B130)=8,'General Calculation'!$L$21,IF(MONTH(B130)=9,'General Calculation'!$M$21,IF(MONTH(B130)=10,'General Calculation'!$N$21,IF(MONTH(B130)=11,'General Calculation'!$O$21,IF(MONTH(B130)=12,'General Calculation'!$P$21,"")))))))))))) -> 6.045 | E130: =IF(C130="Initial Stage",'Calculation Sheet Crop 1'!$M$6,IF(C130="Crop Development Phase",'Calculation Sheet Crop 1'!$M$7,IF(C130="Mid Season",'Calculation Sheet Crop 1'!$M$8,IF(C130="Late Season Stage",'Calculation Sheet Crop 1'!$M$9,"")))) -> 0.45 | F130: 2.72025 | P130: 0 | Q130: 0 | R130: 0 | S130: 0 | T130: 2.72025 | U130: 0 | V130: 0 | W130: 0 | X130: 0 | Y130: 0 | Z130: 0 | AA130: 0
B131: 2017-05-05 | C131: =IF(AND(B131>='Calculation Sheet Crop 1'!$K$6,B131<='Calculation Sheet Crop 1'!$L$6),"Initial Stage",IF(AND(B131+1>'Calculation Sheet Crop 1'!$K$7,B131<='Calculation Sheet Crop 1'!$L$7),"Crop Development Phase",IF(AND(B131+1>'Calculation Sheet Crop 1'!$K$8,B131<'Calculation Sheet Crop 1'!$L$8+1),"Mid Season",IF(AND(B131+1>'Calculation Sheet Crop 1'!$K$9,B131-1<'Calculation Sheet Crop 1'!$L$9),"Late Season Stage","")))) ->  | D131: =IF(MONTH(B131)=1,'General Calculation'!$E$21,IF(MONTH(B131)=2,'General Calculation'!$F$21,IF(MONTH(B131)=3,'General Calculation'!$G$21,IF(MONTH(B131)=4,'General Calculation'!$H$21,IF(MONTH(B131)=5,'General Calculation'!$I$21,IF(MONTH(B131)=6,'General Calculation'!$J$21,IF(MONTH(B131)=7,'General Calculation'!$K$21,IF(MONTH(B131)=8,'General Calculation'!$L$21,IF(MONTH(B131)=9,'General Calculation'!$M$21,IF(MONTH(B131)=10,'General Calculation'!$N$21,IF(MONTH(B131)=11,'General Calculation'!$O$21,IF(MONTH(B131)=12,'General Calculation'!$P$21,"")))))))))))) -> 6.045 | E131: =IF(C131="Initial Stage",'Calculation Sheet Crop 1'!$M$6,IF(C131="Crop Development Phase",'Calculation Sheet Crop 1'!$M$7,IF(C131="Mid Season",'Calculation Sheet Crop 1'!$M$8,IF(C131="Late Season Stage",'Calculation Sheet Crop 1'!$M$9,"")))) ->  | F131: 0 | P131: 0 | Q131: 0 | R131: 0 | S131: 0 | T131: 0 | U131: 0 | V131: 0 | W131: 0 | X131: 0 | Y131: 0 | Z131: 0 | AA131: 0
B132: 2017-05-06 | C132: =IF(AND(B132>='Calculation Sheet Crop 1'!$K$6,B132<='Calculation Sheet Crop 1'!$L$6),"Initial Stage",IF(AND(B132+1>'Calculation Sheet Crop 1'!$K$7,B132<='Calculation Sheet Crop 1'!$L$7),"Crop Development Phase",IF(AND(B132+1>'Calculation Sheet Crop 1'!$K$8,B132<'Calculation Sheet Crop 1'!$L$8+1),"Mid Season",IF(AND(B132+1>'Calculation Sheet Crop 1'!$K$9,B132-1<'Calculation Sheet Crop 1'!$L$9),"Late Season Stage","")))) ->  | D132: =IF(MONTH(B132)=1,'General Calculation'!$E$21,IF(MONTH(B132)=2,'General Calculation'!$F$21,IF(MONTH(B132)=3,'General Calculation'!$G$21,IF(MONTH(B132)=4,'General Calculation'!$H$21,IF(MONTH(B132)=5,'General Calculation'!$I$21,IF(MONTH(B132)=6,'General Calculation'!$J$21,IF(MONTH(B132)=7,'General Calculation'!$K$21,IF(MONTH(B132)=8,'General Calculation'!$L$21,IF(MONTH(B132)=9,'General Calculation'!$M$21,IF(MONTH(B132)=10,'General Calculation'!$N$21,IF(MONTH(B132)=11,'General Calculation'!$O$21,IF(MONTH(B132)=12,'General Calculation'!$P$21,"")))))))))))) -> 6.045 | E132: =IF(C132="Initial Stage",'Calculation Sheet Crop 1'!$M$6,IF(C132="Crop Development Phase",'Calculation Sheet Crop 1'!$M$7,IF(C132="Mid Season",'Calculation Sheet Crop 1'!$M$8,IF(C132="Late Season Stage",'Calculation Sheet Crop 1'!$M$9,"")))) ->  | F132: 0 | P132: 0 | Q132: 0 | R132: 0 | S132: 0 | T132: 0 | U132: 0 | V132: 0 | W132: 0 | X132: 0 | Y132: 0 | Z132: 0 | AA132: 0
B133: 2017-05-07 | C133: =IF(AND(B133>='Calculation Sheet Crop 1'!$K$6,B133<='Calculation Sheet Crop 1'!$L$6),"Initial Stage",IF(AND(B133+1>'Calculation Sheet Crop 1'!$K$7,B133<='Calculation Sheet Crop 1'!$L$7),"Crop Development Phase",IF(AND(B133+1>'Calculation Sheet Crop 1'!$K$8,B133<'Calculation Sheet Crop 1'!$L$8+1),"Mid Season",IF(AND(B133+1>'Calculation Sheet Crop 1'!$K$9,B133-1<'Calculation Sheet Crop 1'!$L$9),"Late Season Stage","")))) ->  | D133: =IF(MONTH(B133)=1,'General Calculation'!$E$21,IF(MONTH(B133)=2,'General Calculation'!$F$21,IF(MONTH(B133)=3,'General Calculation'!$G$21,IF(MONTH(B133)=4,'General Calculation'!$H$21,IF(MONTH(B133)=5,'General Calculation'!$I$21,IF(MONTH(B133)=6,'General Calculation'!$J$21,IF(MONTH(B133)=7,'General Calculation'!$K$21,IF(MONTH(B133)=8,'General Calculation'!$L$21,IF(MONTH(B133)=9,'General Calculation'!$M$21,IF(MONTH(B133)=10,'General Calculation'!$N$21,IF(MONTH(B133)=11,'General Calculation'!$O$21,IF(MONTH(B133)=12,'General Calculation'!$P$21,"")))))))))))) -> 6.045 | E133: =IF(C133="Initial Stage",'Calculation Sheet Crop 1'!$M$6,IF(C133="Crop Development Phase",'Calculation Sheet Crop 1'!$M$7,IF(C133="Mid Season",'Calculation Sheet Crop 1'!$M$8,IF(C133="Late Season Stage",'Calculation Sheet Crop 1'!$M$9,"")))) ->  | F133: 0 | P133: 0 | Q133: 0 | R133: 0 | S133: 0 | T133: 0 | U133: 0 | V133: 0 | W133: 0 | X133: 0 | Y133: 0 | Z133: 0 | AA133: 0
B134: 2017-05-08 | C134: =IF(AND(B134>='Calculation Sheet Crop 1'!$K$6,B134<='Calculation Sheet Crop 1'!$L$6),"Initial Stage",IF(AND(B134+1>'Calculation Sheet Crop 1'!$K$7,B134<='Calculation Sheet Crop 1'!$L$7),"Crop Development Phase",IF(AND(B134+1>'Calculation Sheet Crop 1'!$K$8,B134<'Calculation Sheet Crop 1'!$L$8+1),"Mid Season",IF(AND(B134+1>'Calculation Sheet Crop 1'!$K$9,B134-1<'Calculation Sheet Crop 1'!$L$9),"Late Season Stage","")))) ->  | D134: =IF(MONTH(B134)=1,'General Calculation'!$E$21,IF(MONTH(B134)=2,'General Calculation'!$F$21,IF(MONTH(B134)=3,'General Calculation'!$G$21,IF(MONTH(B134)=4,'General Calculation'!$H$21,IF(MONTH(B134)=5,'General Calculation'!$I$21,IF(MONTH(B134)=6,'General Calculation'!$J$21,IF(MONTH(B134)=7,'General Calculation'!$K$21,IF(MONTH(B134)=8,'General Calculation'!$L$21,IF(MONTH(B134)=9,'General Calculation'!$M$21,IF(MONTH(B134)=10,'General Calculation'!$N$21,IF(MONTH(B134)=11,'General Calculation'!$O$21,IF(MONTH(B134)=12,'General Calculation'!$P$21,"")))))))))))) -> 6.045 | E134: =IF(C134="Initial Stage",'Calculation Sheet Crop 1'!$M$6,IF(C134="Crop Development Phase",'Calculation Sheet Crop 1'!$M$7,IF(C134="Mid Season",'Calculation Sheet Crop 1'!$M$8,IF(C134="Late Season Stage",'Calculation Sheet Crop 1'!$M$9,"")))) ->  | F134: 0 | P134: 0 | Q134: 0 | R134: 0 | S134: 0 | T134: 0 | U134: 0 | V134: 0 | W134: 0 | X134: 0 | Y134: 0 | Z134: 0 | AA134: 0
B135: 2017-05-09 | C135: =IF(AND(B135>='Calculation Sheet Crop 1'!$K$6,B135<='Calculation Sheet Crop 1'!$L$6),"Initial Stage",IF(AND(B135+1>'Calculation Sheet Crop 1'!$K$7,B135<='Calculation Sheet Crop 1'!$L$7),"Crop Development Phase",IF(AND(B135+1>'Calculation Sheet Crop 1'!$K$8,B135<'Calculation Sheet Crop 1'!$L$8+1),"Mid Season",IF(AND(B135+1>'Calculation Sheet Crop 1'!$K$9,B135-1<'Calculation Sheet Crop 1'!$L$9),"Late Season Stage","")))) ->  | D135: =IF(MONTH(B135)=1,'General Calculation'!$E$21,IF(MONTH(B135)=2,'General Calculation'!$F$21,IF(MONTH(B135)=3,'General Calculation'!$G$21,IF(MONTH(B135)=4,'General Calculation'!$H$21,IF(MONTH(B135)=5,'General Calculation'!$I$21,IF(MONTH(B135)=6,'General Calculation'!$J$21,IF(MONTH(B135)=7,'General Calculation'!$K$21,IF(MONTH(B135)=8,'General Calculation'!$L$21,IF(MONTH(B135)=9,'General Calculation'!$M$21,IF(MONTH(B135)=10,'General Calculation'!$N$21,IF(MONTH(B135)=11,'General Calculation'!$O$21,IF(MONTH(B135)=12,'General Calculation'!$P$21,"")))))))))))) -> 6.045 | E135: =IF(C135="Initial Stage",'Calculation Sheet Crop 1'!$M$6,IF(C135="Crop Development Phase",'Calculation Sheet Crop 1'!$M$7,IF(C135="Mid Season",'Calculation Sheet Crop 1'!$M$8,IF(C135="Late Season Stage",'Calculation Sheet Crop 1'!$M$9,"")))) ->  | F135: 0 | P135: 0 | Q135: 0 | R135: 0 | S135: 0 | T135: 0 | U135: 0 | V135: 0 | W135: 0 | X135: 0 | Y135: 0 | Z135: 0 | AA135: 0
B136: 2017-05-10 | C136: =IF(AND(B136>='Calculation Sheet Crop 1'!$K$6,B136<='Calculation Sheet Crop 1'!$L$6),"Initial Stage",IF(AND(B136+1>'Calculation Sheet Crop 1'!$K$7,B136<='Calculation Sheet Crop 1'!$L$7),"Crop Development Phase",IF(AND(B136+1>'Calculation Sheet Crop 1'!$K$8,B136<'Calculation Sheet Crop 1'!$L$8+1),"Mid Season",IF(AND(B136+1>'Calculation Sheet Crop 1'!$K$9,B136-1<'Calculation Sheet Crop 1'!$L$9),"Late Season Stage","")))) ->  | D136: =IF(MONTH(B136)=1,'General Calculation'!$E$21,IF(MONTH(B136)=2,'General Calculation'!$F$21,IF(MONTH(B136)=3,'General Calculation'!$G$21,IF(MONTH(B136)=4,'General Calculation'!$H$21,IF(MONTH(B136)=5,'General Calculation'!$I$21,IF(MONTH(B136)=6,'General Calculation'!$J$21,IF(MONTH(B136)=7,'General Calculation'!$K$21,IF(MONTH(B136)=8,'General Calculation'!$L$21,IF(MONTH(B136)=9,'General Calculation'!$M$21,IF(MONTH(B136)=10,'General Calculation'!$N$21,IF(MONTH(B136)=11,'General Calculation'!$O$21,IF(MONTH(B136)=12,'General Calculation'!$P$21,"")))))))))))) -> 6.045 | E136: =IF(C136="Initial Stage",'Calculation Sheet Crop 1'!$M$6,IF(C136="Crop Development Phase",'Calculation Sheet Crop 1'!$M$7,IF(C136="Mid Season",'Calculation Sheet Crop 1'!$M$8,IF(C136="Late Season Stage",'Calculation Sheet Crop 1'!$M$9,"")))) ->  | F136: =IFERROR((D136*E136),0) -> 0 | P136: =IF(MONTH($B136)=1,$F136,0) -> 0 | Q136: =IF(MONTH($B136)=2,$F136,0) -> 0 | R136: =IF(MONTH($B136)=3,$F136,0) -> 0 | S136: =IF(MONTH($B136)=4,$F136,0) -> 0 | T136: =IF(MONTH($B136)=5,$F136,0) -> 0 | U136: =IF(MONTH($B136)=6,$F136,0) -> 0 | V136: =IF(MONTH($B136)=7,$F136,0) -> 0 | W136: =IF(MONTH($B136)=8,$F136,0) -> 0 | X136: =IF(MONTH($B136)=9,$F136,0) -> 0 | Y136: =IF(MONTH($B136)=10,$F136,0) -> 0 | Z136: =IF(MONTH($B136)=11,$F136,0) -> 0 | AA136: =IF(MONTH($B136)=12,$F136,0) -> 0
B137: 2017-05-11 | C137: =IF(AND(B137>='Calculation Sheet Crop 1'!$K$6,B137<='Calculation Sheet Crop 1'!$L$6),"Initial Stage",IF(AND(B137+1>'Calculation Sheet Crop 1'!$K$7,B137<='Calculation Sheet Crop 1'!$L$7),"Crop Development Phase",IF(AND(B137+1>'Calculation Sheet Crop 1'!$K$8,B137<'Calculation Sheet Crop 1'!$L$8+1),"Mid Season",IF(AND(B137+1>'Calculation Sheet Crop 1'!$K$9,B137-1<'Calculation Sheet Crop 1'!$L$9),"Late Season Stage","")))) ->  | D137: =IF(MONTH(B137)=1,'General Calculation'!$E$21,IF(MONTH(B137)=2,'General Calculation'!$F$21,IF(MONTH(B137)=3,'General Calculation'!$G$21,IF(MONTH(B137)=4,'General Calculation'!$H$21,IF(MONTH(B137)=5,'General Calculation'!$I$21,IF(MONTH(B137)=6,'General Calculation'!$J$21,IF(MONTH(B137)=7,'General Calculation'!$K$21,IF(MONTH(B137)=8,'General Calculation'!$L$21,IF(MONTH(B137)=9,'General Calculation'!$M$21,IF(MONTH(B137)=10,'General Calculation'!$N$21,IF(MONTH(B137)=11,'General Calculation'!$O$21,IF(MONTH(B137)=12,'General Calculation'!$P$21,"")))))))))))) -> 6.045 | E137: =IF(C137="Initial Stage",'Calculation Sheet Crop 1'!$M$6,IF(C137="Crop Development Phase",'Calculation Sheet Crop 1'!$M$7,IF(C137="Mid Season",'Calculation Sheet Crop 1'!$M$8,IF(C137="Late Season Stage",'Calculation Sheet Crop 1'!$M$9,"")))) ->  | F137: 0 | P137: 0 | Q137: 0 | R137: 0 | S137: 0 | T137: 0 | U137: 0 | V137: 0 | W137: 0 | X137: 0 | Y137: 0 | Z137: 0 | AA137: 0
B138: 2017-05-12 | C138: =IF(AND(B138>='Calculation Sheet Crop 1'!$K$6,B138<='Calculation Sheet Crop 1'!$L$6),"Initial Stage",IF(AND(B138+1>'Calculation Sheet Crop 1'!$K$7,B138<='Calculation Sheet Crop 1'!$L$7),"Crop Development Phase",IF(AND(B138+1>'Calculation Sheet Crop 1'!$K$8,B138<'Calculation Sheet Crop 1'!$L$8+1),"Mid Season",IF(AND(B138+1>'Calculation Sheet Crop 1'!$K$9,B138-1<'Calculation Sheet Crop 1'!$L$9),"Late Season Stage","")))) ->  | D138: =IF(MONTH(B138)=1,'General Calculation'!$E$21,IF(MONTH(B138)=2,'General Calculation'!$F$21,IF(MONTH(B138)=3,'General Calculation'!$G$21,IF(MONTH(B138)=4,'General Calculation'!$H$21,IF(MONTH(B138)=5,'General Calculation'!$I$21,IF(MONTH(B138)=6,'General Calculation'!$J$21,IF(MONTH(B138)=7,'General Calculation'!$K$21,IF(MONTH(B138)=8,'General Calculation'!$L$21,IF(MONTH(B138)=9,'General Calculation'!$M$21,IF(MONTH(B138)=10,'General Calculation'!$N$21,IF(MONTH(B138)=11,'General Calculation'!$O$21,IF(MONTH(B138)=12,'General Calculation'!$P$21,"")))))))))))) -> 6.045 | E138: =IF(C138="Initial Stage",'Calculation Sheet Crop 1'!$M$6,IF(C138="Crop Development Phase",'Calculation Sheet Crop 1'!$M$7,IF(C138="Mid Season",'Calculation Sheet Crop 1'!$M$8,IF(C138="Late Season Stage",'Calculation Sheet Crop 1'!$M$9,"")))) ->  | F138: 0 | P138: 0 | Q138: 0 | R138: 0 | S138: 0 | T138: 0 | U138: 0 | V138: 0 | W138: 0 | X138: 0 | Y138: 0 | Z138: 0 | AA138: 0
B139: 2017-05-13 | C139: =IF(AND(B139>='Calculation Sheet Crop 1'!$K$6,B139<='Calculation Sheet Crop 1'!$L$6),"Initial Stage",IF(AND(B139+1>'Calculation Sheet Crop 1'!$K$7,B139<='Calculation Sheet Crop 1'!$L$7),"Crop Development Phase",IF(AND(B139+1>'Calculation Sheet Crop 1'!$K$8,B139<'Calculation Sheet Crop 1'!$L$8+1),"Mid Season",IF(AND(B139+1>'Calculation Sheet Crop 1'!$K$9,B139-1<'Calculation Sheet Crop 1'!$L$9),"Late Season Stage","")))) ->  | D139: =IF(MONTH(B139)=1,'General Calculation'!$E$21,IF(MONTH(B139)=2,'General Calculation'!$F$21,IF(MONTH(B139)=3,'General Calculation'!$G$21,IF(MONTH(B139)=4,'General Calculation'!$H$21,IF(MONTH(B139)=5,'General Calculation'!$I$21,IF(MONTH(B139)=6,'General Calculation'!$J$21,IF(MONTH(B139)=7,'General Calculation'!$K$21,IF(MONTH(B139)=8,'General Calculation'!$L$21,IF(MONTH(B139)=9,'General Calculation'!$M$21,IF(MONTH(B139)=10,'General Calculation'!$N$21,IF(MONTH(B139)=11,'General Calculation'!$O$21,IF(MONTH(B139)=12,'General Calculation'!$P$21,"")))))))))))) -> 6.045 | E139: =IF(C139="Initial Stage",'Calculation Sheet Crop 1'!$M$6,IF(C139="Crop Development Phase",'Calculation Sheet Crop 1'!$M$7,IF(C139="Mid Season",'Calculation Sheet Crop 1'!$M$8,IF(C139="Late Season Stage",'Calculation Sheet Crop 1'!$M$9,"")))) ->  | F139: 0 | P139: 0 | Q139: 0 | R139: 0 | S139: 0 | T139: 0 | U139: 0 | V139: 0 | W139: 0 | X139: 0 | Y139: 0 | Z139: 0 | AA139: 0
B140: 2017-05-14 | C140: =IF(AND(B140>='Calculation Sheet Crop 1'!$K$6,B140<='Calculation Sheet Crop 1'!$L$6),"Initial Stage",IF(AND(B140+1>'Calculation Sheet Crop 1'!$K$7,B140<='Calculation Sheet Crop 1'!$L$7),"Crop Development Phase",IF(AND(B140+1>'Calculation Sheet Crop 1'!$K$8,B140<'Calculation Sheet Crop 1'!$L$8+1),"Mid Season",IF(AND(B140+1>'Calculation Sheet Crop 1'!$K$9,B140-1<'Calculation Sheet Crop 1'!$L$9),"Late Season Stage","")))) ->  | D140: =IF(MONTH(B140)=1,'General Calculation'!$E$21,IF(MONTH(B140)=2,'General Calculation'!$F$21,IF(MONTH(B140)=3,'General Calculation'!$G$21,IF(MONTH(B140)=4,'General Calculation'!$H$21,IF(MONTH(B140)=5,'General Calculation'!$I$21,IF(MONTH(B140)=6,'General Calculation'!$J$21,IF(MONTH(B140)=7,'General Calculation'!$K$21,IF(MONTH(B140)=8,'General Calculation'!$L$21,IF(MONTH(B140)=9,'General Calculation'!$M$21,IF(MONTH(B140)=10,'General Calculation'!$N$21,IF(MONTH(B140)=11,'General Calculation'!$O$21,IF(MONTH(B140)=12,'General Calculation'!$P$21,"")))))))))))) -> 6.045 | E140: =IF(C140="Initial Stage",'Calculation Sheet Crop 1'!$M$6,IF(C140="Crop Development Phase",'Calculation Sheet Crop 1'!$M$7,IF(C140="Mid Season",'Calculation Sheet Crop 1'!$M$8,IF(C140="Late Season Stage",'Calculation Sheet Crop 1'!$M$9,"")))) ->  | F140: 0 | P140: 0 | Q140: 0 | R140: 0 | S140: 0 | T140: 0 | U140: 0 | V140: 0 | W140: 0 | X140: 0 | Y140: 0 | Z140: 0 | AA140: 0
B141: 2017-05-15 | C141: =IF(AND(B141>='Calculation Sheet Crop 1'!$K$6,B141<='Calculation Sheet Crop 1'!$L$6),"Initial Stage",IF(AND(B141+1>'Calculation Sheet Crop 1'!$K$7,B141<='Calculation Sheet Crop 1'!$L$7),"Crop Development Phase",IF(AND(B141+1>'Calculation Sheet Crop 1'!$K$8,B141<'Calculation Sheet Crop 1'!$L$8+1),"Mid Season",IF(AND(B141+1>'Calculation Sheet Crop 1'!$K$9,B141-1<'Calculation Sheet Crop 1'!$L$9),"Late Season Stage","")))) ->  | D141: =IF(MONTH(B141)=1,'General Calculation'!$E$21,IF(MONTH(B141)=2,'General Calculation'!$F$21,IF(MONTH(B141)=3,'General Calculation'!$G$21,IF(MONTH(B141)=4,'General Calculation'!$H$21,IF(MONTH(B141)=5,'General Calculation'!$I$21,IF(MONTH(B141)=6,'General Calculation'!$J$21,IF(MONTH(B141)=7,'General Calculation'!$K$21,IF(MONTH(B141)=8,'General Calculation'!$L$21,IF(MONTH(B141)=9,'General Calculation'!$M$21,IF(MONTH(B141)=10,'General Calculation'!$N$21,IF(MONTH(B141)=11,'General Calculation'!$O$21,IF(MONTH(B141)=12,'General Calculation'!$P$21,"")))))))))))) -> 6.045 | E141: =IF(C141="Initial Stage",'Calculation Sheet Crop 1'!$M$6,IF(C141="Crop Development Phase",'Calculation Sheet Crop 1'!$M$7,IF(C141="Mid Season",'Calculation Sheet Crop 1'!$M$8,IF(C141="Late Season Stage",'Calculation Sheet Crop 1'!$M$9,"")))) ->  | F141: 0 | P141: 0 | Q141: 0 | R141: 0 | S141: 0 | T141: 0 | U141: 0 | V141: 0 | W141: 0 | X141: 0 | Y141: 0 | Z141: 0 | AA141: 0
B142: 2017-05-16 | C142: =IF(AND(B142>='Calculation Sheet Crop 1'!$K$6,B142<='Calculation Sheet Crop 1'!$L$6),"Initial Stage",IF(AND(B142+1>'Calculation Sheet Crop 1'!$K$7,B142<='Calculation Sheet Crop 1'!$L$7),"Crop Development Phase",IF(AND(B142+1>'Calculation Sheet Crop 1'!$K$8,B142<'Calculation Sheet Crop 1'!$L$8+1),"Mid Season",IF(AND(B142+1>'Calculation Sheet Crop 1'!$K$9,B142-1<'Calculation Sheet Crop 1'!$L$9),"Late Season Stage","")))) ->  | D142: =IF(MONTH(B142)=1,'General Calculation'!$E$21,IF(MONTH(B142)=2,'General Calculation'!$F$21,IF(MONTH(B142)=3,'General Calculation'!$G$21,IF(MONTH(B142)=4,'General Calculation'!$H$21,IF(MONTH(B142)=5,'General Calculation'!$I$21,IF(MONTH(B142)=6,'General Calculation'!$J$21,IF(MONTH(B142)=7,'General Calculation'!$K$21,IF(MONTH(B142)=8,'General Calculation'!$L$21,IF(MONTH(B142)=9,'General Calculation'!$M$21,IF(MONTH(B142)=10,'General Calculation'!$N$21,IF(MONTH(B142)=11,'General Calculation'!$O$21,IF(MONTH(B142)=12,'General Calculation'!$P$21,"")))))))))))) -> 6.045 | E142: =IF(C142="Initial Stage",'Calculation Sheet Crop 1'!$M$6,IF(C142="Crop Development Phase",'Calculation Sheet Crop 1'!$M$7,IF(C142="Mid Season",'Calculation Sheet Crop 1'!$M$8,IF(C142="Late Season Stage",'Calculation Sheet Crop 1'!$M$9,"")))) ->  | F142: 0 | P142: 0 | Q142: 0 | R142: 0 | S142: 0 | T142: 0 | U142: 0 | V142: 0 | W142: 0 | X142: 0 | Y142: 0 | Z142: 0 | AA142: 0
B143: 2017-05-17 | C143: =IF(AND(B143>='Calculation Sheet Crop 1'!$K$6,B143<='Calculation Sheet Crop 1'!$L$6),"Initial Stage",IF(AND(B143+1>'Calculation Sheet Crop 1'!$K$7,B143<='Calculation Sheet Crop 1'!$L$7),"Crop Development Phase",IF(AND(B143+1>'Calculation Sheet Crop 1'!$K$8,B143<'Calculation Sheet Crop 1'!$L$8+1),"Mid Season",IF(AND(B143+1>'Calculation Sheet Crop 1'!$K$9,B143-1<'Calculation Sheet Crop 1'!$L$9),"Late Season Stage","")))) ->  | D143: =IF(MONTH(B143)=1,'General Calculation'!$E$21,IF(MONTH(B143)=2,'General Calculation'!$F$21,IF(MONTH(B143)=3,'General Calculation'!$G$21,IF(MONTH(B143)=4,'General Calculation'!$H$21,IF(MONTH(B143)=5,'General Calculation'!$I$21,IF(MONTH(B143)=6,'General Calculation'!$J$21,IF(MONTH(B143)=7,'General Calculation'!$K$21,IF(MONTH(B143)=8,'General Calculation'!$L$21,IF(MONTH(B143)=9,'General Calculation'!$M$21,IF(MONTH(B143)=10,'General Calculation'!$N$21,IF(MONTH(B143)=11,'General Calculation'!$O$21,IF(MONTH(B143)=12,'General Calculation'!$P$21,"")))))))))))) -> 6.045 | E143: =IF(C143="Initial Stage",'Calculation Sheet Crop 1'!$M$6,IF(C143="Crop Development Phase",'Calculation Sheet Crop 1'!$M$7,IF(C143="Mid Season",'Calculation Sheet Crop 1'!$M$8,IF(C143="Late Season Stage",'Calculation Sheet Crop 1'!$M$9,"")))) ->  | F143: 0 | P143: 0 | Q143: 0 | R143: 0 | S143: 0 | T143: 0 | U143: 0 | V143: 0 | W143: 0 | X143: 0 | Y143: 0 | Z143: 0 | AA143: 0
B144: 2017-05-18 | C144: =IF(AND(B144>='Calculation Sheet Crop 1'!$K$6,B144<='Calculation Sheet Crop 1'!$L$6),"Initial Stage",IF(AND(B144+1>'Calculation Sheet Crop 1'!$K$7,B144<='Calculation Sheet Crop 1'!$L$7),"Crop Development Phase",IF(AND(B144+1>'Calculation Sheet Crop 1'!$K$8,B144<'Calculation Sheet Crop 1'!$L$8+1),"Mid Season",IF(AND(B144+1>'Calculation Sheet Crop 1'!$K$9,B144-1<'Calculation Sheet Crop 1'!$L$9),"Late Season Stage","")))) ->  | D144: =IF(MONTH(B144)=1,'General Calculation'!$E$21,IF(MONTH(B144)=2,'General Calculation'!$F$21,IF(MONTH(B144)=3,'General Calculation'!$G$21,IF(MONTH(B144)=4,'General Calculation'!$H$21,IF(MONTH(B144)=5,'General Calculation'!$I$21,IF(MONTH(B144)=6,'General Calculation'!$J$21,IF(MONTH(B144)=7,'General Calculation'!$K$21,IF(MONTH(B144)=8,'General Calculation'!$L$21,IF(MONTH(B144)=9,'General Calculation'!$M$21,IF(MONTH(B144)=10,'General Calculation'!$N$21,IF(MONTH(B144)=11,'General Calculation'!$O$21,IF(MONTH(B144)=12,'General Calculation'!$P$21,"")))))))))))) -> 6.045 | E144: =IF(C144="Initial Stage",'Calculation Sheet Crop 1'!$M$6,IF(C144="Crop Development Phase",'Calculation Sheet Crop 1'!$M$7,IF(C144="Mid Season",'Calculation Sheet Crop 1'!$M$8,IF(C144="Late Season Stage",'Calculation Sheet Crop 1'!$M$9,"")))) ->  | F144: 0 | P144: 0 | Q144: 0 | R144: 0 | S144: 0 | T144: 0 | U144: 0 | V144: 0 | W144: 0 | X144: 0 | Y144: 0 | Z144: 0 | AA144: 0
B145: 2017-05-19 | C145: =IF(AND(B145>='Calculation Sheet Crop 1'!$K$6,B145<='Calculation Sheet Crop 1'!$L$6),"Initial Stage",IF(AND(B145+1>'Calculation Sheet Crop 1'!$K$7,B145<='Calculation Sheet Crop 1'!$L$7),"Crop Development Phase",IF(AND(B145+1>'Calculation Sheet Crop 1'!$K$8,B145<'Calculation Sheet Crop 1'!$L$8+1),"Mid Season",IF(AND(B145+1>'Calculation Sheet Crop 1'!$K$9,B145-1<'Calculation Sheet Crop 1'!$L$9),"Late Season Stage","")))) ->  | D145: =IF(MONTH(B145)=1,'General Calculation'!$E$21,IF(MONTH(B145)=2,'General Calculation'!$F$21,IF(MONTH(B145)=3,'General Calculation'!$G$21,IF(MONTH(B145)=4,'General Calculation'!$H$21,IF(MONTH(B145)=5,'General Calculation'!$I$21,IF(MONTH(B145)=6,'General Calculation'!$J$21,IF(MONTH(B145)=7,'General Calculation'!$K$21,IF(MONTH(B145)=8,'General Calculation'!$L$21,IF(MONTH(B145)=9,'General Calculation'!$M$21,IF(MONTH(B145)=10,'General Calculation'!$N$21,IF(MONTH(B145)=11,'General Calculation'!$O$21,IF(MONTH(B145)=12,'General Calculation'!$P$21,"")))))))))))) -> 6.045 | E145: =IF(C145="Initial Stage",'Calculation Sheet Crop 1'!$M$6,IF(C145="Crop Development Phase",'Calculation Sheet Crop 1'!$M$7,IF(C145="Mid Season",'Calculation Sheet Crop 1'!$M$8,IF(C145="Late Season Stage",'Calculation Sheet Crop 1'!$M$9,"")))) ->  | F145: 0 | P145: 0 | Q145: 0 | R145: 0 | S145: 0 | T145: 0 | U145: 0 | V145: 0 | W145: 0 | X145: 0 | Y145: 0 | Z145: 0 | AA145: 0
B146: 2017-05-20 | C146: =IF(AND(B146>='Calculation Sheet Crop 1'!$K$6,B146<='Calculation Sheet Crop 1'!$L$6),"Initial Stage",IF(AND(B146+1>'Calculation Sheet Crop 1'!$K$7,B146<='Calculation Sheet Crop 1'!$L$7),"Crop Development Phase",IF(AND(B146+1>'Calculation Sheet Crop 1'!$K$8,B146<'Calculation Sheet Crop 1'!$L$8+1),"Mid Season",IF(AND(B146+1>'Calculation Sheet Crop 1'!$K$9,B146-1<'Calculation Sheet Crop 1'!$L$9),"Late Season Stage","")))) ->  | D146: =IF(MONTH(B146)=1,'General Calculation'!$E$21,IF(MONTH(B146)=2,'General Calculation'!$F$21,IF(MONTH(B146)=3,'General Calculation'!$G$21,IF(MONTH(B146)=4,'General Calculation'!$H$21,IF(MONTH(B146)=5,'General Calculation'!$I$21,IF(MONTH(B146)=6,'General Calculation'!$J$21,IF(MONTH(B146)=7,'General Calculation'!$K$21,IF(MONTH(B146)=8,'General Calculation'!$L$21,IF(MONTH(B146)=9,'General Calculation'!$M$21,IF(MONTH(B146)=10,'General Calculation'!$N$21,IF(MONTH(B146)=11,'General Calculation'!$O$21,IF(MONTH(B146)=12,'General Calculation'!$P$21,"")))))))))))) -> 6.045 | E146: =IF(C146="Initial Stage",'Calculation Sheet Crop 1'!$M$6,IF(C146="Crop Development Phase",'Calculation Sheet Crop 1'!$M$7,IF(C146="Mid Season",'Calculation Sheet Crop 1'!$M$8,IF(C146="Late Season Stage",'Calculation Sheet Crop 1'!$M$9,"")))) ->  | F146: 0 | P146: 0 | Q146: 0 | R146: 0 | S146: 0 | T146: 0 | U146: 0 | V146: 0 | W146: 0 | X146: 0 | Y146: 0 | Z146: 0 | AA146: 0
B147: 2017-05-21 | C147: =IF(AND(B147>='Calculation Sheet Crop 1'!$K$6,B147<='Calculation Sheet Crop 1'!$L$6),"Initial Stage",IF(AND(B147+1>'Calculation Sheet Crop 1'!$K$7,B147<='Calculation Sheet Crop 1'!$L$7),"Crop Development Phase",IF(AND(B147+1>'Calculation Sheet Crop 1'!$K$8,B147<'Calculation Sheet Crop 1'!$L$8+1),"Mid Season",IF(AND(B147+1>'Calculation Sheet Crop 1'!$K$9,B147-1<'Calculation Sheet Crop 1'!$L$9),"Late Season Stage","")))) ->  | D147: =IF(MONTH(B147)=1,'General Calculation'!$E$21,IF(MONTH(B147)=2,'General Calculation'!$F$21,IF(MONTH(B147)=3,'General Calculation'!$G$21,IF(MONTH(B147)=4,'General Calculation'!$H$21,IF(MONTH(B147)=5,'General Calculation'!$I$21,IF(MONTH(B147)=6,'General Calculation'!$J$21,IF(MONTH(B147)=7,'General Calculation'!$K$21,IF(MONTH(B147)=8,'General Calculation'!$L$21,IF(MONTH(B147)=9,'General Calculation'!$M$21,IF(MONTH(B147)=10,'General Calculation'!$N$21,IF(MONTH(B147)=11,'General Calculation'!$O$21,IF(MONTH(B147)=12,'General Calculation'!$P$21,"")))))))))))) -> 6.045 | E147: =IF(C147="Initial Stage",'Calculation Sheet Crop 1'!$M$6,IF(C147="Crop Development Phase",'Calculation Sheet Crop 1'!$M$7,IF(C147="Mid Season",'Calculation Sheet Crop 1'!$M$8,IF(C147="Late Season Stage",'Calculation Sheet Crop 1'!$M$9,"")))) ->  | F147: 0 | P147: 0 | Q147: 0 | R147: 0 | S147: 0 | T147: 0 | U147: 0 | V147: 0 | W147: 0 | X147: 0 | Y147: 0 | Z147: 0 | AA147: 0
B148: 2017-05-22 | C148: =IF(AND(B148>='Calculation Sheet Crop 1'!$K$6,B148<='Calculation Sheet Crop 1'!$L$6),"Initial Stage",IF(AND(B148+1>'Calculation Sheet Crop 1'!$K$7,B148<='Calculation Sheet Crop 1'!$L$7),"Crop Development Phase",IF(AND(B148+1>'Calculation Sheet Crop 1'!$K$8,B148<'Calculation Sheet Crop 1'!$L$8+1),"Mid Season",IF(AND(B148+1>'Calculation Sheet Crop 1'!$K$9,B148-1<'Calculation Sheet Crop 1'!$L$9),"Late Season Stage","")))) ->  | D148: =IF(MONTH(B148)=1,'General Calculation'!$E$21,IF(MONTH(B148)=2,'General Calculation'!$F$21,IF(MONTH(B148)=3,'General Calculation'!$G$21,IF(MONTH(B148)=4,'General Calculation'!$H$21,IF(MONTH(B148)=5,'General Calculation'!$I$21,IF(MONTH(B148)=6,'General Calculation'!$J$21,IF(MONTH(B148)=7,'General Calculation'!$K$21,IF(MONTH(B148)=8,'General Calculation'!$L$21,IF(MONTH(B148)=9,'General Calculation'!$M$21,IF(MONTH(B148)=10,'General Calculation'!$N$21,IF(MONTH(B148)=11,'General Calculation'!$O$21,IF(MONTH(B148)=12,'General Calculation'!$P$21,"")))))))))))) -> 6.045 | E148: =IF(C148="Initial Stage",'Calculation Sheet Crop 1'!$M$6,IF(C148="Crop Development Phase",'Calculation Sheet Crop 1'!$M$7,IF(C148="Mid Season",'Calculation Sheet Crop 1'!$M$8,IF(C148="Late Season Stage",'Calculation Sheet Crop 1'!$M$9,"")))) ->  | F148: 0 | P148: 0 | Q148: 0 | R148: 0 | S148: 0 | T148: 0 | U148: 0 | V148: 0 | W148: 0 | X148: 0 | Y148: 0 | Z148: 0 | AA148: 0
B149: 2017-05-23 | C149: =IF(AND(B149>='Calculation Sheet Crop 1'!$K$6,B149<='Calculation Sheet Crop 1'!$L$6),"Initial Stage",IF(AND(B149+1>'Calculation Sheet Crop 1'!$K$7,B149<='Calculation Sheet Crop 1'!$L$7),"Crop Development Phase",IF(AND(B149+1>'Calculation Sheet Crop 1'!$K$8,B149<'Calculation Sheet Crop 1'!$L$8+1),"Mid Season",IF(AND(B149+1>'Calculation Sheet Crop 1'!$K$9,B149-1<'Calculation Sheet Crop 1'!$L$9),"Late Season Stage","")))) ->  | D149: =IF(MONTH(B149)=1,'General Calculation'!$E$21,IF(MONTH(B149)=2,'General Calculation'!$F$21,IF(MONTH(B149)=3,'General Calculation'!$G$21,IF(MONTH(B149)=4,'General Calculation'!$H$21,IF(MONTH(B149)=5,'General Calculation'!$I$21,IF(MONTH(B149)=6,'General Calculation'!$J$21,IF(MONTH(B149)=7,'General Calculation'!$K$21,IF(MONTH(B149)=8,'General Calculation'!$L$21,IF(MONTH(B149)=9,'General Calculation'!$M$21,IF(MONTH(B149)=10,'General Calculation'!$N$21,IF(MONTH(B149)=11,'General Calculation'!$O$21,IF(MONTH(B149)=12,'General Calculation'!$P$21,"")))))))))))) -> 6.045 | E149: =IF(C149="Initial Stage",'Calculation Sheet Crop 1'!$M$6,IF(C149="Crop Development Phase",'Calculation Sheet Crop 1'!$M$7,IF(C149="Mid Season",'Calculation Sheet Crop 1'!$M$8,IF(C149="Late Season Stage",'Calculation Sheet Crop 1'!$M$9,"")))) ->  | F149: 0 | P149: 0 | Q149: 0 | R149: 0 | S149: 0 | T149: 0 | U149: 0 | V149: 0 | W149: 0 | X149: 0 | Y149: 0 | Z149: 0 | AA149: 0
B150: 2017-05-24 | C150: =IF(AND(B150>='Calculation Sheet Crop 1'!$K$6,B150<='Calculation Sheet Crop 1'!$L$6),"Initial Stage",IF(AND(B150+1>'Calculation Sheet Crop 1'!$K$7,B150<='Calculation Sheet Crop 1'!$L$7),"Crop Development Phase",IF(AND(B150+1>'Calculation Sheet Crop 1'!$K$8,B150<'Calculation Sheet Crop 1'!$L$8+1),"Mid Season",IF(AND(B150+1>'Calculation Sheet Crop 1'!$K$9,B150-1<'Calculation Sheet Crop 1'!$L$9),"Late Season Stage","")))) ->  | D150: =IF(MONTH(B150)=1,'General Calculation'!$E$21,IF(MONTH(B150)=2,'General Calculation'!$F$21,IF(MONTH(B150)=3,'General Calculation'!$G$21,IF(MONTH(B150)=4,'General Calculation'!$H$21,IF(MONTH(B150)=5,'General Calculation'!$I$21,IF(MONTH(B150)=6,'General Calculation'!$J$21,IF(MONTH(B150)=7,'General Calculation'!$K$21,IF(MONTH(B150)=8,'General Calculation'!$L$21,IF(MONTH(B150)=9,'General Calculation'!$M$21,IF(MONTH(B150)=10,'General Calculation'!$N$21,IF(MONTH(B150)=11,'General Calculation'!$O$21,IF(MONTH(B150)=12,'General Calculation'!$P$21,"")))))))))))) -> 6.045 | E150: =IF(C150="Initial Stage",'Calculation Sheet Crop 1'!$M$6,IF(C150="Crop Development Phase",'Calculation Sheet Crop 1'!$M$7,IF(C150="Mid Season",'Calculation Sheet Crop 1'!$M$8,IF(C150="Late Season Stage",'Calculation Sheet Crop 1'!$M$9,"")))) ->  | F150: 0 | P150: 0 | Q150: 0 | R150: 0 | S150: 0 | T150: 0 | U150: 0 | V150: 0 | W150: 0 | X150: 0 | Y150: 0 | Z150: 0 | AA150: 0
B151: 2017-05-25 | C151: =IF(AND(B151>='Calculation Sheet Crop 1'!$K$6,B151<='Calculation Sheet Crop 1'!$L$6),"Initial Stage",IF(AND(B151+1>'Calculation Sheet Crop 1'!$K$7,B151<='Calculation Sheet Crop 1'!$L$7),"Crop Development Phase",IF(AND(B151+1>'Calculation Sheet Crop 1'!$K$8,B151<'Calculation Sheet Crop 1'!$L$8+1),"Mid Season",IF(AND(B151+1>'Calculation Sheet Crop 1'!$K$9,B151-1<'Calculation Sheet Crop 1'!$L$9),"Late Season Stage","")))) ->  | D151: =IF(MONTH(B151)=1,'General Calculation'!$E$21,IF(MONTH(B151)=2,'General Calculation'!$F$21,IF(MONTH(B151)=3,'General Calculation'!$G$21,IF(MONTH(B151)=4,'General Calculation'!$H$21,IF(MONTH(B151)=5,'General Calculation'!$I$21,IF(MONTH(B151)=6,'General Calculation'!$J$21,IF(MONTH(B151)=7,'General Calculation'!$K$21,IF(MONTH(B151)=8,'General Calculation'!$L$21,IF(MONTH(B151)=9,'General Calculation'!$M$21,IF(MONTH(B151)=10,'General Calculation'!$N$21,IF(MONTH(B151)=11,'General Calculation'!$O$21,IF(MONTH(B151)=12,'General Calculation'!$P$21,"")))))))))))) -> 6.045 | E151: =IF(C151="Initial Stage",'Calculation Sheet Crop 1'!$M$6,IF(C151="Crop Development Phase",'Calculation Sheet Crop 1'!$M$7,IF(C151="Mid Season",'Calculation Sheet Crop 1'!$M$8,IF(C151="Late Season Stage",'Calculation Sheet Crop 1'!$M$9,"")))) ->  | F151: 0 | P151: 0 | Q151: 0 | R151: 0 | S151: 0 | T151: 0 | U151: 0 | V151: 0 | W151: 0 | X151: 0 | Y151: 0 | Z151: 0 | AA151: 0
B152: 2017-05-26 | C152: =IF(AND(B152>='Calculation Sheet Crop 1'!$K$6,B152<='Calculation Sheet Crop 1'!$L$6),"Initial Stage",IF(AND(B152+1>'Calculation Sheet Crop 1'!$K$7,B152<='Calculation Sheet Crop 1'!$L$7),"Crop Development Phase",IF(AND(B152+1>'Calculation Sheet Crop 1'!$K$8,B152<'Calculation Sheet Crop 1'!$L$8+1),"Mid Season",IF(AND(B152+1>'Calculation Sheet Crop 1'!$K$9,B152-1<'Calculation Sheet Crop 1'!$L$9),"Late Season Stage","")))) ->  | D152: =IF(MONTH(B152)=1,'General Calculation'!$E$21,IF(MONTH(B152)=2,'General Calculation'!$F$21,IF(MONTH(B152)=3,'General Calculation'!$G$21,IF(MONTH(B152)=4,'General Calculation'!$H$21,IF(MONTH(B152)=5,'General Calculation'!$I$21,IF(MONTH(B152)=6,'General Calculation'!$J$21,IF(MONTH(B152)=7,'General Calculation'!$K$21,IF(MONTH(B152)=8,'General Calculation'!$L$21,IF(MONTH(B152)=9,'General Calculation'!$M$21,IF(MONTH(B152)=10,'General Calculation'!$N$21,IF(MONTH(B152)=11,'General Calculation'!$O$21,IF(MONTH(B152)=12,'General Calculation'!$P$21,"")))))))))))) -> 6.045 | E152: =IF(C152="Initial Stage",'Calculation Sheet Crop 1'!$M$6,IF(C152="Crop Development Phase",'Calculation Sheet Crop 1'!$M$7,IF(C152="Mid Season",'Calculation Sheet Crop 1'!$M$8,IF(C152="Late Season Stage",'Calculation Sheet Crop 1'!$M$9,"")))) ->  | F152: 0 | P152: 0 | Q152: 0 | R152: 0 | S152: 0 | T152: 0 | U152: 0 | V152: 0 | W152: 0 | X152: 0 | Y152: 0 | Z152: 0 | AA152: 0
B153: 2017-05-27 | C153: =IF(AND(B153>='Calculation Sheet Crop 1'!$K$6,B153<='Calculation Sheet Crop 1'!$L$6),"Initial Stage",IF(AND(B153+1>'Calculation Sheet Crop 1'!$K$7,B153<='Calculation Sheet Crop 1'!$L$7),"Crop Development Phase",IF(AND(B153+1>'Calculation Sheet Crop 1'!$K$8,B153<'Calculation Sheet Crop 1'!$L$8+1),"Mid Season",IF(AND(B153+1>'Calculation Sheet Crop 1'!$K$9,B153-1<'Calculation Sheet Crop 1'!$L$9),"Late Season Stage","")))) ->  | D153: =IF(MONTH(B153)=1,'General Calculation'!$E$21,IF(MONTH(B153)=2,'General Calculation'!$F$21,IF(MONTH(B153)=3,'General Calculation'!$G$21,IF(MONTH(B153)=4,'General Calculation'!$H$21,IF(MONTH(B153)=5,'General Calculation'!$I$21,IF(MONTH(B153)=6,'General Calculation'!$J$21,IF(MONTH(B153)=7,'General Calculation'!$K$21,IF(MONTH(B153)=8,'General Calculation'!$L$21,IF(MONTH(B153)=9,'General Calculation'!$M$21,IF(MONTH(B153)=10,'General Calculation'!$N$21,IF(MONTH(B153)=11,'General Calculation'!$O$21,IF(MONTH(B153)=12,'General Calculation'!$P$21,"")))))))))))) -> 6.045 | E153: =IF(C153="Initial Stage",'Calculation Sheet Crop 1'!$M$6,IF(C153="Crop Development Phase",'Calculation Sheet Crop 1'!$M$7,IF(C153="Mid Season",'Calculation Sheet Crop 1'!$M$8,IF(C153="Late Season Stage",'Calculation Sheet Crop 1'!$M$9,"")))) ->  | F153: 0 | P153: 0 | Q153: 0 | R153: 0 | S153: 0 | T153: 0 | U153: 0 | V153: 0 | W153: 0 | X153: 0 | Y153: 0 | Z153: 0 | AA153: 0
B154: 2017-05-28 | C154: =IF(AND(B154>='Calculation Sheet Crop 1'!$K$6,B154<='Calculation Sheet Crop 1'!$L$6),"Initial Stage",IF(AND(B154+1>'Calculation Sheet Crop 1'!$K$7,B154<='Calculation Sheet Crop 1'!$L$7),"Crop Development Phase",IF(AND(B154+1>'Calculation Sheet Crop 1'!$K$8,B154<'Calculation Sheet Crop 1'!$L$8+1),"Mid Season",IF(AND(B154+1>'Calculation Sheet Crop 1'!$K$9,B154-1<'Calculation Sheet Crop 1'!$L$9),"Late Season Stage","")))) ->  | D154: =IF(MONTH(B154)=1,'General Calculation'!$E$21,IF(MONTH(B154)=2,'General Calculation'!$F$21,IF(MONTH(B154)=3,'General Calculation'!$G$21,IF(MONTH(B154)=4,'General Calculation'!$H$21,IF(MONTH(B154)=5,'General Calculation'!$I$21,IF(MONTH(B154)=6,'General Calculation'!$J$21,IF(MONTH(B154)=7,'General Calculation'!$K$21,IF(MONTH(B154)=8,'General Calculation'!$L$21,IF(MONTH(B154)=9,'General Calculation'!$M$21,IF(MONTH(B154)=10,'General Calculation'!$N$21,IF(MONTH(B154)=11,'General Calculation'!$O$21,IF(MONTH(B154)=12,'General Calculation'!$P$21,"")))))))))))) -> 6.045 | E154: =IF(C154="Initial Stage",'Calculation Sheet Crop 1'!$M$6,IF(C154="Crop Development Phase",'Calculation Sheet Crop 1'!$M$7,IF(C154="Mid Season",'Calculation Sheet Crop 1'!$M$8,IF(C154="Late Season Stage",'Calculation Sheet Crop 1'!$M$9,"")))) ->  | F154: 0 | P154: 0 | Q154: 0 | R154: 0 | S154: 0 | T154: 0 | U154: 0 | V154: 0 | W154: 0 | X154: 0 | Y154: 0 | Z154: 0 | AA154: 0
B155: 2017-05-29 | C155: =IF(AND(B155>='Calculation Sheet Crop 1'!$K$6,B155<='Calculation Sheet Crop 1'!$L$6),"Initial Stage",IF(AND(B155+1>'Calculation Sheet Crop 1'!$K$7,B155<='Calculation Sheet Crop 1'!$L$7),"Crop Development Phase",IF(AND(B155+1>'Calculation Sheet Crop 1'!$K$8,B155<'Calculation Sheet Crop 1'!$L$8+1),"Mid Season",IF(AND(B155+1>'Calculation Sheet Crop 1'!$K$9,B155-1<'Calculation Sheet Crop 1'!$L$9),"Late Season Stage","")))) ->  | D155: =IF(MONTH(B155)=1,'General Calculation'!$E$21,IF(MONTH(B155)=2,'General Calculation'!$F$21,IF(MONTH(B155)=3,'General Calculation'!$G$21,IF(MONTH(B155)=4,'General Calculation'!$H$21,IF(MONTH(B155)=5,'General Calculation'!$I$21,IF(MONTH(B155)=6,'General Calculation'!$J$21,IF(MONTH(B155)=7,'General Calculation'!$K$21,IF(MONTH(B155)=8,'General Calculation'!$L$21,IF(MONTH(B155)=9,'General Calculation'!$M$21,IF(MONTH(B155)=10,'General Calculation'!$N$21,IF(MONTH(B155)=11,'General Calculation'!$O$21,IF(MONTH(B155)=12,'General Calculation'!$P$21,"")))))))))))) -> 6.045 | E155: =IF(C155="Initial Stage",'Calculation Sheet Crop 1'!$M$6,IF(C155="Crop Development Phase",'Calculation Sheet Crop 1'!$M$7,IF(C155="Mid Season",'Calculation Sheet Crop 1'!$M$8,IF(C155="Late Season Stage",'Calculation Sheet Crop 1'!$M$9,"")))) ->  | F155: 0 | P155: 0 | Q155: 0 | R155: 0 | S155: 0 | T155: 0 | U155: 0 | V155: 0 | W155: 0 | X155: 0 | Y155: 0 | Z155: 0 | AA155: 0
B156: 2017-05-30 | C156: =IF(AND(B156>='Calculation Sheet Crop 1'!$K$6,B156<='Calculation Sheet Crop 1'!$L$6),"Initial Stage",IF(AND(B156+1>'Calculation Sheet Crop 1'!$K$7,B156<='Calculation Sheet Crop 1'!$L$7),"Crop Development Phase",IF(AND(B156+1>'Calculation Sheet Crop 1'!$K$8,B156<'Calculation Sheet Crop 1'!$L$8+1),"Mid Season",IF(AND(B156+1>'Calculation Sheet Crop 1'!$K$9,B156-1<'Calculation Sheet Crop 1'!$L$9),"Late Season Stage","")))) ->  | D156: =IF(MONTH(B156)=1,'General Calculation'!$E$21,IF(MONTH(B156)=2,'General Calculation'!$F$21,IF(MONTH(B156)=3,'General Calculation'!$G$21,IF(MONTH(B156)=4,'General Calculation'!$H$21,IF(MONTH(B156)=5,'General Calculation'!$I$21,IF(MONTH(B156)=6,'General Calculation'!$J$21,IF(MONTH(B156)=7,'General Calculation'!$K$21,IF(MONTH(B156)=8,'General Calculation'!$L$21,IF(MONTH(B156)=9,'General Calculation'!$M$21,IF(MONTH(B156)=10,'General Calculation'!$N$21,IF(MONTH(B156)=11,'General Calculation'!$O$21,IF(MONTH(B156)=12,'General Calculation'!$P$21,"")))))))))))) -> 6.045 | E156: =IF(C156="Initial Stage",'Calculation Sheet Crop 1'!$M$6,IF(C156="Crop Development Phase",'Calculation Sheet Crop 1'!$M$7,IF(C156="Mid Season",'Calculation Sheet Crop 1'!$M$8,IF(C156="Late Season Stage",'Calculation Sheet Crop 1'!$M$9,"")))) ->  | F156: 0 | P156: 0 | Q156: 0 | R156: 0 | S156: 0 | T156: 0 | U156: 0 | V156: 0 | W156: 0 | X156: 0 | Y156: 0 | Z156: 0 | AA156: 0
B157: 2017-05-31 | C157: =IF(AND(B157>='Calculation Sheet Crop 1'!$K$6,B157<='Calculation Sheet Crop 1'!$L$6),"Initial Stage",IF(AND(B157+1>'Calculation Sheet Crop 1'!$K$7,B157<='Calculation Sheet Crop 1'!$L$7),"Crop Development Phase",IF(AND(B157+1>'Calculation Sheet Crop 1'!$K$8,B157<'Calculation Sheet Crop 1'!$L$8+1),"Mid Season",IF(AND(B157+1>'Calculation Sheet Crop 1'!$K$9,B157-1<'Calculation Sheet Crop 1'!$L$9),"Late Season Stage","")))) ->  | D157: =IF(MONTH(B157)=1,'General Calculation'!$E$21,IF(MONTH(B157)=2,'General Calculation'!$F$21,IF(MONTH(B157)=3,'General Calculation'!$G$21,IF(MONTH(B157)=4,'General Calculation'!$H$21,IF(MONTH(B157)=5,'General Calculation'!$I$21,IF(MONTH(B157)=6,'General Calculation'!$J$21,IF(MONTH(B157)=7,'General Calculation'!$K$21,IF(MONTH(B157)=8,'General Calculation'!$L$21,IF(MONTH(B157)=9,'General Calculation'!$M$21,IF(MONTH(B157)=10,'General Calculation'!$N$21,IF(MONTH(B157)=11,'General Calculation'!$O$21,IF(MONTH(B157)=12,'General Calculation'!$P$21,"")))))))))))) -> 6.045 | E157: =IF(C157="Initial Stage",'Calculation Sheet Crop 1'!$M$6,IF(C157="Crop Development Phase",'Calculation Sheet Crop 1'!$M$7,IF(C157="Mid Season",'Calculation Sheet Crop 1'!$M$8,IF(C157="Late Season Stage",'Calculation Sheet Crop 1'!$M$9,"")))) ->  | F157: 0 | P157: 0 | Q157: 0 | R157: 0 | S157: 0 | T157: 0 | U157: 0 | V157: 0 | W157: 0 | X157: 0 | Y157: 0 | Z157: 0 | AA157: 0
B158: 2017-06-01 | C158: =IF(AND(B158>='Calculation Sheet Crop 1'!$K$6,B158<='Calculation Sheet Crop 1'!$L$6),"Initial Stage",IF(AND(B158+1>'Calculation Sheet Crop 1'!$K$7,B158<='Calculation Sheet Crop 1'!$L$7),"Crop Development Phase",IF(AND(B158+1>'Calculation Sheet Crop 1'!$K$8,B158<'Calculation Sheet Crop 1'!$L$8+1),"Mid Season",IF(AND(B158+1>'Calculation Sheet Crop 1'!$K$9,B158-1<'Calculation Sheet Crop 1'!$L$9),"Late Season Stage","")))) ->  | D158: =IF(MONTH(B158)=1,'General Calculation'!$E$21,IF(MONTH(B158)=2,'General Calculation'!$F$21,IF(MONTH(B158)=3,'General Calculation'!$G$21,IF(MONTH(B158)=4,'General Calculation'!$H$21,IF(MONTH(B158)=5,'General Calculation'!$I$21,IF(MONTH(B158)=6,'General Calculation'!$J$21,IF(MONTH(B158)=7,'General Calculation'!$K$21,IF(MONTH(B158)=8,'General Calculation'!$L$21,IF(MONTH(B158)=9,'General Calculation'!$M$21,IF(MONTH(B158)=10,'General Calculation'!$N$21,IF(MONTH(B158)=11,'General Calculation'!$O$21,IF(MONTH(B158)=12,'General Calculation'!$P$21,"")))))))))))) -> 5.9456 | E158: =IF(C158="Initial Stage",'Calculation Sheet Crop 1'!$M$6,IF(C158="Crop Development Phase",'Calculation Sheet Crop 1'!$M$7,IF(C158="Mid Season",'Calculation Sheet Crop 1'!$M$8,IF(C158="Late Season Stage",'Calculation Sheet Crop 1'!$M$9,"")))) ->  | F158: 0 | P158: 0 | Q158: 0 | R158: 0 | S158: 0 | T158: 0 | U158: 0 | V158: 0 | W158: 0 | X158: 0 | Y158: 0 | Z158: 0 | AA158: 0
B159: 2017-06-02 | C159: =IF(AND(B159>='Calculation Sheet Crop 1'!$K$6,B159<='Calculation Sheet Crop 1'!$L$6),"Initial Stage",IF(AND(B159+1>'Calculation Sheet Crop 1'!$K$7,B159<='Calculation Sheet Crop 1'!$L$7),"Crop Development Phase",IF(AND(B159+1>'Calculation Sheet Crop 1'!$K$8,B159<'Calculation Sheet Crop 1'!$L$8+1),"Mid Season",IF(AND(B159+1>'Calculation Sheet Crop 1'!$K$9,B159-1<'Calculation Sheet Crop 1'!$L$9),"Late Season Stage","")))) ->  | D159: =IF(MONTH(B159)=1,'General Calculation'!$E$21,IF(MONTH(B159)=2,'General Calculation'!$F$21,IF(MONTH(B159)=3,'General Calculation'!$G$21,IF(MONTH(B159)=4,'General Calculation'!$H$21,IF(MONTH(B159)=5,'General Calculation'!$I$21,IF(MONTH(B159)=6,'General Calculation'!$J$21,IF(MONTH(B159)=7,'General Calculation'!$K$21,IF(MONTH(B159)=8,'General Calculation'!$L$21,IF(MONTH(B159)=9,'General Calculation'!$M$21,IF(MONTH(B159)=10,'General Calculation'!$N$21,IF(MONTH(B159)=11,'General Calculation'!$O$21,IF(MONTH(B159)=12,'General Calculation'!$P$21,"")))))))))))) -> 5.9456 | E159: =IF(C159="Initial Stage",'Calculation Sheet Crop 1'!$M$6,IF(C159="Crop Development Phase",'Calculation Sheet Crop 1'!$M$7,IF(C159="Mid Season",'Calculation Sheet Crop 1'!$M$8,IF(C159="Late Season Stage",'Calculation Sheet Crop 1'!$M$9,"")))) ->  | F159: 0 | P159: 0 | Q159: 0 | R159: 0 | S159: 0 | T159: 0 | U159: 0 | V159: 0 | W159: 0 | X159: 0 | Y159: 0 | Z159: 0 | AA159: 0
B160: 2017-06-03 | C160: =IF(AND(B160>='Calculation Sheet Crop 1'!$K$6,B160<='Calculation Sheet Crop 1'!$L$6),"Initial Stage",IF(AND(B160+1>'Calculation Sheet Crop 1'!$K$7,B160<='Calculation Sheet Crop 1'!$L$7),"Crop Development Phase",IF(AND(B160+1>'Calculation Sheet Crop 1'!$K$8,B160<'Calculation Sheet Crop 1'!$L$8+1),"Mid Season",IF(AND(B160+1>'Calculation Sheet Crop 1'!$K$9,B160-1<'Calculation Sheet Crop 1'!$L$9),"Late Season Stage","")))) ->  | D160: =IF(MONTH(B160)=1,'General Calculation'!$E$21,IF(MONTH(B160)=2,'General Calculation'!$F$21,IF(MONTH(B160)=3,'General Calculation'!$G$21,IF(MONTH(B160)=4,'General Calculation'!$H$21,IF(MONTH(B160)=5,'General Calculation'!$I$21,IF(MONTH(B160)=6,'General Calculation'!$J$21,IF(MONTH(B160)=7,'General Calculation'!$K$21,IF(MONTH(B160)=8,'General Calculation'!$L$21,IF(MONTH(B160)=9,'General Calculation'!$M$21,IF(MONTH(B160)=10,'General Calculation'!$N$21,IF(MONTH(B160)=11,'General Calculation'!$O$21,IF(MONTH(B160)=12,'General Calculation'!$P$21,"")))))))))))) -> 5.9456 | E160: =IF(C160="Initial Stage",'Calculation Sheet Crop 1'!$M$6,IF(C160="Crop Development Phase",'Calculation Sheet Crop 1'!$M$7,IF(C160="Mid Season",'Calculation Sheet Crop 1'!$M$8,IF(C160="Late Season Stage",'Calculation Sheet Crop 1'!$M$9,"")))) ->  | F160: 0 | P160: 0 | Q160: 0 | R160: 0 | S160: 0 | T160: 0 | U160: 0 | V160: 0 | W160: 0 | X160: 0 | Y160: 0 | Z160: 0 | AA160: 0
